Workbook

Sheet DOE - FIPStoPayeeCodeConvTable (hidden)
B1: Manually edit this file | F1: FY= | G1: 2022
A2: FIPS | B2: FIPS DESC | C2: PAYEE | D2: PAYEE DESC | E2: Pool Rate
A3: 1 | B3: Accomack Co | C3: 00001 | D3: Accomack County | E3: 0.2332
A4: 3 | B4: Albemarle Co | C4: 00002 | D4: Albemarle County | E4: 0.4474
A5: 5 | B5: Alleghany Co | C5: 00003 | D5: Alleghany County | E5: 0.1924
A6: 7 | B6: Amelia Co | C6: 00004 | D6: Amelia County | E6: 0.3268
A7: 9 | B7: Amherst Co | C7: 00005 | D7: Amherst County | E7: 0.2722
A8: 11 | B8: Appomattox Co | C8: 00006 | D8: Appomattox County | E8: 0.2639
A9: 13 | B9: Arlington Co | C9: 00007 | D9: Arlington County | E9: 0.4602
A10: 15 | B10: Augusta Co | C10: 00008 | D10: Augusta County | E10: 0.3302
A11: 17 | B11: Bath Co | C11: 00009 | D11: Bath County | E11: 0.4278
A12: 19 | B12: Bedford Co | C12: 00010 | D12: Bedford County | E12: 0.31112
A13: 21 | B13: Bland Co | C13: 00011 | D13: Bland County | E13: 0.2109
A14: 23 | B14: Botetourt Co | C14: 00012 | D14: Botetourt County | E14: 0.3602
A15: 25 | B15: Brunswick Co | C15: 00013 | D15: Brunswick County | E15: 0.2439
A16: 27 | B16: Buchanan Co | C16: 00014 | D16: Buchanan County | E16: 0.3156
A17: 29 | B17: Buckingham Co | C17: 00015 | D17: Buckingham County | E17: 0.2023
A18: 31 | B18: Campbell Co | C18: 00016 | D18: Campbell County | E18: 0.3107
A19: 33 | B19: Caroline Co | C19: 00017 | D19: Caroline County | E19: 0.3308
A20: 35 | B20: Carroll Co | C20: 00018 | D20: Carroll County | E20: 0.291
A21: 36 | B21: Charles City Co | C21: 00019 | D21: Charles City | E21: 0.3131
A22: 37 | B22: Charlotte Co | C22: 00020 | D22: Charlotte County | E22: 0.2204
A23: 41 | B23: Chesterfield Co | C23: 00021 | D23: Chesterfield County | E23: 0.3853
A24: 43 | B24: Clarke Co | C24: 00022 | D24: Clarke County | E24: 0.4797
A25: 45 | B25: Craig Co | C25: 00023 | D25: Craig County | E25: 0.2901
A26: 47 | B26: Culpeper Co | C26: 00024 | D26: Culpeper County | E26: 0.3767
A27: 49 | B27: Cumberland Co | C27: 00025 | D27: Cumberland County | E27: 0.304
A28: 51 | B28: Dickenson Co | C28: 00026 | D28: Dickenson County | E28: 0.3042
A29: 53 | B29: Dinwiddie Co | C29: 00027 | D29: Dinwiddie County | E29: 0.3358
A30: 57 | B30: Essex Co | C30: 00028 | D30: Essex County | E30: 0.3853
A31: 59 | B31: Fairfax Co | C31: 00029 | D31: Fairfax County | E31: 0.4611
A32: 61 | B32: Fauquier Co | C32: 00030 | D32: Fauquier County | E32: 0.4584
A33: 63 | B33: Floyd Co | C33: 00031 | D33: Floyd County | E33: 0.2324
A34: 65 | B34: Fluvanna Co | C34: 00032 | D34: Fluvanna County | E34: 0.3811
A35: 67 | B35: Franklin Co | C35: 00033 | D35: Franklin County | E35: 0.283
A36: 69 | B36: Frederick Co | C36: 00034 | D36: Frederick County | E36: 0.4348
A37: 71 | B37: Giles Co | C37: 00035 | D37: Giles County | E37: 0.2898
A38: 73 | B38: Gloucester Co | C38: 00036 | D38: Gloucester County | E38: 0.3687
A39: 75 | B39: Goochland Co | C39: 00037 | D39: Goochland County | E39: 0.4871
A40: 77 | B40: Grayson Co | C40: 00038 | D40: Grayson County | E40: 0.2109
A41: 79 | B41: Greene Co | C41: 00039 | D41: Greene County | E41: 0.3471
A42: 81 | B42: Greensville Co | C42: 00040 | D42: Greensville County | E42: 0.2266
A43: 83 | B43: Halifax Co | C43: 00041 | D43: Halifax County | E43: 0.2335
A44: 85 | B44: Hanover Co | C44: 00042 | D44: Hanover County | E44: 0.4444
A45: 87 | B45: Henrico Co | C45: 00043 | D45: Henrico County | E45: 0.3755
A46: 89 | B46: Henry Co | C46: 00044 | D46: Henry County | E46: 0.2786
A47: 91 | B47: Highland Co | C47: 00045 | D47: Highland County | E47: 0.3822
A48: 93 | B48: Isle Of Wight Co | C48: 00046 | D48: Isle of Wight | E48: 0.3613
A49: 95 | B49: James City Co | C49: 00047 | D49: James City County | E49: 0.4483
A50: 97 | B50: King And Queen Co | C50: 00049 | D50: King and Queen County | E50: 0.3144
A51: 99 | B51: King George Co | C51: 00048 | D51: King George County | E51: 0.3627
A52: 101 | B52: King William Co | C52: 00050 | D52: King William County | E52: 0.3853
A53: 103 | B53: Lancaster Co | C53: 00051 | D53: Lancaster County | E53: 0.4391
A54: 105 | B54: Lee Co | C54: 00052 | D54: Lee County | E54: 0.2245
A55: 107 | B55: Loudoun Co | C55: 00053 | D55: Loudoun County | E55: 0.4764
A56: 109 | B56: Louisa Co | C56: 00054 | D56: Louisa County | E56: 0.4401
A57: 111 | B57: Lunenburg Co | C57: 00055 | D57: Lunenburg County | E57: 0.1698
A58: 113 | B58: Madison Co | C58: 00056 | D58: Madison County | E58: 0.3355
A59: 115 | B59: Mathews Co | C59: 00057 | D59: Mathews County | E59: 0.4271
A60: 117 | B60: Mecklenburg Co | C60: 00058 | D60: Mecklenburg County | E60: 0.2286
A61: 119 | B61: Middlesex Co | C61: 00059 | D61: Middlesex County | E61: 0.4333
A62: 121 | B62: Montgomery Co | C62: 00060 | D62: Montgomery County | E62: 0.2834
A63: 125 | B63: Nelson Co | C63: 00062 | D63: Nelson County | E63: 0.3132
A64: 127 | B64: New Kent Co | C64: 00063 | D64: New Kent County | E64: 0.4329
A65: 131 | B65: Northampton Co | C65: 00001 | D65: Accomack County | E65: 0.1971
A66: 133 | B66: Northumberland Co | C66: 00066 | D66: Northumberland County | E66: 0.3304
A67: 135 | B67: Nottoway Co | C67: 00067 | D67: Nottoway County | E67: 0.2686
A68: 137 | B68: Orange Co | C68: 00068 | D68: Orange County | E68: 0.4083
A69: 139 | B69: Page Co | C69: 00069 | D69: Page County | E69: 0.2865
A70: 141 | B70: Patrick Co | C70: 00070 | D70: Patrick County | E70: 0.2539
A71: 143 | B71: Pittsylvania Co | C71: 00071 | D71: Pittsylvania County | E71: 0.2355
A72: 145 | B72: Powhatan Co | C72: 00072 | D72: Powhatan County | E72: 0.4342
A73: 147 | B73: Prince Edward Co | C73: 00073 | D73: Prince Edward County | E73: 0.2232
A74: 149 | B74: Prince George Co | C74: 00074 | D74: Prince George County | E74: 0.3716
A75: 153 | B75: Prince William Co | C75: 00075 | D75: Prince William County | E75: 0.3414
A76: 155 | B76: Pulaski Co | C76: 00077 | D76: Pulaski County | E76: 0.2923
A77: 157 | B77: Rappahannock Co | C77: 00078 | D77: Rappahannock County | E77: 0.4199
A78: 159 | B78: Richmond Co | C78: 00079 | D78: Richmond County | E78: 0.3227
A79: 161 | B79: Roanoke Co | C79: 00080 | D79: Roanoke County | E79: 0.4397
A80: 163 | B80: Rockbridge Co | C80: 00081 | D80: Rockbridge County | E80: 0.2336
A81: 165 | B81: Rockingham Co | C81: 00082 | D81: Rockingham County | E81: 0.3445
A82: 167 | B82: Russell Co | C82: 00083 | D82: Russell County | E82: 0.1894
A83: 169 | B83: Scott Co | C83: 00084 | D83: Scott County | E83: 0.3154
A84: 171 | B84: Shenandoah Co | C84: 00085 | D84: Shenandoah County | E84: 0.3517
A85: 173 | B85: Smyth Co | C85: 00086 | D85: Smyth County | E85: 0.2337
A86: 175 | B86: Southampton Co | C86: 00087 | D86: Southampton County | E86: 0.323
A87: 177 | B87: Spotsylvania Co | C87: 00088 | D87: Spotsylvania County | E87: 0.4588
A88: 179 | B88: Stafford Co | C88: 00089 | D88: Stafford County | E88: 0.4439
A89: 181 | B89: Surry Co | C89: 00090 | D89: Surry County | E89: 0.3979
A90: 183 | B90: Sussex Co | C90: 00091 | D90: Sussex County | E90: 0.2387
A91: 185 | B91: Tazewell Co | C91: 00092 | D91: Tazewell County | E91: 0.2455
A92: 187 | B92: Warren Co | C92: 00093 | D92: Warren County | E92: 0.3853
A93: 191 | B93: Washington Co | C93: 00094 | D93: Washington County | E93: 0.276
A94: 193 | B94: Westmoreland Co | C94: 00095 | D94: Westmoreland County | E94: 0.3025
A95: 195 | B95: Wise Co | C95: 00096 | D95: Wise County | E95: 0.2755
A96: 197 | B96: Wythe Co | C96: 00097 | D96: Wythe County | E96: 0.2708 | L96: Jul - Sept | M96: Oct - June
A97: 199 | B97: York Co | C97: 00098 | D97: York County | E97: 0.3888 | J97: (Tab Name with) OR = Federal Match rate | L97: 0.88
A98: 510 | B98: Alexandria City | C98: 00101 | D98: Alexandria City | E98: 0.5309 | J98: (Tab Name with) NR = Federal Match rate | M98: 0.765
A99: 520 | B99: Bristol City | C99: 00094 | D99: Washington County | E99: 0.2547
A100: 530 | B100: Buena Vista City | C100: 00103 | D100: Buena Vista City | E100: 0.2329
A101: 540 | B101: Charlottesville City | C101: 00104 | D101: Charlottesville City | E101: 0.3068
A102: 550 | B102: Chesapeake City | C102: 00136 | D102: Chesapeake City | E102: 0.3715
A103: 570 | B103: Colonial Heights City | C103: 00021 | D103: Chesterfield County | E103: 0.4027
A104: 580 | B104: Covington City | C104: 00107 | D104: Covington City | E104: 0.2496
A105: 590 | B105: Danville City | C105: 00108 | D105: Danville City | E105: 0.2223
A106: 620 | B106: Franklin City | C106: 00135 | D106: Franklin City | E106: 0.371
A107: 630 | B107: Fredericksburg City | C107: 00110 | D107: Fredericksburg City | E107: 0.3441
A108: 640 | B108: Galax City | C108: 00111 | D108: Galax City | E108: 0.3146
A109: 650 | B109: Hampton City | C109: 00112 | D109: Hampton City | E109: 0.3223
A110: 660 | B110: Harrisonburg City | C110: 00082 | D110: Rockingham County | E110: 0.3808
A111: 670 | B111: Hopewell City | C111: 00114 | D111: Hopewell City | E111: 0.2667
A112: 678 | B112: Lexington City | C112: 00137 | D112: Lexington City | E112: 0.3302
A113: 680 | B113: Lynchburg City | C113: 00115 | D113: Lynchburg City | E113: 0.2736
A114: 683 | B114: Manassas City | C114: 00143 | D114: Manassas City | E114: 0.4168
A115: 685 | B115: Manassas Park City | C115: 00144 | D115: Manassas Park City | E115: 0.4273
A116: 690 | B116: Martinsville City | C116: 00116 | D116: Martinsville City | E116: 0.3321
A117: 700 | B117: Newport News City | C117: 00117 | D117: Newport News City | E117: 0.2773
A118: 710 | B118: Norfolk City | C118: 00118 | D118: Norfolk City | E118: 0.2455
A119: 720 | B119: Norton City | C119: 00119 | D119: Norton City | E119: 0.3254
A120: 730 | B120: Petersburg City | C120: 00120 | D120: Petersburg City | E120: 0.3535
A121: 735 | B121: Poquoson City | C121: 00142 | D121: Poquoson City | E121: 0.2787
A122: 740 | B122: Portsmouth City | C122: 00121 | D122: Portsmouth City | E122: 0.2605
A123: 750 | B123: Radford City | C123: 00122 | D123: Radford City | E123: 0.2035
A124: 760 | B124: Richmond City | C124: 00123 | D124: Richmond City | E124: 0.3691
A125: 770 | B125: Roanoke City | C125: 00124 | D125: Roanoke City | E125: 0.3072
A126: 775 | B126: Salem City | C126: 00139 | D126: Salem City | E126: 0.3513
A127: 790 | B127: Staunton City | C127: 00126 | D127: Staunton City | E127: 0.2699
A128: 800 | B128: Suffolk City | C128: 00127 | D128: Suffolk City | E128: 0.2432
A129: 810 | B129: Virginia Beach City | C129: 00128 | D129: Virginia Beach City | E129: 0.3569
A130: 820 | B130: Waynesboro City | C130: 00130 | D130: Waynesboro City | E130: 0.3843
A131: 830 | B131: Williamsburg City | C131: 00850 | D131: Williamsburg City | E131: 0.4553
A132: 840 | B132: Winchester City | C132: 00132 | D132: Winchester City | E132: 0.4587

Sheet Extended Covid adj Oct 20 (hidden)
A1: FY | B1: ='DOE - FIPStoPayeeCodeConvTable'!G1 -> 2022 | C1: MEDICAID ADJUSTMENTS--EXTENDED PAYMENTS TO PROVIDERS | O1: ="Extended to be paided in this SFY = " & B1 -> Extended to be paided in this SFY = 2022 | T1: xx | U1: 0.6934 | V1: 0.3066 | W1: (POOL) | X1: 1.25
U2: FEDERAL | V2: STATE/ | W2: (RATE) | X2: Factor
A3: FIPS | S3: Grand | U3: MEDICAID | V3: LOCAL | W3: LOCAL | Y3: LOCAL | Z3: STATE
A4: CODE | B4: LOCALITY | C4: =TEXT("7/1/" & $B$1-1,"mmm-yyyy") -> Jul-2021 | D4: =TEXT("8/1/" & $B$1-1,"mmm-yyyy") -> Aug-2021 | E4: =TEXT("9/1/" & $B$1-1,"mmm-yyyy") -> Sep-2021 | F4: =TEXT("10/1/" & $B$1-1,"mmm-yyyy") -> Oct-2021 | G4: =TEXT("11/1/" & $B$1-1,"mmm-yyyy") -> Nov-2021 | H4: =TEXT("12/1/" & $B$1-1,"mmm-yyyy") -> Dec-2021 | I4: =TEXT("1/1/" & $B$1,"mmm-yyyy") -> Jan-2022 | J4: =TEXT("2/1/" & $B$1,"mmm-yyyy") -> Feb-2022 | K4: =TEXT("3/1/" & $B$1,"mmm-yyyy") -> Mar-2022 | L4: =TEXT("4/1/" & $B$1,"mmm-yyyy") -> Apr-2022 | M4: =TEXT("5/1/" & $B$1,"mmm-yyyy") -> May-2022 | N4: =TEXT("6/1/" & $B$1,"mmm-yyyy") -> Jun-2022 | O4: =TEXT("7/1/" & $B$1,"mmm-yyyy") -> Jul-2022 | P4: =TEXT("8/1/" & $B$1,"mmm-yyyy") -> Aug-2022 | Q4: =TEXT("9/1/" & $B$1,"mmm-yyyy") -> Sep-2022 | R4: =TEXT("10/1/" & $B$1,"mmm-yyyy") -> Oct-2022 | S4: Total | U4: RATE/Share | V4: SHARE | W4: MATCH Rate | Y4: MATCH | Z4: SHARE
A5: Totals | C5: =SUM(C6:C1200) -> 115218.12 | D5: 311986.64 | E5: 208878.24 | F5: 162465.98 | G5: 204180.43 | H5: 223832.28 | I5: 231769.59 | J5: 182162.89 | K5: 269445.93 | L5: 115372.77 | M5: 50532.85 | N5: =SUM(N6:N1200) -> 118792.64 | O5: 0 | P5: 0 | Q5: 0 | R5: =SUM(R6:R1200) -> 0 | S5: =SUM(C5:R5) -> 2194638.36 | T5: = | U5: =SUM(U6:U399) -> 1441870 | V5: =SUM(V6:V399) -> 637550.24 | W5: = | Y5: =SUM(Y6:Y399) -> 293771.51 | Z5: =SUM(Z6:Z399) -> 343778.73
A6: 1 | B6: =LOOKUP(A6,'DOE - FIPStoPayeeCodeConvTable'!$A$3:$A$213,'DOE - FIPStoPayeeCodeConvTable'!$B$3:$B$213) -> Accomack Co | C6: 0 | D6: 0 | E6: 0 | F6: 6213.06 | G6: 0 | H6: 21055.37 | I6: 10700.27 | J6: 10700.27 | K6: 9664.76 | L6: 10700.27 | M6: 0 | N6: 3796.87 | S6: =SUM(D6:R6) -> 72830.87 | U6: =ROUND($U$1*S6,2) -> 50500.93 | V6: =SUM(S6)-SUM(U6) -> 22329.94 | W6: =LOOKUP(A6,'DOE - FIPStoPayeeCodeConvTable'!$A$3:$A$213,'DOE - FIPStoPayeeCodeConvTable'!$E$3:$E$213) -> 0.2332 | X6: =$X$1*W6 -> 0.2915 | Y6: =ROUND(X6*V6,2) -> 6509.18 | Z6: =SUM(V6)-SUM(Y6) -> 15820.76
A7: 3 | B7: =LOOKUP(A7,'DOE - FIPStoPayeeCodeConvTable'!$A$3:$A$213,'DOE - FIPStoPayeeCodeConvTable'!$B$3:$B$213) -> Albemarle Co | C7: 0 | D7: 0 | E7: 0 | F7: 0 | G7: 0 | H7: 0 | I7: 0 | J7: 0 | K7: 0 | L7: 0 | M7: 0 | N7: 0 | S7: 0 | U7: =ROUND($U$1*S7,2) -> 0 | V7: 0 | W7: =LOOKUP(A7,'DOE - FIPStoPayeeCodeConvTable'!$A$3:$A$213,'DOE - FIPStoPayeeCodeConvTable'!$E$3:$E$213) -> 0.4474 | X7: =$X$1*W7 -> 0.55925 | Y7: =ROUND(X7*V7,2) -> 0 | Z7: =SUM(V7)-SUM(Y7) -> 0
A8: 5 | B8: =LOOKUP(A8,'DOE - FIPStoPayeeCodeConvTable'!$A$3:$A$213,'DOE - FIPStoPayeeCodeConvTable'!$B$3:$B$213) -> Alleghany Co | C8: 0 | D8: 0 | E8: 0 | F8: 0 | G8: 0 | H8: 0 | I8: 0 | J8: 0 | K8: 0 | L8: 0 | M8: 0 | N8: 0 | S8: 0 | U8: 0 | V8: 0 | W8: =LOOKUP(A8,'DOE - FIPStoPayeeCodeConvTable'!$A$3:$A$213,'DOE - FIPStoPayeeCodeConvTable'!$E$3:$E$213) -> 0.1924 | X8: 0.2405 | Y8: 0 | Z8: 0
A9: 7 | B9: =LOOKUP(A9,'DOE - FIPStoPayeeCodeConvTable'!$A$3:$A$213,'DOE - FIPStoPayeeCodeConvTable'!$B$3:$B$213) -> Amelia Co | C9: 0 | D9: 0 | E9: 0 | F9: 0 | G9: 0 | H9: 0 | I9: 0 | J9: 0 | K9: 0 | L9: 0 | M9: 0 | N9: 0 | S9: 0 | U9: 0 | V9: 0 | W9: =LOOKUP(A9,'DOE - FIPStoPayeeCodeConvTable'!$A$3:$A$213,'DOE - FIPStoPayeeCodeConvTable'!$E$3:$E$213) -> 0.3268 | X9: 0.4085 | Y9: 0 | Z9: 0
A10: 9 | B10: =LOOKUP(A10,'DOE - FIPStoPayeeCodeConvTable'!$A$3:$A$213,'DOE - FIPStoPayeeCodeConvTable'!$B$3:$B$213) -> Amherst Co | C10: 0 | D10: 0 | E10: 0 | F10: 0 | G10: 0 | H10: 0 | I10: 0 | J10: 0 | K10: 0 | L10: 0 | M10: 0 | N10: 0 | S10: 0 | U10: 0 | V10: 0 | W10: =LOOKUP(A10,'DOE - FIPStoPayeeCodeConvTable'!$A$3:$A$213,'DOE - FIPStoPayeeCodeConvTable'!$E$3:$E$213) -> 0.2722 | X10: 0.34025 | Y10: 0 | Z10: 0
A11: 11 | B11: =LOOKUP(A11,'DOE - FIPStoPayeeCodeConvTable'!$A$3:$A$213,'DOE - FIPStoPayeeCodeConvTable'!$B$3:$B$213) -> Appomattox Co | C11: 0 | D11: 0 | E11: 0 | F11: 0 | G11: 0 | H11: 0 | I11: 0 | J11: 0 | K11: 0 | L11: 0 | M11: 0 | N11: 0 | S11: 0 | U11: 0 | V11: 0 | W11: =LOOKUP(A11,'DOE - FIPStoPayeeCodeConvTable'!$A$3:$A$213,'DOE - FIPStoPayeeCodeConvTable'!$E$3:$E$213) -> 0.2639 | X11: 0.329875 | Y11: 0 | Z11: 0
A12: 13 | B12: =LOOKUP(A12,'DOE - FIPStoPayeeCodeConvTable'!$A$3:$A$213,'DOE - FIPStoPayeeCodeConvTable'!$B$3:$B$213) -> Arlington Co | C12: 0 | D12: 0 | E12: 0 | F12: 0 | G12: 0 | H12: 0 | I12: 0 | J12: 0 | K12: 0 | L12: 0 | M12: 0 | N12: 0 | S12: 0 | U12: 0 | V12: 0 | W12: =LOOKUP(A12,'DOE - FIPStoPayeeCodeConvTable'!$A$3:$A$213,'DOE - FIPStoPayeeCodeConvTable'!$E$3:$E$213) -> 0.4602 | X12: 0.57525 | Y12: 0 | Z12: 0
A13: 15 | B13: =LOOKUP(A13,'DOE - FIPStoPayeeCodeConvTable'!$A$3:$A$213,'DOE - FIPStoPayeeCodeConvTable'!$B$3:$B$213) -> Augusta Co | C13: 11805 | D13: 12336.76 | E13: 12336.76 | F13: 11938.8 | G13: 12336.76 | H13: 3581.64 | I13: 9796.74 | J13: 0 | K13: 9705.5 | L13: 0 | M13: 8919.42 | N13: 0 | S13: 80952.38 | U13: 56132.38 | V13: 24820 | W13: =LOOKUP(A13,'DOE - FIPStoPayeeCodeConvTable'!$A$3:$A$213,'DOE - FIPStoPayeeCodeConvTable'!$E$3:$E$213) -> 0.3302 | X13: 0.41275 | Y13: 10244.46 | Z13: 14575.54
A14: 17 | B14: =LOOKUP(A14,'DOE - FIPStoPayeeCodeConvTable'!$A$3:$A$213,'DOE - FIPStoPayeeCodeConvTable'!$B$3:$B$213) -> Bath Co | C14: 0 | D14: 0 | E14: 0 | F14: 0 | G14: 0 | H14: 0 | I14: 0 | J14: 0 | K14: 0 | L14: 0 | M14: 0 | N14: 0 | S14: 0 | U14: 0 | V14: 0 | W14: =LOOKUP(A14,'DOE - FIPStoPayeeCodeConvTable'!$A$3:$A$213,'DOE - FIPStoPayeeCodeConvTable'!$E$3:$E$213) -> 0.4278 | X14: 0.53475 | Y14: 0 | Z14: 0
A15: 19 | B15: =LOOKUP(A15,'DOE - FIPStoPayeeCodeConvTable'!$A$3:$A$213,'DOE - FIPStoPayeeCodeConvTable'!$B$3:$B$213) -> Bedford Co | C15: 0 | D15: 0 | E15: 10159.68 | F15: 8889.72 | G15: 11852.96 | H15: 11852.96 | I15: 17779.44 | J15: 14816.2 | K15: 8889.72 | L15: 8889.72 | M15: 2963.24 | N15: 0 | S15: 96093.64 | U15: 66631.33 | V15: 29462.31 | W15: =LOOKUP(A15,'DOE - FIPStoPayeeCodeConvTable'!$A$3:$A$213,'DOE - FIPStoPayeeCodeConvTable'!$E$3:$E$213) -> 0.31112 | X15: 0.3889 | Y15: 11457.89 | Z15: 18004.42
A16: 21 | B16: =LOOKUP(A16,'DOE - FIPStoPayeeCodeConvTable'!$A$3:$A$213,'DOE - FIPStoPayeeCodeConvTable'!$B$3:$B$213) -> Bland Co | C16: 0 | D16: 0 | E16: 0 | F16: 0 | G16: 0 | H16: 0 | I16: 0 | J16: 0 | K16: 0 | L16: 0 | M16: 0 | N16: 0 | S16: 0 | U16: 0 | V16: 0 | W16: =LOOKUP(A16,'DOE - FIPStoPayeeCodeConvTable'!$A$3:$A$213,'DOE - FIPStoPayeeCodeConvTable'!$E$3:$E$213) -> 0.2109 | X16: 0.263625 | Y16: 0 | Z16: 0
A17: 23 | B17: =LOOKUP(A17,'DOE - FIPStoPayeeCodeConvTable'!$A$3:$A$213,'DOE - FIPStoPayeeCodeConvTable'!$B$3:$B$213) -> Botetourt Co | C17: 0 | D17: 0 | E17: 0 | F17: 0 | G17: 0 | H17: 0 | I17: 0 | J17: 0 | K17: 2303 | L17: 4532.82 | M17: 0 | N17: 0 | S17: 6835.82 | U17: 4739.96 | V17: 2095.86 | W17: =LOOKUP(A17,'DOE - FIPStoPayeeCodeConvTable'!$A$3:$A$213,'DOE - FIPStoPayeeCodeConvTable'!$E$3:$E$213) -> 0.3602 | X17: 0.45025 | Y17: 943.66 | Z17: 1152.2
A18: 25 | B18: =LOOKUP(A18,'DOE - FIPStoPayeeCodeConvTable'!$A$3:$A$213,'DOE - FIPStoPayeeCodeConvTable'!$B$3:$B$213) -> Brunswick Co | C18: 0 | D18: 0 | E18: 0 | F18: 0 | G18: 0 | H18: 0 | I18: 0 | J18: 0 | K18: 0 | L18: 0 | M18: 0 | N18: 0 | S18: 0 | U18: 0 | V18: 0 | W18: =LOOKUP(A18,'DOE - FIPStoPayeeCodeConvTable'!$A$3:$A$213,'DOE - FIPStoPayeeCodeConvTable'!$E$3:$E$213) -> 0.2439 | X18: 0.304875 | Y18: 0 | Z18: 0
A19: 27 | B19: =LOOKUP(A19,'DOE - FIPStoPayeeCodeConvTable'!$A$3:$A$213,'DOE - FIPStoPayeeCodeConvTable'!$B$3:$B$213) -> Buchanan Co | C19: 0 | D19: 0 | E19: 0 | F19: 0 | G19: 0 | H19: 0 | I19: 0 | J19: 0 | K19: 0 | L19: 0 | M19: 0 | N19: 0 | S19: 0 | U19: 0 | V19: 0 | W19: =LOOKUP(A19,'DOE - FIPStoPayeeCodeConvTable'!$A$3:$A$213,'DOE - FIPStoPayeeCodeConvTable'!$E$3:$E$213) -> 0.3156 | X19: 0.3945 | Y19: 0 | Z19: 0
A20: 29 | B20: =LOOKUP(A20,'DOE - FIPStoPayeeCodeConvTable'!$A$3:$A$213,'DOE - FIPStoPayeeCodeConvTable'!$B$3:$B$213) -> Buckingham Co | C20: 0 | D20: 0 | E20: 0 | F20: 0 | G20: 0 | H20: 0 | I20: 0 | J20: 0 | K20: 0 | L20: 0 | M20: 0 | N20: 0 | S20: 0 | U20: 0 | V20: 0 | W20: =LOOKUP(A20,'DOE - FIPStoPayeeCodeConvTable'!$A$3:$A$213,'DOE - FIPStoPayeeCodeConvTable'!$E$3:$E$213) -> 0.2023 | X20: 0.252875 | Y20: 0 | Z20: 0
A21: 31 | B21: =LOOKUP(A21,'DOE - FIPStoPayeeCodeConvTable'!$A$3:$A$213,'DOE - FIPStoPayeeCodeConvTable'!$B$3:$B$213) -> Campbell Co | C21: 0 | D21: 0 | E21: 0 | F21: 0 | G21: 0 | H21: 0 | I21: 0 | J21: 0 | K21: 0 | L21: 0 | M21: 0 | N21: 0 | S21: 0 | U21: 0 | V21: 0 | W21: =LOOKUP(A21,'DOE - FIPStoPayeeCodeConvTable'!$A$3:$A$213,'DOE - FIPStoPayeeCodeConvTable'!$E$3:$E$213) -> 0.3107 | X21: 0.388375 | Y21: 0 | Z21: 0
A22: 33 | B22: =LOOKUP(A22,'DOE - FIPStoPayeeCodeConvTable'!$A$3:$A$213,'DOE - FIPStoPayeeCodeConvTable'!$B$3:$B$213) -> Caroline Co | C22: 0 | D22: 0 | E22: 0 | F22: 0 | G22: 0 | H22: 0 | I22: 0 | J22: 0 | K22: 0 | L22: 0 | M22: 0 | N22: 0 | S22: 0 | U22: 0 | V22: 0 | W22: =LOOKUP(A22,'DOE - FIPStoPayeeCodeConvTable'!$A$3:$A$213,'DOE - FIPStoPayeeCodeConvTable'!$E$3:$E$213) -> 0.3308 | X22: 0.4135 | Y22: 0 | Z22: 0
A23: 35 | B23: =LOOKUP(A23,'DOE - FIPStoPayeeCodeConvTable'!$A$3:$A$213,'DOE - FIPStoPayeeCodeConvTable'!$B$3:$B$213) -> Carroll Co | C23: 4328.5 | D23: 15239.52 | E23: 0 | F23: 0 | G23: 3452.2 | H23: 0 | I23: 0 | J23: 0 | K23: 0 | L23: 0 | M23: 0 | N23: 4233.2 | S23: 22924.92 | U23: 15896.14 | V23: 7028.78 | W23: =LOOKUP(A23,'DOE - FIPStoPayeeCodeConvTable'!$A$3:$A$213,'DOE - FIPStoPayeeCodeConvTable'!$E$3:$E$213) -> 0.291 | X23: 0.36375 | Y23: 2556.72 | Z23: 4472.06
A24: 36 | B24: =LOOKUP(A24,'DOE - FIPStoPayeeCodeConvTable'!$A$3:$A$213,'DOE - FIPStoPayeeCodeConvTable'!$B$3:$B$213) -> Charles City Co | C24: 0 | D24: 0 | E24: 0 | F24: 0 | G24: 0 | H24: 0 | I24: 0 | J24: 0 | K24: 0 | L24: 0 | M24: 0 | N24: 0 | S24: 0 | U24: 0 | V24: 0 | W24: =LOOKUP(A24,'DOE - FIPStoPayeeCodeConvTable'!$A$3:$A$213,'DOE - FIPStoPayeeCodeConvTable'!$E$3:$E$213) -> 0.3131 | X24: 0.391375 | Y24: 0 | Z24: 0
A25: 37 | B25: =LOOKUP(A25,'DOE - FIPStoPayeeCodeConvTable'!$A$3:$A$213,'DOE - FIPStoPayeeCodeConvTable'!$B$3:$B$213) -> Charlotte Co | C25: 0 | D25: 0 | E25: 0 | F25: 0 | G25: 0 | H25: 0 | I25: 0 | J25: 0 | K25: 0 | L25: 0 | M25: 0 | N25: 0 | S25: 0 | U25: 0 | V25: 0 | W25: =LOOKUP(A25,'DOE - FIPStoPayeeCodeConvTable'!$A$3:$A$213,'DOE - FIPStoPayeeCodeConvTable'!$E$3:$E$213) -> 0.2204 | X25: 0.2755 | Y25: 0 | Z25: 0
A26: 41 | B26: =LOOKUP(A26,'DOE - FIPStoPayeeCodeConvTable'!$A$3:$A$213,'DOE - FIPStoPayeeCodeConvTable'!$B$3:$B$213) -> Chesterfield Co | C26: 14875.62 | D26: 0 | E26: 0 | F26: 0 | G26: 0 | H26: 0 | I26: 329 | J26: 0 | K26: 0 | L26: 3809.88 | M26: 0 | N26: 0 | S26: 4138.88 | U26: 2869.9 | V26: 1268.98 | W26: =LOOKUP(A26,'DOE - FIPStoPayeeCodeConvTable'!$A$3:$A$213,'DOE - FIPStoPayeeCodeConvTable'!$E$3:$E$213) -> 0.3853 | X26: 0.481625 | Y26: 611.17 | Z26: 657.81
A27: 43 | B27: =LOOKUP(A27,'DOE - FIPStoPayeeCodeConvTable'!$A$3:$A$213,'DOE - FIPStoPayeeCodeConvTable'!$B$3:$B$213) -> Clarke Co | C27: 0 | D27: 0 | E27: 0 | F27: 0 | G27: 0 | H27: 0 | I27: 0 | J27: 0 | K27: 0 | L27: 0 | M27: 0 | N27: 0 | S27: 0 | U27: 0 | V27: 0 | W27: =LOOKUP(A27,'DOE - FIPStoPayeeCodeConvTable'!$A$3:$A$213,'DOE - FIPStoPayeeCodeConvTable'!$E$3:$E$213) -> 0.4797 | X27: 0.599625 | Y27: 0 | Z27: 0
A28: 45 | B28: =LOOKUP(A28,'DOE - FIPStoPayeeCodeConvTable'!$A$3:$A$213,'DOE - FIPStoPayeeCodeConvTable'!$B$3:$B$213) -> Craig Co | C28: 0 | D28: 0 | E28: 0 | F28: 0 | G28: 0 | H28: 0 | I28: 0 | J28: 0 | K28: 0 | L28: 0 | M28: 0 | N28: 0 | S28: 0 | U28: 0 | V28: 0 | W28: =LOOKUP(A28,'DOE - FIPStoPayeeCodeConvTable'!$A$3:$A$213,'DOE - FIPStoPayeeCodeConvTable'!$E$3:$E$213) -> 0.2901 | X28: 0.362625 | Y28: 0 | Z28: 0
A29: 47 | B29: =LOOKUP(A29,'DOE - FIPStoPayeeCodeConvTable'!$A$3:$A$213,'DOE - FIPStoPayeeCodeConvTable'!$B$3:$B$213) -> Culpeper Co | C29: 0 | D29: 0 | E29: 0 | F29: 0 | G29: 0 | H29: 0 | I29: 0 | J29: 0 | K29: 0 | L29: 0 | M29: 0 | N29: 0 | S29: 0 | U29: 0 | V29: 0 | W29: =LOOKUP(A29,'DOE - FIPStoPayeeCodeConvTable'!$A$3:$A$213,'DOE - FIPStoPayeeCodeConvTable'!$E$3:$E$213) -> 0.3767 | X29: 0.470875 | Y29: 0 | Z29: 0
A30: 49 | B30: =LOOKUP(A30,'DOE - FIPStoPayeeCodeConvTable'!$A$3:$A$213,'DOE - FIPStoPayeeCodeConvTable'!$B$3:$B$213) -> Cumberland Co | C30: 24003.5 | D30: 12121.62 | E30: 13122.92 | F30: 13122.92 | G30: 18202.76 | H30: 0 | I30: 0 | J30: 6349.8 | K30: 0 | L30: 0 | M30: 0 | N30: 0 | S30: 62920.02 | U30: 43628.74 | V30: 19291.28 | W30: =LOOKUP(A30,'DOE - FIPStoPayeeCodeConvTable'!$A$3:$A$213,'DOE - FIPStoPayeeCodeConvTable'!$E$3:$E$213) -> 0.304 | X30: 0.38 | Y30: 7330.69 | Z30: 11960.59
A31: 51 | B31: =LOOKUP(A31,'DOE - FIPStoPayeeCodeConvTable'!$A$3:$A$213,'DOE - FIPStoPayeeCodeConvTable'!$B$3:$B$213) -> Dickenson Co | C31: 0 | D31: 0 | E31: 0 | F31: 0 | G31: 0 | H31: 0 | I31: 0 | J31: 0 | K31: 0 | L31: 0 | M31: 0 | N31: 0 | S31: 0 | U31: 0 | V31: 0 | W31: =LOOKUP(A31,'DOE - FIPStoPayeeCodeConvTable'!$A$3:$A$213,'DOE - FIPStoPayeeCodeConvTable'!$E$3:$E$213) -> 0.3042 | X31: 0.38025 | Y31: 0 | Z31: 0
A32: 53 | B32: =LOOKUP(A32,'DOE - FIPStoPayeeCodeConvTable'!$A$3:$A$213,'DOE - FIPStoPayeeCodeConvTable'!$B$3:$B$213) -> Dinwiddie Co | C32: 0 | D32: 0 | E32: 0 | F32: 0 | G32: 0 | H32: 0 | I32: 0 | J32: 0 | K32: 0 | L32: 0 | M32: 0 | N32: 0 | S32: 0 | U32: 0 | V32: 0 | W32: =LOOKUP(A32,'DOE - FIPStoPayeeCodeConvTable'!$A$3:$A$213,'DOE - FIPStoPayeeCodeConvTable'!$E$3:$E$213) -> 0.3358 | X32: 0.41975 | Y32: 0 | Z32: 0
A33: 57 | B33: =LOOKUP(A33,'DOE - FIPStoPayeeCodeConvTable'!$A$3:$A$213,'DOE - FIPStoPayeeCodeConvTable'!$B$3:$B$213) -> Essex Co | C33: 24003.5 | D33: 12121.62 | E33: 13122.92 | F33: 12276.28 | G33: 0 | H33: 0 | I33: 0 | J33: 0 | K33: 0 | L33: 0 | M33: 0 | N33: 0 | S33: 37520.82 | U33: 26016.94 | V33: 11503.88 | W33: =LOOKUP(A33,'DOE - FIPStoPayeeCodeConvTable'!$A$3:$A$213,'DOE - FIPStoPayeeCodeConvTable'!$E$3:$E$213) -> 0.3853 | X33: 0.481625 | Y33: 5540.56 | Z33: 5963.32
A34: 59 | B34: =LOOKUP(A34,'DOE - FIPStoPayeeCodeConvTable'!$A$3:$A$213,'DOE - FIPStoPayeeCodeConvTable'!$B$3:$B$213) -> Fairfax Co | C34: 0 | D34: 13122.92 | E34: 13122.92 | F34: 15662.84 | G34: 16509.48 | H34: 22012.64 | I34: 13122.92 | J34: 19472.72 | K34: 11852.96 | L34: 2116.6 | M34: 0 | N34: 8043.08 | S34: 135039.08 | U34: 93636.1 | V34: 41402.98 | W34: =LOOKUP(A34,'DOE - FIPStoPayeeCodeConvTable'!$A$3:$A$213,'DOE - FIPStoPayeeCodeConvTable'!$E$3:$E$213) -> 0.4611 | X34: 0.576375 | Y34: 23863.64 | Z34: 17539.34
A35: 61 | B35: =LOOKUP(A35,'DOE - FIPStoPayeeCodeConvTable'!$A$3:$A$213,'DOE - FIPStoPayeeCodeConvTable'!$B$3:$B$213) -> Fauquier Co | C35: 0 | D35: 0 | E35: 0 | F35: 0 | G35: 0 | H35: 0 | I35: 0 | J35: 0 | K35: 0 | L35: 0 | M35: 0 | N35: 3948 | S35: 3948 | U35: 2737.54 | V35: 1210.46 | W35: =LOOKUP(A35,'DOE - FIPStoPayeeCodeConvTable'!$A$3:$A$213,'DOE - FIPStoPayeeCodeConvTable'!$E$3:$E$213) -> 0.4584 | X35: 0.573 | Y35: 693.59 | Z35: 516.87
A36: 63 | B36: =LOOKUP(A36,'DOE - FIPStoPayeeCodeConvTable'!$A$3:$A$213,'DOE - FIPStoPayeeCodeConvTable'!$B$3:$B$213) -> Floyd Co | C36: 0 | D36: 0 | E36: 0 | F36: 0 | G36: 0 | H36: 0 | I36: 0 | J36: 0 | K36: 0 | L36: 0 | M36: 0 | N36: 0 | S36: 0 | U36: 0 | V36: 0 | W36: =LOOKUP(A36,'DOE - FIPStoPayeeCodeConvTable'!$A$3:$A$213,'DOE - FIPStoPayeeCodeConvTable'!$E$3:$E$213) -> 0.2324 | X36: 0.2905 | Y36: 0 | Z36: 0
A37: 65 | B37: =LOOKUP(A37,'DOE - FIPStoPayeeCodeConvTable'!$A$3:$A$213,'DOE - FIPStoPayeeCodeConvTable'!$B$3:$B$213) -> Fluvanna Co | C37: 0 | D37: 0 | E37: 0 | F37: 0 | G37: 0 | H37: 0 | I37: 0 | J37: 0 | K37: 0 | L37: 0 | M37: 0 | N37: 0 | S37: 0 | U37: 0 | V37: 0 | W37: =LOOKUP(A37,'DOE - FIPStoPayeeCodeConvTable'!$A$3:$A$213,'DOE - FIPStoPayeeCodeConvTable'!$E$3:$E$213) -> 0.3811 | X37: 0.476375 | Y37: 0 | Z37: 0
A38: 67 | B38: =LOOKUP(A38,'DOE - FIPStoPayeeCodeConvTable'!$A$3:$A$213,'DOE - FIPStoPayeeCodeConvTable'!$B$3:$B$213) -> Franklin Co | C38: 0 | D38: 0 | E38: 0 | F38: 0 | G38: 0 | H38: 0 | I38: 0 | J38: 0 | K38: 0 | L38: 0 | M38: 1974 | N38: 3454.5 | S38: =SUM(D38:R38) -> 5428.5 | U38: 3764.12 | V38: 1664.38 | W38: =LOOKUP(A38,'DOE - FIPStoPayeeCodeConvTable'!$A$3:$A$213,'DOE - FIPStoPayeeCodeConvTable'!$E$3:$E$213) -> 0.283 | X38: 0.35375 | Y38: 588.77 | Z38: 1075.61
A39: 69 | B39: =LOOKUP(A39,'DOE - FIPStoPayeeCodeConvTable'!$A$3:$A$213,'DOE - FIPStoPayeeCodeConvTable'!$B$3:$B$213) -> Frederick Co | C39: 0 | D39: 0 | E39: 0 | F39: 0 | G39: 0 | H39: 0 | I39: 0 | J39: 0 | K39: 0 | L39: 0 | M39: 0 | N39: 0 | S39: 0 | U39: 0 | V39: 0 | W39: =LOOKUP(A39,'DOE - FIPStoPayeeCodeConvTable'!$A$3:$A$213,'DOE - FIPStoPayeeCodeConvTable'!$E$3:$E$213) -> 0.4348 | X39: 0.5435 | Y39: 0 | Z39: 0
A40: 71 | B40: =LOOKUP(A40,'DOE - FIPStoPayeeCodeConvTable'!$A$3:$A$213,'DOE - FIPStoPayeeCodeConvTable'!$B$3:$B$213) -> Giles Co | C40: 0 | D40: 0 | E40: 0 | F40: 0 | G40: 0 | H40: 0 | I40: 0 | J40: 0 | K40: 0 | L40: 0 | M40: 0 | N40: 0 | S40: 0 | U40: 0 | V40: 0 | W40: =LOOKUP(A40,'DOE - FIPStoPayeeCodeConvTable'!$A$3:$A$213,'DOE - FIPStoPayeeCodeConvTable'!$E$3:$E$213) -> 0.2898 | X40: 0.36225 | Y40: 0 | Z40: 0
A41: 73 | B41: =LOOKUP(A41,'DOE - FIPStoPayeeCodeConvTable'!$A$3:$A$213,'DOE - FIPStoPayeeCodeConvTable'!$B$3:$B$213) -> Gloucester Co | C41: 0 | D41: 0 | E41: 0 | F41: 0 | G41: 0 | H41: 0 | I41: 0 | J41: 0 | K41: 31873.5 | L41: 22036 | M41: 0 | N41: 0 | S41: 53909.5 | U41: 37380.85 | V41: 16528.65 | W41: =LOOKUP(A41,'DOE - FIPStoPayeeCodeConvTable'!$A$3:$A$213,'DOE - FIPStoPayeeCodeConvTable'!$E$3:$E$213) -> 0.3687 | X41: 0.460875 | Y41: 7617.64 | Z41: 8911.01
A42: 75 | B42: =LOOKUP(A42,'DOE - FIPStoPayeeCodeConvTable'!$A$3:$A$213,'DOE - FIPStoPayeeCodeConvTable'!$B$3:$B$213) -> Goochland Co | C42: 0 | D42: 0 | E42: 0 | F42: 0 | G42: 0 | H42: 0 | I42: 0 | J42: 0 | K42: 0 | L42: 0 | M42: 0 | N42: 0 | S42: 0 | U42: 0 | V42: 0 | W42: =LOOKUP(A42,'DOE - FIPStoPayeeCodeConvTable'!$A$3:$A$213,'DOE - FIPStoPayeeCodeConvTable'!$E$3:$E$213) -> 0.4871 | X42: 0.608875 | Y42: 0 | Z42: 0
A43: 77 | B43: =LOOKUP(A43,'DOE - FIPStoPayeeCodeConvTable'!$A$3:$A$213,'DOE - FIPStoPayeeCodeConvTable'!$B$3:$B$213) -> Grayson Co | C43: 0 | D43: 0 | E43: 0 | F43: 0 | G43: 0 | H43: 0 | I43: 0 | J43: 0 | K43: 0 | L43: 0 | M43: 0 | N43: 0 | S43: 0 | U43: 0 | V43: 0 | W43: =LOOKUP(A43,'DOE - FIPStoPayeeCodeConvTable'!$A$3:$A$213,'DOE - FIPStoPayeeCodeConvTable'!$E$3:$E$213) -> 0.2109 | X43: 0.263625 | Y43: 0 | Z43: 0
A44: 79 | B44: =LOOKUP(A44,'DOE - FIPStoPayeeCodeConvTable'!$A$3:$A$213,'DOE - FIPStoPayeeCodeConvTable'!$B$3:$B$213) -> Greene Co | C44: 0 | D44: 27736.22 | E44: 13122.92 | F44: 6349.8 | G44: 13122.92 | H44: 12699.6 | I44: 13122.92 | J44: 19472.72 | K44: 11852.96 | L44: 6773.12 | M44: 12699.6 | N44: 13122.92 | S44: 150075.7 | U44: 104062.49 | V44: 46013.21 | W44: =LOOKUP(A44,'DOE - FIPStoPayeeCodeConvTable'!$A$3:$A$213,'DOE - FIPStoPayeeCodeConvTable'!$E$3:$E$213) -> 0.3471 | X44: 0.433875 | Y44: 19963.98 | Z44: 26049.23
A45: 81 | B45: =LOOKUP(A45,'DOE - FIPStoPayeeCodeConvTable'!$A$3:$A$213,'DOE - FIPStoPayeeCodeConvTable'!$B$3:$B$213) -> Greensville Co | C45: 0 | D45: 0 | E45: 0 | F45: 0 | G45: 0 | H45: 0 | I45: 0 | J45: 0 | K45: 0 | L45: 0 | M45: 0 | N45: 0 | S45: 0 | U45: 0 | V45: 0 | W45: =LOOKUP(A45,'DOE - FIPStoPayeeCodeConvTable'!$A$3:$A$213,'DOE - FIPStoPayeeCodeConvTable'!$E$3:$E$213) -> 0.2266 | X45: 0.28325 | Y45: 0 | Z45: 0
A46: 83 | B46: =LOOKUP(A46,'DOE - FIPStoPayeeCodeConvTable'!$A$3:$A$213,'DOE - FIPStoPayeeCodeConvTable'!$B$3:$B$213) -> Halifax Co | C46: 0 | D46: 0 | E46: 0 | F46: 0 | G46: 0 | H46: 0 | I46: 0 | J46: 0 | K46: 0 | L46: 0 | M46: 0 | N46: 0 | S46: 0 | U46: 0 | V46: 0 | W46: =LOOKUP(A46,'DOE - FIPStoPayeeCodeConvTable'!$A$3:$A$213,'DOE - FIPStoPayeeCodeConvTable'!$E$3:$E$213) -> 0.2335 | X46: 0.291875 | Y46: 0 | Z46: 0
A47: 85 | B47: =LOOKUP(A47,'DOE - FIPStoPayeeCodeConvTable'!$A$3:$A$213,'DOE - FIPStoPayeeCodeConvTable'!$B$3:$B$213) -> Hanover Co | C47: 0 | D47: 0 | E47: 0 | F47: 0 | G47: 0 | H47: 0 | I47: 0 | J47: 0 | K47: 0 | L47: 0 | M47: 0 | N47: 0 | S47: 0 | U47: 0 | V47: 0 | W47: =LOOKUP(A47,'DOE - FIPStoPayeeCodeConvTable'!$A$3:$A$213,'DOE - FIPStoPayeeCodeConvTable'!$E$3:$E$213) -> 0.4444 | X47: 0.5555 | Y47: 0 | Z47: 0
A48: 87 | B48: =LOOKUP(A48,'DOE - FIPStoPayeeCodeConvTable'!$A$3:$A$213,'DOE - FIPStoPayeeCodeConvTable'!$B$3:$B$213) -> Henrico Co | C48: 0 | D48: 13546.24 | E48: 14816.2 | F48: 8889.72 | G48: 11852.96 | H48: 8889.72 | I48: 0 | J48: 0 | K48: 16932.8 | L48: 0 | M48: 0 | N48: 0 | S48: 74927.64 | U48: 51954.83 | V48: 22972.81 | W48: =LOOKUP(A48,'DOE - FIPStoPayeeCodeConvTable'!$A$3:$A$213,'DOE - FIPStoPayeeCodeConvTable'!$E$3:$E$213) -> 0.3755 | X48: 0.469375 | Y48: 10782.86 | Z48: 12189.95
A49: 89 | B49: =LOOKUP(A49,'DOE - FIPStoPayeeCodeConvTable'!$A$3:$A$213,'DOE - FIPStoPayeeCodeConvTable'!$B$3:$B$213) -> Henry Co | C49: 0 | D49: 0 | E49: 12336.76 | F49: 11938.8 | G49: 0 | H49: 0 | I49: 24275.56 | J49: 24275.56 | K49: 0 | L49: 4775.52 | M49: 0 | N49: 0 | S49: 77602.2 | U49: 53809.37 | V49: 23792.83 | W49: =LOOKUP(A49,'DOE - FIPStoPayeeCodeConvTable'!$A$3:$A$213,'DOE - FIPStoPayeeCodeConvTable'!$E$3:$E$213) -> 0.2786 | X49: 0.34825 | Y49: 8285.85 | Z49: 15506.98
A50: 91 | B50: =LOOKUP(A50,'DOE - FIPStoPayeeCodeConvTable'!$A$3:$A$213,'DOE - FIPStoPayeeCodeConvTable'!$B$3:$B$213) -> Highland Co | C50: 0 | D50: 0 | E50: 0 | F50: 0 | G50: 0 | H50: 0 | I50: 0 | J50: 0 | K50: 0 | L50: 0 | M50: 0 | N50: 0 | S50: 0 | U50: 0 | V50: 0 | W50: =LOOKUP(A50,'DOE - FIPStoPayeeCodeConvTable'!$A$3:$A$213,'DOE - FIPStoPayeeCodeConvTable'!$E$3:$E$213) -> 0.3822 | X50: 0.47775 | Y50: 0 | Z50: 0
A51: 93 | B51: =LOOKUP(A51,'DOE - FIPStoPayeeCodeConvTable'!$A$3:$A$213,'DOE - FIPStoPayeeCodeConvTable'!$B$3:$B$213) -> Isle Of Wight Co | C51: 0 | D51: 0 | E51: 0 | F51: 0 | G51: 0 | H51: 0 | I51: 0 | J51: 0 | K51: 0 | L51: 0 | M51: 0 | N51: 0 | S51: 0 | U51: 0 | V51: 0 | W51: =LOOKUP(A51,'DOE - FIPStoPayeeCodeConvTable'!$A$3:$A$213,'DOE - FIPStoPayeeCodeConvTable'!$E$3:$E$213) -> 0.3613 | X51: 0.451625 | Y51: 0 | Z51: 0
A52: 95 | B52: =LOOKUP(A52,'DOE - FIPStoPayeeCodeConvTable'!$A$3:$A$213,'DOE - FIPStoPayeeCodeConvTable'!$B$3:$B$213) -> James City Co | C52: 0 | D52: 0 | E52: 0 | F52: 0 | G52: 0 | H52: 0 | I52: 0 | J52: 0 | K52: 0 | L52: 0 | M52: 0 | N52: 0 | S52: 0 | U52: 0 | V52: 0 | W52: =LOOKUP(A52,'DOE - FIPStoPayeeCodeConvTable'!$A$3:$A$213,'DOE - FIPStoPayeeCodeConvTable'!$E$3:$E$213) -> 0.4483 | X52: 0.560375 | Y52: 0 | Z52: 0
A53: 97 | B53: =LOOKUP(A53,'DOE - FIPStoPayeeCodeConvTable'!$A$3:$A$213,'DOE - FIPStoPayeeCodeConvTable'!$B$3:$B$213) -> King And Queen Co | C53: 0 | D53: 0 | E53: 0 | F53: 0 | G53: 0 | H53: 0 | I53: 0 | J53: 0 | K53: 0 | L53: 0 | M53: 0 | N53: 0 | S53: 0 | U53: 0 | V53: 0 | W53: =LOOKUP(A53,'DOE - FIPStoPayeeCodeConvTable'!$A$3:$A$213,'DOE - FIPStoPayeeCodeConvTable'!$E$3:$E$213) -> 0.3144 | X53: 0.393 | Y53: 0 | Z53: 0
A54: 99 | B54: =LOOKUP(A54,'DOE - FIPStoPayeeCodeConvTable'!$A$3:$A$213,'DOE - FIPStoPayeeCodeConvTable'!$B$3:$B$213) -> King George Co | C54: 0 | D54: 0 | E54: 0 | F54: 0 | G54: 0 | H54: 0 | I54: 13116.46 | J54: 10700.27 | K54: 9664.76 | L54: 10700.27 | M54: 0 | N54: 10700.27 | S54: 54882.03 | U54: 38055.2 | V54: 16826.83 | W54: =LOOKUP(A54,'DOE - FIPStoPayeeCodeConvTable'!$A$3:$A$213,'DOE - FIPStoPayeeCodeConvTable'!$E$3:$E$213) -> 0.3627 | X54: 0.453375 | Y54: 7628.86 | Z54: 9197.97
A55: 101 | B55: =LOOKUP(A55,'DOE - FIPStoPayeeCodeConvTable'!$A$3:$A$213,'DOE - FIPStoPayeeCodeConvTable'!$B$3:$B$213) -> King William Co | C55: 0 | D55: 0 | E55: 0 | F55: 0 | G55: 0 | H55: 0 | I55: 0 | J55: 0 | K55: 0 | L55: 0 | M55: 0 | N55: 0 | S55: 0 | U55: 0 | V55: 0 | W55: =LOOKUP(A55,'DOE - FIPStoPayeeCodeConvTable'!$A$3:$A$213,'DOE - FIPStoPayeeCodeConvTable'!$E$3:$E$213) -> 0.3853 | X55: 0.481625 | Y55: 0 | Z55: 0
A56: 103 | B56: =LOOKUP(A56,'DOE - FIPStoPayeeCodeConvTable'!$A$3:$A$213,'DOE - FIPStoPayeeCodeConvTable'!$B$3:$B$213) -> Lancaster Co | C56: 0 | D56: 0 | E56: 0 | F56: 0 | G56: 0 | H56: 5079.84 | I56: 14816.2 | J56: 15239.52 | K56: 6349.8 | L56: 0 | M56: 0 | N56: 0 | S56: 41485.36 | U56: 28765.95 | V56: 12719.41 | W56: =LOOKUP(A56,'DOE - FIPStoPayeeCodeConvTable'!$A$3:$A$213,'DOE - FIPStoPayeeCodeConvTable'!$E$3:$E$213) -> 0.4391 | X56: 0.548875 | Y56: 6981.37 | Z56: 5738.04
A57: 105 | B57: =LOOKUP(A57,'DOE - FIPStoPayeeCodeConvTable'!$A$3:$A$213,'DOE - FIPStoPayeeCodeConvTable'!$B$3:$B$213) -> Lee Co | C57: 0 | D57: 0 | E57: 0 | F57: 0 | G57: 0 | H57: 0 | I57: 0 | J57: 0 | K57: 0 | L57: 0 | M57: 0 | N57: 0 | S57: 0 | U57: 0 | V57: 0 | W57: =LOOKUP(A57,'DOE - FIPStoPayeeCodeConvTable'!$A$3:$A$213,'DOE - FIPStoPayeeCodeConvTable'!$E$3:$E$213) -> 0.2245 | X57: 0.280625 | Y57: 0 | Z57: 0
A58: 107 | B58: =LOOKUP(A58,'DOE - FIPStoPayeeCodeConvTable'!$A$3:$A$213,'DOE - FIPStoPayeeCodeConvTable'!$B$3:$B$213) -> Loudoun Co | C58: 0 | D58: 0 | E58: 0 | F58: 0 | G58: 6726.12 | H58: 0 | I58: 0 | J58: 0 | K58: 0 | L58: 0 | M58: 0 | N58: 0 | S58: 6726.12 | U58: 4663.89 | V58: 2062.23 | W58: =LOOKUP(A58,'DOE - FIPStoPayeeCodeConvTable'!$A$3:$A$213,'DOE - FIPStoPayeeCodeConvTable'!$E$3:$E$213) -> 0.4764 | X58: 0.5955 | Y58: 1228.06 | Z58: 834.17
A59: 109 | B59: =LOOKUP(A59,'DOE - FIPStoPayeeCodeConvTable'!$A$3:$A$213,'DOE - FIPStoPayeeCodeConvTable'!$B$3:$B$213) -> Louisa Co | C59: 0 | D59: 0 | E59: 0 | F59: 0 | G59: 0 | H59: 0 | I59: 0 | J59: 0 | K59: 0 | L59: 0 | M59: 0 | N59: 0 | S59: 0 | U59: 0 | V59: 0 | W59: =LOOKUP(A59,'DOE - FIPStoPayeeCodeConvTable'!$A$3:$A$213,'DOE - FIPStoPayeeCodeConvTable'!$E$3:$E$213) -> 0.4401 | X59: 0.550125 | Y59: 0 | Z59: 0
A60: 111 | B60: =LOOKUP(A60,'DOE - FIPStoPayeeCodeConvTable'!$A$3:$A$213,'DOE - FIPStoPayeeCodeConvTable'!$B$3:$B$213) -> Lunenburg Co | C60: 0 | D60: 0 | E60: 0 | F60: 0 | G60: 0 | H60: 0 | I60: 0 | J60: 0 | K60: 0 | L60: 0 | M60: 0 | N60: 0 | S60: 0 | U60: 0 | V60: 0 | W60: =LOOKUP(A60,'DOE - FIPStoPayeeCodeConvTable'!$A$3:$A$213,'DOE - FIPStoPayeeCodeConvTable'!$E$3:$E$213) -> 0.1698 | X60: 0.21225 | Y60: 0 | Z60: 0
A61: 113 | B61: =LOOKUP(A61,'DOE - FIPStoPayeeCodeConvTable'!$A$3:$A$213,'DOE - FIPStoPayeeCodeConvTable'!$B$3:$B$213) -> Madison Co | C61: 0 | D61: 0 | E61: 0 | F61: 0 | G61: 0 | H61: 0 | I61: 0 | J61: 0 | K61: 0 | L61: 0 | M61: 0 | N61: 0 | S61: 0 | U61: 0 | V61: 0 | W61: =LOOKUP(A61,'DOE - FIPStoPayeeCodeConvTable'!$A$3:$A$213,'DOE - FIPStoPayeeCodeConvTable'!$E$3:$E$213) -> 0.3355 | X61: 0.419375 | Y61: 0 | Z61: 0
A62: 115 | B62: =LOOKUP(A62,'DOE - FIPStoPayeeCodeConvTable'!$A$3:$A$213,'DOE - FIPStoPayeeCodeConvTable'!$B$3:$B$213) -> Mathews Co | C62: 0 | D62: 0 | E62: 0 | F62: 0 | G62: 0 | H62: 0 | I62: 0 | J62: 0 | K62: 0 | L62: 0 | M62: 0 | N62: 0 | S62: 0 | U62: 0 | V62: 0 | W62: =LOOKUP(A62,'DOE - FIPStoPayeeCodeConvTable'!$A$3:$A$213,'DOE - FIPStoPayeeCodeConvTable'!$E$3:$E$213) -> 0.4271 | X62: 0.533875 | Y62: 0 | Z62: 0
A63: 117 | B63: =LOOKUP(A63,'DOE - FIPStoPayeeCodeConvTable'!$A$3:$A$213,'DOE - FIPStoPayeeCodeConvTable'!$B$3:$B$213) -> Mecklenburg Co | C63: 0 | D63: 0 | E63: 0 | F63: 0 | G63: 0 | H63: 0 | I63: 0 | J63: 0 | K63: 0 | L63: 0 | M63: 0 | N63: 0 | S63: 0 | U63: 0 | V63: 0 | W63: =LOOKUP(A63,'DOE - FIPStoPayeeCodeConvTable'!$A$3:$A$213,'DOE - FIPStoPayeeCodeConvTable'!$E$3:$E$213) -> 0.2286 | X63: 0.28575 | Y63: 0 | Z63: 0
A64: 119 | B64: =LOOKUP(A64,'DOE - FIPStoPayeeCodeConvTable'!$A$3:$A$213,'DOE - FIPStoPayeeCodeConvTable'!$B$3:$B$213) -> Middlesex Co | C64: 0 | D64: 0 | E64: 0 | F64: 0 | G64: 0 | H64: 0 | I64: 0 | J64: 0 | K64: 0 | L64: 0 | M64: 0 | N64: 0 | S64: 0 | U64: 0 | V64: 0 | W64: =LOOKUP(A64,'DOE - FIPStoPayeeCodeConvTable'!$A$3:$A$213,'DOE - FIPStoPayeeCodeConvTable'!$E$3:$E$213) -> 0.4333 | X64: 0.541625 | Y64: 0 | Z64: 0
A65: 121 | B65: =LOOKUP(A65,'DOE - FIPStoPayeeCodeConvTable'!$A$3:$A$213,'DOE - FIPStoPayeeCodeConvTable'!$B$3:$B$213) -> Montgomery Co | C65: 0 | D65: 0 | E65: 0 | F65: 0 | G65: 0 | H65: 0 | I65: 0 | J65: 0 | K65: 0 | L65: 0 | M65: 0 | N65: 0 | S65: 0 | U65: 0 | V65: 0 | W65: =LOOKUP(A65,'DOE - FIPStoPayeeCodeConvTable'!$A$3:$A$213,'DOE - FIPStoPayeeCodeConvTable'!$E$3:$E$213) -> 0.2834 | X65: 0.35425 | Y65: 0 | Z65: 0
A66: 125 | B66: =LOOKUP(A66,'DOE - FIPStoPayeeCodeConvTable'!$A$3:$A$213,'DOE - FIPStoPayeeCodeConvTable'!$B$3:$B$213) -> Nelson Co | C66: 0 | D66: 3148 | E66: 12198.5 | F66: 2761.36 | G66: 10700.27 | H66: 10355.1 | I66: 10700.27 | J66: 10700.27 | K66: 9664.76 | L66: 4487.21 | M66: 0 | N66: 0 | S66: 74715.74 | U66: 51807.89 | V66: 22907.85 | W66: =LOOKUP(A66,'DOE - FIPStoPayeeCodeConvTable'!$A$3:$A$213,'DOE - FIPStoPayeeCodeConvTable'!$E$3:$E$213) -> 0.3132 | X66: 0.3915 | Y66: 8968.42 | Z66: 13939.43
A67: 127 | B67: =LOOKUP(A67,'DOE - FIPStoPayeeCodeConvTable'!$A$3:$A$213,'DOE - FIPStoPayeeCodeConvTable'!$B$3:$B$213) -> New Kent Co | C67: 0 | D67: 0 | E67: 0 | F67: 2937.88 | G67: 25036.36 | H67: 25061.72 | I67: 25036.36 | J67: 12336.76 | K67: 37388.72 | L67: 16146.64 | M67: 0 | N67: 12336.76 | S67: 156281.2 | U67: 108365.38 | V67: 47915.82 | W67: =LOOKUP(A67,'DOE - FIPStoPayeeCodeConvTable'!$A$3:$A$213,'DOE - FIPStoPayeeCodeConvTable'!$E$3:$E$213) -> 0.4329 | X67: 0.541125 | Y67: 25928.45 | Z67: 21987.37
A68: 131 | B68: =LOOKUP(A68,'DOE - FIPStoPayeeCodeConvTable'!$A$3:$A$213,'DOE - FIPStoPayeeCodeConvTable'!$B$3:$B$213) -> Northampton Co | C68: 0 | D68: 0 | E68: 0 | F68: 0 | G68: 0 | H68: 0 | I68: 0 | J68: 0 | K68: 0 | L68: 0 | M68: 0 | N68: 0 | S68: 0 | U68: 0 | V68: 0 | W68: =LOOKUP(A68,'DOE - FIPStoPayeeCodeConvTable'!$A$3:$A$213,'DOE - FIPStoPayeeCodeConvTable'!$E$3:$E$213) -> 0.1971 | X68: 0.246375 | Y68: 0 | Z68: 0
A69: 133 | B69: =LOOKUP(A69,'DOE - FIPStoPayeeCodeConvTable'!$A$3:$A$213,'DOE - FIPStoPayeeCodeConvTable'!$B$3:$B$213) -> Northumberland Co | C69: 0 | D69: 0 | E69: 0 | F69: 0 | G69: 0 | H69: 0 | I69: 0 | J69: 0 | K69: 0 | L69: 0 | M69: 0 | N69: 0 | S69: 0 | U69: 0 | V69: 0 | W69: =LOOKUP(A69,'DOE - FIPStoPayeeCodeConvTable'!$A$3:$A$213,'DOE - FIPStoPayeeCodeConvTable'!$E$3:$E$213) -> 0.3304 | X69: 0.413 | Y69: 0 | Z69: 0
A70: 135 | B70: =LOOKUP(A70,'DOE - FIPStoPayeeCodeConvTable'!$A$3:$A$213,'DOE - FIPStoPayeeCodeConvTable'!$B$3:$B$213) -> Nottoway Co | C70: 0 | D70: 0 | E70: 0 | F70: 0 | G70: 0 | H70: 0 | I70: 0 | J70: 0 | K70: 0 | L70: 0 | M70: 0 | N70: 0 | S70: =SUM(D70:R70) -> 0 | U70: =ROUND($U$1*S70,2) -> 0 | V70: =SUM(S70)-SUM(U70) -> 0 | W70: =LOOKUP(A70,'DOE - FIPStoPayeeCodeConvTable'!$A$3:$A$213,'DOE - FIPStoPayeeCodeConvTable'!$E$3:$E$213) -> 0.2686 | X70: 0.33575 | Y70: 0 | Z70: 0
A71: 137 | B71: =LOOKUP(A71,'DOE - FIPStoPayeeCodeConvTable'!$A$3:$A$213,'DOE - FIPStoPayeeCodeConvTable'!$B$3:$B$213) -> Orange Co | C71: 0 | D71: 0 | E71: 0 | F71: 0 | G71: 0 | H71: 0 | I71: 0 | J71: 0 | K71: 0 | L71: 0 | M71: 0 | N71: 0 | S71: 0 | U71: 0 | V71: 0 | W71: =LOOKUP(A71,'DOE - FIPStoPayeeCodeConvTable'!$A$3:$A$213,'DOE - FIPStoPayeeCodeConvTable'!$E$3:$E$213) -> 0.4083 | X71: =$X$1*W71 -> 0.510375 | Y71: =ROUND(X71*V71,2) -> 0 | Z71: =SUM(V71)-SUM(Y71) -> 0
A72: 139 | B72: =LOOKUP(A72,'DOE - FIPStoPayeeCodeConvTable'!$A$3:$A$213,'DOE - FIPStoPayeeCodeConvTable'!$B$3:$B$213) -> Page Co | C72: 0 | D72: 52282.32 | E72: 12639.96 | F72: 8889.72 | G72: 11852.96 | H72: 10553.18 | I72: 0 | J72: 0 | K72: 29.82 | L72: 0 | M72: 0 | N72: 0 | S72: 96247.96 | U72: 66738.34 | V72: 29509.62 | W72: =LOOKUP(A72,'DOE - FIPStoPayeeCodeConvTable'!$A$3:$A$213,'DOE - FIPStoPayeeCodeConvTable'!$E$3:$E$213) -> 0.2865 | X72: 0.358125 | Y72: 10568.13 | Z72: 18941.49
A73: 141 | B73: =LOOKUP(A73,'DOE - FIPStoPayeeCodeConvTable'!$A$3:$A$213,'DOE - FIPStoPayeeCodeConvTable'!$B$3:$B$213) -> Patrick Co | C73: 0 | D73: 0 | E73: 0 | F73: 0 | G73: 0 | H73: 0 | I73: 0 | J73: 0 | K73: 0 | L73: 0 | M73: 0 | N73: 0 | S73: 0 | U73: 0 | V73: 0 | W73: =LOOKUP(A73,'DOE - FIPStoPayeeCodeConvTable'!$A$3:$A$213,'DOE - FIPStoPayeeCodeConvTable'!$E$3:$E$213) -> 0.2539 | X73: 0.317375 | Y73: 0 | Z73: 0
A74: 143 | B74: =LOOKUP(A74,'DOE - FIPStoPayeeCodeConvTable'!$A$3:$A$213,'DOE - FIPStoPayeeCodeConvTable'!$B$3:$B$213) -> Pittsylvania Co | C74: 0 | D74: 0 | E74: 0 | F74: 0 | G74: 8284.08 | H74: 10700.27 | I74: 10700.27 | J74: 0 | K74: 0 | L74: 5099.5 | M74: 0 | N74: 10034.5 | S74: 44818.62 | U74: 31077.23 | V74: 13741.39 | W74: =LOOKUP(A74,'DOE - FIPStoPayeeCodeConvTable'!$A$3:$A$213,'DOE - FIPStoPayeeCodeConvTable'!$E$3:$E$213) -> 0.2355 | X74: 0.294375 | Y74: 4045.12 | Z74: 9696.27
A75: 145 | B75: =LOOKUP(A75,'DOE - FIPStoPayeeCodeConvTable'!$A$3:$A$213,'DOE - FIPStoPayeeCodeConvTable'!$B$3:$B$213) -> Powhatan Co | C75: 0 | D75: 0 | E75: 0 | F75: 0 | G75: 0 | H75: 0 | I75: 0 | J75: 0 | K75: 0 | L75: 0 | M75: 0 | N75: 0 | S75: 0 | U75: 0 | V75: 0 | W75: =LOOKUP(A75,'DOE - FIPStoPayeeCodeConvTable'!$A$3:$A$213,'DOE - FIPStoPayeeCodeConvTable'!$E$3:$E$213) -> 0.4342 | X75: 0.54275 | Y75: 0 | Z75: 0
A76: 147 | B76: =LOOKUP(A76,'DOE - FIPStoPayeeCodeConvTable'!$A$3:$A$213,'DOE - FIPStoPayeeCodeConvTable'!$B$3:$B$213) -> Prince Edward Co | C76: 0 | D76: 0 | E76: 0 | F76: 0 | G76: 0 | H76: 0 | I76: 0 | J76: 0 | K76: 0 | L76: 0 | M76: 0 | N76: 0 | S76: 0 | U76: 0 | V76: 0 | W76: =LOOKUP(A76,'DOE - FIPStoPayeeCodeConvTable'!$A$3:$A$213,'DOE - FIPStoPayeeCodeConvTable'!$E$3:$E$213) -> 0.2232 | X76: 0.279 | Y76: 0 | Z76: 0
A77: 149 | B77: =LOOKUP(A77,'DOE - FIPStoPayeeCodeConvTable'!$A$3:$A$213,'DOE - FIPStoPayeeCodeConvTable'!$B$3:$B$213) -> Prince George Co | C77: 0 | D77: 0 | E77: 0 | F77: 0 | G77: 0 | H77: 0 | I77: 0 | J77: 0 | K77: 0 | L77: 0 | M77: 0 | N77: 0 | S77: 0 | U77: 0 | V77: 0 | W77: =LOOKUP(A77,'DOE - FIPStoPayeeCodeConvTable'!$A$3:$A$213,'DOE - FIPStoPayeeCodeConvTable'!$E$3:$E$213) -> 0.3716 | X77: 0.4645 | Y77: 0 | Z77: 0
A78: 153 | B78: =LOOKUP(A78,'DOE - FIPStoPayeeCodeConvTable'!$A$3:$A$213,'DOE - FIPStoPayeeCodeConvTable'!$B$3:$B$213) -> Prince William Co | C78: 0 | D78: 0 | E78: 0 | F78: 0 | G78: 10159.68 | H78: 15239.52 | I78: 17779.44 | J78: 11852.96 | K78: 11852.96 | L78: 8889.72 | M78: 8889.72 | N78: 13969.56 | S78: 98633.56 | U78: 68392.51 | V78: 30241.05 | W78: =LOOKUP(A78,'DOE - FIPStoPayeeCodeConvTable'!$A$3:$A$213,'DOE - FIPStoPayeeCodeConvTable'!$E$3:$E$213) -> 0.3414 | X78: 0.42675 | Y78: 12905.37 | Z78: 17335.68
A79: 155 | B79: =LOOKUP(A79,'DOE - FIPStoPayeeCodeConvTable'!$A$3:$A$213,'DOE - FIPStoPayeeCodeConvTable'!$B$3:$B$213) -> Pulaski Co | C79: 0 | D79: 0 | E79: 0 | F79: 0 | G79: 0 | H79: 0 | I79: 0 | J79: 0 | K79: 0 | L79: 0 | M79: 0 | N79: 0 | S79: 0 | U79: 0 | V79: 0 | W79: =LOOKUP(A79,'DOE - FIPStoPayeeCodeConvTable'!$A$3:$A$213,'DOE - FIPStoPayeeCodeConvTable'!$E$3:$E$213) -> 0.2923 | X79: 0.365375 | Y79: 0 | Z79: 0
A80: 157 | B80: =LOOKUP(A80,'DOE - FIPStoPayeeCodeConvTable'!$A$3:$A$213,'DOE - FIPStoPayeeCodeConvTable'!$B$3:$B$213) -> Rappahannock Co | C80: 0 | D80: 0 | E80: 0 | F80: 0 | G80: 0 | H80: 0 | I80: 0 | J80: 0 | K80: 0 | L80: 0 | M80: 0 | N80: 0 | S80: 0 | U80: 0 | V80: 0 | W80: =LOOKUP(A80,'DOE - FIPStoPayeeCodeConvTable'!$A$3:$A$213,'DOE - FIPStoPayeeCodeConvTable'!$E$3:$E$213) -> 0.4199 | X80: 0.524875 | Y80: 0 | Z80: 0
A81: 159 | B81: =LOOKUP(A81,'DOE - FIPStoPayeeCodeConvTable'!$A$3:$A$213,'DOE - FIPStoPayeeCodeConvTable'!$B$3:$B$213) -> Richmond Co | C81: 0 | D81: 0 | E81: 0 | F81: 0 | G81: 0 | H81: 0 | I81: 0 | J81: 0 | K81: 0 | L81: 0 | M81: 0 | N81: 0 | S81: 0 | U81: 0 | V81: 0 | W81: =LOOKUP(A81,'DOE - FIPStoPayeeCodeConvTable'!$A$3:$A$213,'DOE - FIPStoPayeeCodeConvTable'!$E$3:$E$213) -> 0.3227 | X81: 0.403375 | Y81: 0 | Z81: 0
A82: 161 | B82: =LOOKUP(A82,'DOE - FIPStoPayeeCodeConvTable'!$A$3:$A$213,'DOE - FIPStoPayeeCodeConvTable'!$B$3:$B$213) -> Roanoke Co | C82: 0 | D82: 10159.68 | E82: 13122.92 | F82: 12699.6 | G82: 13122.92 | H82: 12699.6 | I82: 24129.24 | J82: 13122.92 | K82: 4656.52 | L82: 0 | M82: 0 | N82: 0 | S82: 103713.4 | U82: 71914.87 | V82: 31798.53 | W82: =LOOKUP(A82,'DOE - FIPStoPayeeCodeConvTable'!$A$3:$A$213,'DOE - FIPStoPayeeCodeConvTable'!$E$3:$E$213) -> 0.4397 | X82: 0.549625 | Y82: 17477.27 | Z82: 14321.26
A83: 163 | B83: =LOOKUP(A83,'DOE - FIPStoPayeeCodeConvTable'!$A$3:$A$213,'DOE - FIPStoPayeeCodeConvTable'!$B$3:$B$213) -> Rockbridge Co | C83: 0 | D83: 0 | E83: 0 | F83: 0 | G83: 0 | H83: 0 | I83: 0 | J83: 0 | K83: 0 | L83: 0 | M83: 0 | N83: 0 | S83: 0 | U83: 0 | V83: 0 | W83: =LOOKUP(A83,'DOE - FIPStoPayeeCodeConvTable'!$A$3:$A$213,'DOE - FIPStoPayeeCodeConvTable'!$E$3:$E$213) -> 0.2336 | X83: 0.292 | Y83: 0 | Z83: 0
A84: 165 | B84: =LOOKUP(A84,'DOE - FIPStoPayeeCodeConvTable'!$A$3:$A$213,'DOE - FIPStoPayeeCodeConvTable'!$B$3:$B$213) -> Rockingham Co | C84: 8263.5 | D84: 43518.34 | E84: 14816.2 | F84: 8889.72 | G84: 17845.08 | H84: 4233.2 | I84: 0 | J84: 0 | K84: 0 | L84: 0 | M84: 0 | N84: 0 | S84: 89302.54 | U84: 61922.38 | V84: 27380.16 | W84: =LOOKUP(A84,'DOE - FIPStoPayeeCodeConvTable'!$A$3:$A$213,'DOE - FIPStoPayeeCodeConvTable'!$E$3:$E$213) -> 0.3445 | X84: 0.430625 | Y84: 11790.58 | Z84: 15589.58
A85: 167 | B85: =LOOKUP(A85,'DOE - FIPStoPayeeCodeConvTable'!$A$3:$A$213,'DOE - FIPStoPayeeCodeConvTable'!$B$3:$B$213) -> Russell Co | C85: 0 | D85: 0 | E85: 0 | F85: 0 | G85: 0 | H85: 0 | I85: 0 | J85: 0 | K85: 0 | L85: 0 | M85: 0 | N85: 0 | S85: 0 | U85: 0 | V85: 0 | W85: =LOOKUP(A85,'DOE - FIPStoPayeeCodeConvTable'!$A$3:$A$213,'DOE - FIPStoPayeeCodeConvTable'!$E$3:$E$213) -> 0.1894 | X85: 0.23675 | Y85: 0 | Z85: 0
A86: 169 | B86: =LOOKUP(A86,'DOE - FIPStoPayeeCodeConvTable'!$A$3:$A$213,'DOE - FIPStoPayeeCodeConvTable'!$B$3:$B$213) -> Scott Co | C86: 0 | D86: 0 | E86: 0 | F86: 0 | G86: 0 | H86: 0 | I86: 0 | J86: 0 | K86: 0 | L86: 0 | M86: 0 | N86: 0 | S86: 0 | U86: 0 | V86: 0 | W86: =LOOKUP(A86,'DOE - FIPStoPayeeCodeConvTable'!$A$3:$A$213,'DOE - FIPStoPayeeCodeConvTable'!$E$3:$E$213) -> 0.3154 | X86: 0.39425 | Y86: 0 | Z86: 0
A87: 171 | B87: =LOOKUP(A87,'DOE - FIPStoPayeeCodeConvTable'!$A$3:$A$213,'DOE - FIPStoPayeeCodeConvTable'!$B$3:$B$213) -> Shenandoah Co | C87: 0 | D87: 0 | E87: 0 | F87: 0 | G87: 0 | H87: 0 | I87: 0 | J87: 0 | K87: 0 | L87: 0 | M87: 0 | N87: 0 | S87: 0 | U87: 0 | V87: 0 | W87: =LOOKUP(A87,'DOE - FIPStoPayeeCodeConvTable'!$A$3:$A$213,'DOE - FIPStoPayeeCodeConvTable'!$E$3:$E$213) -> 0.3517 | X87: 0.439625 | Y87: 0 | Z87: 0
A88: 173 | B88: =LOOKUP(A88,'DOE - FIPStoPayeeCodeConvTable'!$A$3:$A$213,'DOE - FIPStoPayeeCodeConvTable'!$B$3:$B$213) -> Smyth Co | C88: 13379 | D88: 0 | E88: 0 | F88: 0 | G88: 0 | H88: 0 | I88: 0 | J88: 0 | K88: 0 | L88: 0 | M88: 0 | N88: 0 | S88: 0 | U88: 0 | V88: 0 | W88: =LOOKUP(A88,'DOE - FIPStoPayeeCodeConvTable'!$A$3:$A$213,'DOE - FIPStoPayeeCodeConvTable'!$E$3:$E$213) -> 0.2337 | X88: 0.292125 | Y88: 0 | Z88: 0
A89: 175 | B89: =LOOKUP(A89,'DOE - FIPStoPayeeCodeConvTable'!$A$3:$A$213,'DOE - FIPStoPayeeCodeConvTable'!$B$3:$B$213) -> Southampton Co | C89: 0 | D89: 0 | E89: 0 | F89: 0 | G89: 0 | H89: 0 | I89: 0 | J89: 0 | K89: 0 | L89: 0 | M89: 0 | N89: 0 | S89: 0 | U89: 0 | V89: 0 | W89: =LOOKUP(A89,'DOE - FIPStoPayeeCodeConvTable'!$A$3:$A$213,'DOE - FIPStoPayeeCodeConvTable'!$E$3:$E$213) -> 0.323 | X89: 0.40375 | Y89: 0 | Z89: 0
A90: 177 | B90: =LOOKUP(A90,'DOE - FIPStoPayeeCodeConvTable'!$A$3:$A$213,'DOE - FIPStoPayeeCodeConvTable'!$B$3:$B$213) -> Spotsylvania Co | C90: 0 | D90: 37126.42 | E90: 13122.92 | F90: 12699.6 | G90: 13122.92 | H90: 12699.6 | I90: 0 | J90: 13122.92 | K90: 27613.51 | L90: 6415.5 | M90: 10700.27 | N90: 15290.1 | S90: 161913.76 | U90: 112271 | V90: 49642.76 | W90: =LOOKUP(A90,'DOE - FIPStoPayeeCodeConvTable'!$A$3:$A$213,'DOE - FIPStoPayeeCodeConvTable'!$E$3:$E$213) -> 0.4588 | X90: 0.5735 | Y90: 28470.12 | Z90: 21172.64
A91: 179 | B91: =LOOKUP(A91,'DOE - FIPStoPayeeCodeConvTable'!$A$3:$A$213,'DOE - FIPStoPayeeCodeConvTable'!$B$3:$B$213) -> Stafford Co | C91: 0 | D91: 0 | E91: 0 | F91: 0 | G91: 0 | H91: 0 | I91: 0 | J91: 0 | K91: 0 | L91: 0 | M91: 0 | N91: 0 | S91: 0 | U91: 0 | V91: 0 | W91: =LOOKUP(A91,'DOE - FIPStoPayeeCodeConvTable'!$A$3:$A$213,'DOE - FIPStoPayeeCodeConvTable'!$E$3:$E$213) -> 0.4439 | X91: 0.554875 | Y91: 0 | Z91: 0
A92: 181 | B92: =LOOKUP(A92,'DOE - FIPStoPayeeCodeConvTable'!$A$3:$A$213,'DOE - FIPStoPayeeCodeConvTable'!$B$3:$B$213) -> Surry Co | C92: 0 | D92: 0 | E92: 0 | F92: 0 | G92: 0 | H92: 0 | I92: 0 | J92: 0 | K92: 0 | L92: 0 | M92: 0 | N92: 0 | S92: 0 | U92: 0 | V92: 0 | W92: =LOOKUP(A92,'DOE - FIPStoPayeeCodeConvTable'!$A$3:$A$213,'DOE - FIPStoPayeeCodeConvTable'!$E$3:$E$213) -> 0.3979 | X92: 0.497375 | Y92: 0 | Z92: 0
A93: 183 | B93: =LOOKUP(A93,'DOE - FIPStoPayeeCodeConvTable'!$A$3:$A$213,'DOE - FIPStoPayeeCodeConvTable'!$B$3:$B$213) -> Sussex Co | C93: 0 | D93: 0 | E93: 0 | F93: 0 | G93: 0 | H93: 0 | I93: 0 | J93: 0 | K93: 0 | L93: 0 | M93: 0 | N93: 0 | S93: 0 | U93: 0 | V93: 0 | W93: =LOOKUP(A93,'DOE - FIPStoPayeeCodeConvTable'!$A$3:$A$213,'DOE - FIPStoPayeeCodeConvTable'!$E$3:$E$213) -> 0.2387 | X93: 0.298375 | Y93: 0 | Z93: 0
A94: 185 | B94: =LOOKUP(A94,'DOE - FIPStoPayeeCodeConvTable'!$A$3:$A$213,'DOE - FIPStoPayeeCodeConvTable'!$B$3:$B$213) -> Tazewell Co | C94: 0 | D94: 0 | E94: 0 | F94: 0 | G94: 0 | H94: 0 | I94: 0 | J94: 0 | K94: 0 | L94: 0 | M94: 0 | N94: 0 | S94: 0 | U94: 0 | V94: 0 | W94: =LOOKUP(A94,'DOE - FIPStoPayeeCodeConvTable'!$A$3:$A$213,'DOE - FIPStoPayeeCodeConvTable'!$E$3:$E$213) -> 0.2455 | X94: 0.306875 | Y94: 0 | Z94: 0
A95: 187 | B95: =LOOKUP(A95,'DOE - FIPStoPayeeCodeConvTable'!$A$3:$A$213,'DOE - FIPStoPayeeCodeConvTable'!$B$3:$B$213) -> Warren Co | C95: 0 | D95: 0 | E95: 0 | F95: 0 | G95: 0 | H95: 0 | I95: 0 | J95: 0 | K95: 0 | L95: 0 | M95: 0 | N95: 0 | S95: 0 | U95: 0 | V95: 0 | W95: =LOOKUP(A95,'DOE - FIPStoPayeeCodeConvTable'!$A$3:$A$213,'DOE - FIPStoPayeeCodeConvTable'!$E$3:$E$213) -> 0.3853 | X95: 0.481625 | Y95: 0 | Z95: 0
A96: 191 | B96: =LOOKUP(A96,'DOE - FIPStoPayeeCodeConvTable'!$A$3:$A$213,'DOE - FIPStoPayeeCodeConvTable'!$B$3:$B$213) -> Washington Co | C96: 0 | D96: 0 | E96: 0 | F96: 0 | G96: 0 | H96: 0 | I96: 0 | J96: 0 | K96: 0 | L96: 0 | M96: 0 | N96: 0 | S96: 0 | U96: 0 | V96: 0 | W96: =LOOKUP(A96,'DOE - FIPStoPayeeCodeConvTable'!$A$3:$A$213,'DOE - FIPStoPayeeCodeConvTable'!$E$3:$E$213) -> 0.276 | X96: 0.345 | Y96: 0 | Z96: 0
A97: 193 | B97: =LOOKUP(A97,'DOE - FIPStoPayeeCodeConvTable'!$A$3:$A$213,'DOE - FIPStoPayeeCodeConvTable'!$B$3:$B$213) -> Westmoreland Co | C97: 0 | D97: 0 | E97: 5117.7 | F97: 0 | G97: 0 | H97: 639.8 | I97: 0 | J97: 0 | K97: 0 | L97: 0 | M97: 0 | N97: 0 | S97: 5757.5 | U97: 3992.25 | V97: 1765.25 | W97: =LOOKUP(A97,'DOE - FIPStoPayeeCodeConvTable'!$A$3:$A$213,'DOE - FIPStoPayeeCodeConvTable'!$E$3:$E$213) -> 0.3025 | X97: 0.378125 | Y97: 667.49 | Z97: 1097.76
A98: 195 | B98: =LOOKUP(A98,'DOE - FIPStoPayeeCodeConvTable'!$A$3:$A$213,'DOE - FIPStoPayeeCodeConvTable'!$B$3:$B$213) -> Wise Co | C98: 0 | D98: 0 | E98: 0 | F98: 0 | G98: 0 | H98: 0 | I98: 0 | J98: 0 | K98: 0 | L98: 0 | M98: 0 | N98: 0 | S98: 0 | U98: 0 | V98: 0 | W98: =LOOKUP(A98,'DOE - FIPStoPayeeCodeConvTable'!$A$3:$A$213,'DOE - FIPStoPayeeCodeConvTable'!$E$3:$E$213) -> 0.2755 | X98: 0.344375 | Y98: 0 | Z98: 0
A99: 197 | B99: =LOOKUP(A99,'DOE - FIPStoPayeeCodeConvTable'!$A$3:$A$213,'DOE - FIPStoPayeeCodeConvTable'!$B$3:$B$213) -> Wythe Co | C99: 0 | D99: 0 | E99: 0 | F99: 0 | G99: 0 | H99: 0 | I99: 0 | J99: 0 | K99: 0 | L99: 0 | M99: 0 | N99: 0 | S99: 0 | U99: 0 | V99: 0 | W99: =LOOKUP(A99,'DOE - FIPStoPayeeCodeConvTable'!$A$3:$A$213,'DOE - FIPStoPayeeCodeConvTable'!$E$3:$E$213) -> 0.2708 | X99: 0.3385 | Y99: 0 | Z99: 0
A100: 199 | B100: =LOOKUP(A100,'DOE - FIPStoPayeeCodeConvTable'!$A$3:$A$213,'DOE - FIPStoPayeeCodeConvTable'!$B$3:$B$213) -> York Co | C100: 0 | D100: 0 | E100: 0 | F100: 0 | G100: 0 | H100: 0 | I100: 0 | J100: 0 | K100: 0 | L100: 0 | M100: 0 | N100: 0 | S100: 0 | U100: 0 | V100: 0 | W100: =LOOKUP(A100,'DOE - FIPStoPayeeCodeConvTable'!$A$3:$A$213,'DOE - FIPStoPayeeCodeConvTable'!$E$3:$E$213) -> 0.3888 | X100: 0.486 | Y100: 0 | Z100: 0
A101: 510 | B101: =LOOKUP(A101,'DOE - FIPStoPayeeCodeConvTable'!$A$3:$A$213,'DOE - FIPStoPayeeCodeConvTable'!$B$3:$B$213) -> Alexandria City | C101: 0 | D101: 0 | E101: 0 | F101: 0 | G101: 0 | H101: 0 | I101: 0 | J101: 0 | K101: 59149.88 | L101: 0 | M101: 0 | N101: 0 | S101: 59149.88 | U101: 41014.53 | V101: 18135.35 | W101: =LOOKUP(A101,'DOE - FIPStoPayeeCodeConvTable'!$A$3:$A$213,'DOE - FIPStoPayeeCodeConvTable'!$E$3:$E$213) -> 0.5309 | X101: 0.663625 | Y101: 12035.07 | Z101: 6100.28
A102: 520 | B102: =LOOKUP(A102,'DOE - FIPStoPayeeCodeConvTable'!$A$3:$A$213,'DOE - FIPStoPayeeCodeConvTable'!$B$3:$B$213) -> Bristol City | C102: 0 | D102: 0 | E102: 0 | F102: 0 | G102: 0 | H102: 0 | I102: 0 | J102: 0 | K102: 0 | L102: 0 | M102: 0 | N102: 0 | S102: =SUM(D102:R102) -> 0 | U102: 0 | V102: 0 | W102: =LOOKUP(A102,'DOE - FIPStoPayeeCodeConvTable'!$A$3:$A$213,'DOE - FIPStoPayeeCodeConvTable'!$E$3:$E$213) -> 0.2547 | X102: 0.318375 | Y102: 0 | Z102: 0
A103: 530 | B103: =LOOKUP(A103,'DOE - FIPStoPayeeCodeConvTable'!$A$3:$A$213,'DOE - FIPStoPayeeCodeConvTable'!$B$3:$B$213) -> Buena Vista City | C103: 0 | D103: 0 | E103: 0 | F103: 0 | G103: 0 | H103: 0 | I103: 0 | J103: 0 | K103: 0 | L103: 0 | M103: 0 | N103: 0 | S103: 0 | U103: 0 | V103: 0 | W103: =LOOKUP(A103,'DOE - FIPStoPayeeCodeConvTable'!$A$3:$A$213,'DOE - FIPStoPayeeCodeConvTable'!$E$3:$E$213) -> 0.2329 | X103: 0.291125 | Y103: 0 | Z103: 0
A104: 540 | B104: =LOOKUP(A104,'DOE - FIPStoPayeeCodeConvTable'!$A$3:$A$213,'DOE - FIPStoPayeeCodeConvTable'!$B$3:$B$213) -> Charlottesville City | C104: 0 | D104: 0 | E104: 0 | F104: 0 | G104: 0 | H104: 0 | I104: 0 | J104: 0 | K104: 0 | L104: 0 | M104: 0 | N104: 0 | S104: 0 | U104: 0 | V104: 0 | W104: =LOOKUP(A104,'DOE - FIPStoPayeeCodeConvTable'!$A$3:$A$213,'DOE - FIPStoPayeeCodeConvTable'!$E$3:$E$213) -> 0.3068 | X104: 0.3835 | Y104: 0 | Z104: 0
A105: 550 | B105: =LOOKUP(A105,'DOE - FIPStoPayeeCodeConvTable'!$A$3:$A$213,'DOE - FIPStoPayeeCodeConvTable'!$B$3:$B$213) -> Chesapeake City | C105: 0 | D105: 0 | E105: 0 | F105: 0 | G105: 0 | H105: 0 | I105: 0 | J105: 0 | K105: 0 | L105: 0 | M105: 0 | N105: 0 | S105: 0 | U105: 0 | V105: 0 | W105: =LOOKUP(A105,'DOE - FIPStoPayeeCodeConvTable'!$A$3:$A$213,'DOE - FIPStoPayeeCodeConvTable'!$E$3:$E$213) -> 0.3715 | X105: 0.464375 | Y105: 0 | Z105: 0
A106: 570 | B106: =LOOKUP(A106,'DOE - FIPStoPayeeCodeConvTable'!$A$3:$A$213,'DOE - FIPStoPayeeCodeConvTable'!$B$3:$B$213) -> Colonial Heights City | C106: 0 | D106: 12336.76 | E106: 12336.76 | F106: 10346.96 | G106: 0 | H106: 0 | I106: 0 | J106: 0 | K106: 0 | L106: 0 | M106: 0 | N106: 0 | S106: 35020.48 | U106: 24283.2 | V106: 10737.28 | W106: =LOOKUP(A106,'DOE - FIPStoPayeeCodeConvTable'!$A$3:$A$213,'DOE - FIPStoPayeeCodeConvTable'!$E$3:$E$213) -> 0.4027 | X106: 0.503375 | Y106: 5404.88 | Z106: 5332.4
A107: 580 | B107: =LOOKUP(A107,'DOE - FIPStoPayeeCodeConvTable'!$A$3:$A$213,'DOE - FIPStoPayeeCodeConvTable'!$B$3:$B$213) -> Covington City | C107: 0 | D107: 0 | E107: 0 | F107: 0 | G107: 0 | H107: 0 | I107: 0 | J107: 0 | K107: 0 | L107: 0 | M107: 0 | N107: 0 | S107: 0 | U107: 0 | V107: 0 | W107: =LOOKUP(A107,'DOE - FIPStoPayeeCodeConvTable'!$A$3:$A$213,'DOE - FIPStoPayeeCodeConvTable'!$E$3:$E$213) -> 0.2496 | X107: 0.312 | Y107: 0 | Z107: 0
A108: 590 | B108: =LOOKUP(A108,'DOE - FIPStoPayeeCodeConvTable'!$A$3:$A$213,'DOE - FIPStoPayeeCodeConvTable'!$B$3:$B$213) -> Danville City | C108: 0 | D108: 0 | E108: 0 | F108: 0 | G108: 0 | H108: 0 | I108: 0 | J108: 0 | K108: 0 | L108: 0 | M108: 0 | N108: 0 | S108: 0 | U108: 0 | V108: 0 | W108: =LOOKUP(A108,'DOE - FIPStoPayeeCodeConvTable'!$A$3:$A$213,'DOE - FIPStoPayeeCodeConvTable'!$E$3:$E$213) -> 0.2223 | X108: 0.277875 | Y108: 0 | Z108: 0
A109: 620 | B109: =LOOKUP(A109,'DOE - FIPStoPayeeCodeConvTable'!$A$3:$A$213,'DOE - FIPStoPayeeCodeConvTable'!$B$3:$B$213) -> Franklin City | C109: 0 | D109: 0 | E109: 0 | F109: 0 | G109: 0 | H109: 0 | I109: 0 | J109: 0 | K109: 0 | L109: 0 | M109: 0 | N109: 0 | S109: 0 | U109: 0 | V109: 0 | W109: =LOOKUP(A109,'DOE - FIPStoPayeeCodeConvTable'!$A$3:$A$213,'DOE - FIPStoPayeeCodeConvTable'!$E$3:$E$213) -> 0.371 | X109: 0.46375 | Y109: 0 | Z109: 0
A110: 630 | B110: =LOOKUP(A110,'DOE - FIPStoPayeeCodeConvTable'!$A$3:$A$213,'DOE - FIPStoPayeeCodeConvTable'!$B$3:$B$213) -> Fredericksburg City | C110: 0 | D110: 0 | E110: 0 | F110: 0 | G110: 0 | H110: 0 | I110: 0 | J110: 0 | K110: 0 | L110: 0 | M110: 0 | N110: 0 | S110: 0 | U110: 0 | V110: 0 | W110: =LOOKUP(A110,'DOE - FIPStoPayeeCodeConvTable'!$A$3:$A$213,'DOE - FIPStoPayeeCodeConvTable'!$E$3:$E$213) -> 0.3441 | X110: 0.430125 | Y110: 0 | Z110: 0
A111: 640 | B111: =LOOKUP(A111,'DOE - FIPStoPayeeCodeConvTable'!$A$3:$A$213,'DOE - FIPStoPayeeCodeConvTable'!$B$3:$B$213) -> Galax City | C111: 0 | D111: 0 | E111: 0 | F111: 0 | G111: 0 | H111: 0 | I111: 0 | J111: 0 | K111: 0 | L111: 0 | M111: 0 | N111: 0 | S111: 0 | U111: 0 | V111: 0 | W111: =LOOKUP(A111,'DOE - FIPStoPayeeCodeConvTable'!$A$3:$A$213,'DOE - FIPStoPayeeCodeConvTable'!$E$3:$E$213) -> 0.3146 | X111: 0.39325 | Y111: 0 | Z111: 0
A112: 650 | B112: =LOOKUP(A112,'DOE - FIPStoPayeeCodeConvTable'!$A$3:$A$213,'DOE - FIPStoPayeeCodeConvTable'!$B$3:$B$213) -> Hampton City | C112: 0 | D112: 0 | E112: 0 | F112: 0 | G112: 0 | H112: 0 | I112: 0 | J112: 0 | K112: 0 | L112: 0 | M112: 0 | N112: 0 | S112: 0 | U112: 0 | V112: 0 | W112: =LOOKUP(A112,'DOE - FIPStoPayeeCodeConvTable'!$A$3:$A$213,'DOE - FIPStoPayeeCodeConvTable'!$E$3:$E$213) -> 0.3223 | X112: 0.402875 | Y112: 0 | Z112: 0
A113: 660 | B113: =LOOKUP(A113,'DOE - FIPStoPayeeCodeConvTable'!$A$3:$A$213,'DOE - FIPStoPayeeCodeConvTable'!$B$3:$B$213) -> Harrisonburg City | C113: 0 | D113: 0 | E113: 0 | F113: 0 | G113: 0 | H113: 0 | I113: 0 | J113: 0 | K113: 0 | L113: 0 | M113: 0 | N113: 0 | S113: 0 | U113: 0 | V113: 0 | W113: =LOOKUP(A113,'DOE - FIPStoPayeeCodeConvTable'!$A$3:$A$213,'DOE - FIPStoPayeeCodeConvTable'!$E$3:$E$213) -> 0.3808 | X113: 0.476 | Y113: 0 | Z113: 0
A114: 670 | B114: =LOOKUP(A114,'DOE - FIPStoPayeeCodeConvTable'!$A$3:$A$213,'DOE - FIPStoPayeeCodeConvTable'!$B$3:$B$213) -> Hopewell City | C114: 0 | D114: 0 | E114: 0 | F114: 0 | G114: 0 | H114: 0 | I114: 0 | J114: 0 | K114: 0 | L114: 0 | M114: 0 | N114: 0 | S114: 0 | U114: 0 | V114: 0 | W114: =LOOKUP(A114,'DOE - FIPStoPayeeCodeConvTable'!$A$3:$A$213,'DOE - FIPStoPayeeCodeConvTable'!$E$3:$E$213) -> 0.2667 | X114: 0.333375 | Y114: 0 | Z114: 0
A115: 678 | B115: =LOOKUP(A115,'DOE - FIPStoPayeeCodeConvTable'!$A$3:$A$213,'DOE - FIPStoPayeeCodeConvTable'!$B$3:$B$213) -> Lexington City | C115: 0 | D115: 0 | E115: 0 | F115: 0 | G115: 0 | H115: 0 | I115: 0 | J115: 0 | K115: 0 | L115: 0 | M115: 0 | N115: 0 | S115: 0 | U115: 0 | V115: 0 | W115: =LOOKUP(A115,'DOE - FIPStoPayeeCodeConvTable'!$A$3:$A$213,'DOE - FIPStoPayeeCodeConvTable'!$E$3:$E$213) -> 0.3302 | X115: 0.41275 | Y115: 0 | Z115: 0
A116: 680 | B116: =LOOKUP(A116,'DOE - FIPStoPayeeCodeConvTable'!$A$3:$A$213,'DOE - FIPStoPayeeCodeConvTable'!$B$3:$B$213) -> Lynchburg City | C116: 0 | D116: 0 | E116: 0 | F116: 0 | G116: 0 | H116: 0 | I116: 0 | J116: 0 | K116: 0 | L116: 0 | M116: 0 | N116: 0 | S116: 0 | U116: 0 | V116: 0 | W116: =LOOKUP(A116,'DOE - FIPStoPayeeCodeConvTable'!$A$3:$A$213,'DOE - FIPStoPayeeCodeConvTable'!$E$3:$E$213) -> 0.2736 | X116: 0.342 | Y116: 0 | Z116: 0
A117: 683 | B117: =LOOKUP(A117,'DOE - FIPStoPayeeCodeConvTable'!$A$3:$A$213,'DOE - FIPStoPayeeCodeConvTable'!$B$3:$B$213) -> Manassas City | C117: 0 | D117: 0 | E117: 0 | F117: 0 | G117: 0 | H117: 24673.52 | I117: 0 | J117: 0 | K117: 0 | L117: 0 | M117: 0 | N117: 0 | S117: 24673.52 | U117: 17108.62 | V117: 7564.9 | W117: =LOOKUP(A117,'DOE - FIPStoPayeeCodeConvTable'!$A$3:$A$213,'DOE - FIPStoPayeeCodeConvTable'!$E$3:$E$213) -> 0.4168 | X117: 0.521 | Y117: 3941.31 | Z117: 3623.59
A118: 685 | B118: =LOOKUP(A118,'DOE - FIPStoPayeeCodeConvTable'!$A$3:$A$213,'DOE - FIPStoPayeeCodeConvTable'!$B$3:$B$213) -> Manassas Park City | C118: 0 | D118: 0 | E118: 0 | F118: 0 | G118: 0 | H118: 11805 | I118: 26364.5 | J118: 0 | K118: 0 | L118: 0 | M118: 0 | N118: 0 | S118: 38169.5 | U118: 26466.73 | V118: 11702.77 | W118: =LOOKUP(A118,'DOE - FIPStoPayeeCodeConvTable'!$A$3:$A$213,'DOE - FIPStoPayeeCodeConvTable'!$E$3:$E$213) -> 0.4273 | X118: 0.534125 | Y118: 6250.74 | Z118: 5452.03
A119: 690 | B119: =LOOKUP(A119,'DOE - FIPStoPayeeCodeConvTable'!$A$3:$A$213,'DOE - FIPStoPayeeCodeConvTable'!$B$3:$B$213) -> Martinsville City | C119: 0 | D119: 0 | E119: 0 | F119: 0 | G119: 0 | H119: 0 | I119: 0 | J119: 0 | K119: 0 | L119: 0 | M119: 0 | N119: 0 | S119: 0 | U119: 0 | V119: 0 | W119: =LOOKUP(A119,'DOE - FIPStoPayeeCodeConvTable'!$A$3:$A$213,'DOE - FIPStoPayeeCodeConvTable'!$E$3:$E$213) -> 0.3321 | X119: 0.415125 | Y119: 0 | Z119: 0
A120: 700 | B120: =LOOKUP(A120,'DOE - FIPStoPayeeCodeConvTable'!$A$3:$A$213,'DOE - FIPStoPayeeCodeConvTable'!$B$3:$B$213) -> Newport News City | C120: 0 | D120: 0 | E120: 0 | F120: 0 | G120: 0 | H120: 0 | I120: 0 | J120: 0 | K120: 0 | L120: 0 | M120: 0 | N120: 0 | S120: 0 | U120: 0 | V120: 0 | W120: =LOOKUP(A120,'DOE - FIPStoPayeeCodeConvTable'!$A$3:$A$213,'DOE - FIPStoPayeeCodeConvTable'!$E$3:$E$213) -> 0.2773 | X120: 0.346625 | Y120: 0 | Z120: 0
A121: 710 | B121: =LOOKUP(A121,'DOE - FIPStoPayeeCodeConvTable'!$A$3:$A$213,'DOE - FIPStoPayeeCodeConvTable'!$B$3:$B$213) -> Norfolk City | C121: 11805 | D121: 10700.27 | E121: 11045.44 | F121: 0 | G121: 0 | H121: 0 | I121: 0 | J121: 0 | K121: 0 | L121: 0 | M121: 4386.6 | N121: 0 | S121: 26132.31 | U121: 18120.14 | V121: 8012.17 | W121: =LOOKUP(A121,'DOE - FIPStoPayeeCodeConvTable'!$A$3:$A$213,'DOE - FIPStoPayeeCodeConvTable'!$E$3:$E$213) -> 0.2455 | X121: 0.306875 | Y121: 2458.73 | Z121: 5553.44
A122: 720 | B122: =LOOKUP(A122,'DOE - FIPStoPayeeCodeConvTable'!$A$3:$A$213,'DOE - FIPStoPayeeCodeConvTable'!$B$3:$B$213) -> Norton City | C122: 0 | D122: 0 | E122: 0 | F122: 0 | G122: 0 | H122: 0 | I122: 0 | J122: 0 | K122: 0 | L122: 0 | M122: 0 | N122: 0 | S122: 0 | U122: 0 | V122: 0 | W122: =LOOKUP(A122,'DOE - FIPStoPayeeCodeConvTable'!$A$3:$A$213,'DOE - FIPStoPayeeCodeConvTable'!$E$3:$E$213) -> 0.3254 | X122: 0.40675 | Y122: 0 | Z122: 0
A123: 730 | B123: =LOOKUP(A123,'DOE - FIPStoPayeeCodeConvTable'!$A$3:$A$213,'DOE - FIPStoPayeeCodeConvTable'!$B$3:$B$213) -> Petersburg City | C123: 0 | D123: 0 | E123: 0 | F123: 0 | G123: 0 | H123: 0 | I123: 0 | J123: 0 | K123: 0 | L123: 0 | M123: 0 | N123: 0 | S123: 0 | U123: 0 | V123: 0 | W123: =LOOKUP(A123,'DOE - FIPStoPayeeCodeConvTable'!$A$3:$A$213,'DOE - FIPStoPayeeCodeConvTable'!$E$3:$E$213) -> 0.3535 | X123: 0.441875 | Y123: 0 | Z123: 0
A124: 735 | B124: =LOOKUP(A124,'DOE - FIPStoPayeeCodeConvTable'!$A$3:$A$213,'DOE - FIPStoPayeeCodeConvTable'!$B$3:$B$213) -> Poquoson City | C124: 0 | D124: 0 | E124: 0 | F124: 0 | G124: 0 | H124: 0 | I124: 0 | J124: 0 | K124: 0 | L124: 0 | M124: 0 | N124: 0 | S124: 0 | U124: 0 | V124: 0 | W124: =LOOKUP(A124,'DOE - FIPStoPayeeCodeConvTable'!$A$3:$A$213,'DOE - FIPStoPayeeCodeConvTable'!$E$3:$E$213) -> 0.2787 | X124: 0.348375 | Y124: 0 | Z124: 0
A125: 740 | B125: =LOOKUP(A125,'DOE - FIPStoPayeeCodeConvTable'!$A$3:$A$213,'DOE - FIPStoPayeeCodeConvTable'!$B$3:$B$213) -> Portsmouth City | C125: 0 | D125: 0 | E125: 0 | F125: 0 | G125: 0 | H125: 0 | I125: 0 | J125: 0 | K125: 0 | L125: 0 | M125: 0 | N125: 0 | S125: 0 | U125: 0 | V125: 0 | W125: =LOOKUP(A125,'DOE - FIPStoPayeeCodeConvTable'!$A$3:$A$213,'DOE - FIPStoPayeeCodeConvTable'!$E$3:$E$213) -> 0.2605 | X125: 0.325625 | Y125: 0 | Z125: 0
A126: 750 | B126: =LOOKUP(A126,'DOE - FIPStoPayeeCodeConvTable'!$A$3:$A$213,'DOE - FIPStoPayeeCodeConvTable'!$B$3:$B$213) -> Radford City | C126: 0 | D126: 0 | E126: 0 | F126: 0 | G126: 0 | H126: 0 | I126: 0 | J126: 0 | K126: 0 | L126: 0 | M126: 0 | N126: 0 | S126: 0 | U126: 0 | V126: 0 | W126: =LOOKUP(A126,'DOE - FIPStoPayeeCodeConvTable'!$A$3:$A$213,'DOE - FIPStoPayeeCodeConvTable'!$E$3:$E$213) -> 0.2035 | X126: 0.254375 | Y126: 0 | Z126: 0
A127: 760 | B127: =LOOKUP(A127,'DOE - FIPStoPayeeCodeConvTable'!$A$3:$A$213,'DOE - FIPStoPayeeCodeConvTable'!$B$3:$B$213) -> Richmond City | C127: 0 | D127: 0 | E127: 0 | F127: 0 | G127: 0 | H127: 0 | I127: 0 | J127: 0 | K127: 0 | L127: 0 | M127: 0 | N127: 0 | S127: 0 | U127: 0 | V127: 0 | W127: =LOOKUP(A127,'DOE - FIPStoPayeeCodeConvTable'!$A$3:$A$213,'DOE - FIPStoPayeeCodeConvTable'!$E$3:$E$213) -> 0.3691 | X127: 0.461375 | Y127: 0 | Z127: 0
A128: 770 | B128: =LOOKUP(A128,'DOE - FIPStoPayeeCodeConvTable'!$A$3:$A$213,'DOE - FIPStoPayeeCodeConvTable'!$B$3:$B$213) -> Roanoke City | C128: 2754.5 | D128: 3935 | E128: 0 | F128: 0 | G128: 0 | H128: 0 | I128: 0 | J128: 0 | K128: 0 | L128: 0 | M128: 0 | N128: 19862.88 | S128: 23797.88 | U128: 16501.45 | V128: 7296.43 | W128: =LOOKUP(A128,'DOE - FIPStoPayeeCodeConvTable'!$A$3:$A$213,'DOE - FIPStoPayeeCodeConvTable'!$E$3:$E$213) -> 0.3072 | X128: 0.384 | Y128: 2801.83 | Z128: 4494.6
A129: 775 | B129: =LOOKUP(A129,'DOE - FIPStoPayeeCodeConvTable'!$A$3:$A$213,'DOE - FIPStoPayeeCodeConvTable'!$B$3:$B$213) -> Salem City | C129: 0 | D129: 0 | E129: 0 | F129: 0 | G129: 0 | H129: 0 | I129: 0 | J129: 0 | K129: 0 | L129: 0 | M129: 0 | N129: 0 | S129: 0 | U129: 0 | V129: 0 | W129: =LOOKUP(A129,'DOE - FIPStoPayeeCodeConvTable'!$A$3:$A$213,'DOE - FIPStoPayeeCodeConvTable'!$E$3:$E$213) -> 0.3513 | X129: 0.439125 | Y129: 0 | Z129: 0
A130: 790 | B130: =LOOKUP(A130,'DOE - FIPStoPayeeCodeConvTable'!$A$3:$A$213,'DOE - FIPStoPayeeCodeConvTable'!$B$3:$B$213) -> Staunton City | C130: 0 | D130: 0 | E130: 0 | F130: 0 | G130: 0 | H130: 0 | I130: 0 | J130: 0 | K130: 0 | L130: 0 | M130: 0 | N130: 0 | S130: 0 | U130: 0 | V130: 0 | W130: =LOOKUP(A130,'DOE - FIPStoPayeeCodeConvTable'!$A$3:$A$213,'DOE - FIPStoPayeeCodeConvTable'!$E$3:$E$213) -> 0.2699 | X130: 0.337375 | Y130: 0 | Z130: 0
A131: 800 | B131: =LOOKUP(A131,'DOE - FIPStoPayeeCodeConvTable'!$A$3:$A$213,'DOE - FIPStoPayeeCodeConvTable'!$B$3:$B$213) -> Suffolk City | C131: 0 | D131: 0 | E131: 0 | F131: 0 | G131: 0 | H131: 0 | I131: 0 | J131: 0 | K131: 0 | L131: 0 | M131: 0 | N131: 0 | S131: 0 | U131: 0 | V131: 0 | W131: =LOOKUP(A131,'DOE - FIPStoPayeeCodeConvTable'!$A$3:$A$213,'DOE - FIPStoPayeeCodeConvTable'!$E$3:$E$213) -> 0.2432 | X131: 0.304 | Y131: 0 | Z131: 0
A132: 810 | B132: =LOOKUP(A132,'DOE - FIPStoPayeeCodeConvTable'!$A$3:$A$213,'DOE - FIPStoPayeeCodeConvTable'!$B$3:$B$213) -> Virginia Beach City | C132: 0 | D132: 32554.95 | E132: 12336.76 | F132: 7959.2 | G132: 0 | H132: 0 | I132: 0 | J132: 0 | K132: 0 | L132: 0 | M132: 0 | N132: 0 | S132: 52850.91 | U132: 36646.82 | V132: 16204.09 | W132: =LOOKUP(A132,'DOE - FIPStoPayeeCodeConvTable'!$A$3:$A$213,'DOE - FIPStoPayeeCodeConvTable'!$E$3:$E$213) -> 0.3569 | X132: 0.446125 | Y132: 7229.05 | Z132: 8975.04
A133: 820 | B133: =LOOKUP(A133,'DOE - FIPStoPayeeCodeConvTable'!$A$3:$A$213,'DOE - FIPStoPayeeCodeConvTable'!$B$3:$B$213) -> Waynesboro City | C133: 0 | D133: 0 | E133: 0 | F133: 0 | G133: 0 | H133: 0 | I133: 0 | J133: 0 | K133: 0 | L133: 0 | M133: 0 | N133: 0 | S133: 0 | U133: 0 | V133: =SUM(S133)-SUM(U133) -> 0 | W133: =LOOKUP(A133,'DOE - FIPStoPayeeCodeConvTable'!$A$3:$A$213,'DOE - FIPStoPayeeCodeConvTable'!$E$3:$E$213) -> 0.3843 | X133: 0.480375 | Y133: 0 | Z133: 0
A134: 830 | B134: =LOOKUP(A134,'DOE - FIPStoPayeeCodeConvTable'!$A$3:$A$213,'DOE - FIPStoPayeeCodeConvTable'!$B$3:$B$213) -> Williamsburg City | C134: 0 | D134: 0 | E134: 0 | F134: 0 | G134: 0 | H134: 0 | I134: 0 | J134: 0 | K134: 0 | L134: 0 | M134: 0 | N134: 0 | S134: =SUM(D134:R134) -> 0 | U134: =ROUND($U$1*S134,2) -> 0 | V134: 0 | W134: =LOOKUP(A134,'DOE - FIPStoPayeeCodeConvTable'!$A$3:$A$213,'DOE - FIPStoPayeeCodeConvTable'!$E$3:$E$213) -> 0.4553 | X134: 0.569125 | Y134: 0 | Z134: 0
A135: 840 | B135: =LOOKUP(A135,'DOE - FIPStoPayeeCodeConvTable'!$A$3:$A$213,'DOE - FIPStoPayeeCodeConvTable'!$B$3:$B$213) -> Winchester City | C135: 0 | D135: 0 | E135: 0 | F135: 0 | G135: 0 | H135: 0 | I135: 0 | J135: 0 | K135: 0 | L135: 0 | M135: 0 | N135: 0 | S135: 0 | U135: 0 | V135: 0 | W135: =LOOKUP(A135,'DOE - FIPStoPayeeCodeConvTable'!$A$3:$A$213,'DOE - FIPStoPayeeCodeConvTable'!$E$3:$E$213) -> 0.4587 | X135: =$X$1*W135 -> 0.573375 | Y135: =ROUND(X135*V135,2) -> 0 | Z135: =SUM(V135)-SUM(Y135) -> 0

Sheet Extend Covid 19 rate adj (hidden)
A1: FY | B1: ='DOE - FIPStoPayeeCodeConvTable'!G1 -> 2022 | C1: MEDICAID ADJUSTMENTS--Extended Rate Chg for Covid 19 | O1: ="Extended to be paided in this SFY = " & B1 -> Extended to be paided in this SFY = 2022 | T1: xx | U1: 0.8084 | V1: =100%-U1 -> 0.1916 | W1: (POOL) | X1: 1.25
U2: FEDERAL | V2: STATE/ | W2: (RATE) | X2: Factor
A3: FIPS | S3: Grand | U3: MEDICAID | V3: LOCAL | W3: LOCAL | Y3: LOCAL | Z3: STATE
A4: CODE | B4: LOCALITY | C4: =TEXT("7/1/" & $B$1-1,"mmm-yyyy") -> Jul-2021 | D4: =TEXT("8/1/" & $B$1-1,"mmm-yyyy") -> Aug-2021 | E4: =TEXT("9/1/" & $B$1-1,"mmm-yyyy") -> Sep-2021 | F4: =TEXT("10/1/" & $B$1-1,"mmm-yyyy") -> Oct-2021 | G4: =TEXT("11/1/" & $B$1-1,"mmm-yyyy") -> Nov-2021 | H4: =TEXT("12/1/" & $B$1-1,"mmm-yyyy") -> Dec-2021 | I4: =TEXT("1/1/" & $B$1,"mmm-yyyy") -> Jan-2022 | J4: =TEXT("2/1/" & $B$1,"mmm-yyyy") -> Feb-2022 | K4: =TEXT("3/1/" & $B$1,"mmm-yyyy") -> Mar-2022 | L4: =TEXT("4/1/" & $B$1,"mmm-yyyy") -> Apr-2022 | M4: =TEXT("5/1/" & $B$1,"mmm-yyyy") -> May-2022 | N4: =TEXT("6/1/" & $B$1,"mmm-yyyy") -> Jun-2022 | O4: =TEXT("7/1/" & $B$1,"mmm-yyyy") -> Jul-2022 | P4: =TEXT("8/1/" & $B$1,"mmm-yyyy") -> Aug-2022 | Q4: =TEXT("9/1/" & $B$1,"mmm-yyyy") -> Sep-2022 | R4: =TEXT("10/1/" & $B$1,"mmm-yyyy") -> Oct-2022 | S4: Total | U4: RATE/Share | V4: SHARE | W4: MATCH Rate | Y4: MATCH | Z4: SHARE
A5: Totals | C5: =SUM(C6:C1200) -> 0 | D5: 0 | E5: 0 | F5: 0 | G5: 0 | H5: 0 | I5: 0 | J5: 0 | K5: 0 | L5: 0 | M5: 0 | N5: 0 | O5: 0 | P5: 0 | Q5: 0 | R5: 0 | S5: =SUM(C5:R5) -> 0 | T5: = | U5: =SUM(U6:U399) -> 0 | V5: =SUM(V6:V399) -> 0 | W5: = | Y5: =SUM(Y6:Y399) -> 0 | Z5: =SUM(Z6:Z399) -> 0
A6: 1 | B6: =LOOKUP(A6,'DOE - FIPStoPayeeCodeConvTable'!$A$3:$A$213,'DOE - FIPStoPayeeCodeConvTable'!$B$3:$B$213) -> Accomack Co | S6: 0 | U6: =ROUND($U$1*S6,2) -> 0 | V6: =SUM(S6)-SUM(U6) -> 0 | W6: =LOOKUP(A6,'DOE - FIPStoPayeeCodeConvTable'!$A$3:$A$213,'DOE - FIPStoPayeeCodeConvTable'!$E$3:$E$213) -> 0.2332 | X6: =$X$1*W6 -> 0.2915 | Y6: =ROUND(X6*V6,2) -> 0 | Z6: =SUM(V6)-SUM(Y6) -> 0
A7: 3 | B7: =LOOKUP(A7,'DOE - FIPStoPayeeCodeConvTable'!$A$3:$A$213,'DOE - FIPStoPayeeCodeConvTable'!$B$3:$B$213) -> Albemarle Co | S7: 0 | U7: 0 | V7: 0 | W7: =LOOKUP(A7,'DOE - FIPStoPayeeCodeConvTable'!$A$3:$A$213,'DOE - FIPStoPayeeCodeConvTable'!$E$3:$E$213) -> 0.4474 | X7: =$X$1*W7 -> 0.55925 | Y7: =ROUND(X7*V7,2) -> 0 | Z7: =SUM(V7)-SUM(Y7) -> 0
A8: 5 | B8: =LOOKUP(A8,'DOE - FIPStoPayeeCodeConvTable'!$A$3:$A$213,'DOE - FIPStoPayeeCodeConvTable'!$B$3:$B$213) -> Alleghany Co | S8: 0 | U8: 0 | V8: 0 | W8: =LOOKUP(A8,'DOE - FIPStoPayeeCodeConvTable'!$A$3:$A$213,'DOE - FIPStoPayeeCodeConvTable'!$E$3:$E$213) -> 0.1924 | X8: 0.2405 | Y8: 0 | Z8: 0 | AB8: =1-0.1916 -> 0.8084
A9: 7 | B9: =LOOKUP(A9,'DOE - FIPStoPayeeCodeConvTable'!$A$3:$A$213,'DOE - FIPStoPayeeCodeConvTable'!$B$3:$B$213) -> Amelia Co | S9: 0 | U9: 0 | V9: 0 | W9: =LOOKUP(A9,'DOE - FIPStoPayeeCodeConvTable'!$A$3:$A$213,'DOE - FIPStoPayeeCodeConvTable'!$E$3:$E$213) -> 0.3268 | X9: 0.4085 | Y9: 0 | Z9: 0
A10: 9 | B10: =LOOKUP(A10,'DOE - FIPStoPayeeCodeConvTable'!$A$3:$A$213,'DOE - FIPStoPayeeCodeConvTable'!$B$3:$B$213) -> Amherst Co | S10: 0 | U10: 0 | V10: 0 | W10: =LOOKUP(A10,'DOE - FIPStoPayeeCodeConvTable'!$A$3:$A$213,'DOE - FIPStoPayeeCodeConvTable'!$E$3:$E$213) -> 0.2722 | X10: 0.34025 | Y10: 0 | Z10: 0
A11: 11 | B11: =LOOKUP(A11,'DOE - FIPStoPayeeCodeConvTable'!$A$3:$A$213,'DOE - FIPStoPayeeCodeConvTable'!$B$3:$B$213) -> Appomattox Co | S11: 0 | U11: 0 | V11: 0 | W11: =LOOKUP(A11,'DOE - FIPStoPayeeCodeConvTable'!$A$3:$A$213,'DOE - FIPStoPayeeCodeConvTable'!$E$3:$E$213) -> 0.2639 | X11: 0.329875 | Y11: 0 | Z11: 0
A12: 13 | B12: =LOOKUP(A12,'DOE - FIPStoPayeeCodeConvTable'!$A$3:$A$213,'DOE - FIPStoPayeeCodeConvTable'!$B$3:$B$213) -> Arlington Co | S12: 0 | U12: 0 | V12: 0 | W12: =LOOKUP(A12,'DOE - FIPStoPayeeCodeConvTable'!$A$3:$A$213,'DOE - FIPStoPayeeCodeConvTable'!$E$3:$E$213) -> 0.4602 | X12: 0.57525 | Y12: 0 | Z12: 0
A13: 15 | B13: =LOOKUP(A13,'DOE - FIPStoPayeeCodeConvTable'!$A$3:$A$213,'DOE - FIPStoPayeeCodeConvTable'!$B$3:$B$213) -> Augusta Co | S13: 0 | U13: 0 | V13: 0 | W13: =LOOKUP(A13,'DOE - FIPStoPayeeCodeConvTable'!$A$3:$A$213,'DOE - FIPStoPayeeCodeConvTable'!$E$3:$E$213) -> 0.3302 | X13: 0.41275 | Y13: 0 | Z13: 0
A14: 17 | B14: =LOOKUP(A14,'DOE - FIPStoPayeeCodeConvTable'!$A$3:$A$213,'DOE - FIPStoPayeeCodeConvTable'!$B$3:$B$213) -> Bath Co | S14: 0 | U14: 0 | V14: 0 | W14: =LOOKUP(A14,'DOE - FIPStoPayeeCodeConvTable'!$A$3:$A$213,'DOE - FIPStoPayeeCodeConvTable'!$E$3:$E$213) -> 0.4278 | X14: 0.53475 | Y14: 0 | Z14: 0
A15: 19 | B15: =LOOKUP(A15,'DOE - FIPStoPayeeCodeConvTable'!$A$3:$A$213,'DOE - FIPStoPayeeCodeConvTable'!$B$3:$B$213) -> Bedford Co | S15: 0 | U15: 0 | V15: 0 | W15: =LOOKUP(A15,'DOE - FIPStoPayeeCodeConvTable'!$A$3:$A$213,'DOE - FIPStoPayeeCodeConvTable'!$E$3:$E$213) -> 0.31112 | X15: 0.3889 | Y15: 0 | Z15: 0
A16: 21 | B16: =LOOKUP(A16,'DOE - FIPStoPayeeCodeConvTable'!$A$3:$A$213,'DOE - FIPStoPayeeCodeConvTable'!$B$3:$B$213) -> Bland Co | S16: 0 | U16: 0 | V16: 0 | W16: =LOOKUP(A16,'DOE - FIPStoPayeeCodeConvTable'!$A$3:$A$213,'DOE - FIPStoPayeeCodeConvTable'!$E$3:$E$213) -> 0.2109 | X16: 0.263625 | Y16: 0 | Z16: 0
A17: 23 | B17: =LOOKUP(A17,'DOE - FIPStoPayeeCodeConvTable'!$A$3:$A$213,'DOE - FIPStoPayeeCodeConvTable'!$B$3:$B$213) -> Botetourt Co | S17: 0 | U17: 0 | V17: 0 | W17: =LOOKUP(A17,'DOE - FIPStoPayeeCodeConvTable'!$A$3:$A$213,'DOE - FIPStoPayeeCodeConvTable'!$E$3:$E$213) -> 0.3602 | X17: 0.45025 | Y17: 0 | Z17: 0
A18: 25 | B18: =LOOKUP(A18,'DOE - FIPStoPayeeCodeConvTable'!$A$3:$A$213,'DOE - FIPStoPayeeCodeConvTable'!$B$3:$B$213) -> Brunswick Co | S18: 0 | U18: 0 | V18: 0 | W18: =LOOKUP(A18,'DOE - FIPStoPayeeCodeConvTable'!$A$3:$A$213,'DOE - FIPStoPayeeCodeConvTable'!$E$3:$E$213) -> 0.2439 | X18: 0.304875 | Y18: 0 | Z18: 0
A19: 27 | B19: =LOOKUP(A19,'DOE - FIPStoPayeeCodeConvTable'!$A$3:$A$213,'DOE - FIPStoPayeeCodeConvTable'!$B$3:$B$213) -> Buchanan Co | S19: 0 | U19: 0 | V19: 0 | W19: =LOOKUP(A19,'DOE - FIPStoPayeeCodeConvTable'!$A$3:$A$213,'DOE - FIPStoPayeeCodeConvTable'!$E$3:$E$213) -> 0.3156 | X19: 0.3945 | Y19: 0 | Z19: 0
A20: 29 | B20: =LOOKUP(A20,'DOE - FIPStoPayeeCodeConvTable'!$A$3:$A$213,'DOE - FIPStoPayeeCodeConvTable'!$B$3:$B$213) -> Buckingham Co | S20: 0 | U20: 0 | V20: 0 | W20: =LOOKUP(A20,'DOE - FIPStoPayeeCodeConvTable'!$A$3:$A$213,'DOE - FIPStoPayeeCodeConvTable'!$E$3:$E$213) -> 0.2023 | X20: 0.252875 | Y20: 0 | Z20: 0
A21: 31 | B21: =LOOKUP(A21,'DOE - FIPStoPayeeCodeConvTable'!$A$3:$A$213,'DOE - FIPStoPayeeCodeConvTable'!$B$3:$B$213) -> Campbell Co | S21: 0 | U21: 0 | V21: 0 | W21: =LOOKUP(A21,'DOE - FIPStoPayeeCodeConvTable'!$A$3:$A$213,'DOE - FIPStoPayeeCodeConvTable'!$E$3:$E$213) -> 0.3107 | X21: 0.388375 | Y21: 0 | Z21: 0
A22: 33 | B22: =LOOKUP(A22,'DOE - FIPStoPayeeCodeConvTable'!$A$3:$A$213,'DOE - FIPStoPayeeCodeConvTable'!$B$3:$B$213) -> Caroline Co | S22: 0 | U22: 0 | V22: 0 | W22: =LOOKUP(A22,'DOE - FIPStoPayeeCodeConvTable'!$A$3:$A$213,'DOE - FIPStoPayeeCodeConvTable'!$E$3:$E$213) -> 0.3308 | X22: 0.4135 | Y22: 0 | Z22: 0
A23: 35 | B23: =LOOKUP(A23,'DOE - FIPStoPayeeCodeConvTable'!$A$3:$A$213,'DOE - FIPStoPayeeCodeConvTable'!$B$3:$B$213) -> Carroll Co | S23: 0 | U23: 0 | V23: 0 | W23: =LOOKUP(A23,'DOE - FIPStoPayeeCodeConvTable'!$A$3:$A$213,'DOE - FIPStoPayeeCodeConvTable'!$E$3:$E$213) -> 0.291 | X23: 0.36375 | Y23: 0 | Z23: 0
A24: 36 | B24: =LOOKUP(A24,'DOE - FIPStoPayeeCodeConvTable'!$A$3:$A$213,'DOE - FIPStoPayeeCodeConvTable'!$B$3:$B$213) -> Charles City Co | S24: 0 | U24: 0 | V24: 0 | W24: =LOOKUP(A24,'DOE - FIPStoPayeeCodeConvTable'!$A$3:$A$213,'DOE - FIPStoPayeeCodeConvTable'!$E$3:$E$213) -> 0.3131 | X24: 0.391375 | Y24: 0 | Z24: 0
A25: 37 | B25: =LOOKUP(A25,'DOE - FIPStoPayeeCodeConvTable'!$A$3:$A$213,'DOE - FIPStoPayeeCodeConvTable'!$B$3:$B$213) -> Charlotte Co | S25: 0 | U25: 0 | V25: 0 | W25: =LOOKUP(A25,'DOE - FIPStoPayeeCodeConvTable'!$A$3:$A$213,'DOE - FIPStoPayeeCodeConvTable'!$E$3:$E$213) -> 0.2204 | X25: 0.2755 | Y25: 0 | Z25: 0
A26: 41 | B26: =LOOKUP(A26,'DOE - FIPStoPayeeCodeConvTable'!$A$3:$A$213,'DOE - FIPStoPayeeCodeConvTable'!$B$3:$B$213) -> Chesterfield Co | S26: 0 | U26: 0 | V26: 0 | W26: =LOOKUP(A26,'DOE - FIPStoPayeeCodeConvTable'!$A$3:$A$213,'DOE - FIPStoPayeeCodeConvTable'!$E$3:$E$213) -> 0.3853 | X26: 0.481625 | Y26: 0 | Z26: 0
A27: 43 | B27: =LOOKUP(A27,'DOE - FIPStoPayeeCodeConvTable'!$A$3:$A$213,'DOE - FIPStoPayeeCodeConvTable'!$B$3:$B$213) -> Clarke Co | S27: 0 | U27: 0 | V27: 0 | W27: =LOOKUP(A27,'DOE - FIPStoPayeeCodeConvTable'!$A$3:$A$213,'DOE - FIPStoPayeeCodeConvTable'!$E$3:$E$213) -> 0.4797 | X27: 0.599625 | Y27: 0 | Z27: 0
A28: 45 | B28: =LOOKUP(A28,'DOE - FIPStoPayeeCodeConvTable'!$A$3:$A$213,'DOE - FIPStoPayeeCodeConvTable'!$B$3:$B$213) -> Craig Co | S28: 0 | U28: 0 | V28: 0 | W28: =LOOKUP(A28,'DOE - FIPStoPayeeCodeConvTable'!$A$3:$A$213,'DOE - FIPStoPayeeCodeConvTable'!$E$3:$E$213) -> 0.2901 | X28: 0.362625 | Y28: 0 | Z28: 0
A29: 47 | B29: =LOOKUP(A29,'DOE - FIPStoPayeeCodeConvTable'!$A$3:$A$213,'DOE - FIPStoPayeeCodeConvTable'!$B$3:$B$213) -> Culpeper Co | S29: 0 | U29: 0 | V29: 0 | W29: =LOOKUP(A29,'DOE - FIPStoPayeeCodeConvTable'!$A$3:$A$213,'DOE - FIPStoPayeeCodeConvTable'!$E$3:$E$213) -> 0.3767 | X29: 0.470875 | Y29: 0 | Z29: 0
A30: 49 | B30: =LOOKUP(A30,'DOE - FIPStoPayeeCodeConvTable'!$A$3:$A$213,'DOE - FIPStoPayeeCodeConvTable'!$B$3:$B$213) -> Cumberland Co | S30: 0 | U30: 0 | V30: 0 | W30: =LOOKUP(A30,'DOE - FIPStoPayeeCodeConvTable'!$A$3:$A$213,'DOE - FIPStoPayeeCodeConvTable'!$E$3:$E$213) -> 0.304 | X30: 0.38 | Y30: 0 | Z30: 0
A31: 51 | B31: =LOOKUP(A31,'DOE - FIPStoPayeeCodeConvTable'!$A$3:$A$213,'DOE - FIPStoPayeeCodeConvTable'!$B$3:$B$213) -> Dickenson Co | S31: 0 | U31: 0 | V31: 0 | W31: =LOOKUP(A31,'DOE - FIPStoPayeeCodeConvTable'!$A$3:$A$213,'DOE - FIPStoPayeeCodeConvTable'!$E$3:$E$213) -> 0.3042 | X31: 0.38025 | Y31: 0 | Z31: 0
A32: 53 | B32: =LOOKUP(A32,'DOE - FIPStoPayeeCodeConvTable'!$A$3:$A$213,'DOE - FIPStoPayeeCodeConvTable'!$B$3:$B$213) -> Dinwiddie Co | S32: 0 | U32: 0 | V32: 0 | W32: =LOOKUP(A32,'DOE - FIPStoPayeeCodeConvTable'!$A$3:$A$213,'DOE - FIPStoPayeeCodeConvTable'!$E$3:$E$213) -> 0.3358 | X32: 0.41975 | Y32: 0 | Z32: 0
A33: 57 | B33: =LOOKUP(A33,'DOE - FIPStoPayeeCodeConvTable'!$A$3:$A$213,'DOE - FIPStoPayeeCodeConvTable'!$B$3:$B$213) -> Essex Co | S33: 0 | U33: 0 | V33: 0 | W33: =LOOKUP(A33,'DOE - FIPStoPayeeCodeConvTable'!$A$3:$A$213,'DOE - FIPStoPayeeCodeConvTable'!$E$3:$E$213) -> 0.3853 | X33: 0.481625 | Y33: 0 | Z33: 0
A34: 59 | B34: =LOOKUP(A34,'DOE - FIPStoPayeeCodeConvTable'!$A$3:$A$213,'DOE - FIPStoPayeeCodeConvTable'!$B$3:$B$213) -> Fairfax Co | S34: 0 | U34: 0 | V34: 0 | W34: =LOOKUP(A34,'DOE - FIPStoPayeeCodeConvTable'!$A$3:$A$213,'DOE - FIPStoPayeeCodeConvTable'!$E$3:$E$213) -> 0.4611 | X34: 0.576375 | Y34: 0 | Z34: 0
A35: 61 | B35: =LOOKUP(A35,'DOE - FIPStoPayeeCodeConvTable'!$A$3:$A$213,'DOE - FIPStoPayeeCodeConvTable'!$B$3:$B$213) -> Fauquier Co | S35: 0 | U35: 0 | V35: 0 | W35: =LOOKUP(A35,'DOE - FIPStoPayeeCodeConvTable'!$A$3:$A$213,'DOE - FIPStoPayeeCodeConvTable'!$E$3:$E$213) -> 0.4584 | X35: 0.573 | Y35: 0 | Z35: 0
A36: 63 | B36: =LOOKUP(A36,'DOE - FIPStoPayeeCodeConvTable'!$A$3:$A$213,'DOE - FIPStoPayeeCodeConvTable'!$B$3:$B$213) -> Floyd Co | S36: 0 | U36: 0 | V36: 0 | W36: =LOOKUP(A36,'DOE - FIPStoPayeeCodeConvTable'!$A$3:$A$213,'DOE - FIPStoPayeeCodeConvTable'!$E$3:$E$213) -> 0.2324 | X36: 0.2905 | Y36: 0 | Z36: 0
A37: 65 | B37: =LOOKUP(A37,'DOE - FIPStoPayeeCodeConvTable'!$A$3:$A$213,'DOE - FIPStoPayeeCodeConvTable'!$B$3:$B$213) -> Fluvanna Co | S37: =SUM(C37:R37) -> 0 | U37: 0 | V37: 0 | W37: =LOOKUP(A37,'DOE - FIPStoPayeeCodeConvTable'!$A$3:$A$213,'DOE - FIPStoPayeeCodeConvTable'!$E$3:$E$213) -> 0.3811 | X37: 0.476375 | Y37: 0 | Z37: 0
A38: 67 | B38: =LOOKUP(A38,'DOE - FIPStoPayeeCodeConvTable'!$A$3:$A$213,'DOE - FIPStoPayeeCodeConvTable'!$B$3:$B$213) -> Franklin Co | S38: 0 | U38: =ROUND($U$1*S38,2) -> 0 | V38: =SUM(S38)-SUM(U38) -> 0 | W38: =LOOKUP(A38,'DOE - FIPStoPayeeCodeConvTable'!$A$3:$A$213,'DOE - FIPStoPayeeCodeConvTable'!$E$3:$E$213) -> 0.283 | X38: 0.35375 | Y38: 0 | Z38: 0
A39: 69 | B39: =LOOKUP(A39,'DOE - FIPStoPayeeCodeConvTable'!$A$3:$A$213,'DOE - FIPStoPayeeCodeConvTable'!$B$3:$B$213) -> Frederick Co | S39: 0 | U39: 0 | V39: 0 | W39: =LOOKUP(A39,'DOE - FIPStoPayeeCodeConvTable'!$A$3:$A$213,'DOE - FIPStoPayeeCodeConvTable'!$E$3:$E$213) -> 0.4348 | X39: 0.5435 | Y39: 0 | Z39: 0
A40: 71 | B40: =LOOKUP(A40,'DOE - FIPStoPayeeCodeConvTable'!$A$3:$A$213,'DOE - FIPStoPayeeCodeConvTable'!$B$3:$B$213) -> Giles Co | S40: 0 | U40: 0 | V40: 0 | W40: =LOOKUP(A40,'DOE - FIPStoPayeeCodeConvTable'!$A$3:$A$213,'DOE - FIPStoPayeeCodeConvTable'!$E$3:$E$213) -> 0.2898 | X40: 0.36225 | Y40: 0 | Z40: 0
A41: 73 | B41: =LOOKUP(A41,'DOE - FIPStoPayeeCodeConvTable'!$A$3:$A$213,'DOE - FIPStoPayeeCodeConvTable'!$B$3:$B$213) -> Gloucester Co | S41: 0 | U41: 0 | V41: 0 | W41: =LOOKUP(A41,'DOE - FIPStoPayeeCodeConvTable'!$A$3:$A$213,'DOE - FIPStoPayeeCodeConvTable'!$E$3:$E$213) -> 0.3687 | X41: 0.460875 | Y41: 0 | Z41: 0
A42: 75 | B42: =LOOKUP(A42,'DOE - FIPStoPayeeCodeConvTable'!$A$3:$A$213,'DOE - FIPStoPayeeCodeConvTable'!$B$3:$B$213) -> Goochland Co | S42: 0 | U42: 0 | V42: 0 | W42: =LOOKUP(A42,'DOE - FIPStoPayeeCodeConvTable'!$A$3:$A$213,'DOE - FIPStoPayeeCodeConvTable'!$E$3:$E$213) -> 0.4871 | X42: 0.608875 | Y42: 0 | Z42: 0
A43: 77 | B43: =LOOKUP(A43,'DOE - FIPStoPayeeCodeConvTable'!$A$3:$A$213,'DOE - FIPStoPayeeCodeConvTable'!$B$3:$B$213) -> Grayson Co | S43: 0 | U43: 0 | V43: 0 | W43: =LOOKUP(A43,'DOE - FIPStoPayeeCodeConvTable'!$A$3:$A$213,'DOE - FIPStoPayeeCodeConvTable'!$E$3:$E$213) -> 0.2109 | X43: 0.263625 | Y43: 0 | Z43: 0
A44: 79 | B44: =LOOKUP(A44,'DOE - FIPStoPayeeCodeConvTable'!$A$3:$A$213,'DOE - FIPStoPayeeCodeConvTable'!$B$3:$B$213) -> Greene Co | S44: 0 | U44: 0 | V44: 0 | W44: =LOOKUP(A44,'DOE - FIPStoPayeeCodeConvTable'!$A$3:$A$213,'DOE - FIPStoPayeeCodeConvTable'!$E$3:$E$213) -> 0.3471 | X44: 0.433875 | Y44: 0 | Z44: 0
A45: 81 | B45: =LOOKUP(A45,'DOE - FIPStoPayeeCodeConvTable'!$A$3:$A$213,'DOE - FIPStoPayeeCodeConvTable'!$B$3:$B$213) -> Greensville Co | S45: 0 | U45: 0 | V45: 0 | W45: =LOOKUP(A45,'DOE - FIPStoPayeeCodeConvTable'!$A$3:$A$213,'DOE - FIPStoPayeeCodeConvTable'!$E$3:$E$213) -> 0.2266 | X45: 0.28325 | Y45: 0 | Z45: 0
A46: 83 | B46: =LOOKUP(A46,'DOE - FIPStoPayeeCodeConvTable'!$A$3:$A$213,'DOE - FIPStoPayeeCodeConvTable'!$B$3:$B$213) -> Halifax Co | S46: 0 | U46: 0 | V46: 0 | W46: =LOOKUP(A46,'DOE - FIPStoPayeeCodeConvTable'!$A$3:$A$213,'DOE - FIPStoPayeeCodeConvTable'!$E$3:$E$213) -> 0.2335 | X46: 0.291875 | Y46: 0 | Z46: 0
A47: 85 | B47: =LOOKUP(A47,'DOE - FIPStoPayeeCodeConvTable'!$A$3:$A$213,'DOE - FIPStoPayeeCodeConvTable'!$B$3:$B$213) -> Hanover Co | S47: 0 | U47: 0 | V47: 0 | W47: =LOOKUP(A47,'DOE - FIPStoPayeeCodeConvTable'!$A$3:$A$213,'DOE - FIPStoPayeeCodeConvTable'!$E$3:$E$213) -> 0.4444 | X47: 0.5555 | Y47: 0 | Z47: 0
A48: 87 | B48: =LOOKUP(A48,'DOE - FIPStoPayeeCodeConvTable'!$A$3:$A$213,'DOE - FIPStoPayeeCodeConvTable'!$B$3:$B$213) -> Henrico Co | S48: 0 | U48: 0 | V48: 0 | W48: =LOOKUP(A48,'DOE - FIPStoPayeeCodeConvTable'!$A$3:$A$213,'DOE - FIPStoPayeeCodeConvTable'!$E$3:$E$213) -> 0.3755 | X48: 0.469375 | Y48: 0 | Z48: 0
A49: 89 | B49: =LOOKUP(A49,'DOE - FIPStoPayeeCodeConvTable'!$A$3:$A$213,'DOE - FIPStoPayeeCodeConvTable'!$B$3:$B$213) -> Henry Co | S49: 0 | U49: 0 | V49: 0 | W49: =LOOKUP(A49,'DOE - FIPStoPayeeCodeConvTable'!$A$3:$A$213,'DOE - FIPStoPayeeCodeConvTable'!$E$3:$E$213) -> 0.2786 | X49: 0.34825 | Y49: 0 | Z49: 0
A50: 91 | B50: =LOOKUP(A50,'DOE - FIPStoPayeeCodeConvTable'!$A$3:$A$213,'DOE - FIPStoPayeeCodeConvTable'!$B$3:$B$213) -> Highland Co | S50: 0 | U50: 0 | V50: 0 | W50: =LOOKUP(A50,'DOE - FIPStoPayeeCodeConvTable'!$A$3:$A$213,'DOE - FIPStoPayeeCodeConvTable'!$E$3:$E$213) -> 0.3822 | X50: 0.47775 | Y50: 0 | Z50: 0
A51: 93 | B51: =LOOKUP(A51,'DOE - FIPStoPayeeCodeConvTable'!$A$3:$A$213,'DOE - FIPStoPayeeCodeConvTable'!$B$3:$B$213) -> Isle Of Wight Co | S51: 0 | U51: 0 | V51: 0 | W51: =LOOKUP(A51,'DOE - FIPStoPayeeCodeConvTable'!$A$3:$A$213,'DOE - FIPStoPayeeCodeConvTable'!$E$3:$E$213) -> 0.3613 | X51: 0.451625 | Y51: 0 | Z51: 0
A52: 95 | B52: =LOOKUP(A52,'DOE - FIPStoPayeeCodeConvTable'!$A$3:$A$213,'DOE - FIPStoPayeeCodeConvTable'!$B$3:$B$213) -> James City Co | S52: 0 | U52: 0 | V52: 0 | W52: =LOOKUP(A52,'DOE - FIPStoPayeeCodeConvTable'!$A$3:$A$213,'DOE - FIPStoPayeeCodeConvTable'!$E$3:$E$213) -> 0.4483 | X52: 0.560375 | Y52: 0 | Z52: 0
A53: 97 | B53: =LOOKUP(A53,'DOE - FIPStoPayeeCodeConvTable'!$A$3:$A$213,'DOE - FIPStoPayeeCodeConvTable'!$B$3:$B$213) -> King And Queen Co | S53: 0 | U53: 0 | V53: 0 | W53: =LOOKUP(A53,'DOE - FIPStoPayeeCodeConvTable'!$A$3:$A$213,'DOE - FIPStoPayeeCodeConvTable'!$E$3:$E$213) -> 0.3144 | X53: 0.393 | Y53: 0 | Z53: 0
A54: 99 | B54: =LOOKUP(A54,'DOE - FIPStoPayeeCodeConvTable'!$A$3:$A$213,'DOE - FIPStoPayeeCodeConvTable'!$B$3:$B$213) -> King George Co | S54: 0 | U54: 0 | V54: 0 | W54: =LOOKUP(A54,'DOE - FIPStoPayeeCodeConvTable'!$A$3:$A$213,'DOE - FIPStoPayeeCodeConvTable'!$E$3:$E$213) -> 0.3627 | X54: 0.453375 | Y54: 0 | Z54: 0
A55: 101 | B55: =LOOKUP(A55,'DOE - FIPStoPayeeCodeConvTable'!$A$3:$A$213,'DOE - FIPStoPayeeCodeConvTable'!$B$3:$B$213) -> King William Co | S55: 0 | U55: 0 | V55: 0 | W55: =LOOKUP(A55,'DOE - FIPStoPayeeCodeConvTable'!$A$3:$A$213,'DOE - FIPStoPayeeCodeConvTable'!$E$3:$E$213) -> 0.3853 | X55: 0.481625 | Y55: 0 | Z55: 0
A56: 103 | B56: =LOOKUP(A56,'DOE - FIPStoPayeeCodeConvTable'!$A$3:$A$213,'DOE - FIPStoPayeeCodeConvTable'!$B$3:$B$213) -> Lancaster Co | S56: 0 | U56: 0 | V56: 0 | W56: =LOOKUP(A56,'DOE - FIPStoPayeeCodeConvTable'!$A$3:$A$213,'DOE - FIPStoPayeeCodeConvTable'!$E$3:$E$213) -> 0.4391 | X56: 0.548875 | Y56: 0 | Z56: 0
A57: 105 | B57: =LOOKUP(A57,'DOE - FIPStoPayeeCodeConvTable'!$A$3:$A$213,'DOE - FIPStoPayeeCodeConvTable'!$B$3:$B$213) -> Lee Co | S57: 0 | U57: 0 | V57: 0 | W57: =LOOKUP(A57,'DOE - FIPStoPayeeCodeConvTable'!$A$3:$A$213,'DOE - FIPStoPayeeCodeConvTable'!$E$3:$E$213) -> 0.2245 | X57: 0.280625 | Y57: 0 | Z57: 0
A58: 107 | B58: =LOOKUP(A58,'DOE - FIPStoPayeeCodeConvTable'!$A$3:$A$213,'DOE - FIPStoPayeeCodeConvTable'!$B$3:$B$213) -> Loudoun Co | S58: 0 | U58: 0 | V58: 0 | W58: =LOOKUP(A58,'DOE - FIPStoPayeeCodeConvTable'!$A$3:$A$213,'DOE - FIPStoPayeeCodeConvTable'!$E$3:$E$213) -> 0.4764 | X58: 0.5955 | Y58: 0 | Z58: 0
A59: 109 | B59: =LOOKUP(A59,'DOE - FIPStoPayeeCodeConvTable'!$A$3:$A$213,'DOE - FIPStoPayeeCodeConvTable'!$B$3:$B$213) -> Louisa Co | S59: 0 | U59: 0 | V59: 0 | W59: =LOOKUP(A59,'DOE - FIPStoPayeeCodeConvTable'!$A$3:$A$213,'DOE - FIPStoPayeeCodeConvTable'!$E$3:$E$213) -> 0.4401 | X59: 0.550125 | Y59: 0 | Z59: 0
A60: 111 | B60: =LOOKUP(A60,'DOE - FIPStoPayeeCodeConvTable'!$A$3:$A$213,'DOE - FIPStoPayeeCodeConvTable'!$B$3:$B$213) -> Lunenburg Co | S60: 0 | U60: 0 | V60: 0 | W60: =LOOKUP(A60,'DOE - FIPStoPayeeCodeConvTable'!$A$3:$A$213,'DOE - FIPStoPayeeCodeConvTable'!$E$3:$E$213) -> 0.1698 | X60: 0.21225 | Y60: 0 | Z60: 0
A61: 113 | B61: =LOOKUP(A61,'DOE - FIPStoPayeeCodeConvTable'!$A$3:$A$213,'DOE - FIPStoPayeeCodeConvTable'!$B$3:$B$213) -> Madison Co | S61: 0 | U61: 0 | V61: 0 | W61: =LOOKUP(A61,'DOE - FIPStoPayeeCodeConvTable'!$A$3:$A$213,'DOE - FIPStoPayeeCodeConvTable'!$E$3:$E$213) -> 0.3355 | X61: 0.419375 | Y61: 0 | Z61: 0
A62: 115 | B62: =LOOKUP(A62,'DOE - FIPStoPayeeCodeConvTable'!$A$3:$A$213,'DOE - FIPStoPayeeCodeConvTable'!$B$3:$B$213) -> Mathews Co | S62: 0 | U62: 0 | V62: 0 | W62: =LOOKUP(A62,'DOE - FIPStoPayeeCodeConvTable'!$A$3:$A$213,'DOE - FIPStoPayeeCodeConvTable'!$E$3:$E$213) -> 0.4271 | X62: 0.533875 | Y62: 0 | Z62: 0
A63: 117 | B63: =LOOKUP(A63,'DOE - FIPStoPayeeCodeConvTable'!$A$3:$A$213,'DOE - FIPStoPayeeCodeConvTable'!$B$3:$B$213) -> Mecklenburg Co | S63: 0 | U63: 0 | V63: 0 | W63: =LOOKUP(A63,'DOE - FIPStoPayeeCodeConvTable'!$A$3:$A$213,'DOE - FIPStoPayeeCodeConvTable'!$E$3:$E$213) -> 0.2286 | X63: 0.28575 | Y63: 0 | Z63: 0
A64: 119 | B64: =LOOKUP(A64,'DOE - FIPStoPayeeCodeConvTable'!$A$3:$A$213,'DOE - FIPStoPayeeCodeConvTable'!$B$3:$B$213) -> Middlesex Co | S64: 0 | U64: 0 | V64: 0 | W64: =LOOKUP(A64,'DOE - FIPStoPayeeCodeConvTable'!$A$3:$A$213,'DOE - FIPStoPayeeCodeConvTable'!$E$3:$E$213) -> 0.4333 | X64: 0.541625 | Y64: 0 | Z64: 0
A65: 121 | B65: =LOOKUP(A65,'DOE - FIPStoPayeeCodeConvTable'!$A$3:$A$213,'DOE - FIPStoPayeeCodeConvTable'!$B$3:$B$213) -> Montgomery Co | S65: 0 | U65: 0 | V65: 0 | W65: =LOOKUP(A65,'DOE - FIPStoPayeeCodeConvTable'!$A$3:$A$213,'DOE - FIPStoPayeeCodeConvTable'!$E$3:$E$213) -> 0.2834 | X65: 0.35425 | Y65: 0 | Z65: 0
A66: 125 | B66: =LOOKUP(A66,'DOE - FIPStoPayeeCodeConvTable'!$A$3:$A$213,'DOE - FIPStoPayeeCodeConvTable'!$B$3:$B$213) -> Nelson Co | S66: 0 | U66: 0 | V66: 0 | W66: =LOOKUP(A66,'DOE - FIPStoPayeeCodeConvTable'!$A$3:$A$213,'DOE - FIPStoPayeeCodeConvTable'!$E$3:$E$213) -> 0.3132 | X66: 0.3915 | Y66: 0 | Z66: 0
A67: 127 | B67: =LOOKUP(A67,'DOE - FIPStoPayeeCodeConvTable'!$A$3:$A$213,'DOE - FIPStoPayeeCodeConvTable'!$B$3:$B$213) -> New Kent Co | S67: 0 | U67: 0 | V67: 0 | W67: =LOOKUP(A67,'DOE - FIPStoPayeeCodeConvTable'!$A$3:$A$213,'DOE - FIPStoPayeeCodeConvTable'!$E$3:$E$213) -> 0.4329 | X67: 0.541125 | Y67: 0 | Z67: 0
A68: 131 | B68: =LOOKUP(A68,'DOE - FIPStoPayeeCodeConvTable'!$A$3:$A$213,'DOE - FIPStoPayeeCodeConvTable'!$B$3:$B$213) -> Northampton Co | S68: 0 | U68: 0 | V68: 0 | W68: =LOOKUP(A68,'DOE - FIPStoPayeeCodeConvTable'!$A$3:$A$213,'DOE - FIPStoPayeeCodeConvTable'!$E$3:$E$213) -> 0.1971 | X68: 0.246375 | Y68: 0 | Z68: 0
A69: 133 | B69: =LOOKUP(A69,'DOE - FIPStoPayeeCodeConvTable'!$A$3:$A$213,'DOE - FIPStoPayeeCodeConvTable'!$B$3:$B$213) -> Northumberland Co | S69: =SUM(C69:R69) -> 0 | U69: 0 | V69: 0 | W69: =LOOKUP(A69,'DOE - FIPStoPayeeCodeConvTable'!$A$3:$A$213,'DOE - FIPStoPayeeCodeConvTable'!$E$3:$E$213) -> 0.3304 | X69: 0.413 | Y69: 0 | Z69: 0
A70: 135 | B70: =LOOKUP(A70,'DOE - FIPStoPayeeCodeConvTable'!$A$3:$A$213,'DOE - FIPStoPayeeCodeConvTable'!$B$3:$B$213) -> Nottoway Co | S70: 0 | U70: =ROUND($U$1*S70,2) -> 0 | V70: =SUM(S70)-SUM(U70) -> 0 | W70: =LOOKUP(A70,'DOE - FIPStoPayeeCodeConvTable'!$A$3:$A$213,'DOE - FIPStoPayeeCodeConvTable'!$E$3:$E$213) -> 0.2686 | X70: 0.33575 | Y70: 0 | Z70: 0
A71: 137 | B71: =LOOKUP(A71,'DOE - FIPStoPayeeCodeConvTable'!$A$3:$A$213,'DOE - FIPStoPayeeCodeConvTable'!$B$3:$B$213) -> Orange Co | S71: 0 | U71: 0 | V71: 0 | W71: =LOOKUP(A71,'DOE - FIPStoPayeeCodeConvTable'!$A$3:$A$213,'DOE - FIPStoPayeeCodeConvTable'!$E$3:$E$213) -> 0.4083 | X71: =$X$1*W71 -> 0.510375 | Y71: =ROUND(X71*V71,2) -> 0 | Z71: =SUM(V71)-SUM(Y71) -> 0
A72: 139 | B72: =LOOKUP(A72,'DOE - FIPStoPayeeCodeConvTable'!$A$3:$A$213,'DOE - FIPStoPayeeCodeConvTable'!$B$3:$B$213) -> Page Co | S72: 0 | U72: 0 | V72: 0 | W72: =LOOKUP(A72,'DOE - FIPStoPayeeCodeConvTable'!$A$3:$A$213,'DOE - FIPStoPayeeCodeConvTable'!$E$3:$E$213) -> 0.2865 | X72: 0.358125 | Y72: 0 | Z72: 0
A73: 141 | B73: =LOOKUP(A73,'DOE - FIPStoPayeeCodeConvTable'!$A$3:$A$213,'DOE - FIPStoPayeeCodeConvTable'!$B$3:$B$213) -> Patrick Co | S73: 0 | U73: 0 | V73: 0 | W73: =LOOKUP(A73,'DOE - FIPStoPayeeCodeConvTable'!$A$3:$A$213,'DOE - FIPStoPayeeCodeConvTable'!$E$3:$E$213) -> 0.2539 | X73: 0.317375 | Y73: 0 | Z73: 0
A74: 143 | B74: =LOOKUP(A74,'DOE - FIPStoPayeeCodeConvTable'!$A$3:$A$213,'DOE - FIPStoPayeeCodeConvTable'!$B$3:$B$213) -> Pittsylvania Co | S74: 0 | U74: 0 | V74: 0 | W74: =LOOKUP(A74,'DOE - FIPStoPayeeCodeConvTable'!$A$3:$A$213,'DOE - FIPStoPayeeCodeConvTable'!$E$3:$E$213) -> 0.2355 | X74: 0.294375 | Y74: 0 | Z74: 0
A75: 145 | B75: =LOOKUP(A75,'DOE - FIPStoPayeeCodeConvTable'!$A$3:$A$213,'DOE - FIPStoPayeeCodeConvTable'!$B$3:$B$213) -> Powhatan Co | S75: 0 | U75: 0 | V75: 0 | W75: =LOOKUP(A75,'DOE - FIPStoPayeeCodeConvTable'!$A$3:$A$213,'DOE - FIPStoPayeeCodeConvTable'!$E$3:$E$213) -> 0.4342 | X75: 0.54275 | Y75: 0 | Z75: 0
A76: 147 | B76: =LOOKUP(A76,'DOE - FIPStoPayeeCodeConvTable'!$A$3:$A$213,'DOE - FIPStoPayeeCodeConvTable'!$B$3:$B$213) -> Prince Edward Co | S76: 0 | U76: 0 | V76: 0 | W76: =LOOKUP(A76,'DOE - FIPStoPayeeCodeConvTable'!$A$3:$A$213,'DOE - FIPStoPayeeCodeConvTable'!$E$3:$E$213) -> 0.2232 | X76: 0.279 | Y76: 0 | Z76: 0
A77: 149 | B77: =LOOKUP(A77,'DOE - FIPStoPayeeCodeConvTable'!$A$3:$A$213,'DOE - FIPStoPayeeCodeConvTable'!$B$3:$B$213) -> Prince George Co | S77: 0 | U77: 0 | V77: 0 | W77: =LOOKUP(A77,'DOE - FIPStoPayeeCodeConvTable'!$A$3:$A$213,'DOE - FIPStoPayeeCodeConvTable'!$E$3:$E$213) -> 0.3716 | X77: 0.4645 | Y77: 0 | Z77: 0
A78: 153 | B78: =LOOKUP(A78,'DOE - FIPStoPayeeCodeConvTable'!$A$3:$A$213,'DOE - FIPStoPayeeCodeConvTable'!$B$3:$B$213) -> Prince William Co | S78: 0 | U78: 0 | V78: 0 | W78: =LOOKUP(A78,'DOE - FIPStoPayeeCodeConvTable'!$A$3:$A$213,'DOE - FIPStoPayeeCodeConvTable'!$E$3:$E$213) -> 0.3414 | X78: 0.42675 | Y78: 0 | Z78: 0
A79: 155 | B79: =LOOKUP(A79,'DOE - FIPStoPayeeCodeConvTable'!$A$3:$A$213,'DOE - FIPStoPayeeCodeConvTable'!$B$3:$B$213) -> Pulaski Co | S79: 0 | U79: 0 | V79: 0 | W79: =LOOKUP(A79,'DOE - FIPStoPayeeCodeConvTable'!$A$3:$A$213,'DOE - FIPStoPayeeCodeConvTable'!$E$3:$E$213) -> 0.2923 | X79: 0.365375 | Y79: 0 | Z79: 0
A80: 157 | B80: =LOOKUP(A80,'DOE - FIPStoPayeeCodeConvTable'!$A$3:$A$213,'DOE - FIPStoPayeeCodeConvTable'!$B$3:$B$213) -> Rappahannock Co | S80: 0 | U80: 0 | V80: 0 | W80: =LOOKUP(A80,'DOE - FIPStoPayeeCodeConvTable'!$A$3:$A$213,'DOE - FIPStoPayeeCodeConvTable'!$E$3:$E$213) -> 0.4199 | X80: 0.524875 | Y80: 0 | Z80: 0
A81: 159 | B81: =LOOKUP(A81,'DOE - FIPStoPayeeCodeConvTable'!$A$3:$A$213,'DOE - FIPStoPayeeCodeConvTable'!$B$3:$B$213) -> Richmond Co | S81: 0 | U81: 0 | V81: 0 | W81: =LOOKUP(A81,'DOE - FIPStoPayeeCodeConvTable'!$A$3:$A$213,'DOE - FIPStoPayeeCodeConvTable'!$E$3:$E$213) -> 0.3227 | X81: 0.403375 | Y81: 0 | Z81: 0
A82: 161 | B82: =LOOKUP(A82,'DOE - FIPStoPayeeCodeConvTable'!$A$3:$A$213,'DOE - FIPStoPayeeCodeConvTable'!$B$3:$B$213) -> Roanoke Co | S82: 0 | U82: 0 | V82: 0 | W82: =LOOKUP(A82,'DOE - FIPStoPayeeCodeConvTable'!$A$3:$A$213,'DOE - FIPStoPayeeCodeConvTable'!$E$3:$E$213) -> 0.4397 | X82: 0.549625 | Y82: 0 | Z82: 0
A83: 163 | B83: =LOOKUP(A83,'DOE - FIPStoPayeeCodeConvTable'!$A$3:$A$213,'DOE - FIPStoPayeeCodeConvTable'!$B$3:$B$213) -> Rockbridge Co | S83: 0 | U83: 0 | V83: 0 | W83: =LOOKUP(A83,'DOE - FIPStoPayeeCodeConvTable'!$A$3:$A$213,'DOE - FIPStoPayeeCodeConvTable'!$E$3:$E$213) -> 0.2336 | X83: 0.292 | Y83: 0 | Z83: 0
A84: 165 | B84: =LOOKUP(A84,'DOE - FIPStoPayeeCodeConvTable'!$A$3:$A$213,'DOE - FIPStoPayeeCodeConvTable'!$B$3:$B$213) -> Rockingham Co | S84: 0 | U84: 0 | V84: 0 | W84: =LOOKUP(A84,'DOE - FIPStoPayeeCodeConvTable'!$A$3:$A$213,'DOE - FIPStoPayeeCodeConvTable'!$E$3:$E$213) -> 0.3445 | X84: 0.430625 | Y84: 0 | Z84: 0
A85: 167 | B85: =LOOKUP(A85,'DOE - FIPStoPayeeCodeConvTable'!$A$3:$A$213,'DOE - FIPStoPayeeCodeConvTable'!$B$3:$B$213) -> Russell Co | S85: 0 | U85: 0 | V85: 0 | W85: =LOOKUP(A85,'DOE - FIPStoPayeeCodeConvTable'!$A$3:$A$213,'DOE - FIPStoPayeeCodeConvTable'!$E$3:$E$213) -> 0.1894 | X85: 0.23675 | Y85: 0 | Z85: 0
A86: 169 | B86: =LOOKUP(A86,'DOE - FIPStoPayeeCodeConvTable'!$A$3:$A$213,'DOE - FIPStoPayeeCodeConvTable'!$B$3:$B$213) -> Scott Co | S86: 0 | U86: 0 | V86: 0 | W86: =LOOKUP(A86,'DOE - FIPStoPayeeCodeConvTable'!$A$3:$A$213,'DOE - FIPStoPayeeCodeConvTable'!$E$3:$E$213) -> 0.3154 | X86: 0.39425 | Y86: 0 | Z86: 0
A87: 171 | B87: =LOOKUP(A87,'DOE - FIPStoPayeeCodeConvTable'!$A$3:$A$213,'DOE - FIPStoPayeeCodeConvTable'!$B$3:$B$213) -> Shenandoah Co | S87: 0 | U87: 0 | V87: 0 | W87: =LOOKUP(A87,'DOE - FIPStoPayeeCodeConvTable'!$A$3:$A$213,'DOE - FIPStoPayeeCodeConvTable'!$E$3:$E$213) -> 0.3517 | X87: 0.439625 | Y87: 0 | Z87: 0
A88: 173 | B88: =LOOKUP(A88,'DOE - FIPStoPayeeCodeConvTable'!$A$3:$A$213,'DOE - FIPStoPayeeCodeConvTable'!$B$3:$B$213) -> Smyth Co | S88: 0 | U88: 0 | V88: 0 | W88: =LOOKUP(A88,'DOE - FIPStoPayeeCodeConvTable'!$A$3:$A$213,'DOE - FIPStoPayeeCodeConvTable'!$E$3:$E$213) -> 0.2337 | X88: 0.292125 | Y88: 0 | Z88: 0
A89: 175 | B89: =LOOKUP(A89,'DOE - FIPStoPayeeCodeConvTable'!$A$3:$A$213,'DOE - FIPStoPayeeCodeConvTable'!$B$3:$B$213) -> Southampton Co | S89: 0 | U89: 0 | V89: 0 | W89: =LOOKUP(A89,'DOE - FIPStoPayeeCodeConvTable'!$A$3:$A$213,'DOE - FIPStoPayeeCodeConvTable'!$E$3:$E$213) -> 0.323 | X89: 0.40375 | Y89: 0 | Z89: 0
A90: 177 | B90: =LOOKUP(A90,'DOE - FIPStoPayeeCodeConvTable'!$A$3:$A$213,'DOE - FIPStoPayeeCodeConvTable'!$B$3:$B$213) -> Spotsylvania Co | S90: 0 | U90: 0 | V90: 0 | W90: =LOOKUP(A90,'DOE - FIPStoPayeeCodeConvTable'!$A$3:$A$213,'DOE - FIPStoPayeeCodeConvTable'!$E$3:$E$213) -> 0.4588 | X90: 0.5735 | Y90: 0 | Z90: 0
A91: 179 | B91: =LOOKUP(A91,'DOE - FIPStoPayeeCodeConvTable'!$A$3:$A$213,'DOE - FIPStoPayeeCodeConvTable'!$B$3:$B$213) -> Stafford Co | S91: 0 | U91: 0 | V91: 0 | W91: =LOOKUP(A91,'DOE - FIPStoPayeeCodeConvTable'!$A$3:$A$213,'DOE - FIPStoPayeeCodeConvTable'!$E$3:$E$213) -> 0.4439 | X91: 0.554875 | Y91: 0 | Z91: 0
A92: 181 | B92: =LOOKUP(A92,'DOE - FIPStoPayeeCodeConvTable'!$A$3:$A$213,'DOE - FIPStoPayeeCodeConvTable'!$B$3:$B$213) -> Surry Co | S92: 0 | U92: 0 | V92: 0 | W92: =LOOKUP(A92,'DOE - FIPStoPayeeCodeConvTable'!$A$3:$A$213,'DOE - FIPStoPayeeCodeConvTable'!$E$3:$E$213) -> 0.3979 | X92: 0.497375 | Y92: 0 | Z92: 0
A93: 183 | B93: =LOOKUP(A93,'DOE - FIPStoPayeeCodeConvTable'!$A$3:$A$213,'DOE - FIPStoPayeeCodeConvTable'!$B$3:$B$213) -> Sussex Co | S93: 0 | U93: 0 | V93: 0 | W93: =LOOKUP(A93,'DOE - FIPStoPayeeCodeConvTable'!$A$3:$A$213,'DOE - FIPStoPayeeCodeConvTable'!$E$3:$E$213) -> 0.2387 | X93: 0.298375 | Y93: 0 | Z93: 0
A94: 185 | B94: =LOOKUP(A94,'DOE - FIPStoPayeeCodeConvTable'!$A$3:$A$213,'DOE - FIPStoPayeeCodeConvTable'!$B$3:$B$213) -> Tazewell Co | S94: 0 | U94: 0 | V94: 0 | W94: =LOOKUP(A94,'DOE - FIPStoPayeeCodeConvTable'!$A$3:$A$213,'DOE - FIPStoPayeeCodeConvTable'!$E$3:$E$213) -> 0.2455 | X94: 0.306875 | Y94: 0 | Z94: 0
A95: 187 | B95: =LOOKUP(A95,'DOE - FIPStoPayeeCodeConvTable'!$A$3:$A$213,'DOE - FIPStoPayeeCodeConvTable'!$B$3:$B$213) -> Warren Co | S95: 0 | U95: 0 | V95: 0 | W95: =LOOKUP(A95,'DOE - FIPStoPayeeCodeConvTable'!$A$3:$A$213,'DOE - FIPStoPayeeCodeConvTable'!$E$3:$E$213) -> 0.3853 | X95: 0.481625 | Y95: 0 | Z95: 0
A96: 191 | B96: =LOOKUP(A96,'DOE - FIPStoPayeeCodeConvTable'!$A$3:$A$213,'DOE - FIPStoPayeeCodeConvTable'!$B$3:$B$213) -> Washington Co | S96: 0 | U96: 0 | V96: 0 | W96: =LOOKUP(A96,'DOE - FIPStoPayeeCodeConvTable'!$A$3:$A$213,'DOE - FIPStoPayeeCodeConvTable'!$E$3:$E$213) -> 0.276 | X96: 0.345 | Y96: 0 | Z96: 0
A97: 193 | B97: =LOOKUP(A97,'DOE - FIPStoPayeeCodeConvTable'!$A$3:$A$213,'DOE - FIPStoPayeeCodeConvTable'!$B$3:$B$213) -> Westmoreland Co | S97: 0 | U97: 0 | V97: 0 | W97: =LOOKUP(A97,'DOE - FIPStoPayeeCodeConvTable'!$A$3:$A$213,'DOE - FIPStoPayeeCodeConvTable'!$E$3:$E$213) -> 0.3025 | X97: 0.378125 | Y97: 0 | Z97: 0
A98: 195 | B98: =LOOKUP(A98,'DOE - FIPStoPayeeCodeConvTable'!$A$3:$A$213,'DOE - FIPStoPayeeCodeConvTable'!$B$3:$B$213) -> Wise Co | S98: 0 | U98: 0 | V98: 0 | W98: =LOOKUP(A98,'DOE - FIPStoPayeeCodeConvTable'!$A$3:$A$213,'DOE - FIPStoPayeeCodeConvTable'!$E$3:$E$213) -> 0.2755 | X98: 0.344375 | Y98: 0 | Z98: 0
A99: 197 | B99: =LOOKUP(A99,'DOE - FIPStoPayeeCodeConvTable'!$A$3:$A$213,'DOE - FIPStoPayeeCodeConvTable'!$B$3:$B$213) -> Wythe Co | S99: 0 | U99: 0 | V99: 0 | W99: =LOOKUP(A99,'DOE - FIPStoPayeeCodeConvTable'!$A$3:$A$213,'DOE - FIPStoPayeeCodeConvTable'!$E$3:$E$213) -> 0.2708 | X99: 0.3385 | Y99: 0 | Z99: 0
A100: 199 | B100: =LOOKUP(A100,'DOE - FIPStoPayeeCodeConvTable'!$A$3:$A$213,'DOE - FIPStoPayeeCodeConvTable'!$B$3:$B$213) -> York Co | S100: 0 | U100: 0 | V100: 0 | W100: =LOOKUP(A100,'DOE - FIPStoPayeeCodeConvTable'!$A$3:$A$213,'DOE - FIPStoPayeeCodeConvTable'!$E$3:$E$213) -> 0.3888 | X100: 0.486 | Y100: 0 | Z100: 0
A101: 510 | B101: =LOOKUP(A101,'DOE - FIPStoPayeeCodeConvTable'!$A$3:$A$213,'DOE - FIPStoPayeeCodeConvTable'!$B$3:$B$213) -> Alexandria City | S101: =SUM(C101:R101) -> 0 | U101: 0 | V101: 0 | W101: =LOOKUP(A101,'DOE - FIPStoPayeeCodeConvTable'!$A$3:$A$213,'DOE - FIPStoPayeeCodeConvTable'!$E$3:$E$213) -> 0.5309 | X101: 0.663625 | Y101: 0 | Z101: 0
A102: 520 | B102: =LOOKUP(A102,'DOE - FIPStoPayeeCodeConvTable'!$A$3:$A$213,'DOE - FIPStoPayeeCodeConvTable'!$B$3:$B$213) -> Bristol City | S102: 0 | U102: =ROUND($U$1*S102,2) -> 0 | V102: =SUM(S102)-SUM(U102) -> 0 | W102: =LOOKUP(A102,'DOE - FIPStoPayeeCodeConvTable'!$A$3:$A$213,'DOE - FIPStoPayeeCodeConvTable'!$E$3:$E$213) -> 0.2547 | X102: 0.318375 | Y102: 0 | Z102: 0
A103: 530 | B103: =LOOKUP(A103,'DOE - FIPStoPayeeCodeConvTable'!$A$3:$A$213,'DOE - FIPStoPayeeCodeConvTable'!$B$3:$B$213) -> Buena Vista City | S103: 0 | U103: 0 | V103: 0 | W103: =LOOKUP(A103,'DOE - FIPStoPayeeCodeConvTable'!$A$3:$A$213,'DOE - FIPStoPayeeCodeConvTable'!$E$3:$E$213) -> 0.2329 | X103: 0.291125 | Y103: 0 | Z103: 0
A104: 540 | B104: =LOOKUP(A104,'DOE - FIPStoPayeeCodeConvTable'!$A$3:$A$213,'DOE - FIPStoPayeeCodeConvTable'!$B$3:$B$213) -> Charlottesville City | S104: 0 | U104: 0 | V104: 0 | W104: =LOOKUP(A104,'DOE - FIPStoPayeeCodeConvTable'!$A$3:$A$213,'DOE - FIPStoPayeeCodeConvTable'!$E$3:$E$213) -> 0.3068 | X104: 0.3835 | Y104: 0 | Z104: 0
A105: 550 | B105: =LOOKUP(A105,'DOE - FIPStoPayeeCodeConvTable'!$A$3:$A$213,'DOE - FIPStoPayeeCodeConvTable'!$B$3:$B$213) -> Chesapeake City | S105: 0 | U105: 0 | V105: 0 | W105: =LOOKUP(A105,'DOE - FIPStoPayeeCodeConvTable'!$A$3:$A$213,'DOE - FIPStoPayeeCodeConvTable'!$E$3:$E$213) -> 0.3715 | X105: 0.464375 | Y105: 0 | Z105: 0
A106: 570 | B106: =LOOKUP(A106,'DOE - FIPStoPayeeCodeConvTable'!$A$3:$A$213,'DOE - FIPStoPayeeCodeConvTable'!$B$3:$B$213) -> Colonial Heights City | S106: 0 | U106: 0 | V106: 0 | W106: =LOOKUP(A106,'DOE - FIPStoPayeeCodeConvTable'!$A$3:$A$213,'DOE - FIPStoPayeeCodeConvTable'!$E$3:$E$213) -> 0.4027 | X106: 0.503375 | Y106: 0 | Z106: 0
A107: 580 | B107: =LOOKUP(A107,'DOE - FIPStoPayeeCodeConvTable'!$A$3:$A$213,'DOE - FIPStoPayeeCodeConvTable'!$B$3:$B$213) -> Covington City | S107: 0 | U107: 0 | V107: 0 | W107: =LOOKUP(A107,'DOE - FIPStoPayeeCodeConvTable'!$A$3:$A$213,'DOE - FIPStoPayeeCodeConvTable'!$E$3:$E$213) -> 0.2496 | X107: 0.312 | Y107: 0 | Z107: 0
A108: 590 | B108: =LOOKUP(A108,'DOE - FIPStoPayeeCodeConvTable'!$A$3:$A$213,'DOE - FIPStoPayeeCodeConvTable'!$B$3:$B$213) -> Danville City | S108: 0 | U108: 0 | V108: 0 | W108: =LOOKUP(A108,'DOE - FIPStoPayeeCodeConvTable'!$A$3:$A$213,'DOE - FIPStoPayeeCodeConvTable'!$E$3:$E$213) -> 0.2223 | X108: 0.277875 | Y108: 0 | Z108: 0
A109: 620 | B109: =LOOKUP(A109,'DOE - FIPStoPayeeCodeConvTable'!$A$3:$A$213,'DOE - FIPStoPayeeCodeConvTable'!$B$3:$B$213) -> Franklin City | S109: 0 | U109: 0 | V109: 0 | W109: =LOOKUP(A109,'DOE - FIPStoPayeeCodeConvTable'!$A$3:$A$213,'DOE - FIPStoPayeeCodeConvTable'!$E$3:$E$213) -> 0.371 | X109: 0.46375 | Y109: 0 | Z109: 0
A110: 630 | B110: =LOOKUP(A110,'DOE - FIPStoPayeeCodeConvTable'!$A$3:$A$213,'DOE - FIPStoPayeeCodeConvTable'!$B$3:$B$213) -> Fredericksburg City | S110: 0 | U110: 0 | V110: 0 | W110: =LOOKUP(A110,'DOE - FIPStoPayeeCodeConvTable'!$A$3:$A$213,'DOE - FIPStoPayeeCodeConvTable'!$E$3:$E$213) -> 0.3441 | X110: 0.430125 | Y110: 0 | Z110: 0
A111: 640 | B111: =LOOKUP(A111,'DOE - FIPStoPayeeCodeConvTable'!$A$3:$A$213,'DOE - FIPStoPayeeCodeConvTable'!$B$3:$B$213) -> Galax City | S111: 0 | U111: 0 | V111: 0 | W111: =LOOKUP(A111,'DOE - FIPStoPayeeCodeConvTable'!$A$3:$A$213,'DOE - FIPStoPayeeCodeConvTable'!$E$3:$E$213) -> 0.3146 | X111: 0.39325 | Y111: 0 | Z111: 0
A112: 650 | B112: =LOOKUP(A112,'DOE - FIPStoPayeeCodeConvTable'!$A$3:$A$213,'DOE - FIPStoPayeeCodeConvTable'!$B$3:$B$213) -> Hampton City | S112: 0 | U112: 0 | V112: 0 | W112: =LOOKUP(A112,'DOE - FIPStoPayeeCodeConvTable'!$A$3:$A$213,'DOE - FIPStoPayeeCodeConvTable'!$E$3:$E$213) -> 0.3223 | X112: 0.402875 | Y112: 0 | Z112: 0
A113: 660 | B113: =LOOKUP(A113,'DOE - FIPStoPayeeCodeConvTable'!$A$3:$A$213,'DOE - FIPStoPayeeCodeConvTable'!$B$3:$B$213) -> Harrisonburg City | S113: 0 | U113: 0 | V113: 0 | W113: =LOOKUP(A113,'DOE - FIPStoPayeeCodeConvTable'!$A$3:$A$213,'DOE - FIPStoPayeeCodeConvTable'!$E$3:$E$213) -> 0.3808 | X113: 0.476 | Y113: 0 | Z113: 0
A114: 670 | B114: =LOOKUP(A114,'DOE - FIPStoPayeeCodeConvTable'!$A$3:$A$213,'DOE - FIPStoPayeeCodeConvTable'!$B$3:$B$213) -> Hopewell City | S114: 0 | U114: 0 | V114: 0 | W114: =LOOKUP(A114,'DOE - FIPStoPayeeCodeConvTable'!$A$3:$A$213,'DOE - FIPStoPayeeCodeConvTable'!$E$3:$E$213) -> 0.2667 | X114: 0.333375 | Y114: 0 | Z114: 0
A115: 678 | B115: =LOOKUP(A115,'DOE - FIPStoPayeeCodeConvTable'!$A$3:$A$213,'DOE - FIPStoPayeeCodeConvTable'!$B$3:$B$213) -> Lexington City | S115: 0 | U115: 0 | V115: 0 | W115: =LOOKUP(A115,'DOE - FIPStoPayeeCodeConvTable'!$A$3:$A$213,'DOE - FIPStoPayeeCodeConvTable'!$E$3:$E$213) -> 0.3302 | X115: 0.41275 | Y115: 0 | Z115: 0
A116: 680 | B116: =LOOKUP(A116,'DOE - FIPStoPayeeCodeConvTable'!$A$3:$A$213,'DOE - FIPStoPayeeCodeConvTable'!$B$3:$B$213) -> Lynchburg City | S116: 0 | U116: 0 | V116: 0 | W116: =LOOKUP(A116,'DOE - FIPStoPayeeCodeConvTable'!$A$3:$A$213,'DOE - FIPStoPayeeCodeConvTable'!$E$3:$E$213) -> 0.2736 | X116: 0.342 | Y116: 0 | Z116: 0
A117: 683 | B117: =LOOKUP(A117,'DOE - FIPStoPayeeCodeConvTable'!$A$3:$A$213,'DOE - FIPStoPayeeCodeConvTable'!$B$3:$B$213) -> Manassas City | S117: 0 | U117: 0 | V117: 0 | W117: =LOOKUP(A117,'DOE - FIPStoPayeeCodeConvTable'!$A$3:$A$213,'DOE - FIPStoPayeeCodeConvTable'!$E$3:$E$213) -> 0.4168 | X117: 0.521 | Y117: 0 | Z117: 0
A118: 685 | B118: =LOOKUP(A118,'DOE - FIPStoPayeeCodeConvTable'!$A$3:$A$213,'DOE - FIPStoPayeeCodeConvTable'!$B$3:$B$213) -> Manassas Park City | S118: 0 | U118: 0 | V118: 0 | W118: =LOOKUP(A118,'DOE - FIPStoPayeeCodeConvTable'!$A$3:$A$213,'DOE - FIPStoPayeeCodeConvTable'!$E$3:$E$213) -> 0.4273 | X118: 0.534125 | Y118: 0 | Z118: 0
A119: 690 | B119: =LOOKUP(A119,'DOE - FIPStoPayeeCodeConvTable'!$A$3:$A$213,'DOE - FIPStoPayeeCodeConvTable'!$B$3:$B$213) -> Martinsville City | S119: 0 | U119: 0 | V119: 0 | W119: =LOOKUP(A119,'DOE - FIPStoPayeeCodeConvTable'!$A$3:$A$213,'DOE - FIPStoPayeeCodeConvTable'!$E$3:$E$213) -> 0.3321 | X119: 0.415125 | Y119: 0 | Z119: 0
A120: 700 | B120: =LOOKUP(A120,'DOE - FIPStoPayeeCodeConvTable'!$A$3:$A$213,'DOE - FIPStoPayeeCodeConvTable'!$B$3:$B$213) -> Newport News City | S120: 0 | U120: 0 | V120: 0 | W120: =LOOKUP(A120,'DOE - FIPStoPayeeCodeConvTable'!$A$3:$A$213,'DOE - FIPStoPayeeCodeConvTable'!$E$3:$E$213) -> 0.2773 | X120: 0.346625 | Y120: 0 | Z120: 0
A121: 710 | B121: =LOOKUP(A121,'DOE - FIPStoPayeeCodeConvTable'!$A$3:$A$213,'DOE - FIPStoPayeeCodeConvTable'!$B$3:$B$213) -> Norfolk City | S121: 0 | U121: 0 | V121: 0 | W121: =LOOKUP(A121,'DOE - FIPStoPayeeCodeConvTable'!$A$3:$A$213,'DOE - FIPStoPayeeCodeConvTable'!$E$3:$E$213) -> 0.2455 | X121: 0.306875 | Y121: 0 | Z121: 0
A122: 720 | B122: =LOOKUP(A122,'DOE - FIPStoPayeeCodeConvTable'!$A$3:$A$213,'DOE - FIPStoPayeeCodeConvTable'!$B$3:$B$213) -> Norton City | S122: 0 | U122: 0 | V122: 0 | W122: =LOOKUP(A122,'DOE - FIPStoPayeeCodeConvTable'!$A$3:$A$213,'DOE - FIPStoPayeeCodeConvTable'!$E$3:$E$213) -> 0.3254 | X122: 0.40675 | Y122: 0 | Z122: 0
A123: 730 | B123: =LOOKUP(A123,'DOE - FIPStoPayeeCodeConvTable'!$A$3:$A$213,'DOE - FIPStoPayeeCodeConvTable'!$B$3:$B$213) -> Petersburg City | S123: 0 | U123: 0 | V123: 0 | W123: =LOOKUP(A123,'DOE - FIPStoPayeeCodeConvTable'!$A$3:$A$213,'DOE - FIPStoPayeeCodeConvTable'!$E$3:$E$213) -> 0.3535 | X123: 0.441875 | Y123: 0 | Z123: 0
A124: 735 | B124: =LOOKUP(A124,'DOE - FIPStoPayeeCodeConvTable'!$A$3:$A$213,'DOE - FIPStoPayeeCodeConvTable'!$B$3:$B$213) -> Poquoson City | S124: 0 | U124: 0 | V124: 0 | W124: =LOOKUP(A124,'DOE - FIPStoPayeeCodeConvTable'!$A$3:$A$213,'DOE - FIPStoPayeeCodeConvTable'!$E$3:$E$213) -> 0.2787 | X124: 0.348375 | Y124: 0 | Z124: 0
A125: 740 | B125: =LOOKUP(A125,'DOE - FIPStoPayeeCodeConvTable'!$A$3:$A$213,'DOE - FIPStoPayeeCodeConvTable'!$B$3:$B$213) -> Portsmouth City | S125: 0 | U125: 0 | V125: 0 | W125: =LOOKUP(A125,'DOE - FIPStoPayeeCodeConvTable'!$A$3:$A$213,'DOE - FIPStoPayeeCodeConvTable'!$E$3:$E$213) -> 0.2605 | X125: 0.325625 | Y125: 0 | Z125: 0
A126: 750 | B126: =LOOKUP(A126,'DOE - FIPStoPayeeCodeConvTable'!$A$3:$A$213,'DOE - FIPStoPayeeCodeConvTable'!$B$3:$B$213) -> Radford City | S126: 0 | U126: 0 | V126: 0 | W126: =LOOKUP(A126,'DOE - FIPStoPayeeCodeConvTable'!$A$3:$A$213,'DOE - FIPStoPayeeCodeConvTable'!$E$3:$E$213) -> 0.2035 | X126: 0.254375 | Y126: 0 | Z126: 0
A127: 760 | B127: =LOOKUP(A127,'DOE - FIPStoPayeeCodeConvTable'!$A$3:$A$213,'DOE - FIPStoPayeeCodeConvTable'!$B$3:$B$213) -> Richmond City | S127: 0 | U127: 0 | V127: 0 | W127: =LOOKUP(A127,'DOE - FIPStoPayeeCodeConvTable'!$A$3:$A$213,'DOE - FIPStoPayeeCodeConvTable'!$E$3:$E$213) -> 0.3691 | X127: 0.461375 | Y127: 0 | Z127: 0
A128: 770 | B128: =LOOKUP(A128,'DOE - FIPStoPayeeCodeConvTable'!$A$3:$A$213,'DOE - FIPStoPayeeCodeConvTable'!$B$3:$B$213) -> Roanoke City | S128: 0 | U128: 0 | V128: 0 | W128: =LOOKUP(A128,'DOE - FIPStoPayeeCodeConvTable'!$A$3:$A$213,'DOE - FIPStoPayeeCodeConvTable'!$E$3:$E$213) -> 0.3072 | X128: 0.384 | Y128: 0 | Z128: 0
A129: 775 | B129: =LOOKUP(A129,'DOE - FIPStoPayeeCodeConvTable'!$A$3:$A$213,'DOE - FIPStoPayeeCodeConvTable'!$B$3:$B$213) -> Salem City | S129: 0 | U129: 0 | V129: 0 | W129: =LOOKUP(A129,'DOE - FIPStoPayeeCodeConvTable'!$A$3:$A$213,'DOE - FIPStoPayeeCodeConvTable'!$E$3:$E$213) -> 0.3513 | X129: 0.439125 | Y129: 0 | Z129: 0
A130: 790 | B130: =LOOKUP(A130,'DOE - FIPStoPayeeCodeConvTable'!$A$3:$A$213,'DOE - FIPStoPayeeCodeConvTable'!$B$3:$B$213) -> Staunton City | S130: 0 | U130: 0 | V130: 0 | W130: =LOOKUP(A130,'DOE - FIPStoPayeeCodeConvTable'!$A$3:$A$213,'DOE - FIPStoPayeeCodeConvTable'!$E$3:$E$213) -> 0.2699 | X130: 0.337375 | Y130: 0 | Z130: 0
A131: 800 | B131: =LOOKUP(A131,'DOE - FIPStoPayeeCodeConvTable'!$A$3:$A$213,'DOE - FIPStoPayeeCodeConvTable'!$B$3:$B$213) -> Suffolk City | S131: 0 | U131: 0 | V131: 0 | W131: =LOOKUP(A131,'DOE - FIPStoPayeeCodeConvTable'!$A$3:$A$213,'DOE - FIPStoPayeeCodeConvTable'!$E$3:$E$213) -> 0.2432 | X131: 0.304 | Y131: 0 | Z131: 0
A132: 810 | B132: =LOOKUP(A132,'DOE - FIPStoPayeeCodeConvTable'!$A$3:$A$213,'DOE - FIPStoPayeeCodeConvTable'!$B$3:$B$213) -> Virginia Beach City | S132: 0 | U132: 0 | V132: 0 | W132: =LOOKUP(A132,'DOE - FIPStoPayeeCodeConvTable'!$A$3:$A$213,'DOE - FIPStoPayeeCodeConvTable'!$E$3:$E$213) -> 0.3569 | X132: 0.446125 | Y132: 0 | Z132: 0
A133: 820 | B133: =LOOKUP(A133,'DOE - FIPStoPayeeCodeConvTable'!$A$3:$A$213,'DOE - FIPStoPayeeCodeConvTable'!$B$3:$B$213) -> Waynesboro City | S133: =SUM(C133:R133) -> 0 | U133: 0 | V133: =SUM(S133)-SUM(U133) -> 0 | W133: =LOOKUP(A133,'DOE - FIPStoPayeeCodeConvTable'!$A$3:$A$213,'DOE - FIPStoPayeeCodeConvTable'!$E$3:$E$213) -> 0.3843 | X133: 0.480375 | Y133: 0 | Z133: 0
A134: 830 | B134: =LOOKUP(A134,'DOE - FIPStoPayeeCodeConvTable'!$A$3:$A$213,'DOE - FIPStoPayeeCodeConvTable'!$B$3:$B$213) -> Williamsburg City | S134: 0 | U134: 0 | V134: 0 | W134: =LOOKUP(A134,'DOE - FIPStoPayeeCodeConvTable'!$A$3:$A$213,'DOE - FIPStoPayeeCodeConvTable'!$E$3:$E$213) -> 0.4553 | X134: =$X$1*W134 -> 0.569125 | Y134: =ROUND(X134*V134,2) -> 0 | Z134: =SUM(V134)-SUM(Y134) -> 0
A135: 840 | B135: =LOOKUP(A135,'DOE - FIPStoPayeeCodeConvTable'!$A$3:$A$213,'DOE - FIPStoPayeeCodeConvTable'!$B$3:$B$213) -> Winchester City | S135: 0 | U135: 0 | V135: 0 | W135: =LOOKUP(A135,'DOE - FIPStoPayeeCodeConvTable'!$A$3:$A$213,'DOE - FIPStoPayeeCodeConvTable'!$E$3:$E$213) -> 0.4587 | X135: 0.573375 | Y135: 0 | Z135: 0

Sheet Regular (hidden)
A1: FY | B1: ='DOE - FIPStoPayeeCodeConvTable'!G1 -> 2022 | C1: MEDICAID ADJUSTMENTS--Regular PAYMENTS TO PROVIDERS | O1: ="Extended to be paided in this SFY = " & B1 -> Extended to be paided in this SFY = 2022 | T1: xx | U1: 0.5 | V1: 0.5 | W1: (POOL) | X1: 1.25
U2: FEDERAL | V2: STATE/ | W2: (RATE) | X2: Factor
A3: FIPS | S3: Grand | U3: MEDICAID | V3: LOCAL | W3: LOCAL | Y3: LOCAL | Z3: STATE
A4: CODE | B4: LOCALITY | C4: =TEXT("7/1/" & $B$1-1,"mmm-yyyy") -> Jul-2021 | D4: =TEXT("8/1/" & $B$1-1,"mmm-yyyy") -> Aug-2021 | E4: =TEXT("9/1/" & $B$1-1,"mmm-yyyy") -> Sep-2021 | F4: =TEXT("10/1/" & $B$1-1,"mmm-yyyy") -> Oct-2021 | G4: =TEXT("11/1/" & $B$1-1,"mmm-yyyy") -> Nov-2021 | H4: =TEXT("12/1/" & $B$1-1,"mmm-yyyy") -> Dec-2021 | I4: =TEXT("1/1/" & $B$1,"mmm-yyyy") -> Jan-2022 | J4: =TEXT("2/1/" & $B$1,"mmm-yyyy") -> Feb-2022 | K4: =TEXT("3/1/" & $B$1,"mmm-yyyy") -> Mar-2022 | L4: =TEXT("4/1/" & $B$1,"mmm-yyyy") -> Apr-2022 | M4: =TEXT("5/1/" & $B$1,"mmm-yyyy") -> May-2022 | N4: =TEXT("6/1/" & $B$1,"mmm-yyyy") -> Jun-2022 | O4: =TEXT("7/1/" & $B$1,"mmm-yyyy") -> Jul-2022 | P4: =TEXT("8/1/" & $B$1,"mmm-yyyy") -> Aug-2022 | Q4: =TEXT("9/1/" & $B$1,"mmm-yyyy") -> Sep-2022 | R4: =TEXT("10/1/" & $B$1,"mmm-yyyy") -> Oct-2022 | S4: Total | U4: RATE/Share | V4: SHARE | W4: MATCH Rate | Y4: MATCH | Z4: SHARE
A5: Totals | C5: =SUM(C6:C1201) -> 0 | D5: 0 | E5: =SUM(E6:E1201) -> 0 | F5: =SUM(F6:F1201) -> 0 | G5: =SUM(G6:G1201) -> 0 | H5: =SUM(H6:H1201) -> 0 | I5: 0 | J5: 0 | K5: =SUM(K6:K1200) -> 0 | L5: =SUM(L6:L1200) -> 0 | M5: =SUM(M6:M1200) -> 0 | N5: =SUM(N6:N1200) -> 0 | O5: 0 | P5: 0 | Q5: 0 | R5: 0 | S5: =SUM(C5:R5) -> 0 | T5: = | U5: =SUM(U6:U399) -> 0 | V5: =SUM(V6:V399) -> 0 | W5: = | Y5: =SUM(Y6:Y399) -> 0 | Z5: =SUM(Z6:Z399) -> 0
A6: 1 | B6: =LOOKUP(A6,'DOE - FIPStoPayeeCodeConvTable'!$A$3:$A$213,'DOE - FIPStoPayeeCodeConvTable'!$B$3:$B$213) -> Accomack Co | S6: 0 | U6: =ROUND($U$1*S6,2) -> 0 | V6: =SUM(S6)-SUM(U6) -> 0 | W6: =LOOKUP(A6,'DOE - FIPStoPayeeCodeConvTable'!$A$3:$A$213,'DOE - FIPStoPayeeCodeConvTable'!$E$3:$E$213) -> 0.2332 | X6: =$X$1*W6 -> 0.2915 | Y6: =ROUND(X6*V6,2) -> 0 | Z6: =SUM(V6)-SUM(Y6) -> 0
A7: 3 | B7: =LOOKUP(A7,'DOE - FIPStoPayeeCodeConvTable'!$A$3:$A$213,'DOE - FIPStoPayeeCodeConvTable'!$B$3:$B$213) -> Albemarle Co | S7: 0 | U7: 0 | V7: 0 | W7: =LOOKUP(A7,'DOE - FIPStoPayeeCodeConvTable'!$A$3:$A$213,'DOE - FIPStoPayeeCodeConvTable'!$E$3:$E$213) -> 0.4474 | X7: =$X$1*W7 -> 0.55925 | Y7: =ROUND(X7*V7,2) -> 0 | Z7: =SUM(V7)-SUM(Y7) -> 0
A8: 5 | B8: =LOOKUP(A8,'DOE - FIPStoPayeeCodeConvTable'!$A$3:$A$213,'DOE - FIPStoPayeeCodeConvTable'!$B$3:$B$213) -> Alleghany Co | S8: 0 | U8: 0 | V8: 0 | W8: =LOOKUP(A8,'DOE - FIPStoPayeeCodeConvTable'!$A$3:$A$213,'DOE - FIPStoPayeeCodeConvTable'!$E$3:$E$213) -> 0.1924 | X8: 0.2405 | Y8: 0 | Z8: 0
A9: 7 | B9: =LOOKUP(A9,'DOE - FIPStoPayeeCodeConvTable'!$A$3:$A$213,'DOE - FIPStoPayeeCodeConvTable'!$B$3:$B$213) -> Amelia Co | S9: 0 | U9: 0 | V9: 0 | W9: =LOOKUP(A9,'DOE - FIPStoPayeeCodeConvTable'!$A$3:$A$213,'DOE - FIPStoPayeeCodeConvTable'!$E$3:$E$213) -> 0.3268 | X9: 0.4085 | Y9: 0 | Z9: 0
A10: 9 | B10: =LOOKUP(A10,'DOE - FIPStoPayeeCodeConvTable'!$A$3:$A$213,'DOE - FIPStoPayeeCodeConvTable'!$B$3:$B$213) -> Amherst Co | S10: 0 | U10: 0 | V10: 0 | W10: =LOOKUP(A10,'DOE - FIPStoPayeeCodeConvTable'!$A$3:$A$213,'DOE - FIPStoPayeeCodeConvTable'!$E$3:$E$213) -> 0.2722 | X10: 0.34025 | Y10: 0 | Z10: 0
A11: 11 | B11: =LOOKUP(A11,'DOE - FIPStoPayeeCodeConvTable'!$A$3:$A$213,'DOE - FIPStoPayeeCodeConvTable'!$B$3:$B$213) -> Appomattox Co | S11: 0 | U11: 0 | V11: 0 | W11: =LOOKUP(A11,'DOE - FIPStoPayeeCodeConvTable'!$A$3:$A$213,'DOE - FIPStoPayeeCodeConvTable'!$E$3:$E$213) -> 0.2639 | X11: 0.329875 | Y11: 0 | Z11: 0
A12: 13 | B12: =LOOKUP(A12,'DOE - FIPStoPayeeCodeConvTable'!$A$3:$A$213,'DOE - FIPStoPayeeCodeConvTable'!$B$3:$B$213) -> Arlington Co | S12: 0 | U12: 0 | V12: 0 | W12: =LOOKUP(A12,'DOE - FIPStoPayeeCodeConvTable'!$A$3:$A$213,'DOE - FIPStoPayeeCodeConvTable'!$E$3:$E$213) -> 0.4602 | X12: 0.57525 | Y12: 0 | Z12: 0
A13: 15 | B13: =LOOKUP(A13,'DOE - FIPStoPayeeCodeConvTable'!$A$3:$A$213,'DOE - FIPStoPayeeCodeConvTable'!$B$3:$B$213) -> Augusta Co | S13: 0 | U13: 0 | V13: 0 | W13: =LOOKUP(A13,'DOE - FIPStoPayeeCodeConvTable'!$A$3:$A$213,'DOE - FIPStoPayeeCodeConvTable'!$E$3:$E$213) -> 0.3302 | X13: 0.41275 | Y13: 0 | Z13: 0
A14: 17 | B14: =LOOKUP(A14,'DOE - FIPStoPayeeCodeConvTable'!$A$3:$A$213,'DOE - FIPStoPayeeCodeConvTable'!$B$3:$B$213) -> Bath Co | S14: 0 | U14: 0 | V14: 0 | W14: =LOOKUP(A14,'DOE - FIPStoPayeeCodeConvTable'!$A$3:$A$213,'DOE - FIPStoPayeeCodeConvTable'!$E$3:$E$213) -> 0.4278 | X14: 0.53475 | Y14: 0 | Z14: 0
A15: 19 | B15: =LOOKUP(A15,'DOE - FIPStoPayeeCodeConvTable'!$A$3:$A$213,'DOE - FIPStoPayeeCodeConvTable'!$B$3:$B$213) -> Bedford Co | S15: 0 | U15: 0 | V15: 0 | W15: =LOOKUP(A15,'DOE - FIPStoPayeeCodeConvTable'!$A$3:$A$213,'DOE - FIPStoPayeeCodeConvTable'!$E$3:$E$213) -> 0.31112 | X15: 0.3889 | Y15: 0 | Z15: 0
A16: 21 | B16: =LOOKUP(A16,'DOE - FIPStoPayeeCodeConvTable'!$A$3:$A$213,'DOE - FIPStoPayeeCodeConvTable'!$B$3:$B$213) -> Bland Co | S16: 0 | U16: 0 | V16: 0 | W16: =LOOKUP(A16,'DOE - FIPStoPayeeCodeConvTable'!$A$3:$A$213,'DOE - FIPStoPayeeCodeConvTable'!$E$3:$E$213) -> 0.2109 | X16: 0.263625 | Y16: 0 | Z16: 0
A17: 23 | B17: =LOOKUP(A17,'DOE - FIPStoPayeeCodeConvTable'!$A$3:$A$213,'DOE - FIPStoPayeeCodeConvTable'!$B$3:$B$213) -> Botetourt Co | S17: 0 | U17: 0 | V17: 0 | W17: =LOOKUP(A17,'DOE - FIPStoPayeeCodeConvTable'!$A$3:$A$213,'DOE - FIPStoPayeeCodeConvTable'!$E$3:$E$213) -> 0.3602 | X17: 0.45025 | Y17: 0 | Z17: 0
A18: 25 | B18: =LOOKUP(A18,'DOE - FIPStoPayeeCodeConvTable'!$A$3:$A$213,'DOE - FIPStoPayeeCodeConvTable'!$B$3:$B$213) -> Brunswick Co | S18: 0 | U18: 0 | V18: 0 | W18: =LOOKUP(A18,'DOE - FIPStoPayeeCodeConvTable'!$A$3:$A$213,'DOE - FIPStoPayeeCodeConvTable'!$E$3:$E$213) -> 0.2439 | X18: 0.304875 | Y18: 0 | Z18: 0
A19: 27 | B19: =LOOKUP(A19,'DOE - FIPStoPayeeCodeConvTable'!$A$3:$A$213,'DOE - FIPStoPayeeCodeConvTable'!$B$3:$B$213) -> Buchanan Co | S19: 0 | U19: 0 | V19: 0 | W19: =LOOKUP(A19,'DOE - FIPStoPayeeCodeConvTable'!$A$3:$A$213,'DOE - FIPStoPayeeCodeConvTable'!$E$3:$E$213) -> 0.3156 | X19: 0.3945 | Y19: 0 | Z19: 0
A20: 29 | B20: =LOOKUP(A20,'DOE - FIPStoPayeeCodeConvTable'!$A$3:$A$213,'DOE - FIPStoPayeeCodeConvTable'!$B$3:$B$213) -> Buckingham Co | S20: 0 | U20: 0 | V20: 0 | W20: =LOOKUP(A20,'DOE - FIPStoPayeeCodeConvTable'!$A$3:$A$213,'DOE - FIPStoPayeeCodeConvTable'!$E$3:$E$213) -> 0.2023 | X20: 0.252875 | Y20: 0 | Z20: 0
A21: 31 | B21: =LOOKUP(A21,'DOE - FIPStoPayeeCodeConvTable'!$A$3:$A$213,'DOE - FIPStoPayeeCodeConvTable'!$B$3:$B$213) -> Campbell Co | S21: 0 | U21: 0 | V21: 0 | W21: =LOOKUP(A21,'DOE - FIPStoPayeeCodeConvTable'!$A$3:$A$213,'DOE - FIPStoPayeeCodeConvTable'!$E$3:$E$213) -> 0.3107 | X21: 0.388375 | Y21: 0 | Z21: 0
A22: 33 | B22: =LOOKUP(A22,'DOE - FIPStoPayeeCodeConvTable'!$A$3:$A$213,'DOE - FIPStoPayeeCodeConvTable'!$B$3:$B$213) -> Caroline Co | S22: 0 | U22: 0 | V22: 0 | W22: =LOOKUP(A22,'DOE - FIPStoPayeeCodeConvTable'!$A$3:$A$213,'DOE - FIPStoPayeeCodeConvTable'!$E$3:$E$213) -> 0.3308 | X22: 0.4135 | Y22: 0 | Z22: 0
A23: 35 | B23: =LOOKUP(A23,'DOE - FIPStoPayeeCodeConvTable'!$A$3:$A$213,'DOE - FIPStoPayeeCodeConvTable'!$B$3:$B$213) -> Carroll Co | S23: 0 | U23: 0 | V23: 0 | W23: =LOOKUP(A23,'DOE - FIPStoPayeeCodeConvTable'!$A$3:$A$213,'DOE - FIPStoPayeeCodeConvTable'!$E$3:$E$213) -> 0.291 | X23: 0.36375 | Y23: 0 | Z23: 0
A24: 36 | B24: =LOOKUP(A24,'DOE - FIPStoPayeeCodeConvTable'!$A$3:$A$213,'DOE - FIPStoPayeeCodeConvTable'!$B$3:$B$213) -> Charles City Co | S24: 0 | U24: 0 | V24: 0 | W24: =LOOKUP(A24,'DOE - FIPStoPayeeCodeConvTable'!$A$3:$A$213,'DOE - FIPStoPayeeCodeConvTable'!$E$3:$E$213) -> 0.3131 | X24: 0.391375 | Y24: 0 | Z24: 0
A25: 37 | B25: =LOOKUP(A25,'DOE - FIPStoPayeeCodeConvTable'!$A$3:$A$213,'DOE - FIPStoPayeeCodeConvTable'!$B$3:$B$213) -> Charlotte Co | S25: 0 | U25: 0 | V25: 0 | W25: =LOOKUP(A25,'DOE - FIPStoPayeeCodeConvTable'!$A$3:$A$213,'DOE - FIPStoPayeeCodeConvTable'!$E$3:$E$213) -> 0.2204 | X25: 0.2755 | Y25: 0 | Z25: 0
A26: 41 | B26: =LOOKUP(A26,'DOE - FIPStoPayeeCodeConvTable'!$A$3:$A$213,'DOE - FIPStoPayeeCodeConvTable'!$B$3:$B$213) -> Chesterfield Co | S26: 0 | U26: 0 | V26: 0 | W26: =LOOKUP(A26,'DOE - FIPStoPayeeCodeConvTable'!$A$3:$A$213,'DOE - FIPStoPayeeCodeConvTable'!$E$3:$E$213) -> 0.3853 | X26: 0.481625 | Y26: 0 | Z26: 0
A27: 43 | B27: =LOOKUP(A27,'DOE - FIPStoPayeeCodeConvTable'!$A$3:$A$213,'DOE - FIPStoPayeeCodeConvTable'!$B$3:$B$213) -> Clarke Co | S27: 0 | U27: 0 | V27: 0 | W27: =LOOKUP(A27,'DOE - FIPStoPayeeCodeConvTable'!$A$3:$A$213,'DOE - FIPStoPayeeCodeConvTable'!$E$3:$E$213) -> 0.4797 | X27: 0.599625 | Y27: 0 | Z27: 0
A28: 45 | B28: =LOOKUP(A28,'DOE - FIPStoPayeeCodeConvTable'!$A$3:$A$213,'DOE - FIPStoPayeeCodeConvTable'!$B$3:$B$213) -> Craig Co | S28: 0 | U28: 0 | V28: 0 | W28: =LOOKUP(A28,'DOE - FIPStoPayeeCodeConvTable'!$A$3:$A$213,'DOE - FIPStoPayeeCodeConvTable'!$E$3:$E$213) -> 0.2901 | X28: 0.362625 | Y28: 0 | Z28: 0
A29: 47 | B29: =LOOKUP(A29,'DOE - FIPStoPayeeCodeConvTable'!$A$3:$A$213,'DOE - FIPStoPayeeCodeConvTable'!$B$3:$B$213) -> Culpeper Co | S29: 0 | U29: 0 | V29: 0 | W29: =LOOKUP(A29,'DOE - FIPStoPayeeCodeConvTable'!$A$3:$A$213,'DOE - FIPStoPayeeCodeConvTable'!$E$3:$E$213) -> 0.3767 | X29: 0.470875 | Y29: 0 | Z29: 0
A30: 49 | B30: =LOOKUP(A30,'DOE - FIPStoPayeeCodeConvTable'!$A$3:$A$213,'DOE - FIPStoPayeeCodeConvTable'!$B$3:$B$213) -> Cumberland Co | S30: 0 | U30: 0 | V30: 0 | W30: =LOOKUP(A30,'DOE - FIPStoPayeeCodeConvTable'!$A$3:$A$213,'DOE - FIPStoPayeeCodeConvTable'!$E$3:$E$213) -> 0.304 | X30: 0.38 | Y30: 0 | Z30: 0
A31: 51 | B31: =LOOKUP(A31,'DOE - FIPStoPayeeCodeConvTable'!$A$3:$A$213,'DOE - FIPStoPayeeCodeConvTable'!$B$3:$B$213) -> Dickenson Co | S31: 0 | U31: 0 | V31: 0 | W31: =LOOKUP(A31,'DOE - FIPStoPayeeCodeConvTable'!$A$3:$A$213,'DOE - FIPStoPayeeCodeConvTable'!$E$3:$E$213) -> 0.3042 | X31: 0.38025 | Y31: 0 | Z31: 0
A32: 53 | B32: =LOOKUP(A32,'DOE - FIPStoPayeeCodeConvTable'!$A$3:$A$213,'DOE - FIPStoPayeeCodeConvTable'!$B$3:$B$213) -> Dinwiddie Co | S32: 0 | U32: 0 | V32: 0 | W32: =LOOKUP(A32,'DOE - FIPStoPayeeCodeConvTable'!$A$3:$A$213,'DOE - FIPStoPayeeCodeConvTable'!$E$3:$E$213) -> 0.3358 | X32: 0.41975 | Y32: 0 | Z32: 0
A33: 57 | B33: =LOOKUP(A33,'DOE - FIPStoPayeeCodeConvTable'!$A$3:$A$213,'DOE - FIPStoPayeeCodeConvTable'!$B$3:$B$213) -> Essex Co | S33: 0 | U33: 0 | V33: 0 | W33: =LOOKUP(A33,'DOE - FIPStoPayeeCodeConvTable'!$A$3:$A$213,'DOE - FIPStoPayeeCodeConvTable'!$E$3:$E$213) -> 0.3853 | X33: 0.481625 | Y33: 0 | Z33: 0
A34: 59 | B34: =LOOKUP(A34,'DOE - FIPStoPayeeCodeConvTable'!$A$3:$A$213,'DOE - FIPStoPayeeCodeConvTable'!$B$3:$B$213) -> Fairfax Co | S34: 0 | U34: 0 | V34: 0 | W34: =LOOKUP(A34,'DOE - FIPStoPayeeCodeConvTable'!$A$3:$A$213,'DOE - FIPStoPayeeCodeConvTable'!$E$3:$E$213) -> 0.4611 | X34: 0.576375 | Y34: 0 | Z34: 0
A35: 61 | B35: =LOOKUP(A35,'DOE - FIPStoPayeeCodeConvTable'!$A$3:$A$213,'DOE - FIPStoPayeeCodeConvTable'!$B$3:$B$213) -> Fauquier Co | S35: 0 | U35: 0 | V35: 0 | W35: =LOOKUP(A35,'DOE - FIPStoPayeeCodeConvTable'!$A$3:$A$213,'DOE - FIPStoPayeeCodeConvTable'!$E$3:$E$213) -> 0.4584 | X35: 0.573 | Y35: 0 | Z35: 0
A36: 63 | B36: =LOOKUP(A36,'DOE - FIPStoPayeeCodeConvTable'!$A$3:$A$213,'DOE - FIPStoPayeeCodeConvTable'!$B$3:$B$213) -> Floyd Co | S36: 0 | U36: 0 | V36: 0 | W36: =LOOKUP(A36,'DOE - FIPStoPayeeCodeConvTable'!$A$3:$A$213,'DOE - FIPStoPayeeCodeConvTable'!$E$3:$E$213) -> 0.2324 | X36: 0.2905 | Y36: 0 | Z36: 0
A37: 65 | B37: =LOOKUP(A37,'DOE - FIPStoPayeeCodeConvTable'!$A$3:$A$213,'DOE - FIPStoPayeeCodeConvTable'!$B$3:$B$213) -> Fluvanna Co | S37: =SUM(C37:R37) -> 0 | U37: 0 | V37: 0 | W37: =LOOKUP(A37,'DOE - FIPStoPayeeCodeConvTable'!$A$3:$A$213,'DOE - FIPStoPayeeCodeConvTable'!$E$3:$E$213) -> 0.3811 | X37: 0.476375 | Y37: 0 | Z37: 0
A38: 67 | B38: =LOOKUP(A38,'DOE - FIPStoPayeeCodeConvTable'!$A$3:$A$213,'DOE - FIPStoPayeeCodeConvTable'!$B$3:$B$213) -> Franklin Co | S38: 0 | U38: =ROUND($U$1*S38,2) -> 0 | V38: =SUM(S38)-SUM(U38) -> 0 | W38: =LOOKUP(A38,'DOE - FIPStoPayeeCodeConvTable'!$A$3:$A$213,'DOE - FIPStoPayeeCodeConvTable'!$E$3:$E$213) -> 0.283 | X38: 0.35375 | Y38: 0 | Z38: 0
A39: 69 | B39: =LOOKUP(A39,'DOE - FIPStoPayeeCodeConvTable'!$A$3:$A$213,'DOE - FIPStoPayeeCodeConvTable'!$B$3:$B$213) -> Frederick Co | S39: 0 | U39: 0 | V39: 0 | W39: =LOOKUP(A39,'DOE - FIPStoPayeeCodeConvTable'!$A$3:$A$213,'DOE - FIPStoPayeeCodeConvTable'!$E$3:$E$213) -> 0.4348 | X39: 0.5435 | Y39: 0 | Z39: 0
A40: 71 | B40: =LOOKUP(A40,'DOE - FIPStoPayeeCodeConvTable'!$A$3:$A$213,'DOE - FIPStoPayeeCodeConvTable'!$B$3:$B$213) -> Giles Co | S40: 0 | U40: 0 | V40: 0 | W40: =LOOKUP(A40,'DOE - FIPStoPayeeCodeConvTable'!$A$3:$A$213,'DOE - FIPStoPayeeCodeConvTable'!$E$3:$E$213) -> 0.2898 | X40: 0.36225 | Y40: 0 | Z40: 0
A41: 73 | B41: =LOOKUP(A41,'DOE - FIPStoPayeeCodeConvTable'!$A$3:$A$213,'DOE - FIPStoPayeeCodeConvTable'!$B$3:$B$213) -> Gloucester Co | S41: 0 | U41: 0 | V41: 0 | W41: =LOOKUP(A41,'DOE - FIPStoPayeeCodeConvTable'!$A$3:$A$213,'DOE - FIPStoPayeeCodeConvTable'!$E$3:$E$213) -> 0.3687 | X41: 0.460875 | Y41: 0 | Z41: 0
A42: 75 | B42: =LOOKUP(A42,'DOE - FIPStoPayeeCodeConvTable'!$A$3:$A$213,'DOE - FIPStoPayeeCodeConvTable'!$B$3:$B$213) -> Goochland Co | S42: 0 | U42: 0 | V42: 0 | W42: =LOOKUP(A42,'DOE - FIPStoPayeeCodeConvTable'!$A$3:$A$213,'DOE - FIPStoPayeeCodeConvTable'!$E$3:$E$213) -> 0.4871 | X42: 0.608875 | Y42: 0 | Z42: 0
A43: 77 | B43: =LOOKUP(A43,'DOE - FIPStoPayeeCodeConvTable'!$A$3:$A$213,'DOE - FIPStoPayeeCodeConvTable'!$B$3:$B$213) -> Grayson Co | S43: 0 | U43: 0 | V43: 0 | W43: =LOOKUP(A43,'DOE - FIPStoPayeeCodeConvTable'!$A$3:$A$213,'DOE - FIPStoPayeeCodeConvTable'!$E$3:$E$213) -> 0.2109 | X43: 0.263625 | Y43: 0 | Z43: 0
A44: 79 | B44: =LOOKUP(A44,'DOE - FIPStoPayeeCodeConvTable'!$A$3:$A$213,'DOE - FIPStoPayeeCodeConvTable'!$B$3:$B$213) -> Greene Co | S44: 0 | U44: 0 | V44: 0 | W44: =LOOKUP(A44,'DOE - FIPStoPayeeCodeConvTable'!$A$3:$A$213,'DOE - FIPStoPayeeCodeConvTable'!$E$3:$E$213) -> 0.3471 | X44: 0.433875 | Y44: 0 | Z44: 0
A45: 81 | B45: =LOOKUP(A45,'DOE - FIPStoPayeeCodeConvTable'!$A$3:$A$213,'DOE - FIPStoPayeeCodeConvTable'!$B$3:$B$213) -> Greensville Co | S45: 0 | U45: 0 | V45: 0 | W45: =LOOKUP(A45,'DOE - FIPStoPayeeCodeConvTable'!$A$3:$A$213,'DOE - FIPStoPayeeCodeConvTable'!$E$3:$E$213) -> 0.2266 | X45: 0.28325 | Y45: 0 | Z45: 0
A46: 83 | B46: =LOOKUP(A46,'DOE - FIPStoPayeeCodeConvTable'!$A$3:$A$213,'DOE - FIPStoPayeeCodeConvTable'!$B$3:$B$213) -> Halifax Co | S46: 0 | U46: 0 | V46: 0 | W46: =LOOKUP(A46,'DOE - FIPStoPayeeCodeConvTable'!$A$3:$A$213,'DOE - FIPStoPayeeCodeConvTable'!$E$3:$E$213) -> 0.2335 | X46: 0.291875 | Y46: 0 | Z46: 0
A47: 85 | B47: =LOOKUP(A47,'DOE - FIPStoPayeeCodeConvTable'!$A$3:$A$213,'DOE - FIPStoPayeeCodeConvTable'!$B$3:$B$213) -> Hanover Co | S47: 0 | U47: 0 | V47: 0 | W47: =LOOKUP(A47,'DOE - FIPStoPayeeCodeConvTable'!$A$3:$A$213,'DOE - FIPStoPayeeCodeConvTable'!$E$3:$E$213) -> 0.4444 | X47: 0.5555 | Y47: 0 | Z47: 0
A48: 87 | B48: =LOOKUP(A48,'DOE - FIPStoPayeeCodeConvTable'!$A$3:$A$213,'DOE - FIPStoPayeeCodeConvTable'!$B$3:$B$213) -> Henrico Co | S48: 0 | U48: 0 | V48: 0 | W48: =LOOKUP(A48,'DOE - FIPStoPayeeCodeConvTable'!$A$3:$A$213,'DOE - FIPStoPayeeCodeConvTable'!$E$3:$E$213) -> 0.3755 | X48: 0.469375 | Y48: 0 | Z48: 0
A49: 89 | B49: =LOOKUP(A49,'DOE - FIPStoPayeeCodeConvTable'!$A$3:$A$213,'DOE - FIPStoPayeeCodeConvTable'!$B$3:$B$213) -> Henry Co | S49: 0 | U49: 0 | V49: 0 | W49: =LOOKUP(A49,'DOE - FIPStoPayeeCodeConvTable'!$A$3:$A$213,'DOE - FIPStoPayeeCodeConvTable'!$E$3:$E$213) -> 0.2786 | X49: 0.34825 | Y49: 0 | Z49: 0
A50: 91 | B50: =LOOKUP(A50,'DOE - FIPStoPayeeCodeConvTable'!$A$3:$A$213,'DOE - FIPStoPayeeCodeConvTable'!$B$3:$B$213) -> Highland Co | S50: 0 | U50: 0 | V50: 0 | W50: =LOOKUP(A50,'DOE - FIPStoPayeeCodeConvTable'!$A$3:$A$213,'DOE - FIPStoPayeeCodeConvTable'!$E$3:$E$213) -> 0.3822 | X50: 0.47775 | Y50: 0 | Z50: 0
A51: 93 | B51: =LOOKUP(A51,'DOE - FIPStoPayeeCodeConvTable'!$A$3:$A$213,'DOE - FIPStoPayeeCodeConvTable'!$B$3:$B$213) -> Isle Of Wight Co | S51: 0 | U51: 0 | V51: 0 | W51: =LOOKUP(A51,'DOE - FIPStoPayeeCodeConvTable'!$A$3:$A$213,'DOE - FIPStoPayeeCodeConvTable'!$E$3:$E$213) -> 0.3613 | X51: 0.451625 | Y51: 0 | Z51: 0
A52: 95 | B52: =LOOKUP(A52,'DOE - FIPStoPayeeCodeConvTable'!$A$3:$A$213,'DOE - FIPStoPayeeCodeConvTable'!$B$3:$B$213) -> James City Co | S52: 0 | U52: 0 | V52: 0 | W52: =LOOKUP(A52,'DOE - FIPStoPayeeCodeConvTable'!$A$3:$A$213,'DOE - FIPStoPayeeCodeConvTable'!$E$3:$E$213) -> 0.4483 | X52: 0.560375 | Y52: 0 | Z52: 0
A53: 97 | B53: =LOOKUP(A53,'DOE - FIPStoPayeeCodeConvTable'!$A$3:$A$213,'DOE - FIPStoPayeeCodeConvTable'!$B$3:$B$213) -> King And Queen Co | S53: 0 | U53: 0 | V53: 0 | W53: =LOOKUP(A53,'DOE - FIPStoPayeeCodeConvTable'!$A$3:$A$213,'DOE - FIPStoPayeeCodeConvTable'!$E$3:$E$213) -> 0.3144 | X53: 0.393 | Y53: 0 | Z53: 0
A54: 99 | B54: =LOOKUP(A54,'DOE - FIPStoPayeeCodeConvTable'!$A$3:$A$213,'DOE - FIPStoPayeeCodeConvTable'!$B$3:$B$213) -> King George Co | S54: 0 | U54: 0 | V54: 0 | W54: =LOOKUP(A54,'DOE - FIPStoPayeeCodeConvTable'!$A$3:$A$213,'DOE - FIPStoPayeeCodeConvTable'!$E$3:$E$213) -> 0.3627 | X54: 0.453375 | Y54: 0 | Z54: 0
A55: 101 | B55: =LOOKUP(A55,'DOE - FIPStoPayeeCodeConvTable'!$A$3:$A$213,'DOE - FIPStoPayeeCodeConvTable'!$B$3:$B$213) -> King William Co | S55: 0 | U55: 0 | V55: 0 | W55: =LOOKUP(A55,'DOE - FIPStoPayeeCodeConvTable'!$A$3:$A$213,'DOE - FIPStoPayeeCodeConvTable'!$E$3:$E$213) -> 0.3853 | X55: 0.481625 | Y55: 0 | Z55: 0
A56: 103 | B56: =LOOKUP(A56,'DOE - FIPStoPayeeCodeConvTable'!$A$3:$A$213,'DOE - FIPStoPayeeCodeConvTable'!$B$3:$B$213) -> Lancaster Co | S56: 0 | U56: 0 | V56: 0 | W56: =LOOKUP(A56,'DOE - FIPStoPayeeCodeConvTable'!$A$3:$A$213,'DOE - FIPStoPayeeCodeConvTable'!$E$3:$E$213) -> 0.4391 | X56: 0.548875 | Y56: 0 | Z56: 0
A57: 105 | B57: =LOOKUP(A57,'DOE - FIPStoPayeeCodeConvTable'!$A$3:$A$213,'DOE - FIPStoPayeeCodeConvTable'!$B$3:$B$213) -> Lee Co | S57: 0 | U57: 0 | V57: 0 | W57: =LOOKUP(A57,'DOE - FIPStoPayeeCodeConvTable'!$A$3:$A$213,'DOE - FIPStoPayeeCodeConvTable'!$E$3:$E$213) -> 0.2245 | X57: 0.280625 | Y57: 0 | Z57: 0
A58: 107 | B58: =LOOKUP(A58,'DOE - FIPStoPayeeCodeConvTable'!$A$3:$A$213,'DOE - FIPStoPayeeCodeConvTable'!$B$3:$B$213) -> Loudoun Co | S58: 0 | U58: 0 | V58: 0 | W58: =LOOKUP(A58,'DOE - FIPStoPayeeCodeConvTable'!$A$3:$A$213,'DOE - FIPStoPayeeCodeConvTable'!$E$3:$E$213) -> 0.4764 | X58: 0.5955 | Y58: 0 | Z58: 0
A59: 109 | B59: =LOOKUP(A59,'DOE - FIPStoPayeeCodeConvTable'!$A$3:$A$213,'DOE - FIPStoPayeeCodeConvTable'!$B$3:$B$213) -> Louisa Co | S59: 0 | U59: 0 | V59: 0 | W59: =LOOKUP(A59,'DOE - FIPStoPayeeCodeConvTable'!$A$3:$A$213,'DOE - FIPStoPayeeCodeConvTable'!$E$3:$E$213) -> 0.4401 | X59: 0.550125 | Y59: 0 | Z59: 0
A60: 111 | B60: =LOOKUP(A60,'DOE - FIPStoPayeeCodeConvTable'!$A$3:$A$213,'DOE - FIPStoPayeeCodeConvTable'!$B$3:$B$213) -> Lunenburg Co | S60: 0 | U60: 0 | V60: 0 | W60: =LOOKUP(A60,'DOE - FIPStoPayeeCodeConvTable'!$A$3:$A$213,'DOE - FIPStoPayeeCodeConvTable'!$E$3:$E$213) -> 0.1698 | X60: 0.21225 | Y60: 0 | Z60: 0
A61: 113 | B61: =LOOKUP(A61,'DOE - FIPStoPayeeCodeConvTable'!$A$3:$A$213,'DOE - FIPStoPayeeCodeConvTable'!$B$3:$B$213) -> Madison Co | S61: 0 | U61: 0 | V61: 0 | W61: =LOOKUP(A61,'DOE - FIPStoPayeeCodeConvTable'!$A$3:$A$213,'DOE - FIPStoPayeeCodeConvTable'!$E$3:$E$213) -> 0.3355 | X61: 0.419375 | Y61: 0 | Z61: 0
A62: 115 | B62: =LOOKUP(A62,'DOE - FIPStoPayeeCodeConvTable'!$A$3:$A$213,'DOE - FIPStoPayeeCodeConvTable'!$B$3:$B$213) -> Mathews Co | S62: 0 | U62: 0 | V62: 0 | W62: =LOOKUP(A62,'DOE - FIPStoPayeeCodeConvTable'!$A$3:$A$213,'DOE - FIPStoPayeeCodeConvTable'!$E$3:$E$213) -> 0.4271 | X62: 0.533875 | Y62: 0 | Z62: 0
A63: 117 | B63: =LOOKUP(A63,'DOE - FIPStoPayeeCodeConvTable'!$A$3:$A$213,'DOE - FIPStoPayeeCodeConvTable'!$B$3:$B$213) -> Mecklenburg Co | S63: 0 | U63: 0 | V63: 0 | W63: =LOOKUP(A63,'DOE - FIPStoPayeeCodeConvTable'!$A$3:$A$213,'DOE - FIPStoPayeeCodeConvTable'!$E$3:$E$213) -> 0.2286 | X63: 0.28575 | Y63: 0 | Z63: 0
A64: 119 | B64: =LOOKUP(A64,'DOE - FIPStoPayeeCodeConvTable'!$A$3:$A$213,'DOE - FIPStoPayeeCodeConvTable'!$B$3:$B$213) -> Middlesex Co | S64: 0 | U64: 0 | V64: 0 | W64: =LOOKUP(A64,'DOE - FIPStoPayeeCodeConvTable'!$A$3:$A$213,'DOE - FIPStoPayeeCodeConvTable'!$E$3:$E$213) -> 0.4333 | X64: 0.541625 | Y64: 0 | Z64: 0
A65: 121 | B65: =LOOKUP(A65,'DOE - FIPStoPayeeCodeConvTable'!$A$3:$A$213,'DOE - FIPStoPayeeCodeConvTable'!$B$3:$B$213) -> Montgomery Co | S65: 0 | U65: 0 | V65: 0 | W65: =LOOKUP(A65,'DOE - FIPStoPayeeCodeConvTable'!$A$3:$A$213,'DOE - FIPStoPayeeCodeConvTable'!$E$3:$E$213) -> 0.2834 | X65: 0.35425 | Y65: 0 | Z65: 0
A66: 125 | B66: =LOOKUP(A66,'DOE - FIPStoPayeeCodeConvTable'!$A$3:$A$213,'DOE - FIPStoPayeeCodeConvTable'!$B$3:$B$213) -> Nelson Co | S66: 0 | U66: 0 | V66: 0 | W66: =LOOKUP(A66,'DOE - FIPStoPayeeCodeConvTable'!$A$3:$A$213,'DOE - FIPStoPayeeCodeConvTable'!$E$3:$E$213) -> 0.3132 | X66: 0.3915 | Y66: 0 | Z66: 0
A67: 127 | B67: =LOOKUP(A67,'DOE - FIPStoPayeeCodeConvTable'!$A$3:$A$213,'DOE - FIPStoPayeeCodeConvTable'!$B$3:$B$213) -> New Kent Co | S67: 0 | U67: 0 | V67: 0 | W67: =LOOKUP(A67,'DOE - FIPStoPayeeCodeConvTable'!$A$3:$A$213,'DOE - FIPStoPayeeCodeConvTable'!$E$3:$E$213) -> 0.4329 | X67: 0.541125 | Y67: 0 | Z67: 0
A68: 131 | B68: =LOOKUP(A68,'DOE - FIPStoPayeeCodeConvTable'!$A$3:$A$213,'DOE - FIPStoPayeeCodeConvTable'!$B$3:$B$213) -> Northampton Co | S68: 0 | U68: 0 | V68: 0 | W68: =LOOKUP(A68,'DOE - FIPStoPayeeCodeConvTable'!$A$3:$A$213,'DOE - FIPStoPayeeCodeConvTable'!$E$3:$E$213) -> 0.1971 | X68: 0.246375 | Y68: 0 | Z68: 0
A69: 133 | B69: =LOOKUP(A69,'DOE - FIPStoPayeeCodeConvTable'!$A$3:$A$213,'DOE - FIPStoPayeeCodeConvTable'!$B$3:$B$213) -> Northumberland Co | S69: =SUM(C69:R69) -> 0 | U69: 0 | V69: 0 | W69: =LOOKUP(A69,'DOE - FIPStoPayeeCodeConvTable'!$A$3:$A$213,'DOE - FIPStoPayeeCodeConvTable'!$E$3:$E$213) -> 0.3304 | X69: 0.413 | Y69: 0 | Z69: 0
A70: 135 | B70: =LOOKUP(A70,'DOE - FIPStoPayeeCodeConvTable'!$A$3:$A$213,'DOE - FIPStoPayeeCodeConvTable'!$B$3:$B$213) -> Nottoway Co | S70: 0 | U70: =ROUND($U$1*S70,2) -> 0 | V70: =SUM(S70)-SUM(U70) -> 0 | W70: =LOOKUP(A70,'DOE - FIPStoPayeeCodeConvTable'!$A$3:$A$213,'DOE - FIPStoPayeeCodeConvTable'!$E$3:$E$213) -> 0.2686 | X70: 0.33575 | Y70: 0 | Z70: 0
A71: 137 | B71: =LOOKUP(A71,'DOE - FIPStoPayeeCodeConvTable'!$A$3:$A$213,'DOE - FIPStoPayeeCodeConvTable'!$B$3:$B$213) -> Orange Co | S71: 0 | U71: 0 | V71: 0 | W71: =LOOKUP(A71,'DOE - FIPStoPayeeCodeConvTable'!$A$3:$A$213,'DOE - FIPStoPayeeCodeConvTable'!$E$3:$E$213) -> 0.4083 | X71: =$X$1*W71 -> 0.510375 | Y71: =ROUND(X71*V71,2) -> 0 | Z71: =SUM(V71)-SUM(Y71) -> 0
A72: 139 | B72: =LOOKUP(A72,'DOE - FIPStoPayeeCodeConvTable'!$A$3:$A$213,'DOE - FIPStoPayeeCodeConvTable'!$B$3:$B$213) -> Page Co | S72: 0 | U72: 0 | V72: 0 | W72: =LOOKUP(A72,'DOE - FIPStoPayeeCodeConvTable'!$A$3:$A$213,'DOE - FIPStoPayeeCodeConvTable'!$E$3:$E$213) -> 0.2865 | X72: 0.358125 | Y72: 0 | Z72: 0
A73: 141 | B73: =LOOKUP(A73,'DOE - FIPStoPayeeCodeConvTable'!$A$3:$A$213,'DOE - FIPStoPayeeCodeConvTable'!$B$3:$B$213) -> Patrick Co | S73: 0 | U73: 0 | V73: 0 | W73: =LOOKUP(A73,'DOE - FIPStoPayeeCodeConvTable'!$A$3:$A$213,'DOE - FIPStoPayeeCodeConvTable'!$E$3:$E$213) -> 0.2539 | X73: 0.317375 | Y73: 0 | Z73: 0
A74: 143 | B74: =LOOKUP(A74,'DOE - FIPStoPayeeCodeConvTable'!$A$3:$A$213,'DOE - FIPStoPayeeCodeConvTable'!$B$3:$B$213) -> Pittsylvania Co | S74: 0 | U74: 0 | V74: 0 | W74: =LOOKUP(A74,'DOE - FIPStoPayeeCodeConvTable'!$A$3:$A$213,'DOE - FIPStoPayeeCodeConvTable'!$E$3:$E$213) -> 0.2355 | X74: 0.294375 | Y74: 0 | Z74: 0
A75: 145 | B75: =LOOKUP(A75,'DOE - FIPStoPayeeCodeConvTable'!$A$3:$A$213,'DOE - FIPStoPayeeCodeConvTable'!$B$3:$B$213) -> Powhatan Co | S75: 0 | U75: 0 | V75: 0 | W75: =LOOKUP(A75,'DOE - FIPStoPayeeCodeConvTable'!$A$3:$A$213,'DOE - FIPStoPayeeCodeConvTable'!$E$3:$E$213) -> 0.4342 | X75: 0.54275 | Y75: 0 | Z75: 0
A76: 147 | B76: =LOOKUP(A76,'DOE - FIPStoPayeeCodeConvTable'!$A$3:$A$213,'DOE - FIPStoPayeeCodeConvTable'!$B$3:$B$213) -> Prince Edward Co | S76: 0 | U76: 0 | V76: 0 | W76: =LOOKUP(A76,'DOE - FIPStoPayeeCodeConvTable'!$A$3:$A$213,'DOE - FIPStoPayeeCodeConvTable'!$E$3:$E$213) -> 0.2232 | X76: 0.279 | Y76: 0 | Z76: 0
A77: 149 | B77: =LOOKUP(A77,'DOE - FIPStoPayeeCodeConvTable'!$A$3:$A$213,'DOE - FIPStoPayeeCodeConvTable'!$B$3:$B$213) -> Prince George Co | S77: 0 | U77: 0 | V77: 0 | W77: =LOOKUP(A77,'DOE - FIPStoPayeeCodeConvTable'!$A$3:$A$213,'DOE - FIPStoPayeeCodeConvTable'!$E$3:$E$213) -> 0.3716 | X77: 0.4645 | Y77: 0 | Z77: 0
A78: 153 | B78: =LOOKUP(A78,'DOE - FIPStoPayeeCodeConvTable'!$A$3:$A$213,'DOE - FIPStoPayeeCodeConvTable'!$B$3:$B$213) -> Prince William Co | S78: 0 | U78: 0 | V78: 0 | W78: =LOOKUP(A78,'DOE - FIPStoPayeeCodeConvTable'!$A$3:$A$213,'DOE - FIPStoPayeeCodeConvTable'!$E$3:$E$213) -> 0.3414 | X78: 0.42675 | Y78: 0 | Z78: 0
A79: 155 | B79: =LOOKUP(A79,'DOE - FIPStoPayeeCodeConvTable'!$A$3:$A$213,'DOE - FIPStoPayeeCodeConvTable'!$B$3:$B$213) -> Pulaski Co | S79: 0 | U79: 0 | V79: 0 | W79: =LOOKUP(A79,'DOE - FIPStoPayeeCodeConvTable'!$A$3:$A$213,'DOE - FIPStoPayeeCodeConvTable'!$E$3:$E$213) -> 0.2923 | X79: 0.365375 | Y79: 0 | Z79: 0
A80: 157 | B80: =LOOKUP(A80,'DOE - FIPStoPayeeCodeConvTable'!$A$3:$A$213,'DOE - FIPStoPayeeCodeConvTable'!$B$3:$B$213) -> Rappahannock Co | S80: 0 | U80: 0 | V80: 0 | W80: =LOOKUP(A80,'DOE - FIPStoPayeeCodeConvTable'!$A$3:$A$213,'DOE - FIPStoPayeeCodeConvTable'!$E$3:$E$213) -> 0.4199 | X80: 0.524875 | Y80: 0 | Z80: 0
A81: 159 | B81: =LOOKUP(A81,'DOE - FIPStoPayeeCodeConvTable'!$A$3:$A$213,'DOE - FIPStoPayeeCodeConvTable'!$B$3:$B$213) -> Richmond Co | S81: 0 | U81: 0 | V81: 0 | W81: =LOOKUP(A81,'DOE - FIPStoPayeeCodeConvTable'!$A$3:$A$213,'DOE - FIPStoPayeeCodeConvTable'!$E$3:$E$213) -> 0.3227 | X81: 0.403375 | Y81: 0 | Z81: 0
A82: 161 | B82: =LOOKUP(A82,'DOE - FIPStoPayeeCodeConvTable'!$A$3:$A$213,'DOE - FIPStoPayeeCodeConvTable'!$B$3:$B$213) -> Roanoke Co | S82: 0 | U82: 0 | V82: 0 | W82: =LOOKUP(A82,'DOE - FIPStoPayeeCodeConvTable'!$A$3:$A$213,'DOE - FIPStoPayeeCodeConvTable'!$E$3:$E$213) -> 0.4397 | X82: 0.549625 | Y82: 0 | Z82: 0
A83: 163 | B83: =LOOKUP(A83,'DOE - FIPStoPayeeCodeConvTable'!$A$3:$A$213,'DOE - FIPStoPayeeCodeConvTable'!$B$3:$B$213) -> Rockbridge Co | S83: 0 | U83: 0 | V83: 0 | W83: =LOOKUP(A83,'DOE - FIPStoPayeeCodeConvTable'!$A$3:$A$213,'DOE - FIPStoPayeeCodeConvTable'!$E$3:$E$213) -> 0.2336 | X83: 0.292 | Y83: 0 | Z83: 0
A84: 165 | B84: =LOOKUP(A84,'DOE - FIPStoPayeeCodeConvTable'!$A$3:$A$213,'DOE - FIPStoPayeeCodeConvTable'!$B$3:$B$213) -> Rockingham Co | S84: 0 | U84: 0 | V84: 0 | W84: =LOOKUP(A84,'DOE - FIPStoPayeeCodeConvTable'!$A$3:$A$213,'DOE - FIPStoPayeeCodeConvTable'!$E$3:$E$213) -> 0.3445 | X84: 0.430625 | Y84: 0 | Z84: 0
A85: 167 | B85: =LOOKUP(A85,'DOE - FIPStoPayeeCodeConvTable'!$A$3:$A$213,'DOE - FIPStoPayeeCodeConvTable'!$B$3:$B$213) -> Russell Co | S85: 0 | U85: 0 | V85: 0 | W85: =LOOKUP(A85,'DOE - FIPStoPayeeCodeConvTable'!$A$3:$A$213,'DOE - FIPStoPayeeCodeConvTable'!$E$3:$E$213) -> 0.1894 | X85: 0.23675 | Y85: 0 | Z85: 0
A86: 169 | B86: =LOOKUP(A86,'DOE - FIPStoPayeeCodeConvTable'!$A$3:$A$213,'DOE - FIPStoPayeeCodeConvTable'!$B$3:$B$213) -> Scott Co | S86: 0 | U86: 0 | V86: 0 | W86: =LOOKUP(A86,'DOE - FIPStoPayeeCodeConvTable'!$A$3:$A$213,'DOE - FIPStoPayeeCodeConvTable'!$E$3:$E$213) -> 0.3154 | X86: 0.39425 | Y86: 0 | Z86: 0
A87: 171 | B87: =LOOKUP(A87,'DOE - FIPStoPayeeCodeConvTable'!$A$3:$A$213,'DOE - FIPStoPayeeCodeConvTable'!$B$3:$B$213) -> Shenandoah Co | S87: 0 | U87: 0 | V87: 0 | W87: =LOOKUP(A87,'DOE - FIPStoPayeeCodeConvTable'!$A$3:$A$213,'DOE - FIPStoPayeeCodeConvTable'!$E$3:$E$213) -> 0.3517 | X87: 0.439625 | Y87: 0 | Z87: 0
A88: 173 | B88: =LOOKUP(A88,'DOE - FIPStoPayeeCodeConvTable'!$A$3:$A$213,'DOE - FIPStoPayeeCodeConvTable'!$B$3:$B$213) -> Smyth Co | S88: 0 | U88: 0 | V88: 0 | W88: =LOOKUP(A88,'DOE - FIPStoPayeeCodeConvTable'!$A$3:$A$213,'DOE - FIPStoPayeeCodeConvTable'!$E$3:$E$213) -> 0.2337 | X88: 0.292125 | Y88: 0 | Z88: 0
A89: 175 | B89: =LOOKUP(A89,'DOE - FIPStoPayeeCodeConvTable'!$A$3:$A$213,'DOE - FIPStoPayeeCodeConvTable'!$B$3:$B$213) -> Southampton Co | S89: 0 | U89: 0 | V89: 0 | W89: =LOOKUP(A89,'DOE - FIPStoPayeeCodeConvTable'!$A$3:$A$213,'DOE - FIPStoPayeeCodeConvTable'!$E$3:$E$213) -> 0.323 | X89: 0.40375 | Y89: 0 | Z89: 0
A90: 177 | B90: =LOOKUP(A90,'DOE - FIPStoPayeeCodeConvTable'!$A$3:$A$213,'DOE - FIPStoPayeeCodeConvTable'!$B$3:$B$213) -> Spotsylvania Co | S90: 0 | U90: 0 | V90: 0 | W90: =LOOKUP(A90,'DOE - FIPStoPayeeCodeConvTable'!$A$3:$A$213,'DOE - FIPStoPayeeCodeConvTable'!$E$3:$E$213) -> 0.4588 | X90: 0.5735 | Y90: 0 | Z90: 0
A91: 179 | B91: =LOOKUP(A91,'DOE - FIPStoPayeeCodeConvTable'!$A$3:$A$213,'DOE - FIPStoPayeeCodeConvTable'!$B$3:$B$213) -> Stafford Co | S91: 0 | U91: 0 | V91: 0 | W91: =LOOKUP(A91,'DOE - FIPStoPayeeCodeConvTable'!$A$3:$A$213,'DOE - FIPStoPayeeCodeConvTable'!$E$3:$E$213) -> 0.4439 | X91: 0.554875 | Y91: 0 | Z91: 0
A92: 181 | B92: =LOOKUP(A92,'DOE - FIPStoPayeeCodeConvTable'!$A$3:$A$213,'DOE - FIPStoPayeeCodeConvTable'!$B$3:$B$213) -> Surry Co | S92: 0 | U92: 0 | V92: 0 | W92: =LOOKUP(A92,'DOE - FIPStoPayeeCodeConvTable'!$A$3:$A$213,'DOE - FIPStoPayeeCodeConvTable'!$E$3:$E$213) -> 0.3979 | X92: 0.497375 | Y92: 0 | Z92: 0
A93: 183 | B93: =LOOKUP(A93,'DOE - FIPStoPayeeCodeConvTable'!$A$3:$A$213,'DOE - FIPStoPayeeCodeConvTable'!$B$3:$B$213) -> Sussex Co | S93: 0 | U93: 0 | V93: 0 | W93: =LOOKUP(A93,'DOE - FIPStoPayeeCodeConvTable'!$A$3:$A$213,'DOE - FIPStoPayeeCodeConvTable'!$E$3:$E$213) -> 0.2387 | X93: 0.298375 | Y93: 0 | Z93: 0
A94: 185 | B94: =LOOKUP(A94,'DOE - FIPStoPayeeCodeConvTable'!$A$3:$A$213,'DOE - FIPStoPayeeCodeConvTable'!$B$3:$B$213) -> Tazewell Co | S94: 0 | U94: 0 | V94: 0 | W94: =LOOKUP(A94,'DOE - FIPStoPayeeCodeConvTable'!$A$3:$A$213,'DOE - FIPStoPayeeCodeConvTable'!$E$3:$E$213) -> 0.2455 | X94: 0.306875 | Y94: 0 | Z94: 0
A95: 187 | B95: =LOOKUP(A95,'DOE - FIPStoPayeeCodeConvTable'!$A$3:$A$213,'DOE - FIPStoPayeeCodeConvTable'!$B$3:$B$213) -> Warren Co | S95: 0 | U95: 0 | V95: 0 | W95: =LOOKUP(A95,'DOE - FIPStoPayeeCodeConvTable'!$A$3:$A$213,'DOE - FIPStoPayeeCodeConvTable'!$E$3:$E$213) -> 0.3853 | X95: 0.481625 | Y95: 0 | Z95: 0
A96: 191 | B96: =LOOKUP(A96,'DOE - FIPStoPayeeCodeConvTable'!$A$3:$A$213,'DOE - FIPStoPayeeCodeConvTable'!$B$3:$B$213) -> Washington Co | S96: 0 | U96: 0 | V96: 0 | W96: =LOOKUP(A96,'DOE - FIPStoPayeeCodeConvTable'!$A$3:$A$213,'DOE - FIPStoPayeeCodeConvTable'!$E$3:$E$213) -> 0.276 | X96: 0.345 | Y96: 0 | Z96: 0
A97: 193 | B97: =LOOKUP(A97,'DOE - FIPStoPayeeCodeConvTable'!$A$3:$A$213,'DOE - FIPStoPayeeCodeConvTable'!$B$3:$B$213) -> Westmoreland Co | S97: 0 | U97: 0 | V97: 0 | W97: =LOOKUP(A97,'DOE - FIPStoPayeeCodeConvTable'!$A$3:$A$213,'DOE - FIPStoPayeeCodeConvTable'!$E$3:$E$213) -> 0.3025 | X97: 0.378125 | Y97: 0 | Z97: 0
A98: 195 | B98: =LOOKUP(A98,'DOE - FIPStoPayeeCodeConvTable'!$A$3:$A$213,'DOE - FIPStoPayeeCodeConvTable'!$B$3:$B$213) -> Wise Co | S98: 0 | U98: 0 | V98: 0 | W98: =LOOKUP(A98,'DOE - FIPStoPayeeCodeConvTable'!$A$3:$A$213,'DOE - FIPStoPayeeCodeConvTable'!$E$3:$E$213) -> 0.2755 | X98: 0.344375 | Y98: 0 | Z98: 0
A99: 197 | B99: =LOOKUP(A99,'DOE - FIPStoPayeeCodeConvTable'!$A$3:$A$213,'DOE - FIPStoPayeeCodeConvTable'!$B$3:$B$213) -> Wythe Co | S99: 0 | U99: 0 | V99: 0 | W99: =LOOKUP(A99,'DOE - FIPStoPayeeCodeConvTable'!$A$3:$A$213,'DOE - FIPStoPayeeCodeConvTable'!$E$3:$E$213) -> 0.2708 | X99: 0.3385 | Y99: 0 | Z99: 0
A100: 199 | B100: =LOOKUP(A100,'DOE - FIPStoPayeeCodeConvTable'!$A$3:$A$213,'DOE - FIPStoPayeeCodeConvTable'!$B$3:$B$213) -> York Co | S100: 0 | U100: 0 | V100: 0 | W100: =LOOKUP(A100,'DOE - FIPStoPayeeCodeConvTable'!$A$3:$A$213,'DOE - FIPStoPayeeCodeConvTable'!$E$3:$E$213) -> 0.3888 | X100: 0.486 | Y100: 0 | Z100: 0
A101: 510 | B101: =LOOKUP(A101,'DOE - FIPStoPayeeCodeConvTable'!$A$3:$A$213,'DOE - FIPStoPayeeCodeConvTable'!$B$3:$B$213) -> Alexandria City | S101: =SUM(C101:R101) -> 0 | U101: 0 | V101: 0 | W101: =LOOKUP(A101,'DOE - FIPStoPayeeCodeConvTable'!$A$3:$A$213,'DOE - FIPStoPayeeCodeConvTable'!$E$3:$E$213) -> 0.5309 | X101: 0.663625 | Y101: 0 | Z101: 0
A102: 520 | B102: =LOOKUP(A102,'DOE - FIPStoPayeeCodeConvTable'!$A$3:$A$213,'DOE - FIPStoPayeeCodeConvTable'!$B$3:$B$213) -> Bristol City | S102: 0 | U102: =ROUND($U$1*S102,2) -> 0 | V102: =SUM(S102)-SUM(U102) -> 0 | W102: =LOOKUP(A102,'DOE - FIPStoPayeeCodeConvTable'!$A$3:$A$213,'DOE - FIPStoPayeeCodeConvTable'!$E$3:$E$213) -> 0.2547 | X102: 0.318375 | Y102: 0 | Z102: 0
A103: 530 | B103: =LOOKUP(A103,'DOE - FIPStoPayeeCodeConvTable'!$A$3:$A$213,'DOE - FIPStoPayeeCodeConvTable'!$B$3:$B$213) -> Buena Vista City | S103: 0 | U103: 0 | V103: 0 | W103: =LOOKUP(A103,'DOE - FIPStoPayeeCodeConvTable'!$A$3:$A$213,'DOE - FIPStoPayeeCodeConvTable'!$E$3:$E$213) -> 0.2329 | X103: 0.291125 | Y103: 0 | Z103: 0
A104: 540 | B104: =LOOKUP(A104,'DOE - FIPStoPayeeCodeConvTable'!$A$3:$A$213,'DOE - FIPStoPayeeCodeConvTable'!$B$3:$B$213) -> Charlottesville City | S104: 0 | U104: 0 | V104: 0 | W104: =LOOKUP(A104,'DOE - FIPStoPayeeCodeConvTable'!$A$3:$A$213,'DOE - FIPStoPayeeCodeConvTable'!$E$3:$E$213) -> 0.3068 | X104: 0.3835 | Y104: 0 | Z104: 0
A105: 550 | B105: =LOOKUP(A105,'DOE - FIPStoPayeeCodeConvTable'!$A$3:$A$213,'DOE - FIPStoPayeeCodeConvTable'!$B$3:$B$213) -> Chesapeake City | S105: 0 | U105: 0 | V105: 0 | W105: =LOOKUP(A105,'DOE - FIPStoPayeeCodeConvTable'!$A$3:$A$213,'DOE - FIPStoPayeeCodeConvTable'!$E$3:$E$213) -> 0.3715 | X105: 0.464375 | Y105: 0 | Z105: 0
A106: 570 | B106: =LOOKUP(A106,'DOE - FIPStoPayeeCodeConvTable'!$A$3:$A$213,'DOE - FIPStoPayeeCodeConvTable'!$B$3:$B$213) -> Colonial Heights City | S106: 0 | U106: 0 | V106: 0 | W106: =LOOKUP(A106,'DOE - FIPStoPayeeCodeConvTable'!$A$3:$A$213,'DOE - FIPStoPayeeCodeConvTable'!$E$3:$E$213) -> 0.4027 | X106: 0.503375 | Y106: 0 | Z106: 0
A107: 580 | B107: =LOOKUP(A107,'DOE - FIPStoPayeeCodeConvTable'!$A$3:$A$213,'DOE - FIPStoPayeeCodeConvTable'!$B$3:$B$213) -> Covington City | S107: 0 | U107: 0 | V107: 0 | W107: =LOOKUP(A107,'DOE - FIPStoPayeeCodeConvTable'!$A$3:$A$213,'DOE - FIPStoPayeeCodeConvTable'!$E$3:$E$213) -> 0.2496 | X107: 0.312 | Y107: 0 | Z107: 0
A108: 590 | B108: =LOOKUP(A108,'DOE - FIPStoPayeeCodeConvTable'!$A$3:$A$213,'DOE - FIPStoPayeeCodeConvTable'!$B$3:$B$213) -> Danville City | S108: 0 | U108: 0 | V108: 0 | W108: =LOOKUP(A108,'DOE - FIPStoPayeeCodeConvTable'!$A$3:$A$213,'DOE - FIPStoPayeeCodeConvTable'!$E$3:$E$213) -> 0.2223 | X108: 0.277875 | Y108: 0 | Z108: 0
A109: 620 | B109: =LOOKUP(A109,'DOE - FIPStoPayeeCodeConvTable'!$A$3:$A$213,'DOE - FIPStoPayeeCodeConvTable'!$B$3:$B$213) -> Franklin City | S109: 0 | U109: 0 | V109: 0 | W109: =LOOKUP(A109,'DOE - FIPStoPayeeCodeConvTable'!$A$3:$A$213,'DOE - FIPStoPayeeCodeConvTable'!$E$3:$E$213) -> 0.371 | X109: 0.46375 | Y109: 0 | Z109: 0
A110: 630 | B110: =LOOKUP(A110,'DOE - FIPStoPayeeCodeConvTable'!$A$3:$A$213,'DOE - FIPStoPayeeCodeConvTable'!$B$3:$B$213) -> Fredericksburg City | S110: 0 | U110: 0 | V110: 0 | W110: =LOOKUP(A110,'DOE - FIPStoPayeeCodeConvTable'!$A$3:$A$213,'DOE - FIPStoPayeeCodeConvTable'!$E$3:$E$213) -> 0.3441 | X110: 0.430125 | Y110: 0 | Z110: 0
A111: 640 | B111: =LOOKUP(A111,'DOE - FIPStoPayeeCodeConvTable'!$A$3:$A$213,'DOE - FIPStoPayeeCodeConvTable'!$B$3:$B$213) -> Galax City | S111: 0 | U111: 0 | V111: 0 | W111: =LOOKUP(A111,'DOE - FIPStoPayeeCodeConvTable'!$A$3:$A$213,'DOE - FIPStoPayeeCodeConvTable'!$E$3:$E$213) -> 0.3146 | X111: 0.39325 | Y111: 0 | Z111: 0
A112: 650 | B112: =LOOKUP(A112,'DOE - FIPStoPayeeCodeConvTable'!$A$3:$A$213,'DOE - FIPStoPayeeCodeConvTable'!$B$3:$B$213) -> Hampton City | S112: 0 | U112: 0 | V112: 0 | W112: =LOOKUP(A112,'DOE - FIPStoPayeeCodeConvTable'!$A$3:$A$213,'DOE - FIPStoPayeeCodeConvTable'!$E$3:$E$213) -> 0.3223 | X112: 0.402875 | Y112: 0 | Z112: 0
A113: 660 | B113: =LOOKUP(A113,'DOE - FIPStoPayeeCodeConvTable'!$A$3:$A$213,'DOE - FIPStoPayeeCodeConvTable'!$B$3:$B$213) -> Harrisonburg City | S113: 0 | U113: 0 | V113: 0 | W113: =LOOKUP(A113,'DOE - FIPStoPayeeCodeConvTable'!$A$3:$A$213,'DOE - FIPStoPayeeCodeConvTable'!$E$3:$E$213) -> 0.3808 | X113: 0.476 | Y113: 0 | Z113: 0
A114: 670 | B114: =LOOKUP(A114,'DOE - FIPStoPayeeCodeConvTable'!$A$3:$A$213,'DOE - FIPStoPayeeCodeConvTable'!$B$3:$B$213) -> Hopewell City | S114: 0 | U114: 0 | V114: 0 | W114: =LOOKUP(A114,'DOE - FIPStoPayeeCodeConvTable'!$A$3:$A$213,'DOE - FIPStoPayeeCodeConvTable'!$E$3:$E$213) -> 0.2667 | X114: 0.333375 | Y114: 0 | Z114: 0
A115: 678 | B115: =LOOKUP(A115,'DOE - FIPStoPayeeCodeConvTable'!$A$3:$A$213,'DOE - FIPStoPayeeCodeConvTable'!$B$3:$B$213) -> Lexington City | S115: 0 | U115: 0 | V115: 0 | W115: =LOOKUP(A115,'DOE - FIPStoPayeeCodeConvTable'!$A$3:$A$213,'DOE - FIPStoPayeeCodeConvTable'!$E$3:$E$213) -> 0.3302 | X115: 0.41275 | Y115: 0 | Z115: 0
A116: 680 | B116: =LOOKUP(A116,'DOE - FIPStoPayeeCodeConvTable'!$A$3:$A$213,'DOE - FIPStoPayeeCodeConvTable'!$B$3:$B$213) -> Lynchburg City | S116: 0 | U116: 0 | V116: 0 | W116: =LOOKUP(A116,'DOE - FIPStoPayeeCodeConvTable'!$A$3:$A$213,'DOE - FIPStoPayeeCodeConvTable'!$E$3:$E$213) -> 0.2736 | X116: 0.342 | Y116: 0 | Z116: 0
A117: 683 | B117: =LOOKUP(A117,'DOE - FIPStoPayeeCodeConvTable'!$A$3:$A$213,'DOE - FIPStoPayeeCodeConvTable'!$B$3:$B$213) -> Manassas City | S117: 0 | U117: 0 | V117: 0 | W117: =LOOKUP(A117,'DOE - FIPStoPayeeCodeConvTable'!$A$3:$A$213,'DOE - FIPStoPayeeCodeConvTable'!$E$3:$E$213) -> 0.4168 | X117: 0.521 | Y117: 0 | Z117: 0
A118: 685 | B118: =LOOKUP(A118,'DOE - FIPStoPayeeCodeConvTable'!$A$3:$A$213,'DOE - FIPStoPayeeCodeConvTable'!$B$3:$B$213) -> Manassas Park City | S118: 0 | U118: 0 | V118: 0 | W118: =LOOKUP(A118,'DOE - FIPStoPayeeCodeConvTable'!$A$3:$A$213,'DOE - FIPStoPayeeCodeConvTable'!$E$3:$E$213) -> 0.4273 | X118: 0.534125 | Y118: 0 | Z118: 0
A119: 690 | B119: =LOOKUP(A119,'DOE - FIPStoPayeeCodeConvTable'!$A$3:$A$213,'DOE - FIPStoPayeeCodeConvTable'!$B$3:$B$213) -> Martinsville City | S119: 0 | U119: 0 | V119: 0 | W119: =LOOKUP(A119,'DOE - FIPStoPayeeCodeConvTable'!$A$3:$A$213,'DOE - FIPStoPayeeCodeConvTable'!$E$3:$E$213) -> 0.3321 | X119: 0.415125 | Y119: 0 | Z119: 0
A120: 700 | B120: =LOOKUP(A120,'DOE - FIPStoPayeeCodeConvTable'!$A$3:$A$213,'DOE - FIPStoPayeeCodeConvTable'!$B$3:$B$213) -> Newport News City | S120: 0 | U120: 0 | V120: 0 | W120: =LOOKUP(A120,'DOE - FIPStoPayeeCodeConvTable'!$A$3:$A$213,'DOE - FIPStoPayeeCodeConvTable'!$E$3:$E$213) -> 0.2773 | X120: 0.346625 | Y120: 0 | Z120: 0
A121: 710 | B121: =LOOKUP(A121,'DOE - FIPStoPayeeCodeConvTable'!$A$3:$A$213,'DOE - FIPStoPayeeCodeConvTable'!$B$3:$B$213) -> Norfolk City | S121: 0 | U121: 0 | V121: 0 | W121: =LOOKUP(A121,'DOE - FIPStoPayeeCodeConvTable'!$A$3:$A$213,'DOE - FIPStoPayeeCodeConvTable'!$E$3:$E$213) -> 0.2455 | X121: 0.306875 | Y121: 0 | Z121: 0
A122: 720 | B122: =LOOKUP(A122,'DOE - FIPStoPayeeCodeConvTable'!$A$3:$A$213,'DOE - FIPStoPayeeCodeConvTable'!$B$3:$B$213) -> Norton City | S122: 0 | U122: 0 | V122: 0 | W122: =LOOKUP(A122,'DOE - FIPStoPayeeCodeConvTable'!$A$3:$A$213,'DOE - FIPStoPayeeCodeConvTable'!$E$3:$E$213) -> 0.3254 | X122: 0.40675 | Y122: 0 | Z122: 0
A123: 730 | B123: =LOOKUP(A123,'DOE - FIPStoPayeeCodeConvTable'!$A$3:$A$213,'DOE - FIPStoPayeeCodeConvTable'!$B$3:$B$213) -> Petersburg City | S123: 0 | U123: 0 | V123: 0 | W123: =LOOKUP(A123,'DOE - FIPStoPayeeCodeConvTable'!$A$3:$A$213,'DOE - FIPStoPayeeCodeConvTable'!$E$3:$E$213) -> 0.3535 | X123: 0.441875 | Y123: 0 | Z123: 0
A124: 735 | B124: =LOOKUP(A124,'DOE - FIPStoPayeeCodeConvTable'!$A$3:$A$213,'DOE - FIPStoPayeeCodeConvTable'!$B$3:$B$213) -> Poquoson City | S124: 0 | U124: 0 | V124: 0 | W124: =LOOKUP(A124,'DOE - FIPStoPayeeCodeConvTable'!$A$3:$A$213,'DOE - FIPStoPayeeCodeConvTable'!$E$3:$E$213) -> 0.2787 | X124: 0.348375 | Y124: 0 | Z124: 0
A125: 740 | B125: =LOOKUP(A125,'DOE - FIPStoPayeeCodeConvTable'!$A$3:$A$213,'DOE - FIPStoPayeeCodeConvTable'!$B$3:$B$213) -> Portsmouth City | S125: 0 | U125: 0 | V125: 0 | W125: =LOOKUP(A125,'DOE - FIPStoPayeeCodeConvTable'!$A$3:$A$213,'DOE - FIPStoPayeeCodeConvTable'!$E$3:$E$213) -> 0.2605 | X125: 0.325625 | Y125: 0 | Z125: 0
A126: 750 | B126: =LOOKUP(A126,'DOE - FIPStoPayeeCodeConvTable'!$A$3:$A$213,'DOE - FIPStoPayeeCodeConvTable'!$B$3:$B$213) -> Radford City | S126: 0 | U126: 0 | V126: 0 | W126: =LOOKUP(A126,'DOE - FIPStoPayeeCodeConvTable'!$A$3:$A$213,'DOE - FIPStoPayeeCodeConvTable'!$E$3:$E$213) -> 0.2035 | X126: 0.254375 | Y126: 0 | Z126: 0
A127: 760 | B127: =LOOKUP(A127,'DOE - FIPStoPayeeCodeConvTable'!$A$3:$A$213,'DOE - FIPStoPayeeCodeConvTable'!$B$3:$B$213) -> Richmond City | S127: 0 | U127: 0 | V127: 0 | W127: =LOOKUP(A127,'DOE - FIPStoPayeeCodeConvTable'!$A$3:$A$213,'DOE - FIPStoPayeeCodeConvTable'!$E$3:$E$213) -> 0.3691 | X127: 0.461375 | Y127: 0 | Z127: 0
A128: 770 | B128: =LOOKUP(A128,'DOE - FIPStoPayeeCodeConvTable'!$A$3:$A$213,'DOE - FIPStoPayeeCodeConvTable'!$B$3:$B$213) -> Roanoke City | S128: 0 | U128: 0 | V128: 0 | W128: =LOOKUP(A128,'DOE - FIPStoPayeeCodeConvTable'!$A$3:$A$213,'DOE - FIPStoPayeeCodeConvTable'!$E$3:$E$213) -> 0.3072 | X128: 0.384 | Y128: 0 | Z128: 0
A129: 775 | B129: =LOOKUP(A129,'DOE - FIPStoPayeeCodeConvTable'!$A$3:$A$213,'DOE - FIPStoPayeeCodeConvTable'!$B$3:$B$213) -> Salem City | S129: 0 | U129: 0 | V129: 0 | W129: =LOOKUP(A129,'DOE - FIPStoPayeeCodeConvTable'!$A$3:$A$213,'DOE - FIPStoPayeeCodeConvTable'!$E$3:$E$213) -> 0.3513 | X129: 0.439125 | Y129: 0 | Z129: 0
A130: 790 | B130: =LOOKUP(A130,'DOE - FIPStoPayeeCodeConvTable'!$A$3:$A$213,'DOE - FIPStoPayeeCodeConvTable'!$B$3:$B$213) -> Staunton City | S130: 0 | U130: 0 | V130: 0 | W130: =LOOKUP(A130,'DOE - FIPStoPayeeCodeConvTable'!$A$3:$A$213,'DOE - FIPStoPayeeCodeConvTable'!$E$3:$E$213) -> 0.2699 | X130: 0.337375 | Y130: 0 | Z130: 0
A131: 800 | B131: =LOOKUP(A131,'DOE - FIPStoPayeeCodeConvTable'!$A$3:$A$213,'DOE - FIPStoPayeeCodeConvTable'!$B$3:$B$213) -> Suffolk City | S131: 0 | U131: 0 | V131: 0 | W131: =LOOKUP(A131,'DOE - FIPStoPayeeCodeConvTable'!$A$3:$A$213,'DOE - FIPStoPayeeCodeConvTable'!$E$3:$E$213) -> 0.2432 | X131: 0.304 | Y131: 0 | Z131: 0
A132: 810 | B132: =LOOKUP(A132,'DOE - FIPStoPayeeCodeConvTable'!$A$3:$A$213,'DOE - FIPStoPayeeCodeConvTable'!$B$3:$B$213) -> Virginia Beach City | S132: 0 | U132: 0 | V132: 0 | W132: =LOOKUP(A132,'DOE - FIPStoPayeeCodeConvTable'!$A$3:$A$213,'DOE - FIPStoPayeeCodeConvTable'!$E$3:$E$213) -> 0.3569 | X132: 0.446125 | Y132: 0 | Z132: 0
A133: 820 | B133: =LOOKUP(A133,'DOE - FIPStoPayeeCodeConvTable'!$A$3:$A$213,'DOE - FIPStoPayeeCodeConvTable'!$B$3:$B$213) -> Waynesboro City | S133: =SUM(C133:R133) -> 0 | U133: 0 | V133: =SUM(S133)-SUM(U133) -> 0 | W133: =LOOKUP(A133,'DOE - FIPStoPayeeCodeConvTable'!$A$3:$A$213,'DOE - FIPStoPayeeCodeConvTable'!$E$3:$E$213) -> 0.3843 | X133: 0.480375 | Y133: 0 | Z133: 0
A134: 830 | B134: =LOOKUP(A134,'DOE - FIPStoPayeeCodeConvTable'!$A$3:$A$213,'DOE - FIPStoPayeeCodeConvTable'!$B$3:$B$213) -> Williamsburg City | S134: 0 | U134: 0 | V134: 0 | W134: =LOOKUP(A134,'DOE - FIPStoPayeeCodeConvTable'!$A$3:$A$213,'DOE - FIPStoPayeeCodeConvTable'!$E$3:$E$213) -> 0.4553 | X134: =$X$1*W134 -> 0.569125 | Y134: =ROUND(X134*V134,2) -> 0 | Z134: =SUM(V134)-SUM(Y134) -> 0
A135: 840 | B135: =LOOKUP(A135,'DOE - FIPStoPayeeCodeConvTable'!$A$3:$A$213,'DOE - FIPStoPayeeCodeConvTable'!$B$3:$B$213) -> Winchester City | S135: 0 | U135: 0 | V135: 0 | W135: =LOOKUP(A135,'DOE - FIPStoPayeeCodeConvTable'!$A$3:$A$213,'DOE - FIPStoPayeeCodeConvTable'!$E$3:$E$213) -> 0.4587 | X135: 0.573375 | Y135: 0 | Z135: 0

Sheet Regular Covid 19 Rate Adj (hidden)
A1: FY | B1: ='DOE - FIPStoPayeeCodeConvTable'!G1 -> 2022 | C1: MEDICAID ADJUSTMENTS-- Regular Covid Rate Adj | O1: ="Extended to be paided in this SFY = " & B1 -> Extended to be paided in this SFY = 2022 | T1: xx | U1: 0.562 | V1: 0.438 | W1: (POOL) | X1: 1.25 | AA1: =1-0.438 -> 0.562
U2: FEDERAL | V2: STATE/ | W2: (RATE) | X2: Factor | AQ2: =+AQ3-AQ5 -> 0 | AR2: =+AR3-AR5 -> 0 | AS2: 0 | AT2: 0 | AU2: 0 | AV2: 0
A3: FIPS | S3: Grand | U3: MEDICAID | V3: LOCAL | W3: LOCAL | Y3: LOCAL | Z3: STATE | AD3: Regular | AJ3: TFC | AQ3: =+AD5+AJ5 -> 5393434.88 | AR3: =+AE5+AK5 -> 4324480.96 | AS3: 6833304.38 | AT3: 6118750.47 | AU3: 6802406.88 | AV3: 4879031.45
A4: CODE | B4: LOCALITY | C4: =TEXT("7/1/" & $B$1-1,"mmm-yyyy") -> Jul-2021 | D4: =TEXT("8/1/" & $B$1-1,"mmm-yyyy") -> Aug-2021 | E4: =TEXT("9/1/" & $B$1-1,"mmm-yyyy") -> Sep-2021 | F4: =TEXT("10/1/" & $B$1-1,"mmm-yyyy") -> Oct-2021 | G4: =TEXT("11/1/" & $B$1-1,"mmm-yyyy") -> Nov-2021 | H4: =TEXT("12/1/" & $B$1-1,"mmm-yyyy") -> Dec-2021 | I4: =TEXT("1/1/" & $B$1,"mmm-yyyy") -> Jan-2022 | J4: =TEXT("2/1/" & $B$1,"mmm-yyyy") -> Feb-2022 | K4: =TEXT("3/1/" & $B$1,"mmm-yyyy") -> Mar-2022 | L4: =TEXT("4/1/" & $B$1,"mmm-yyyy") -> Apr-2022 | M4: =TEXT("5/1/" & $B$1,"mmm-yyyy") -> May-2022 | N4: =TEXT("6/1/" & $B$1,"mmm-yyyy") -> Jun-2022 | O4: =TEXT("7/1/" & $B$1,"mmm-yyyy") -> Jul-2022 | P4: =TEXT("8/1/" & $B$1,"mmm-yyyy") -> Aug-2022 | Q4: =TEXT("9/1/" & $B$1,"mmm-yyyy") -> Sep-2022 | R4: =TEXT("10/1/" & $B$1,"mmm-yyyy") -> Oct-2022 | S4: Total | U4: RATE/Share | V4: SHARE | W4: MATCH Rate | Y4: MATCH | Z4: SHARE | AD4: =TEXT("1/1/" & $B$1,"mmm-yyyy") -> Jan-2022 | AE4: =TEXT("2/1/" & $B$1,"mmm-yyyy") -> Feb-2022 | AF4: =TEXT("3/1/" & $B$1,"mmm-yyyy") -> Mar-2022 | AG4: =TEXT("4/1/" & $B$1,"mmm-yyyy") -> Apr-2022 | AH4: =TEXT("5/1/" & $B$1,"mmm-yyyy") -> May-2022 | AI4: =TEXT("6/1/" & $B$1,"mmm-yyyy") -> Jun-2022 | AJ4: =TEXT("1/1/" & $B$1,"mmm-yyyy") -> Jan-2022 | AK4: =TEXT("2/1/" & $B$1,"mmm-yyyy") -> Feb-2022 | AL4: =TEXT("3/1/" & $B$1,"mmm-yyyy") -> Mar-2022 | AM4: =TEXT("4/1/" & $B$1,"mmm-yyyy") -> Apr-2022 | AN4: =TEXT("5/1/" & $B$1,"mmm-yyyy") -> May-2022 | AO4: =TEXT("6/1/" & $B$1,"mmm-yyyy") -> Jun-2022 | AQ4: =TEXT("1/1/" & $B$1,"mmm-yyyy") -> Jan-2022 | AR4: =TEXT("2/1/" & $B$1,"mmm-yyyy") -> Feb-2022 | AS4: =TEXT("3/1/" & $B$1,"mmm-yyyy") -> Mar-2022 | AT4: =TEXT("4/1/" & $B$1,"mmm-yyyy") -> Apr-2022 | AU4: =TEXT("5/1/" & $B$1,"mmm-yyyy") -> May-2022 | AV4: =TEXT("6/1/" & $B$1,"mmm-yyyy") -> Jun-2022
A5: Totals | C5: =SUM(C6:C1200) -> 4514833.2 | D5: =SUM(D6:D1200) -> 8512405.16 | E5: 5326747.98 | F5: 4772623.55 | G5: 5530107.46 | H5: 5703335.73 | I5: 6868601.45 | J5: 5790075.64 | K5: 6837291.84 | L5: 4455513.62 | M5: 3315852.51 | N5: 6399062.94 | O5: =SUM(O6:O1200) -> 0 | P5: 0 | Q5: 0 | R5: 0 | S5: =SUM(C5:R5) -> 68026451.08 | T5: = | U5: =SUM(U6:U399) -> 38230865.55 | V5: =SUM(V6:V399) -> 29795585.53 | W5: = | Y5: =SUM(Y6:Y399) -> 12724246.77 | Z5: =SUM(Z6:Z399) -> 17071338.76 | AD5: =SUM(AD6:AD1201) -> 5393434.88 | AE5: 4324480.96 | AF5: =SUM(AF6:AF1200) -> 6833304.38 | AG5: =SUM(AG6:AG1200) -> 6118750.47 | AH5: =SUM(AH6:AH1200) -> 6802406.88 | AI5: =SUM(AI6:AI1200) -> 4879031.45 | AJ5: =SUM(AJ6:AJ1201) -> 0 | AK5: =SUM(AK6:AK1200) -> 0 | AL5: =SUM(AL6:AL1200) -> 0 | AM5: =SUM(AM6:AM1200) -> 0 | AN5: =SUM(AN6:AN1200) -> 0 | AO5: =SUM(AO6:AO1200) -> 0 | AQ5: 5393434.88 | AR5: =SUM(AR6:AR1200) -> 4324480.96 | AS5: =SUM(AS6:AS1200) -> 6833304.38 | AT5: =SUM(AT6:AT1200) -> 6118750.47 | AU5: =SUM(AU6:AU1200) -> 6802406.88 | AV5: =SUM(AV6:AV1200) -> 4879031.45
A6: 1 | B6: =LOOKUP(A6,'DOE - FIPStoPayeeCodeConvTable'!$A$3:$A$213,'DOE - FIPStoPayeeCodeConvTable'!$B$3:$B$213) -> Accomack Co | C6: 0 | D6: 0 | E6: 9736.36 | F6: 8889.72 | G6: 11852.96 | H6: 14816.2 | I6: 17779.44 | J6: 12276.28 | K6: 8889.72 | L6: 6773.12 | M6: 8889.72 | N6: 14816.2 | S6: =SUM(C6:R6) -> 114719.72 | U6: =ROUND($U$1*S6,2) -> 64472.48 | V6: =SUM(S6)-SUM(U6) -> 50247.24 | W6: =LOOKUP(A6,'DOE - FIPStoPayeeCodeConvTable'!$A$3:$A$213,'DOE - FIPStoPayeeCodeConvTable'!$E$3:$E$213) -> 0.2332 | X6: =$X$1*W6 -> 0.2915 | Y6: =ROUND(X6*V6,2) -> 14647.07 | Z6: =SUM(V6)-SUM(Y6) -> 35600.17 | AD6: 0 | AE6: 0 | AF6: 0 | AG6: 0 | AH6: 0 | AI6: 0 | AQ6: =+AD6+AJ6 -> 0 | AR6: =+AE6+AK6 -> 0 | AS6: 0 | AT6: 0 | AU6: 0 | AV6: 0
A7: 3 | B7: =LOOKUP(A7,'DOE - FIPStoPayeeCodeConvTable'!$A$3:$A$213,'DOE - FIPStoPayeeCodeConvTable'!$B$3:$B$213) -> Albemarle Co | C7: 46698.11 | D7: 132172.65 | E7: 89185.79 | F7: 64092.42 | G7: 108712.23 | H7: 88344.82 | I7: 69210.31 | J7: 68943.29 | K7: 46573.03 | L7: 96575.94 | M7: 46637.9 | N7: 92122.48 | S7: 949268.97 | U7: 533489.16 | V7: 415779.81 | W7: =LOOKUP(A7,'DOE - FIPStoPayeeCodeConvTable'!$A$3:$A$213,'DOE - FIPStoPayeeCodeConvTable'!$E$3:$E$213) -> 0.4474 | X7: =$X$1*W7 -> 0.55925 | Y7: =ROUND(X7*V7,2) -> 232524.86 | Z7: =SUM(V7)-SUM(Y7) -> 183254.95 | AD7: 52803.13 | AE7: 106249.05 | AF7: 144494.56 | AG7: 57576.78 | AH7: 59467.83 | AI7: 101887.89 | AQ7: =+AD7+AJ7 -> 52803.13 | AR7: =+AE7+AK7 -> 106249.05 | AS7: =+AF7+AL7 -> 144494.56 | AT7: =+AG7+AM7 -> 57576.78 | AU7: =+AH7+AN7 -> 59467.83 | AV7: =+AI7+AO7 -> 101887.89
A8: 5 | B8: =LOOKUP(A8,'DOE - FIPStoPayeeCodeConvTable'!$A$3:$A$213,'DOE - FIPStoPayeeCodeConvTable'!$B$3:$B$213) -> Alleghany Co | C8: 19111.26 | D8: 42092.03 | E8: 17655.74 | F8: 30268.52 | G8: 13598.46 | H8: 10879.76 | I8: 17799.1 | J8: 42094.54 | K8: 38089.84 | L8: 16952.46 | M8: 0 | N8: 22734.1 | S8: 271275.81 | U8: 152457.01 | V8: 118818.8 | W8: =LOOKUP(A8,'DOE - FIPStoPayeeCodeConvTable'!$A$3:$A$213,'DOE - FIPStoPayeeCodeConvTable'!$E$3:$E$213) -> 0.1924 | X8: 0.2405 | Y8: 28575.92 | Z8: 90242.88 | AD8: 36376.01 | AE8: 13598.46 | AF8: 36237.78 | AG8: 26147.72 | AH8: 58284.47 | AI8: 18468.71 | AQ8: 36376.01 | AR8: 13598.46 | AS8: 36237.78 | AT8: 26147.72 | AU8: 58284.47 | AV8: 18468.71
A9: 7 | B9: =LOOKUP(A9,'DOE - FIPStoPayeeCodeConvTable'!$A$3:$A$213,'DOE - FIPStoPayeeCodeConvTable'!$B$3:$B$213) -> Amelia Co | C9: 4328.5 | D9: 22012.64 | E9: 11852.96 | F9: 11852.96 | G9: 9378.68 | H9: 31663.64 | I9: 20742.68 | J9: 15239.52 | K9: 53338.32 | L9: 16509.48 | M9: 10159.68 | N9: 16932.8 | S9: 224011.86 | U9: 125894.67 | V9: 98117.19 | W9: =LOOKUP(A9,'DOE - FIPStoPayeeCodeConvTable'!$A$3:$A$213,'DOE - FIPStoPayeeCodeConvTable'!$E$3:$E$213) -> 0.3268 | X9: 0.4085 | Y9: 40080.87 | Z9: 58036.32 | AD9: 13864.61 | AE9: 21059.82 | AF9: 27355.82 | AG9: 35808.5 | AH9: 27781.54 | AI9: 32961.89 | AQ9: 13864.61 | AR9: 21059.82 | AS9: 27355.82 | AT9: 35808.5 | AU9: 27781.54 | AV9: 32961.89
A10: 9 | B10: =LOOKUP(A10,'DOE - FIPStoPayeeCodeConvTable'!$A$3:$A$213,'DOE - FIPStoPayeeCodeConvTable'!$B$3:$B$213) -> Amherst Co | C10: 35808.5 | D10: 29588.27 | E10: 11873.91 | F10: 0 | G10: 0 | H10: 0 | I10: 0 | J10: 0 | K10: 123609.44 | L10: 16974.34 | M10: 8889.72 | N10: 78615.77 | S10: 305359.95 | U10: 171612.29 | V10: 133747.66 | W10: =LOOKUP(A10,'DOE - FIPStoPayeeCodeConvTable'!$A$3:$A$213,'DOE - FIPStoPayeeCodeConvTable'!$E$3:$E$213) -> 0.2722 | X10: 0.34025 | Y10: 45507.64 | Z10: 88240.02 | AD10: 44263.09 | AE10: 32230.09 | AF10: 26232.58 | AG10: 42104.5 | AH10: 62388.58 | AI10: 77521.41 | AQ10: 44263.09 | AR10: 32230.09 | AS10: 26232.58 | AT10: 42104.5 | AU10: 62388.58 | AV10: 77521.41
A11: 11 | B11: =LOOKUP(A11,'DOE - FIPStoPayeeCodeConvTable'!$A$3:$A$213,'DOE - FIPStoPayeeCodeConvTable'!$B$3:$B$213) -> Appomattox Co | C11: 58701.41 | D11: 80633.01 | E11: 14284.68 | F11: 0 | G11: 56041.59 | H11: 16509.48 | I11: 30509.7 | J11: 58178.88 | K11: 34739.56 | L11: 34708.88 | M11: 4194.36 | N11: 75887.44 | S11: 464388.99 | U11: 260986.61 | V11: 203402.38 | W11: =LOOKUP(A11,'DOE - FIPStoPayeeCodeConvTable'!$A$3:$A$213,'DOE - FIPStoPayeeCodeConvTable'!$E$3:$E$213) -> 0.2639 | X11: 0.329875 | Y11: 67097.36 | Z11: 136305.02 | AD11: 88919.68 | AE11: 25577.5 | AF11: 83885.41 | AG11: 86570 | AH11: 75787.7 | AI11: 59216.09 | AQ11: 88919.68 | AR11: 25577.5 | AS11: 83885.41 | AT11: 86570 | AU11: 75787.7 | AV11: 59216.09
A12: 13 | B12: =LOOKUP(A12,'DOE - FIPStoPayeeCodeConvTable'!$A$3:$A$213,'DOE - FIPStoPayeeCodeConvTable'!$B$3:$B$213) -> Arlington Co | C12: 13976.82 | D12: 22427.36 | E12: 6779.82 | F12: 6388.52 | G12: 12026.07 | H12: 0 | I12: 2098.11 | J12: 17672.44 | K12: 11142.88 | L12: 12336.76 | M12: 2539.92 | N12: 43920.76 | S12: 151309.46 | U12: 85035.92 | V12: 66273.54 | W12: =LOOKUP(A12,'DOE - FIPStoPayeeCodeConvTable'!$A$3:$A$213,'DOE - FIPStoPayeeCodeConvTable'!$E$3:$E$213) -> 0.4602 | X12: 0.57525 | Y12: 38123.85 | Z12: 28149.69 | AD12: 9693.48 | AE12: 97459.06 | AF12: 38498.56 | AG12: 17314 | AH12: 26650.6 | AI12: 15843.26 | AQ12: 9693.48 | AR12: 97459.06 | AS12: 38498.56 | AT12: 17314 | AU12: 26650.6 | AV12: 15843.26
A13: 15 | B13: =LOOKUP(A13,'DOE - FIPStoPayeeCodeConvTable'!$A$3:$A$213,'DOE - FIPStoPayeeCodeConvTable'!$B$3:$B$213) -> Augusta Co | C13: 5020 | D13: 121070.16 | E13: 21896.12 | F13: 25822.52 | G13: 54345.34 | H13: 68972.49 | I13: 57318.05 | J13: 52860.37 | K13: 44574.78 | L13: 45999.71 | M13: 29778.1 | N13: 88384.11 | S13: 616041.75 | U13: 346215.46 | V13: 269826.29 | W13: =LOOKUP(A13,'DOE - FIPStoPayeeCodeConvTable'!$A$3:$A$213,'DOE - FIPStoPayeeCodeConvTable'!$E$3:$E$213) -> 0.3302 | X13: 0.41275 | Y13: 111370.8 | Z13: 158455.49 | AD13: 42745.36 | AE13: 28474.24 | AF13: 78050.17 | AG13: 61075.47 | AH13: 104456.32 | AI13: 44076.95 | AQ13: 42745.36 | AR13: 28474.24 | AS13: 78050.17 | AT13: 61075.47 | AU13: 104456.32 | AV13: 44076.95
A14: 17 | B14: =LOOKUP(A14,'DOE - FIPStoPayeeCodeConvTable'!$A$3:$A$213,'DOE - FIPStoPayeeCodeConvTable'!$B$3:$B$213) -> Bath Co | C14: 146.22 | D14: 16527 | E14: 0 | F14: 0 | G14: 0 | H14: 0 | I14: 0 | J14: 0 | K14: 0 | L14: 0 | M14: 0 | N14: 0 | S14: 16673.22 | U14: 9370.35 | V14: 7302.87 | W14: =LOOKUP(A14,'DOE - FIPStoPayeeCodeConvTable'!$A$3:$A$213,'DOE - FIPStoPayeeCodeConvTable'!$E$3:$E$213) -> 0.4278 | X14: 0.53475 | Y14: 3905.21 | Z14: 3397.66 | AD14: 0 | AE14: 0 | AF14: 3801.72 | AG14: 0 | AH14: 4386.6 | AI14: 4532.82 | AQ14: 0 | AR14: 0 | AS14: 3801.72 | AT14: 0 | AU14: 4386.6 | AV14: 4532.82
A15: 19 | B15: =LOOKUP(A15,'DOE - FIPStoPayeeCodeConvTable'!$A$3:$A$213,'DOE - FIPStoPayeeCodeConvTable'!$B$3:$B$213) -> Bedford Co | C15: 56384.76 | D15: 171568.55 | E15: 99745.13 | F15: 104266.49 | G15: 85640.12 | H15: 76923.78 | I15: 114152.78 | J15: 145413.94 | K15: 102656.33 | L15: 71068.8 | M15: 72259.53 | N15: 129301.04 | S15: 1229381.25 | U15: 690912.26 | V15: 538468.99 | W15: =LOOKUP(A15,'DOE - FIPStoPayeeCodeConvTable'!$A$3:$A$213,'DOE - FIPStoPayeeCodeConvTable'!$E$3:$E$213) -> 0.31112 | X15: 0.3889 | Y15: 209410.59 | Z15: 329058.4 | AD15: 181173.24 | AE15: 200387.69 | AF15: 248733.79 | AG15: 200895.54 | AH15: 181215.82 | AI15: 145402.85 | AQ15: 181173.24 | AR15: 200387.69 | AS15: 248733.79 | AT15: 200895.54 | AU15: 181215.82 | AV15: 145402.85
A16: 21 | B16: =LOOKUP(A16,'DOE - FIPStoPayeeCodeConvTable'!$A$3:$A$213,'DOE - FIPStoPayeeCodeConvTable'!$B$3:$B$213) -> Bland Co | C16: 0 | D16: 0 | E16: 0 | F16: 0 | G16: 0 | H16: 0 | I16: 0 | J16: 0 | K16: 0 | L16: 16086.16 | M16: 4656.52 | N16: 11852.96 | S16: 32595.64 | U16: 18318.75 | V16: 14276.89 | W16: =LOOKUP(A16,'DOE - FIPStoPayeeCodeConvTable'!$A$3:$A$213,'DOE - FIPStoPayeeCodeConvTable'!$E$3:$E$213) -> 0.2109 | X16: 0.263625 | Y16: 3763.75 | Z16: 10513.14 | AD16: 0 | AE16: 0 | AF16: 0 | AG16: 0 | AH16: 0 | AI16: 0 | AQ16: 0 | AR16: 0 | AS16: 0 | AT16: 0 | AU16: 0 | AV16: 0
A17: 23 | B17: =LOOKUP(A17,'DOE - FIPStoPayeeCodeConvTable'!$A$3:$A$213,'DOE - FIPStoPayeeCodeConvTable'!$B$3:$B$213) -> Botetourt Co | C17: 18101 | D17: 37573.72 | E17: 0 | F17: 28362.44 | G17: 13122.92 | H17: 25822.52 | I17: 18626.08 | J17: 32172.32 | K17: 18626.08 | L17: 846.46 | M17: 4386.6 | N17: 3801.72 | S17: 201441.86 | U17: 113210.33 | V17: 88231.53 | W17: =LOOKUP(A17,'DOE - FIPStoPayeeCodeConvTable'!$A$3:$A$213,'DOE - FIPStoPayeeCodeConvTable'!$E$3:$E$213) -> 0.3602 | X17: 0.45025 | Y17: 39726.25 | Z17: 48505.28 | AD17: 18055.55 | AE17: 7319 | AF17: 22844 | AG17: 19410 | AH17: 8163 | AI17: 32131 | AQ17: 18055.55 | AR17: 7319 | AS17: 22844 | AT17: 19410 | AU17: 8163 | AV17: 32131
A18: 25 | B18: =LOOKUP(A18,'DOE - FIPStoPayeeCodeConvTable'!$A$3:$A$213,'DOE - FIPStoPayeeCodeConvTable'!$B$3:$B$213) -> Brunswick Co | C18: 11805 | D18: 37774.89 | E18: 26929.72 | F18: 13122.92 | G18: 12699.6 | H18: 13122.92 | I18: 8889.72 | J18: 0 | K18: 0 | L18: 0 | M18: 0 | N18: 0 | S18: 124344.77 | U18: 69881.76 | V18: 54463.01 | W18: =LOOKUP(A18,'DOE - FIPStoPayeeCodeConvTable'!$A$3:$A$213,'DOE - FIPStoPayeeCodeConvTable'!$E$3:$E$213) -> 0.2439 | X18: 0.304875 | Y18: 16604.41 | Z18: 37858.6 | AD18: 54696.5 | AE18: 11018 | AF18: 11411.5 | AG18: 0 | AH18: 4386.6 | AI18: 5848.8 | AQ18: 54696.5 | AR18: 11018 | AS18: 11411.5 | AT18: 0 | AU18: 4386.6 | AV18: 5848.8
A19: 27 | B19: =LOOKUP(A19,'DOE - FIPStoPayeeCodeConvTable'!$A$3:$A$213,'DOE - FIPStoPayeeCodeConvTable'!$B$3:$B$213) -> Buchanan Co | C19: 21599.37 | D19: 39912.46 | E19: 13283.92 | F19: 10682.6 | G19: 2540.78 | H19: 0 | I19: 18639.18 | J19: 11512.88 | K19: 0 | L19: 0 | M19: 0 | N19: 0 | S19: 118171.19 | U19: 66412.21 | V19: 51758.98 | W19: =LOOKUP(A19,'DOE - FIPStoPayeeCodeConvTable'!$A$3:$A$213,'DOE - FIPStoPayeeCodeConvTable'!$E$3:$E$213) -> 0.3156 | X19: 0.3945 | Y19: 20418.92 | Z19: 31340.06 | AD19: 42536.65 | AE19: -30023.74 | AF19: 28987.75 | AG19: 22745.07 | AH19: 32073.75 | AI19: 4560.97 | AQ19: 42536.65 | AR19: -30023.74 | AS19: 28987.75 | AT19: 22745.07 | AU19: 32073.75 | AV19: 4560.97
A20: 29 | B20: =LOOKUP(A20,'DOE - FIPStoPayeeCodeConvTable'!$A$3:$A$213,'DOE - FIPStoPayeeCodeConvTable'!$B$3:$B$213) -> Buckingham Co | C20: 26162.09 | D20: 44151.37 | E20: 13573.23 | F20: 2963.24 | G20: 27092.48 | H20: 25822.52 | I20: 51645.04 | J20: 13122.92 | K20: 38098.8 | L20: 25275.5 | M20: 4386.6 | N20: 37128.46 | S20: 309422.25 | U20: 173895.3 | V20: 135526.95 | W20: =LOOKUP(A20,'DOE - FIPStoPayeeCodeConvTable'!$A$3:$A$213,'DOE - FIPStoPayeeCodeConvTable'!$E$3:$E$213) -> 0.2023 | X20: 0.252875 | Y20: 34271.38 | Z20: 101255.57 | AD20: 0 | AE20: 0 | AF20: 0 | AG20: 0 | AH20: 0 | AI20: 0 | AQ20: 0 | AR20: 0 | AS20: 0 | AT20: 0 | AU20: 0 | AV20: 0
A21: 31 | B21: =LOOKUP(A21,'DOE - FIPStoPayeeCodeConvTable'!$A$3:$A$213,'DOE - FIPStoPayeeCodeConvTable'!$B$3:$B$213) -> Campbell Co | C21: 51848.14 | D21: 125561.73 | E21: 78069.42 | F21: 69427.49 | G21: 83273.16 | H21: 111401.91 | I21: 168677.78 | J21: 137318.24 | K21: 163758.89 | L21: 43653.09 | M21: 7499.05 | N21: 42248.14 | S21: 1082737.04 | U21: 608498.22 | V21: 474238.82 | W21: =LOOKUP(A21,'DOE - FIPStoPayeeCodeConvTable'!$A$3:$A$213,'DOE - FIPStoPayeeCodeConvTable'!$E$3:$E$213) -> 0.3107 | X21: 0.388375 | Y21: 184182.5 | Z21: 290056.32 | AD21: 84597.97 | AE21: 90263.41 | AF21: 121663.84 | AG21: 82776.98 | AH21: 97525.76 | AI21: 97331.4 | AQ21: 84597.97 | AR21: 90263.41 | AS21: 121663.84 | AT21: 82776.98 | AU21: 97525.76 | AV21: 97331.4
A22: 33 | B22: =LOOKUP(A22,'DOE - FIPStoPayeeCodeConvTable'!$A$3:$A$213,'DOE - FIPStoPayeeCodeConvTable'!$B$3:$B$213) -> Caroline Co | C22: 4185 | D22: 31010.65 | E22: 48049.74 | F22: 67841.92 | G22: 40332.67 | H22: 0 | I22: 21055.37 | J22: 10700.27 | K22: 16014.56 | L22: 10700.27 | M22: 0 | N22: 16062.66 | S22: 265953.11 | U22: 149465.65 | V22: 116487.46 | W22: =LOOKUP(A22,'DOE - FIPStoPayeeCodeConvTable'!$A$3:$A$213,'DOE - FIPStoPayeeCodeConvTable'!$E$3:$E$213) -> 0.3308 | X22: 0.4135 | Y22: 48167.56 | Z22: 68319.9 | AD22: 19281.5 | AE22: 24003.5 | AF22: 21642.5 | AG22: 24003.5 | AH22: 14953 | AI22: 11805 | AQ22: 19281.5 | AR22: 24003.5 | AS22: 21642.5 | AT22: 24003.5 | AU22: 14953 | AV22: 11805
A23: 35 | B23: =LOOKUP(A23,'DOE - FIPStoPayeeCodeConvTable'!$A$3:$A$213,'DOE - FIPStoPayeeCodeConvTable'!$B$3:$B$213) -> Carroll Co | C23: 90803.04 | D23: 182768.58 | E23: 119646.4 | F23: 99288.18 | G23: 92352.38 | H23: 101928.58 | I23: 85259.82 | J23: 133524.74 | K23: 190802.58 | L23: 75358.84 | M23: 87136.57 | N23: 102832.3 | S23: 1361702.01 | U23: 765276.53 | V23: 596425.48 | W23: =LOOKUP(A23,'DOE - FIPStoPayeeCodeConvTable'!$A$3:$A$213,'DOE - FIPStoPayeeCodeConvTable'!$E$3:$E$213) -> 0.291 | X23: 0.36375 | Y23: 216949.77 | Z23: 379475.71 | AD23: 109029.62 | AE23: 88528.96 | AF23: 85330.23 | AG23: 126267.07 | AH23: 180249.86 | AI23: 63590.04 | AQ23: 109029.62 | AR23: 88528.96 | AS23: 85330.23 | AT23: 126267.07 | AU23: 180249.86 | AV23: 63590.04
A24: 36 | B24: =LOOKUP(A24,'DOE - FIPStoPayeeCodeConvTable'!$A$3:$A$213,'DOE - FIPStoPayeeCodeConvTable'!$B$3:$B$213) -> Charles City Co | C24: 11805 | D24: 12121.62 | E24: 13122.92 | F24: 3386.56 | G24: 0 | H24: 0 | I24: 0 | J24: 0 | K24: 0 | L24: 0 | M24: 0 | N24: 0 | S24: 40436.1 | U24: 22725.09 | V24: 17711.01 | W24: =LOOKUP(A24,'DOE - FIPStoPayeeCodeConvTable'!$A$3:$A$213,'DOE - FIPStoPayeeCodeConvTable'!$E$3:$E$213) -> 0.3131 | X24: 0.391375 | Y24: 6931.65 | Z24: 10779.36 | AD24: 0 | AE24: 0 | AF24: 0 | AG24: 11805 | AH24: 11805 | AI24: 11805 | AQ24: 0 | AR24: 0 | AS24: 0 | AT24: 11805 | AU24: 11805 | AV24: 11805
A25: 37 | B25: =LOOKUP(A25,'DOE - FIPStoPayeeCodeConvTable'!$A$3:$A$213,'DOE - FIPStoPayeeCodeConvTable'!$B$3:$B$213) -> Charlotte Co | C25: 4328.5 | D25: 31247.9 | E25: 23657.96 | F25: 11852.96 | G25: 34914.12 | H25: 21890.9 | I25: 17779.44 | J25: 11852.96 | K25: 19422.2 | L25: 13422.54 | M25: 13276.32 | N25: 19349.02 | S25: 222994.82 | U25: 125323.09 | V25: 97671.73 | W25: =LOOKUP(A25,'DOE - FIPStoPayeeCodeConvTable'!$A$3:$A$213,'DOE - FIPStoPayeeCodeConvTable'!$E$3:$E$213) -> 0.2204 | X25: 0.2755 | Y25: 26908.56 | Z25: 70763.17 | AD25: 0 | AE25: 0 | AF25: 0 | AG25: 0 | AH25: 0 | AI25: 0 | AQ25: 0 | AR25: 0 | AS25: 0 | AT25: 0 | AU25: 0 | AV25: 0
A26: 41 | B26: =LOOKUP(A26,'DOE - FIPStoPayeeCodeConvTable'!$A$3:$A$213,'DOE - FIPStoPayeeCodeConvTable'!$B$3:$B$213) -> Chesterfield Co | C26: 151430.84 | D26: 170881.99 | E26: 169121.28 | F26: 164666.58 | G26: 265970.06 | H26: 281719.86 | I26: 348790.23 | J26: 224049.98 | K26: 427688.38 | L26: 158475.33 | M26: 146095.54 | N26: 271558.05 | S26: 2780448.12 | U26: 1562611.84 | V26: 1217836.28 | W26: =LOOKUP(A26,'DOE - FIPStoPayeeCodeConvTable'!$A$3:$A$213,'DOE - FIPStoPayeeCodeConvTable'!$E$3:$E$213) -> 0.3853 | X26: 0.481625 | Y26: 586540.4 | Z26: 631295.88 | AD26: 137351.25 | AE26: 159642.96 | AF26: 184122.4 | AG26: 212795.08 | AH26: 192184.41 | AI26: 217805.55 | AQ26: 137351.25 | AR26: 159642.96 | AS26: 184122.4 | AT26: 212795.08 | AU26: 192184.41 | AV26: 217805.55
A27: 43 | B27: =LOOKUP(A27,'DOE - FIPStoPayeeCodeConvTable'!$A$3:$A$213,'DOE - FIPStoPayeeCodeConvTable'!$B$3:$B$213) -> Clarke Co | C27: 0 | D27: 0 | E27: 0 | F27: 0 | G27: 393.5 | H27: 0 | I27: 0 | J27: 0 | K27: 0 | L27: 16509.48 | M27: 12699.6 | N27: 13122.92 | S27: 42725.5 | U27: 24011.73 | V27: 18713.77 | W27: =LOOKUP(A27,'DOE - FIPStoPayeeCodeConvTable'!$A$3:$A$213,'DOE - FIPStoPayeeCodeConvTable'!$E$3:$E$213) -> 0.4797 | X27: 0.599625 | Y27: 11221.24 | Z27: 7492.53 | AD27: 4386.6 | AE27: 2778.18 | AF27: 0 | AG27: 0 | AH27: 0 | AI27: 292.44 | AQ27: 4386.6 | AR27: 2778.18 | AS27: 0 | AT27: 0 | AU27: 0 | AV27: 292.44
A28: 45 | B28: =LOOKUP(A28,'DOE - FIPStoPayeeCodeConvTable'!$A$3:$A$213,'DOE - FIPStoPayeeCodeConvTable'!$B$3:$B$213) -> Craig Co | C28: 10381.62 | D28: 14755.28 | E28: 7895.88 | F28: 4386.6 | G28: 0 | H28: 8919.42 | I28: 7457.22 | J28: -2430.62 | K28: 0 | L28: 0 | M28: 0 | N28: 0 | S28: 51365.4 | U28: 28867.35 | V28: 22498.05 | W28: =LOOKUP(A28,'DOE - FIPStoPayeeCodeConvTable'!$A$3:$A$213,'DOE - FIPStoPayeeCodeConvTable'!$E$3:$E$213) -> 0.2901 | X28: 0.362625 | Y28: 8158.36 | Z28: 14339.69 | AD28: 3541.5 | AE28: 0 | AF28: 372 | AG28: 11018 | AH28: 11411.5 | AI28: 45646 | AQ28: 3541.5 | AR28: 0 | AS28: 372 | AT28: 11018 | AU28: 11411.5 | AV28: 45646
A29: 47 | B29: =LOOKUP(A29,'DOE - FIPStoPayeeCodeConvTable'!$A$3:$A$213,'DOE - FIPStoPayeeCodeConvTable'!$B$3:$B$213) -> Culpeper Co | C29: 32808.24 | D29: 49115.14 | E29: 24189.72 | F29: 30988.2 | G29: 21140.64 | H29: 37252.16 | I29: 19472.72 | J29: 6974.88 | K29: 22808.76 | L29: 2467.5 | M29: 0 | N29: 3783.5 | S29: 251001.46 | U29: 141062.82 | V29: 109938.64 | W29: =LOOKUP(A29,'DOE - FIPStoPayeeCodeConvTable'!$A$3:$A$213,'DOE - FIPStoPayeeCodeConvTable'!$E$3:$E$213) -> 0.3767 | X29: 0.470875 | Y29: 51767.36 | Z29: 58171.28 | AD29: 50239.12 | AE29: 48426.38 | AF29: 72161.12 | AG29: 46982.88 | AH29: 114336.66 | AI29: 57178.1 | AQ29: 50239.12 | AR29: 48426.38 | AS29: 72161.12 | AT29: 46982.88 | AU29: 114336.66 | AV29: 57178.1
A30: 49 | B30: =LOOKUP(A30,'DOE - FIPStoPayeeCodeConvTable'!$A$3:$A$213,'DOE - FIPStoPayeeCodeConvTable'!$B$3:$B$213) -> Cumberland Co | C30: 1457.85 | D30: 5045.05 | E30: 3262.8 | F30: 1413.88 | G30: 846.64 | H30: 21504.88 | I30: 12699.6 | J30: 32172.32 | K30: 25980.3 | L30: 39792.08 | M30: 9212 | N30: 40631.5 | S30: 194018.9 | U30: 109038.62 | V30: 84980.28 | W30: =LOOKUP(A30,'DOE - FIPStoPayeeCodeConvTable'!$A$3:$A$213,'DOE - FIPStoPayeeCodeConvTable'!$E$3:$E$213) -> 0.304 | X30: 0.38 | Y30: 32292.51 | Z30: 52687.77 | AD30: 0 | AE30: 12198.5 | AF30: 1574 | AG30: 10231 | AH30: 12198.5 | AI30: 13267.2 | AQ30: 0 | AR30: 12198.5 | AS30: 1574 | AT30: 10231 | AU30: 12198.5 | AV30: 13267.2
A31: 51 | B31: =LOOKUP(A31,'DOE - FIPStoPayeeCodeConvTable'!$A$3:$A$213,'DOE - FIPStoPayeeCodeConvTable'!$B$3:$B$213) -> Dickenson Co | C31: 20532.75 | D31: 29794.72 | E31: 35382.1 | F31: 25822.52 | G31: 25822.52 | H31: 56319.84 | I31: 69947.06 | J31: 53481.68 | K31: 64255.18 | L31: 16086.16 | M31: 36962.48 | N31: 43900.1 | S31: 478307.11 | U31: 268808.6 | V31: 209498.51 | W31: =LOOKUP(A31,'DOE - FIPStoPayeeCodeConvTable'!$A$3:$A$213,'DOE - FIPStoPayeeCodeConvTable'!$E$3:$E$213) -> 0.3042 | X31: 0.38025 | Y31: 79661.81 | Z31: 129836.7 | AD31: 34628 | AE31: 43285 | AF31: 46039.5 | AG31: 37776 | AH31: 43678.5 | AI31: 393.5 | AQ31: 34628 | AR31: 43285 | AS31: 46039.5 | AT31: 37776 | AU31: 43678.5 | AV31: 393.5
A32: 53 | B32: =LOOKUP(A32,'DOE - FIPStoPayeeCodeConvTable'!$A$3:$A$213,'DOE - FIPStoPayeeCodeConvTable'!$B$3:$B$213) -> Dinwiddie Co | C32: 34845.26 | D32: 76100.7 | E32: 56689.09 | F32: 39371.94 | G32: 46503.59 | H32: 51082.76 | I32: 109761.86 | J32: 33357.7 | K32: 45784.28 | L32: 24180.58 | M32: 49538.6 | N32: 26152.12 | S32: 593368.48 | U32: 333473.09 | V32: 259895.39 | W32: =LOOKUP(A32,'DOE - FIPStoPayeeCodeConvTable'!$A$3:$A$213,'DOE - FIPStoPayeeCodeConvTable'!$E$3:$E$213) -> 0.3358 | X32: 0.41975 | Y32: 109091.09 | Z32: 150804.3 | AD32: 69279.68 | AE32: 30293.16 | AF32: 66617.7 | AG32: 27151.5 | AH32: 59412.16 | AI32: 45267.64 | AQ32: 69279.68 | AR32: 30293.16 | AS32: 66617.7 | AT32: 27151.5 | AU32: 59412.16 | AV32: 45267.64
A33: 57 | B33: =LOOKUP(A33,'DOE - FIPStoPayeeCodeConvTable'!$A$3:$A$213,'DOE - FIPStoPayeeCodeConvTable'!$B$3:$B$213) -> Essex Co | C33: 4386.6 | D33: 7156.95 | E33: 4532.82 | F33: 4386.6 | G33: 4532.82 | H33: 4386.6 | I33: 17436.26 | J33: 24839.1 | K33: 11142.88 | L33: 17436.26 | M33: 10108.48 | N33: 16105.82 | S33: 126451.19 | U33: 71065.57 | V33: 55385.62 | W33: =LOOKUP(A33,'DOE - FIPStoPayeeCodeConvTable'!$A$3:$A$213,'DOE - FIPStoPayeeCodeConvTable'!$E$3:$E$213) -> 0.3853 | X33: 0.481625 | Y33: 26675.1 | Z33: 28710.52 | AD33: 3070.62 | AE33: 3363.06 | AF33: 877.32 | AG33: 0 | AH33: 13159.8 | AI33: 7031.02 | AQ33: 3070.62 | AR33: 3363.06 | AS33: 877.32 | AT33: 0 | AU33: 13159.8 | AV33: 7031.02
A34: 59 | B34: =LOOKUP(A34,'DOE - FIPStoPayeeCodeConvTable'!$A$3:$A$213,'DOE - FIPStoPayeeCodeConvTable'!$B$3:$B$213) -> Fairfax Co | C34: 206505.6 | D34: 359629.39 | E34: 177835.36 | F34: 117871.9 | G34: 186845.89 | H34: 163214.5 | I34: 124181.11 | J34: 42839.41 | K34: 179288.06 | L34: 79545.3 | M34: 128261.48 | N34: 133556.34 | S34: 1899574.34 | U34: 1067560.78 | V34: 832013.56 | W34: =LOOKUP(A34,'DOE - FIPStoPayeeCodeConvTable'!$A$3:$A$213,'DOE - FIPStoPayeeCodeConvTable'!$E$3:$E$213) -> 0.4611 | X34: 0.576375 | Y34: 479551.82 | Z34: 352461.74 | AD34: 182466.52 | AE34: 62585.31 | AF34: 189695.24 | AG34: 120068.64 | AH34: 146962 | AI34: 95108.86 | AQ34: 182466.52 | AR34: 62585.31 | AS34: 189695.24 | AT34: 120068.64 | AU34: 146962 | AV34: 95108.86
A35: 61 | B35: =LOOKUP(A35,'DOE - FIPStoPayeeCodeConvTable'!$A$3:$A$213,'DOE - FIPStoPayeeCodeConvTable'!$B$3:$B$213) -> Fauquier Co | C35: 37497.76 | D35: 112602.35 | E35: 92003.53 | F35: 77259.08 | G35: 76879.95 | H35: 43567.87 | I35: 73514.49 | J35: 158990.72 | K35: 91419.52 | L35: 169003.48 | M35: 44666.26 | N35: 57359.28 | S35: 1034764.29 | U35: 581537.53 | V35: 453226.76 | W35: =LOOKUP(A35,'DOE - FIPStoPayeeCodeConvTable'!$A$3:$A$213,'DOE - FIPStoPayeeCodeConvTable'!$E$3:$E$213) -> 0.4584 | X35: 0.573 | Y35: 259698.93 | Z35: 193527.83 | AD35: 41130.8 | AE35: 41130.3 | AF35: 70483.27 | AG35: 57479.71 | AH35: 52267.7 | AI35: 49525.38 | AQ35: 41130.8 | AR35: 41130.3 | AS35: 70483.27 | AT35: 57479.71 | AU35: 52267.7 | AV35: 49525.38
A36: 63 | B36: =LOOKUP(A36,'DOE - FIPStoPayeeCodeConvTable'!$A$3:$A$213,'DOE - FIPStoPayeeCodeConvTable'!$B$3:$B$213) -> Floyd Co | C36: 2754.5 | D36: 22504.06 | E36: 14816.2 | F36: 10498.14 | G36: 10159.68 | H36: 68631.02 | I36: 21763.76 | J36: 24272.48 | K36: 18133.5 | L36: 5870.69 | M36: 15956.5 | N36: 42233.2 | S36: 257593.73 | U36: 144767.68 | V36: 112826.05 | W36: =LOOKUP(A36,'DOE - FIPStoPayeeCodeConvTable'!$A$3:$A$213,'DOE - FIPStoPayeeCodeConvTable'!$E$3:$E$213) -> 0.2324 | X36: 0.2905 | Y36: 32775.97 | Z36: 80050.08 | AD36: 24254.5 | AE36: 19690.14 | AF36: 27829.5 | AG36: 12784.9 | AH36: 34790.76 | AI36: 25510.18 | AQ36: 24254.5 | AR36: 19690.14 | AS36: 27829.5 | AT36: 12784.9 | AU36: 34790.76 | AV36: 25510.18
A37: 65 | B37: =LOOKUP(A37,'DOE - FIPStoPayeeCodeConvTable'!$A$3:$A$213,'DOE - FIPStoPayeeCodeConvTable'!$B$3:$B$213) -> Fluvanna Co | C37: 27517.18 | D37: 50578.08 | E37: 9358.08 | F37: 32701.08 | G37: 25938.78 | H37: 4532.84 | I37: 3363.06 | J37: 15670.74 | K37: 78162.64 | L37: 6349.8 | M37: 22334.92 | N37: 12344.22 | S37: 288851.42 | U37: 162334.5 | V37: 126516.92 | W37: =LOOKUP(A37,'DOE - FIPStoPayeeCodeConvTable'!$A$3:$A$213,'DOE - FIPStoPayeeCodeConvTable'!$E$3:$E$213) -> 0.3811 | X37: 0.476375 | Y37: 60269.5 | Z37: 66247.42 | AD37: 44385.11 | AE37: 11741.45 | AF37: 54447.75 | AG37: 61449.83 | AH37: 24322.94 | AI37: 74371.5 | AQ37: 44385.11 | AR37: 11741.45 | AS37: 54447.75 | AT37: 61449.83 | AU37: 24322.94 | AV37: 74371.5
A38: 67 | B38: =LOOKUP(A38,'DOE - FIPStoPayeeCodeConvTable'!$A$3:$A$213,'DOE - FIPStoPayeeCodeConvTable'!$B$3:$B$213) -> Franklin Co | C38: 111626.1 | D38: 181431.86 | E38: 138114.36 | F38: 138202.61 | G38: 159776.93 | H38: 203303.21 | I38: 184696.99 | J38: 168580.78 | K38: 126028.04 | L38: 93101.62 | M38: 70604.1 | N38: 173425.66 | S38: =SUM(C38:R38) -> 1748892.26 | U38: 982877.45 | V38: 766014.81 | W38: =LOOKUP(A38,'DOE - FIPStoPayeeCodeConvTable'!$A$3:$A$213,'DOE - FIPStoPayeeCodeConvTable'!$E$3:$E$213) -> 0.283 | X38: 0.35375 | Y38: 270977.74 | Z38: 495037.07 | AD38: 155361.43 | AE38: 85443.46 | AF38: 160408.9 | AG38: 153312.44 | AH38: 238072.68 | AI38: 92593.36 | AQ38: 155361.43 | AR38: 85443.46 | AS38: 160408.9 | AT38: 153312.44 | AU38: 238072.68 | AV38: 92593.36
A39: 69 | B39: =LOOKUP(A39,'DOE - FIPStoPayeeCodeConvTable'!$A$3:$A$213,'DOE - FIPStoPayeeCodeConvTable'!$B$3:$B$213) -> Frederick Co | C39: 90787.2 | D39: 160473.51 | E39: 57669.53 | F39: 74535.9 | G39: 59029.88 | H39: 69053.06 | I39: 112402.72 | J39: 106954.34 | K39: 64530.93 | L39: 49332.13 | M39: 49210.93 | N39: 79927.81 | S39: 973907.94 | U39: 547336.26 | V39: 426571.68 | W39: =LOOKUP(A39,'DOE - FIPStoPayeeCodeConvTable'!$A$3:$A$213,'DOE - FIPStoPayeeCodeConvTable'!$E$3:$E$213) -> 0.4348 | X39: 0.5435 | Y39: 231841.71 | Z39: 194729.97 | AD39: 69923.21 | AE39: 63977.2 | AF39: 190184.58 | AG39: 74379.36 | AH39: 120368.6 | AI39: 61666.08 | AQ39: 69923.21 | AR39: 63977.2 | AS39: 190184.58 | AT39: 74379.36 | AU39: 120368.6 | AV39: 61666.08
A40: 71 | B40: =LOOKUP(A40,'DOE - FIPStoPayeeCodeConvTable'!$A$3:$A$213,'DOE - FIPStoPayeeCodeConvTable'!$B$3:$B$213) -> Giles Co | C40: 8263.5 | D40: 34703.42 | E40: 23705.92 | F40: 12699.6 | G40: 88944.5 | H40: 21216.24 | I40: 48111.54 | J40: 26619.67 | K40: 47053.48 | L40: 27643.03 | M40: 4441.5 | N40: 29781.53 | S40: 373183.93 | U40: 209729.37 | V40: 163454.56 | W40: =LOOKUP(A40,'DOE - FIPStoPayeeCodeConvTable'!$A$3:$A$213,'DOE - FIPStoPayeeCodeConvTable'!$E$3:$E$213) -> 0.2898 | X40: 0.36225 | Y40: 59211.41 | Z40: 104243.15 | AD40: 7302.3 | AE40: 6087.86 | AF40: 12565.74 | AG40: 1263.47 | AH40: 23647.84 | AI40: 19204.49 | AQ40: 7302.3 | AR40: 6087.86 | AS40: 12565.74 | AT40: 1263.47 | AU40: 23647.84 | AV40: 19204.49
A41: 73 | B41: =LOOKUP(A41,'DOE - FIPStoPayeeCodeConvTable'!$A$3:$A$213,'DOE - FIPStoPayeeCodeConvTable'!$B$3:$B$213) -> Gloucester Co | C41: 0 | D41: 0 | E41: 0 | F41: 0 | G41: 0 | H41: 0 | I41: 0 | J41: 0 | K41: 0 | L41: 0 | M41: 0 | N41: 0 | S41: 0 | U41: 0 | V41: 0 | W41: =LOOKUP(A41,'DOE - FIPStoPayeeCodeConvTable'!$A$3:$A$213,'DOE - FIPStoPayeeCodeConvTable'!$E$3:$E$213) -> 0.3687 | X41: 0.460875 | Y41: 0 | Z41: 0 | AD41: 12198.5 | AE41: 5902.5 | AF41: 17707.5 | AG41: 3148 | AH41: 0 | AI41: 0 | AQ41: 12198.5 | AR41: 5902.5 | AS41: 17707.5 | AT41: 3148 | AU41: 0 | AV41: 0
A42: 75 | B42: =LOOKUP(A42,'DOE - FIPStoPayeeCodeConvTable'!$A$3:$A$213,'DOE - FIPStoPayeeCodeConvTable'!$B$3:$B$213) -> Goochland Co | C42: 16191.6 | D42: 4532.82 | E42: 4532.82 | F42: 4386.6 | G42: -98620.64 | H42: 29416.84 | I42: 27939.12 | J42: 29002.24 | K42: 23282.6 | L42: 17779.44 | M42: 19937.6 | N42: 33510.22 | S42: 111891.26 | U42: 62882.89 | V42: 49008.37 | W42: =LOOKUP(A42,'DOE - FIPStoPayeeCodeConvTable'!$A$3:$A$213,'DOE - FIPStoPayeeCodeConvTable'!$E$3:$E$213) -> 0.4871 | X42: 0.608875 | Y42: 29839.97 | Z42: 19168.4 | AD42: 14953 | AE42: 0 | AF42: 0 | AG42: 0 | AH42: 0 | AI42: 0 | AQ42: 14953 | AR42: 0 | AS42: 0 | AT42: 0 | AU42: 0 | AV42: 0
A43: 77 | B43: =LOOKUP(A43,'DOE - FIPStoPayeeCodeConvTable'!$A$3:$A$213,'DOE - FIPStoPayeeCodeConvTable'!$B$3:$B$213) -> Grayson Co | C43: 23610 | D43: 23037.03 | E43: 23768.13 | F43: 26680.5 | G43: 16869.58 | H43: 39643.51 | I43: 38491.63 | J43: 34274.65 | K43: 20500.1 | L43: 20109.49 | M43: 57259.94 | N43: 25954.92 | S43: 350199.48 | U43: 196812.11 | V43: 153387.37 | W43: =LOOKUP(A43,'DOE - FIPStoPayeeCodeConvTable'!$A$3:$A$213,'DOE - FIPStoPayeeCodeConvTable'!$E$3:$E$213) -> 0.2109 | X43: 0.263625 | Y43: 40436.75 | Z43: 112950.62 | AD43: 4709.5 | AE43: 14953 | AF43: 20153.25 | AG43: 35085.51 | AH43: 30711.35 | AI43: 8970.48 | AQ43: 4709.5 | AR43: 14953 | AS43: 20153.25 | AT43: 35085.51 | AU43: 30711.35 | AV43: 8970.48
A44: 79 | B44: =LOOKUP(A44,'DOE - FIPStoPayeeCodeConvTable'!$A$3:$A$213,'DOE - FIPStoPayeeCodeConvTable'!$B$3:$B$213) -> Greene Co | C44: 29570.6 | D44: 124414.92 | E44: 67887.86 | F44: 66222 | G44: 57705.7 | H44: 57349.94 | I44: 18387.54 | J44: 45181.36 | K44: 58955.46 | L44: 56177.44 | M44: 18009.92 | N44: 6439.92 | S44: 606302.66 | U44: 340742.09 | V44: 265560.57 | W44: =LOOKUP(A44,'DOE - FIPStoPayeeCodeConvTable'!$A$3:$A$213,'DOE - FIPStoPayeeCodeConvTable'!$E$3:$E$213) -> 0.3471 | X44: 0.433875 | Y44: 115220.09 | Z44: 150340.48 | AD44: 19948.16 | AE44: 12796.32 | AF44: 113662.24 | AG44: 11411.5 | AH44: 31221.98 | AI44: 10231 | AQ44: 19948.16 | AR44: 12796.32 | AS44: 113662.24 | AT44: 11411.5 | AU44: 31221.98 | AV44: 10231
A45: 81 | B45: =LOOKUP(A45,'DOE - FIPStoPayeeCodeConvTable'!$A$3:$A$213,'DOE - FIPStoPayeeCodeConvTable'!$B$3:$B$213) -> Greensville Co | C45: 0 | D45: 6718.94 | E45: 15216.02 | F45: 9313.04 | G45: 11852.96 | H45: 14816.2 | I45: 16932.8 | J45: 731.2 | K45: 0 | L45: 0 | M45: 0 | N45: 7196.44 | S45: 82777.6 | U45: 46521.01 | V45: 36256.59 | W45: =LOOKUP(A45,'DOE - FIPStoPayeeCodeConvTable'!$A$3:$A$213,'DOE - FIPStoPayeeCodeConvTable'!$E$3:$E$213) -> 0.2266 | X45: 0.28325 | Y45: 10269.68 | Z45: 25986.91 | AD45: 0 | AE45: 9444 | AF45: 14953 | AG45: 17707.5 | AH45: 0 | AI45: 9504.3 | AQ45: 0 | AR45: 9444 | AS45: 14953 | AT45: 17707.5 | AU45: 0 | AV45: 9504.3
A46: 83 | B46: =LOOKUP(A46,'DOE - FIPStoPayeeCodeConvTable'!$A$3:$A$213,'DOE - FIPStoPayeeCodeConvTable'!$B$3:$B$213) -> Halifax Co | C46: 49672.39 | D46: 47445.84 | E46: 30244.24 | F46: 25035.28 | G46: 105722.66 | H46: 33534.2 | I46: 25822.52 | J46: 28509.68 | K46: 111333.16 | L46: 99480.2 | M46: 26144.8 | N46: 22927.22 | S46: 605872.19 | U46: 340500.17 | V46: 265372.02 | W46: =LOOKUP(A46,'DOE - FIPStoPayeeCodeConvTable'!$A$3:$A$213,'DOE - FIPStoPayeeCodeConvTable'!$E$3:$E$213) -> 0.2335 | X46: 0.291875 | Y46: 77455.46 | Z46: 187916.56 | AD46: 60093.8 | AE46: 45661.14 | AF46: 85075.95 | AG46: 68862.5 | AH46: 59741.22 | AI46: 19770.02 | AQ46: 60093.8 | AR46: 45661.14 | AS46: 85075.95 | AT46: 68862.5 | AU46: 59741.22 | AV46: 19770.02
A47: 85 | B47: =LOOKUP(A47,'DOE - FIPStoPayeeCodeConvTable'!$A$3:$A$213,'DOE - FIPStoPayeeCodeConvTable'!$B$3:$B$213) -> Hanover Co | C47: 139940.46 | D47: 206238.17 | E47: 87144.12 | F47: 108823.98 | G47: 76581.85 | H47: 87900.31 | I47: 139519.28 | J47: 170617.95 | K47: 263575.08 | L47: 146253.01 | M47: 72882.44 | N47: 262775.31 | S47: 1762251.96 | U47: 990385.6 | V47: 771866.36 | W47: =LOOKUP(A47,'DOE - FIPStoPayeeCodeConvTable'!$A$3:$A$213,'DOE - FIPStoPayeeCodeConvTable'!$E$3:$E$213) -> 0.4444 | X47: 0.5555 | Y47: 428771.76 | Z47: 343094.6 | AD47: 64356.68 | AE47: 26253.54 | AF47: 125904.84 | AG47: 189462.3 | AH47: 125249.2 | AI47: 101583.3 | AQ47: 64356.68 | AR47: 26253.54 | AS47: 125904.84 | AT47: 189462.3 | AU47: 125249.2 | AV47: 101583.3
A48: 87 | B48: =LOOKUP(A48,'DOE - FIPStoPayeeCodeConvTable'!$A$3:$A$213,'DOE - FIPStoPayeeCodeConvTable'!$B$3:$B$213) -> Henrico Co | C48: 303524.08 | D48: 511133.29 | E48: 195957.28 | F48: 172210.96 | G48: 193362.09 | H48: 141762.21 | I48: 247615.79 | J48: 156244.29 | K48: 227171.74 | L48: 114689.72 | M48: 111278.16 | N48: 227417.16 | S48: 2602366.77 | U48: 1462530.12 | V48: 1139836.65 | W48: =LOOKUP(A48,'DOE - FIPStoPayeeCodeConvTable'!$A$3:$A$213,'DOE - FIPStoPayeeCodeConvTable'!$E$3:$E$213) -> 0.3755 | X48: 0.469375 | Y48: 535010.83 | Z48: 604825.82 | AD48: 228919.36 | AE48: 150489.57 | AF48: 375254.56 | AG48: 415447.36 | AH48: 280600.57 | AI48: 346824.22 | AQ48: 228919.36 | AR48: 150489.57 | AS48: 375254.56 | AT48: 415447.36 | AU48: 280600.57 | AV48: 346824.22
A49: 89 | B49: =LOOKUP(A49,'DOE - FIPStoPayeeCodeConvTable'!$A$3:$A$213,'DOE - FIPStoPayeeCodeConvTable'!$B$3:$B$213) -> Henry Co | C49: 93063.98 | D49: 145809.43 | E49: 116205.03 | F49: 67617.86 | G49: 89169.31 | H49: 117350.8 | I49: 106869.6 | J49: 117620.34 | K49: 117970.58 | L49: 97129.92 | M49: 32584.44 | N49: 90787.1 | S49: 1192178.39 | U49: 670004.26 | V49: 522174.13 | W49: =LOOKUP(A49,'DOE - FIPStoPayeeCodeConvTable'!$A$3:$A$213,'DOE - FIPStoPayeeCodeConvTable'!$E$3:$E$213) -> 0.2786 | X49: 0.34825 | Y49: 181847.14 | Z49: 340326.99 | AD49: 49181.38 | AE49: 45646 | AF49: 76558.72 | AG49: 50232.78 | AH49: 48450.06 | AI49: 50824.22 | AQ49: 49181.38 | AR49: 45646 | AS49: 76558.72 | AT49: 50232.78 | AU49: 48450.06 | AV49: 50824.22
A50: 91 | B50: =LOOKUP(A50,'DOE - FIPStoPayeeCodeConvTable'!$A$3:$A$213,'DOE - FIPStoPayeeCodeConvTable'!$B$3:$B$213) -> Highland Co | C50: 11805 | D50: 28479.71 | E50: 25516.47 | F50: 19244.82 | G50: 22857.27 | H50: 51840.46 | I50: 16183.87 | J50: 12699.6 | K50: 21559.5 | L50: 0 | M50: 14816.2 | N50: 12699.6 | S50: 237702.5 | U50: 133588.81 | V50: 104113.69 | W50: =LOOKUP(A50,'DOE - FIPStoPayeeCodeConvTable'!$A$3:$A$213,'DOE - FIPStoPayeeCodeConvTable'!$E$3:$E$213) -> 0.3822 | X50: 0.47775 | Y50: 49740.32 | Z50: 54373.37 | AD50: 0 | AE50: 0 | AF50: 0 | AG50: 0 | AH50: 0 | AI50: 0 | AQ50: 0 | AR50: 0 | AS50: 0 | AT50: 0 | AU50: 0 | AV50: 0
A51: 93 | B51: =LOOKUP(A51,'DOE - FIPStoPayeeCodeConvTable'!$A$3:$A$213,'DOE - FIPStoPayeeCodeConvTable'!$B$3:$B$213) -> Isle Of Wight Co | C51: 42380.1 | D51: 51994.41 | E51: 15780.11 | F51: 22709.53 | G51: 38279.46 | H51: 27515.8 | I51: 27939.12 | J51: 28362.44 | K51: 29632.4 | L51: 11429.64 | M51: 20319.36 | N51: 30055.72 | S51: 346398.09 | U51: 194675.73 | V51: 151722.36 | W51: =LOOKUP(A51,'DOE - FIPStoPayeeCodeConvTable'!$A$3:$A$213,'DOE - FIPStoPayeeCodeConvTable'!$E$3:$E$213) -> 0.3613 | X51: 0.451625 | Y51: 68521.61 | Z51: 83200.75 | AD51: 0 | AE51: 0 | AF51: 0 | AG51: 0 | AH51: 0 | AI51: 0 | AQ51: 0 | AR51: 0 | AS51: 0 | AT51: 0 | AU51: 0 | AV51: 0
A52: 95 | B52: =LOOKUP(A52,'DOE - FIPStoPayeeCodeConvTable'!$A$3:$A$213,'DOE - FIPStoPayeeCodeConvTable'!$B$3:$B$213) -> James City Co | C52: 69800.12 | D52: 29816.96 | E52: 16485.98 | F52: 36982.24 | G52: 25281.38 | H52: 74155.08 | I52: 23321.72 | J52: 13725.11 | K52: 13474.64 | L52: 11487.27 | M52: 4441.5 | N52: 17586.32 | S52: 336558.32 | U52: 189145.78 | V52: 147412.54 | W52: =LOOKUP(A52,'DOE - FIPStoPayeeCodeConvTable'!$A$3:$A$213,'DOE - FIPStoPayeeCodeConvTable'!$E$3:$E$213) -> 0.4483 | X52: 0.560375 | Y52: 82606.3 | Z52: 64806.24 | AD52: 11805 | AE52: 108606 | AF52: 40137 | AG52: 14574.64 | AH52: 21500.68 | AI52: 109059.8 | AQ52: 11805 | AR52: 108606 | AS52: 40137 | AT52: 14574.64 | AU52: 21500.68 | AV52: 109059.8
A53: 97 | B53: =LOOKUP(A53,'DOE - FIPStoPayeeCodeConvTable'!$A$3:$A$213,'DOE - FIPStoPayeeCodeConvTable'!$B$3:$B$213) -> King And Queen Co | C53: 0 | D53: 0 | E53: 0 | F53: 0 | G53: 0 | H53: 0 | I53: 0 | J53: 0 | K53: 0 | L53: 0 | M53: 0 | N53: 0 | S53: 0 | U53: 0 | V53: 0 | W53: =LOOKUP(A53,'DOE - FIPStoPayeeCodeConvTable'!$A$3:$A$213,'DOE - FIPStoPayeeCodeConvTable'!$E$3:$E$213) -> 0.3144 | X53: 0.393 | Y53: 0 | Z53: 0 | AD53: 0 | AE53: 0 | AF53: 0 | AG53: 0 | AH53: 0 | AI53: 0 | AQ53: 0 | AR53: 0 | AS53: 0 | AT53: 0 | AU53: 0 | AV53: 0
A54: 99 | B54: =LOOKUP(A54,'DOE - FIPStoPayeeCodeConvTable'!$A$3:$A$213,'DOE - FIPStoPayeeCodeConvTable'!$B$3:$B$213) -> King George Co | C54: 34948.52 | D54: 39741.95 | E54: 19912.13 | F54: 30762.48 | G54: 41484.98 | H54: 10355.1 | I54: 33479.75 | J54: 16001.29 | K54: 19534.76 | L54: 5522.72 | M54: 0 | N54: 1269.96 | S54: 253013.64 | U54: 142193.67 | V54: 110819.97 | W54: =LOOKUP(A54,'DOE - FIPStoPayeeCodeConvTable'!$A$3:$A$213,'DOE - FIPStoPayeeCodeConvTable'!$E$3:$E$213) -> 0.3627 | X54: 0.453375 | Y54: 50243 | Z54: 60576.97 | AD54: 15404.6 | AE54: 16707.64 | AF54: 30727.42 | AG54: 17202.2 | AH54: 33447.5 | AI54: 8657 | AQ54: 15404.6 | AR54: 16707.64 | AS54: 30727.42 | AT54: 17202.2 | AU54: 33447.5 | AV54: 8657
A55: 101 | B55: =LOOKUP(A55,'DOE - FIPStoPayeeCodeConvTable'!$A$3:$A$213,'DOE - FIPStoPayeeCodeConvTable'!$B$3:$B$213) -> King William Co | C55: 31931.6 | D55: 24005.54 | E55: 17655.74 | F55: 10736.4 | G55: 13122.92 | H55: 21747.16 | I55: 13122.92 | J55: 20606.08 | K55: 11852.96 | L55: 6773.12 | M55: 12699.6 | N55: 13122.92 | S55: 197376.96 | U55: 110925.85 | V55: 86451.11 | W55: =LOOKUP(A55,'DOE - FIPStoPayeeCodeConvTable'!$A$3:$A$213,'DOE - FIPStoPayeeCodeConvTable'!$E$3:$E$213) -> 0.3853 | X55: 0.481625 | Y55: 41637.02 | Z55: 44814.09 | AD55: 4386.6 | AE55: 18698.82 | AF55: 4532.82 | AG55: 0 | AH55: 8773.2 | AI55: 4386.6 | AQ55: 4386.6 | AR55: 18698.82 | AS55: 4532.82 | AT55: 0 | AU55: 8773.2 | AV55: 4386.6
A56: 103 | B56: =LOOKUP(A56,'DOE - FIPStoPayeeCodeConvTable'!$A$3:$A$213,'DOE - FIPStoPayeeCodeConvTable'!$B$3:$B$213) -> Lancaster Co | C56: 8715.1 | D56: 23575.9 | E56: 9283.22 | F56: 11852.96 | G56: 16932.8 | H56: 14392.88 | I56: 0 | J56: 146.24 | K56: 0 | L56: 0 | M56: 0 | N56: 0 | S56: 84899.1 | U56: 47713.29 | V56: 37185.81 | W56: =LOOKUP(A56,'DOE - FIPStoPayeeCodeConvTable'!$A$3:$A$213,'DOE - FIPStoPayeeCodeConvTable'!$E$3:$E$213) -> 0.4391 | X56: 0.548875 | Y56: 20410.36 | Z56: 16775.45 | AD56: 11112.72 | AE56: 6141.24 | AF56: 14529.48 | AG56: 4094.16 | AH56: 4094.16 | AI56: 9311.22 | AQ56: 11112.72 | AR56: 6141.24 | AS56: 14529.48 | AT56: 4094.16 | AU56: 4094.16 | AV56: 9311.22
A57: 105 | B57: =LOOKUP(A57,'DOE - FIPStoPayeeCodeConvTable'!$A$3:$A$213,'DOE - FIPStoPayeeCodeConvTable'!$B$3:$B$213) -> Lee Co | C57: 0 | D57: 0 | E57: 3655.5 | F57: 7967.7 | G57: 10700.27 | H57: 10355.1 | I57: 10700.27 | J57: 22382.95 | K57: 12204.68 | L57: 27958.77 | M57: 0 | N57: 21400.54 | S57: 127325.78 | U57: 71557.09 | V57: 55768.69 | W57: =LOOKUP(A57,'DOE - FIPStoPayeeCodeConvTable'!$A$3:$A$213,'DOE - FIPStoPayeeCodeConvTable'!$E$3:$E$213) -> 0.2245 | X57: 0.280625 | Y57: 15650.09 | Z57: 40118.6 | AD57: 14122.87 | AE57: 15704.78 | AF57: 11808.01 | AG57: 0 | AH57: 10674.06 | AI57: 0 | AQ57: 14122.87 | AR57: 15704.78 | AS57: 11808.01 | AT57: 0 | AU57: 10674.06 | AV57: 0
A58: 107 | B58: =LOOKUP(A58,'DOE - FIPStoPayeeCodeConvTable'!$A$3:$A$213,'DOE - FIPStoPayeeCodeConvTable'!$B$3:$B$213) -> Loudoun Co | C58: 40747.76 | D58: 58791.3 | E58: 30256 | F58: 32007.84 | G58: 18375.78 | H58: -34858.12 | I58: 9265.7 | J58: 39738.24 | K58: 24552.56 | L58: 13122.92 | M58: 44448.6 | N58: 48750.08 | S58: 325198.66 | U58: 182761.65 | V58: 142437.01 | W58: =LOOKUP(A58,'DOE - FIPStoPayeeCodeConvTable'!$A$3:$A$213,'DOE - FIPStoPayeeCodeConvTable'!$E$3:$E$213) -> 0.4764 | X58: 0.5955 | Y58: 84821.24 | Z58: 57615.77 | AD58: 59771.46 | AE58: 93726.24 | AF58: 101834.98 | AG58: 99201 | AH58: 69234.34 | AI58: 59885.24 | AQ58: 59771.46 | AR58: 93726.24 | AS58: 101834.98 | AT58: 99201 | AU58: 69234.34 | AV58: 59885.24
A59: 109 | B59: =LOOKUP(A59,'DOE - FIPStoPayeeCodeConvTable'!$A$3:$A$213,'DOE - FIPStoPayeeCodeConvTable'!$B$3:$B$213) -> Louisa Co | C59: 55758.86 | D59: 120694.09 | E59: 70025.45 | F59: 82408.08 | G59: 52894.8 | H59: 49389.4 | I59: 72303.89 | J59: 69896.72 | K59: 61839.84 | L59: 52915 | M59: 30902.36 | N59: 142658.84 | S59: 861687.33 | U59: 484268.28 | V59: 377419.05 | W59: =LOOKUP(A59,'DOE - FIPStoPayeeCodeConvTable'!$A$3:$A$213,'DOE - FIPStoPayeeCodeConvTable'!$E$3:$E$213) -> 0.4401 | X59: 0.550125 | Y59: 207627.65 | Z59: 169791.4 | AD59: 82909.66 | AE59: 51428.34 | AF59: 78622.52 | AG59: 79854.9 | AH59: 17252.6 | AI59: 21249 | AQ59: 82909.66 | AR59: 51428.34 | AS59: 78622.52 | AT59: 79854.9 | AU59: 17252.6 | AV59: 21249
A60: 111 | B60: =LOOKUP(A60,'DOE - FIPStoPayeeCodeConvTable'!$A$3:$A$213,'DOE - FIPStoPayeeCodeConvTable'!$B$3:$B$213) -> Lunenburg Co | C60: 25319.48 | D60: 28539.11 | E60: 22937.14 | F60: 16086.16 | G60: 18725.3 | H60: 16239.56 | I60: 17779.44 | J60: 14414.52 | K60: 4941.72 | L60: 8889.72 | M60: 8889.72 | N60: 14816.2 | S60: 197578.07 | U60: 111038.88 | V60: 86539.19 | W60: =LOOKUP(A60,'DOE - FIPStoPayeeCodeConvTable'!$A$3:$A$213,'DOE - FIPStoPayeeCodeConvTable'!$E$3:$E$213) -> 0.1698 | X60: 0.21225 | Y60: 18367.94 | Z60: 68171.25 | AD60: 85384.56 | AE60: 40530.5 | AF60: 18888 | AG60: 58238 | AH60: 49377.8 | AI60: 90250.62 | AQ60: 85384.56 | AR60: 40530.5 | AS60: 18888 | AT60: 58238 | AU60: 49377.8 | AV60: 90250.62
A61: 113 | B61: =LOOKUP(A61,'DOE - FIPStoPayeeCodeConvTable'!$A$3:$A$213,'DOE - FIPStoPayeeCodeConvTable'!$B$3:$B$213) -> Madison Co | C61: 4094.16 | D61: 35039.84 | E61: 32582.16 | F61: 23791.76 | G61: 140081.62 | H61: 42417.84 | I61: 56966.38 | J61: 25470.64 | K61: 64767.96 | L61: 34288.92 | M61: 8889.72 | N61: 14816.2 | S61: 483207.2 | U61: 271562.45 | V61: 211644.75 | W61: =LOOKUP(A61,'DOE - FIPStoPayeeCodeConvTable'!$A$3:$A$213,'DOE - FIPStoPayeeCodeConvTable'!$E$3:$E$213) -> 0.3355 | X61: 0.419375 | Y61: 88758.52 | Z61: 122886.23 | AD61: 6872.34 | AE61: 18159.1 | AF61: 20971.7 | AG61: 11411.5 | AH61: 21117.92 | AI61: 10435.32 | AQ61: 6872.34 | AR61: 18159.1 | AS61: 20971.7 | AT61: 11411.5 | AU61: 21117.92 | AV61: 10435.32
A62: 115 | B62: =LOOKUP(A62,'DOE - FIPStoPayeeCodeConvTable'!$A$3:$A$213,'DOE - FIPStoPayeeCodeConvTable'!$B$3:$B$213) -> Mathews Co | C62: 0 | D62: 0 | E62: 0 | F62: 0 | G62: 0 | H62: 0 | I62: 0 | J62: 0 | K62: 0 | L62: 0 | M62: 0 | N62: 0 | S62: 0 | U62: 0 | V62: 0 | W62: =LOOKUP(A62,'DOE - FIPStoPayeeCodeConvTable'!$A$3:$A$213,'DOE - FIPStoPayeeCodeConvTable'!$E$3:$E$213) -> 0.4271 | X62: 0.533875 | Y62: 0 | Z62: 0 | AD62: 4532.82 | AE62: 0 | AF62: 11921.2 | AG62: 4532.82 | AH62: 4386.6 | AI62: 877.32 | AQ62: 4532.82 | AR62: 0 | AS62: 11921.2 | AT62: 4532.82 | AU62: 4386.6 | AV62: 877.32
A63: 117 | B63: =LOOKUP(A63,'DOE - FIPStoPayeeCodeConvTable'!$A$3:$A$213,'DOE - FIPStoPayeeCodeConvTable'!$B$3:$B$213) -> Mecklenburg Co | C63: 43772.09 | D63: 54945.21 | E63: 39899.46 | F63: 26106.8 | G63: 75473.78 | H63: 45701.72 | I63: 35249.54 | J63: 43052.34 | K63: 52583.76 | L63: 29724.48 | M63: 21556.22 | N63: 53798.72 | S63: 521864.12 | U63: 293287.64 | V63: 228576.48 | W63: =LOOKUP(A63,'DOE - FIPStoPayeeCodeConvTable'!$A$3:$A$213,'DOE - FIPStoPayeeCodeConvTable'!$E$3:$E$213) -> 0.2286 | X63: 0.28575 | Y63: 65315.73 | Z63: 163260.75 | AD63: 60443.11 | AE63: 51359.32 | AF63: 74754.78 | AG63: 37586.82 | AH63: 81533.24 | AI63: 93423.06 | AQ63: 60443.11 | AR63: 51359.32 | AS63: 74754.78 | AT63: 37586.82 | AU63: 81533.24 | AV63: 93423.06
A64: 119 | B64: =LOOKUP(A64,'DOE - FIPStoPayeeCodeConvTable'!$A$3:$A$213,'DOE - FIPStoPayeeCodeConvTable'!$B$3:$B$213) -> Middlesex Co | C64: 0 | D64: 0 | E64: 0 | F64: 0 | G64: 0 | H64: 0 | I64: 0 | J64: 0 | K64: 0 | L64: 0 | M64: 0 | N64: 0 | S64: 0 | U64: 0 | V64: 0 | W64: =LOOKUP(A64,'DOE - FIPStoPayeeCodeConvTable'!$A$3:$A$213,'DOE - FIPStoPayeeCodeConvTable'!$E$3:$E$213) -> 0.4333 | X64: 0.541625 | Y64: 0 | Z64: 0 | AD64: 0 | AE64: 0 | AF64: 0 | AG64: 0 | AH64: 0 | AI64: 0 | AQ64: 0 | AR64: 0 | AS64: 0 | AT64: 0 | AU64: 0 | AV64: 0
A65: 121 | B65: =LOOKUP(A65,'DOE - FIPStoPayeeCodeConvTable'!$A$3:$A$213,'DOE - FIPStoPayeeCodeConvTable'!$B$3:$B$213) -> Montgomery Co | C65: 15505.66 | D65: 51470.02 | E65: 47516.68 | F65: 20828.52 | G65: 48439.92 | H65: 38684.66 | I65: 97653.5 | J65: 81618.2 | K65: 74958.58 | L65: 28621.52 | M65: 5963.88 | N65: 49374.64 | S65: 560635.78 | U65: 315077.31 | V65: 245558.47 | W65: =LOOKUP(A65,'DOE - FIPStoPayeeCodeConvTable'!$A$3:$A$213,'DOE - FIPStoPayeeCodeConvTable'!$E$3:$E$213) -> 0.2834 | X65: 0.35425 | Y65: 86989.09 | Z65: 158569.38 | AD65: 27546.91 | AE65: 23567.04 | AF65: 33614.62 | AG65: 32317 | AH65: 45332.64 | AI65: 28203 | AQ65: 27546.91 | AR65: 23567.04 | AS65: 33614.62 | AT65: 32317 | AU65: 45332.64 | AV65: 28203
A66: 125 | B66: =LOOKUP(A66,'DOE - FIPStoPayeeCodeConvTable'!$A$3:$A$213,'DOE - FIPStoPayeeCodeConvTable'!$B$3:$B$213) -> Nelson Co | C66: 13187.1 | D66: 18808.49 | E66: 15233.09 | F66: 18440.86 | G66: 33442.28 | H66: 6202.1 | I66: 731.1 | J66: 43175.8 | K66: 9541 | L66: 31996.28 | M66: 423.32 | N66: 10034.5 | S66: 201215.92 | U66: 113083.35 | V66: 88132.57 | W66: =LOOKUP(A66,'DOE - FIPStoPayeeCodeConvTable'!$A$3:$A$213,'DOE - FIPStoPayeeCodeConvTable'!$E$3:$E$213) -> 0.3132 | X66: 0.3915 | Y66: 34503.9 | Z66: 53628.67 | AD66: 30632.41 | AE66: 12198.5 | AF66: 22823 | AG66: 12592 | AH66: 35415 | AI66: 25577.5 | AQ66: 30632.41 | AR66: 12198.5 | AS66: 22823 | AT66: 12592 | AU66: 35415 | AV66: 25577.5
A67: 127 | B67: =LOOKUP(A67,'DOE - FIPStoPayeeCodeConvTable'!$A$3:$A$213,'DOE - FIPStoPayeeCodeConvTable'!$B$3:$B$213) -> New Kent Co | C67: 0 | D67: 79506.22 | E67: 0 | F67: 0 | G67: 0 | H67: 0 | I67: 0 | J67: 1974 | K67: 26989.2 | L67: 16936.96 | M67: 4920 | N67: 30801 | S67: 161127.38 | U67: 90553.59 | V67: 70573.79 | W67: =LOOKUP(A67,'DOE - FIPStoPayeeCodeConvTable'!$A$3:$A$213,'DOE - FIPStoPayeeCodeConvTable'!$E$3:$E$213) -> 0.4329 | X67: 0.541125 | Y67: 38189.24 | Z67: 32384.55 | AD67: 0 | AE67: 0 | AF67: 0 | AG67: 0 | AH67: 0 | AI67: 0 | AQ67: 0 | AR67: 0 | AS67: 0 | AT67: 0 | AU67: 0 | AV67: 0
A68: 131 | B68: =LOOKUP(A68,'DOE - FIPStoPayeeCodeConvTable'!$A$3:$A$213,'DOE - FIPStoPayeeCodeConvTable'!$B$3:$B$213) -> Northampton Co | C68: 11805 | D68: 10700.27 | E68: 15187.48 | F68: 0 | G68: 0 | H68: 27939.12 | I68: 13969.56 | J68: 0 | K68: 0 | L68: 0 | M68: 0 | N68: 0 | S68: 79601.43 | U68: 44736 | V68: 34865.43 | W68: =LOOKUP(A68,'DOE - FIPStoPayeeCodeConvTable'!$A$3:$A$213,'DOE - FIPStoPayeeCodeConvTable'!$E$3:$E$213) -> 0.1971 | X68: 0.246375 | Y68: 8589.97 | Z68: 26275.46 | AD68: 8263.5 | AE68: 13379 | AF68: 8657 | AG68: 5902.5 | AH68: 3363.06 | AI68: 4386.6 | AQ68: 8263.5 | AR68: 13379 | AS68: 8657 | AT68: 5902.5 | AU68: 3363.06 | AV68: 4386.6
A69: 133 | B69: =LOOKUP(A69,'DOE - FIPStoPayeeCodeConvTable'!$A$3:$A$213,'DOE - FIPStoPayeeCodeConvTable'!$B$3:$B$213) -> Northumberland Co | C69: 0 | D69: 13410.22 | E69: 0 | F69: 0 | G69: 1180.5 | H69: 0 | I69: 0 | J69: 8889.72 | K69: 11429.64 | L69: 4656.52 | M69: 12699.6 | N69: 16932.8 | S69: 69199 | U69: 38889.84 | V69: 30309.16 | W69: =LOOKUP(A69,'DOE - FIPStoPayeeCodeConvTable'!$A$3:$A$213,'DOE - FIPStoPayeeCodeConvTable'!$E$3:$E$213) -> 0.3304 | X69: 0.413 | Y69: 12517.68 | Z69: 17791.48 | AD69: 0 | AE69: 0 | AF69: 0 | AG69: 0 | AH69: 0 | AI69: 0 | AQ69: 0 | AR69: 0 | AS69: 0 | AT69: 0 | AU69: 0 | AV69: 0
A70: 135 | B70: =LOOKUP(A70,'DOE - FIPStoPayeeCodeConvTable'!$A$3:$A$213,'DOE - FIPStoPayeeCodeConvTable'!$B$3:$B$213) -> Nottoway Co | C70: 0 | D70: 27998.54 | E70: 13122.92 | F70: 12699.6 | G70: 13122.92 | H70: 12699.6 | I70: 13122.92 | J70: 33020.92 | K70: 11852.96 | L70: 35442.1 | M70: 0 | N70: 24275.56 | S70: =SUM(C70:R70) -> 197358.04 | U70: =ROUND($U$1*S70,2) -> 110915.22 | V70: =SUM(S70)-SUM(U70) -> 86442.82 | W70: =LOOKUP(A70,'DOE - FIPStoPayeeCodeConvTable'!$A$3:$A$213,'DOE - FIPStoPayeeCodeConvTable'!$E$3:$E$213) -> 0.2686 | X70: 0.33575 | Y70: 29023.18 | Z70: 57419.64 | AD70: 39678.77 | AE70: 9050.5 | AF70: 55722.21 | AG70: 21092.04 | AH70: 37382.5 | AI70: 29119 | AQ70: 39678.77 | AR70: 9050.5 | AS70: 55722.21 | AT70: 21092.04 | AU70: 37382.5 | AV70: 29119
A71: 137 | B71: =LOOKUP(A71,'DOE - FIPStoPayeeCodeConvTable'!$A$3:$A$213,'DOE - FIPStoPayeeCodeConvTable'!$B$3:$B$213) -> Orange Co | C71: 50690.24 | D71: 70314.64 | E71: 45430.76 | F71: 39312.62 | G71: 63325.7 | H71: 28362.44 | I71: 37675.48 | J71: 38522.12 | K71: 130399.98 | L71: 52934.66 | M71: 75444.78 | N71: 178457.52 | S71: 810870.94 | U71: 455709.47 | V71: 355161.47 | W71: =LOOKUP(A71,'DOE - FIPStoPayeeCodeConvTable'!$A$3:$A$213,'DOE - FIPStoPayeeCodeConvTable'!$E$3:$E$213) -> 0.4083 | X71: =$X$1*W71 -> 0.510375 | Y71: =ROUND(X71*V71,2) -> 181265.54 | Z71: =SUM(V71)-SUM(Y71) -> 173895.93 | AD71: 18159.1 | AE71: 19485.82 | AF71: 29658.72 | AG71: 38169.5 | AH71: 52082.28 | AI71: 15496.64 | AQ71: =+AD71+AJ71 -> 18159.1 | AR71: =+AE71+AK71 -> 19485.82 | AS71: =+AF71+AL71 -> 29658.72 | AT71: =+AG71+AM71 -> 38169.5 | AU71: =+AH71+AN71 -> 52082.28 | AV71: =+AI71+AO71 -> 15496.64
A72: 139 | B72: =LOOKUP(A72,'DOE - FIPStoPayeeCodeConvTable'!$A$3:$A$213,'DOE - FIPStoPayeeCodeConvTable'!$B$3:$B$213) -> Page Co | C72: 16133.5 | D72: 35628.19 | E72: 22553.23 | F72: 48453.2 | G72: 24975.88 | H72: 93443.09 | I72: 72874.13 | J72: 65991.15 | K72: 52581.52 | L72: 46018.18 | M72: 34865.64 | N72: 42216.46 | S72: 555734.17 | U72: 312322.6 | V72: 243411.57 | W72: =LOOKUP(A72,'DOE - FIPStoPayeeCodeConvTable'!$A$3:$A$213,'DOE - FIPStoPayeeCodeConvTable'!$E$3:$E$213) -> 0.2865 | X72: 0.358125 | Y72: 87171.77 | Z72: 156239.8 | AD72: 29119 | AE72: 57451 | AF72: 43888.58 | AG72: 24397 | AH72: 29119 | AI72: 18888 | AQ72: 29119 | AR72: 57451 | AS72: 43888.58 | AT72: 24397 | AU72: 29119 | AV72: 18888
A73: 141 | B73: =LOOKUP(A73,'DOE - FIPStoPayeeCodeConvTable'!$A$3:$A$213,'DOE - FIPStoPayeeCodeConvTable'!$B$3:$B$213) -> Patrick Co | C73: 2754.5 | D73: 30779.9 | E73: 22273.42 | F73: 17662.92 | G73: 15716.04 | H73: 21780.28 | I73: 17448.2 | J73: 16299.76 | K73: 6204.96 | L73: 0 | M73: 24418.98 | N73: 7841.1 | S73: 183180.06 | U73: 102947.19 | V73: 80232.87 | W73: =LOOKUP(A73,'DOE - FIPStoPayeeCodeConvTable'!$A$3:$A$213,'DOE - FIPStoPayeeCodeConvTable'!$E$3:$E$213) -> 0.2539 | X73: 0.317375 | Y73: 25463.91 | Z73: 54768.96 | AD73: 8263.5 | AE73: 13379 | AF73: 27151.5 | AG73: 32660.5 | AH73: 27545 | AI73: 12592 | AQ73: 8263.5 | AR73: 13379 | AS73: 27151.5 | AT73: 32660.5 | AU73: 27545 | AV73: 12592
A74: 143 | B74: =LOOKUP(A74,'DOE - FIPStoPayeeCodeConvTable'!$A$3:$A$213,'DOE - FIPStoPayeeCodeConvTable'!$B$3:$B$213) -> Pittsylvania Co | C74: 35193.08 | D74: 160245.34 | E74: 91660.64 | F74: 133882.24 | G74: 126588.92 | H74: 114794.54 | I74: 103347.14 | J74: 86917.48 | K74: 89844.38 | L74: 46358.64 | M74: 32439.6 | N74: 69812.2 | S74: 1091084.2 | U74: 613189.32 | V74: 477894.88 | W74: =LOOKUP(A74,'DOE - FIPStoPayeeCodeConvTable'!$A$3:$A$213,'DOE - FIPStoPayeeCodeConvTable'!$E$3:$E$213) -> 0.2355 | X74: 0.294375 | Y74: 140680.31 | Z74: 337214.57 | AD74: 69649.5 | AE74: 22949 | AF74: 99204.12 | AG74: 138460.68 | AH74: 133883.8 | AI74: 50052.14 | AQ74: 69649.5 | AR74: 22949 | AS74: 99204.12 | AT74: 138460.68 | AU74: 133883.8 | AV74: 50052.14
A75: 145 | B75: =LOOKUP(A75,'DOE - FIPStoPayeeCodeConvTable'!$A$3:$A$213,'DOE - FIPStoPayeeCodeConvTable'!$B$3:$B$213) -> Powhatan Co | C75: 11805 | D75: 13122.92 | E75: 0 | F75: 27396.52 | G75: 17655.74 | H75: 17086.2 | I75: 42963.62 | J75: 25753 | K75: 21064.96 | L75: 5099.5 | M75: 13546.24 | N75: 31441.9 | S75: 226935.6 | U75: 127537.81 | V75: 99397.79 | W75: =LOOKUP(A75,'DOE - FIPStoPayeeCodeConvTable'!$A$3:$A$213,'DOE - FIPStoPayeeCodeConvTable'!$E$3:$E$213) -> 0.4342 | X75: 0.54275 | Y75: 53948.15 | Z75: 45449.64 | AD75: 51819.17 | AE75: 45646 | AF75: 54249.82 | AG75: 31369.9 | AH75: 43735.76 | AI75: 28389.81 | AQ75: 51819.17 | AR75: 45646 | AS75: 54249.82 | AT75: 31369.9 | AU75: 43735.76 | AV75: 28389.81
A76: 147 | B76: =LOOKUP(A76,'DOE - FIPStoPayeeCodeConvTable'!$A$3:$A$213,'DOE - FIPStoPayeeCodeConvTable'!$B$3:$B$213) -> Prince Edward Co | C76: 0 | D76: 0 | E76: 731.1 | F76: 4386.6 | G76: 4532.82 | H76: 4386.6 | I76: 3070.62 | J76: 1754.88 | K76: 0 | L76: 6349.8 | M76: 8889.72 | N76: 14816.2 | S76: 48918.34 | U76: 27492.11 | V76: 21426.23 | W76: =LOOKUP(A76,'DOE - FIPStoPayeeCodeConvTable'!$A$3:$A$213,'DOE - FIPStoPayeeCodeConvTable'!$E$3:$E$213) -> 0.2232 | X76: 0.279 | Y76: 5977.92 | Z76: 15448.31 | AD76: 6704.47 | AE76: 4532.82 | AF76: 6850.69 | AG76: 43485.83 | AH76: 55503.28 | AI76: 8613.87 | AQ76: 6704.47 | AR76: 4532.82 | AS76: 6850.69 | AT76: 43485.83 | AU76: 55503.28 | AV76: 8613.87
A77: 149 | B77: =LOOKUP(A77,'DOE - FIPStoPayeeCodeConvTable'!$A$3:$A$213,'DOE - FIPStoPayeeCodeConvTable'!$B$3:$B$213) -> Prince George Co | C77: 13336.04 | D77: 44278.88 | E77: 29116.06 | F77: 25314.34 | G77: 27263.26 | H77: 47826.72 | I77: 68633.3 | J77: 33502.12 | K77: 35986.7 | L77: 35045.64 | M77: 14592.3 | N77: 28418.74 | S77: 403314.1 | U77: 226662.52 | V77: 176651.58 | W77: =LOOKUP(A77,'DOE - FIPStoPayeeCodeConvTable'!$A$3:$A$213,'DOE - FIPStoPayeeCodeConvTable'!$E$3:$E$213) -> 0.3716 | X77: 0.4645 | Y77: 82054.66 | Z77: 94596.92 | AD77: 12198.5 | AE77: 33841 | AF77: 54303 | AG77: 30693 | AH77: 28069.7 | AI77: 11622.3 | AQ77: 12198.5 | AR77: 33841 | AS77: 54303 | AT77: 30693 | AU77: 28069.7 | AV77: 11622.3
A78: 153 | B78: =LOOKUP(A78,'DOE - FIPStoPayeeCodeConvTable'!$A$3:$A$213,'DOE - FIPStoPayeeCodeConvTable'!$B$3:$B$213) -> Prince William Co | C78: 140526.86 | D78: 385292.42 | E78: 183845.19 | F78: 229780.14 | G78: 179515.58 | H78: 190651.79 | I78: 181973.41 | J78: 84678.59 | K78: 136682.92 | L78: 83168.47 | M78: 64692.8 | N78: 210512.16 | S78: 2071320.33 | U78: 1164082.03 | V78: 907238.3 | W78: =LOOKUP(A78,'DOE - FIPStoPayeeCodeConvTable'!$A$3:$A$213,'DOE - FIPStoPayeeCodeConvTable'!$E$3:$E$213) -> 0.3414 | X78: 0.42675 | Y78: 387163.94 | Z78: 520074.36 | AD78: 118360.61 | AE78: 187944.15 | AF78: 117804.72 | AG78: 225021.75 | AH78: 171118.32 | AI78: 120507.82 | AQ78: 118360.61 | AR78: 187944.15 | AS78: 117804.72 | AT78: 225021.75 | AU78: 171118.32 | AV78: 120507.82
A79: 155 | B79: =LOOKUP(A79,'DOE - FIPStoPayeeCodeConvTable'!$A$3:$A$213,'DOE - FIPStoPayeeCodeConvTable'!$B$3:$B$213) -> Pulaski Co | C79: 41175.68 | D79: 45375.42 | E79: 48944.33 | F79: 31471.9 | G79: 40938.34 | H79: 79805.54 | I79: 45175.86 | J79: 24716.58 | K79: 11429.64 | L79: 9432.04 | M79: 21253.6 | N79: 53943.08 | S79: 453662.01 | U79: 254958.05 | V79: 198703.96 | W79: =LOOKUP(A79,'DOE - FIPStoPayeeCodeConvTable'!$A$3:$A$213,'DOE - FIPStoPayeeCodeConvTable'!$E$3:$E$213) -> 0.2923 | X79: 0.365375 | Y79: 72601.46 | Z79: 126102.5 | AD79: 41711 | AE79: 75945.5 | AF79: 61779.5 | AG79: 36989 | AH79: 54685.76 | AI79: 42702.32 | AQ79: 41711 | AR79: 75945.5 | AS79: 61779.5 | AT79: 36989 | AU79: 54685.76 | AV79: 42702.32
A80: 157 | B80: =LOOKUP(A80,'DOE - FIPStoPayeeCodeConvTable'!$A$3:$A$213,'DOE - FIPStoPayeeCodeConvTable'!$B$3:$B$213) -> Rappahannock Co | C80: 16232.22 | D80: 26716.93 | E80: 43590.18 | F80: 26948.22 | G80: 33013.04 | H80: 29996.36 | I80: 27618.72 | J80: 19039.96 | K80: 2961 | L80: 4532.82 | M80: 4386.6 | N80: 2047.08 | S80: 237083.13 | U80: 133240.72 | V80: 103842.41 | W80: =LOOKUP(A80,'DOE - FIPStoPayeeCodeConvTable'!$A$3:$A$213,'DOE - FIPStoPayeeCodeConvTable'!$E$3:$E$213) -> 0.4199 | X80: 0.524875 | Y80: 54504.28 | Z80: 49338.13 | AD80: 59229.32 | AE80: 33258.32 | AF80: 22341.38 | AG80: 26175.32 | AH80: -6237.9 | AI80: 109990.82 | AQ80: 59229.32 | AR80: 33258.32 | AS80: 22341.38 | AT80: 26175.32 | AU80: -6237.9 | AV80: 109990.82
A81: 159 | B81: =LOOKUP(A81,'DOE - FIPStoPayeeCodeConvTable'!$A$3:$A$213,'DOE - FIPStoPayeeCodeConvTable'!$B$3:$B$213) -> Richmond Co | C81: 0 | D81: 0 | E81: 0 | F81: 3809.88 | G81: 8889.72 | H81: 14816.2 | I81: 14816.2 | J81: 15239.52 | K81: 11429.64 | L81: 4656.52 | M81: 12699.6 | N81: -96970.06 | S81: =SUM(C81:R81) -> -10612.78 | U81: =ROUND($U$1*S81,2) -> -5964.38 | V81: =SUM(S81)-SUM(U81) -> -4648.4 | W81: =LOOKUP(A81,'DOE - FIPStoPayeeCodeConvTable'!$A$3:$A$213,'DOE - FIPStoPayeeCodeConvTable'!$E$3:$E$213) -> 0.3227 | X81: =$X$1*W81 -> 0.403375 | Y81: =ROUND(X81*V81,2) -> -1875.05 | Z81: =SUM(V81)-SUM(Y81) -> -2773.35 | AD81: 3655.5 | AE81: -3655.5 | AF81: 0 | AG81: 0 | AH81: 0 | AI81: 0 | AQ81: 3655.5 | AR81: -3655.5 | AS81: 0 | AT81: 0 | AU81: 0 | AV81: 0
A82: 161 | B82: =LOOKUP(A82,'DOE - FIPStoPayeeCodeConvTable'!$A$3:$A$213,'DOE - FIPStoPayeeCodeConvTable'!$B$3:$B$213) -> Roanoke Co | C82: 93167.87 | D82: 259640.33 | E82: 101892.49 | F82: 209805.4 | G82: 123796.38 | H82: 206673.84 | I82: 274039.48 | J82: 232314.91 | K82: 168806.66 | L82: 150061.94 | M82: 136248.84 | N82: 403443.96 | S82: 2359892.1 | U82: 1326259.36 | V82: 1033632.74 | W82: =LOOKUP(A82,'DOE - FIPStoPayeeCodeConvTable'!$A$3:$A$213,'DOE - FIPStoPayeeCodeConvTable'!$E$3:$E$213) -> 0.4397 | X82: 0.549625 | Y82: 568110.39 | Z82: 465522.35 | AD82: 142348.66 | AE82: 155313.88 | AF82: 150040.74 | AG82: 142837.72 | AH82: 163536.26 | AI82: 108903.91 | AQ82: 142348.66 | AR82: 155313.88 | AS82: 150040.74 | AT82: 142837.72 | AU82: 163536.26 | AV82: 108903.91
A83: 163 | B83: =LOOKUP(A83,'DOE - FIPStoPayeeCodeConvTable'!$A$3:$A$213,'DOE - FIPStoPayeeCodeConvTable'!$B$3:$B$213) -> Rockbridge Co | C83: 15532.09 | D83: 102952.12 | E83: 57477.44 | F83: 63349.86 | G83: 58993.38 | H83: 54147.56 | I83: 70670.3 | J83: 47350.74 | K83: 41485.36 | L83: 33481.6 | M83: 13276.32 | N83: 44790.48 | S83: 603507.25 | U83: 339171.07 | V83: 264336.18 | W83: =LOOKUP(A83,'DOE - FIPStoPayeeCodeConvTable'!$A$3:$A$213,'DOE - FIPStoPayeeCodeConvTable'!$E$3:$E$213) -> 0.2336 | X83: 0.292 | Y83: 77186.16 | Z83: 187150.02 | AD83: 42584.18 | AE83: 35225.82 | AF83: 109887.76 | AG83: 65402.78 | AH83: 92983.85 | AI83: 25592.64 | AQ83: 42584.18 | AR83: 35225.82 | AS83: 109887.76 | AT83: 65402.78 | AU83: 92983.85 | AV83: 25592.64
A84: 165 | B84: =LOOKUP(A84,'DOE - FIPStoPayeeCodeConvTable'!$A$3:$A$213,'DOE - FIPStoPayeeCodeConvTable'!$B$3:$B$213) -> Rockingham Co | C84: 78543 | D84: 115194.34 | E84: 50611.48 | F84: 31692.96 | G84: 34104.66 | H84: 33122.36 | I84: 50189.99 | J84: 60084.51 | K84: 132675.32 | L84: 42578.03 | M84: 45896 | N84: 133240.85 | S84: 807933.5 | U84: 454058.63 | V84: 353874.87 | W84: =LOOKUP(A84,'DOE - FIPStoPayeeCodeConvTable'!$A$3:$A$213,'DOE - FIPStoPayeeCodeConvTable'!$E$3:$E$213) -> 0.3445 | X84: 0.430625 | Y84: 152387.37 | Z84: 201487.5 | AD84: 97815.5 | AE84: 82394.02 | AF84: 124265.44 | AG84: 130601.04 | AH84: 149986.12 | AI84: 50972.82 | AQ84: 97815.5 | AR84: 82394.02 | AS84: 124265.44 | AT84: 130601.04 | AU84: 149986.12 | AV84: 50972.82
A85: 167 | B85: =LOOKUP(A85,'DOE - FIPStoPayeeCodeConvTable'!$A$3:$A$213,'DOE - FIPStoPayeeCodeConvTable'!$B$3:$B$213) -> Russell Co | C85: 8818.2 | D85: 33539.35 | E85: 27008.31 | F85: 16710.24 | G85: 15233.09 | H85: 13455.61 | I85: 2632 | J85: 914 | K85: 58418.16 | L85: 1740.16 | M85: 32161.12 | N85: 44538.44 | S85: 255168.68 | U85: 143404.8 | V85: 111763.88 | W85: =LOOKUP(A85,'DOE - FIPStoPayeeCodeConvTable'!$A$3:$A$213,'DOE - FIPStoPayeeCodeConvTable'!$E$3:$E$213) -> 0.1894 | X85: 0.23675 | Y85: 26460.1 | Z85: 85303.78 | AD85: 81061 | AE85: 10624.5 | AF85: 46628.78 | AG85: 16527 | AH85: 67856.3 | AI85: 18305.32 | AQ85: 81061 | AR85: 10624.5 | AS85: 46628.78 | AT85: 16527 | AU85: 67856.3 | AV85: 18305.32
A86: 169 | B86: =LOOKUP(A86,'DOE - FIPStoPayeeCodeConvTable'!$A$3:$A$213,'DOE - FIPStoPayeeCodeConvTable'!$B$3:$B$213) -> Scott Co | C86: 1457.85 | D86: 5045.05 | E86: 12699.6 | F86: 2963.24 | G86: 19896.04 | H86: 0 | I86: 0 | J86: 0 | K86: 0 | L86: 0 | M86: 0 | N86: 0 | S86: 42061.78 | U86: 23638.72 | V86: 18423.06 | W86: =LOOKUP(A86,'DOE - FIPStoPayeeCodeConvTable'!$A$3:$A$213,'DOE - FIPStoPayeeCodeConvTable'!$E$3:$E$213) -> 0.3154 | X86: 0.39425 | Y86: 7263.29 | Z86: 11159.77 | AD86: 5053.88 | AE86: 0 | AF86: 0 | AG86: 0 | AH86: 2924.4 | AI86: 7749.66 | AQ86: 5053.88 | AR86: 0 | AS86: 0 | AT86: 0 | AU86: 2924.4 | AV86: 7749.66
A87: 171 | B87: =LOOKUP(A87,'DOE - FIPStoPayeeCodeConvTable'!$A$3:$A$213,'DOE - FIPStoPayeeCodeConvTable'!$B$3:$B$213) -> Shenandoah Co | C87: 53954.92 | D87: -171576.25 | E87: 48673.8 | F87: 57144.44 | G87: 35353.18 | H87: 39355.91 | I87: 49802.06 | J87: 34092.01 | K87: 49263.12 | L87: 53820.51 | M87: 27390.62 | N87: 51051.55 | S87: 328325.87 | U87: 184519.14 | V87: 143806.73 | W87: =LOOKUP(A87,'DOE - FIPStoPayeeCodeConvTable'!$A$3:$A$213,'DOE - FIPStoPayeeCodeConvTable'!$E$3:$E$213) -> 0.3517 | X87: 0.439625 | Y87: 63221.03 | Z87: 80585.7 | AD87: 107946.31 | AE87: 110456.75 | AF87: 138688.5 | AG87: 156875.42 | AH87: 107963.28 | AI87: 115414.16 | AQ87: 107946.31 | AR87: 110456.75 | AS87: 138688.5 | AT87: 156875.42 | AU87: 107963.28 | AV87: 115414.16
A88: 173 | B88: =LOOKUP(A88,'DOE - FIPStoPayeeCodeConvTable'!$A$3:$A$213,'DOE - FIPStoPayeeCodeConvTable'!$B$3:$B$213) -> Smyth Co | C88: 74856.39 | D88: 137326.61 | E88: 98317.35 | F88: 83333.76 | G88: 120798.15 | H88: 81296.6 | I88: 152635.25 | J88: 83034.76 | K88: 69692.66 | L88: 60245.59 | M88: 8497.08 | N88: 135275 | S88: 1105309.2 | U88: 621183.77 | V88: 484125.43 | W88: =LOOKUP(A88,'DOE - FIPStoPayeeCodeConvTable'!$A$3:$A$213,'DOE - FIPStoPayeeCodeConvTable'!$E$3:$E$213) -> 0.2337 | X88: 0.292125 | Y88: 141425.14 | Z88: 342700.29 | AD88: 53122.5 | AE88: 59352.22 | AF88: 72315.88 | AG88: 65918.82 | AH88: 103548.6 | AI88: 35105.48 | AQ88: 53122.5 | AR88: 59352.22 | AS88: 72315.88 | AT88: 65918.82 | AU88: 103548.6 | AV88: 35105.48
A89: 175 | B89: =LOOKUP(A89,'DOE - FIPStoPayeeCodeConvTable'!$A$3:$A$213,'DOE - FIPStoPayeeCodeConvTable'!$B$3:$B$213) -> Southampton Co | C89: 29906 | D89: 30172.99 | E89: 10700.27 | F89: 17128.22 | G89: 0 | H89: 14151.97 | I89: 0 | J89: 3809.88 | K89: 2963.24 | L89: 11852.96 | M89: 0 | N89: 12699.6 | S89: 133385.13 | U89: 74962.44 | V89: 58422.69 | W89: =LOOKUP(A89,'DOE - FIPStoPayeeCodeConvTable'!$A$3:$A$213,'DOE - FIPStoPayeeCodeConvTable'!$E$3:$E$213) -> 0.323 | X89: 0.40375 | Y89: 23588.16 | Z89: 34834.53 | AD89: 0 | AE89: 0 | AF89: 58162.45 | AG89: 0 | AH89: 29512.5 | AI89: 11805 | AQ89: 0 | AR89: 0 | AS89: 58162.45 | AT89: 0 | AU89: 29512.5 | AV89: 11805
A90: 177 | B90: =LOOKUP(A90,'DOE - FIPStoPayeeCodeConvTable'!$A$3:$A$213,'DOE - FIPStoPayeeCodeConvTable'!$B$3:$B$213) -> Spotsylvania Co | C90: 80161.72 | D90: 207874.82 | E90: 155420.04 | F90: 124694.99 | G90: 157557.84 | H90: 152817.79 | I90: 148635.97 | J90: 91322.8 | K90: 97164.44 | L90: 161637.22 | M90: 63900.58 | N90: 111197.14 | S90: 1552385.35 | U90: 872440.57 | V90: 679944.78 | W90: =LOOKUP(A90,'DOE - FIPStoPayeeCodeConvTable'!$A$3:$A$213,'DOE - FIPStoPayeeCodeConvTable'!$E$3:$E$213) -> 0.4588 | X90: 0.5735 | Y90: 389948.33 | Z90: 289996.45 | AD90: 93184.32 | AE90: 129924.04 | AF90: 78645.78 | AG90: 110236.82 | AH90: 141856.98 | AI90: 78738.82 | AQ90: 93184.32 | AR90: 129924.04 | AS90: 78645.78 | AT90: 110236.82 | AU90: 141856.98 | AV90: 78738.82
A91: 179 | B91: =LOOKUP(A91,'DOE - FIPStoPayeeCodeConvTable'!$A$3:$A$213,'DOE - FIPStoPayeeCodeConvTable'!$B$3:$B$213) -> Stafford Co | C91: 58070.24 | D91: 52236.21 | E91: 35250.49 | F91: 29264.65 | G91: 38459.82 | H91: 87674.32 | I91: 117682.96 | J91: 41884.54 | K91: 155358.44 | L91: 45718.56 | M91: 34021.14 | N91: 55946.18 | S91: 751567.55 | U91: 422380.96 | V91: 329186.59 | W91: =LOOKUP(A91,'DOE - FIPStoPayeeCodeConvTable'!$A$3:$A$213,'DOE - FIPStoPayeeCodeConvTable'!$E$3:$E$213) -> 0.4439 | X91: 0.554875 | Y91: 182657.41 | Z91: 146529.18 | AD91: 12198.5 | AE91: 0 | AF91: 48400.5 | AG91: 22823 | AH91: 26343.02 | AI91: 11805 | AQ91: 12198.5 | AR91: 0 | AS91: 48400.5 | AT91: 22823 | AU91: 26343.02 | AV91: 11805
A92: 181 | B92: =LOOKUP(A92,'DOE - FIPStoPayeeCodeConvTable'!$A$3:$A$213,'DOE - FIPStoPayeeCodeConvTable'!$B$3:$B$213) -> Surry Co | C92: 24003.5 | D92: 57920.27 | E92: 10700.27 | F92: 10355.1 | G92: 10700.27 | H92: 10355.1 | I92: 10700.27 | J92: 11439.33 | K92: 11142.88 | L92: 12336.76 | M92: 0 | N92: 12336.76 | S92: 181990.51 | U92: 102278.67 | V92: 79711.84 | W92: =LOOKUP(A92,'DOE - FIPStoPayeeCodeConvTable'!$A$3:$A$213,'DOE - FIPStoPayeeCodeConvTable'!$E$3:$E$213) -> 0.3979 | X92: 0.497375 | Y92: 39646.68 | Z92: 40065.16 | AD92: 0 | AE92: 0 | AF92: 0 | AG92: 0 | AH92: 0 | AI92: 7326.69 | AQ92: 0 | AR92: 0 | AS92: 0 | AT92: 0 | AU92: 0 | AV92: 7326.69
A93: 183 | B93: =LOOKUP(A93,'DOE - FIPStoPayeeCodeConvTable'!$A$3:$A$213,'DOE - FIPStoPayeeCodeConvTable'!$B$3:$B$213) -> Sussex Co | C93: 27704.16 | D93: 31468.43 | E93: 15086.87 | F93: 12987.06 | G93: 9319.59 | H93: 0 | I93: 0 | J93: 1974.24 | K93: 0 | L93: 0 | M93: 0 | N93: 9796.86 | S93: 108337.21 | U93: 60885.51 | V93: 47451.7 | W93: =LOOKUP(A93,'DOE - FIPStoPayeeCodeConvTable'!$A$3:$A$213,'DOE - FIPStoPayeeCodeConvTable'!$E$3:$E$213) -> 0.2387 | X93: 0.298375 | Y93: 14158.4 | Z93: 33293.3 | AD93: 0 | AE93: 0 | AF93: 0 | AG93: 0 | AH93: 0 | AI93: 0 | AQ93: 0 | AR93: 0 | AS93: 0 | AT93: 0 | AU93: 0 | AV93: 0
A94: 185 | B94: =LOOKUP(A94,'DOE - FIPStoPayeeCodeConvTable'!$A$3:$A$213,'DOE - FIPStoPayeeCodeConvTable'!$B$3:$B$213) -> Tazewell Co | C94: 58695.81 | D94: 61698.95 | E94: 80723.42 | F94: 43359.7 | G94: 39878.42 | H94: 49993.03 | I94: 74110.28 | J94: 78233.82 | K94: 179853.02 | L94: 39774.75 | M94: 98633.56 | N94: 112837.66 | S94: 917792.42 | U94: 515799.34 | V94: 401993.08 | W94: =LOOKUP(A94,'DOE - FIPStoPayeeCodeConvTable'!$A$3:$A$213,'DOE - FIPStoPayeeCodeConvTable'!$E$3:$E$213) -> 0.2455 | X94: 0.306875 | Y94: 123361.63 | Z94: 278631.45 | AD94: 31873.5 | AE94: 0 | AF94: 24397 | AG94: 58765.26 | AH94: 78255.54 | AI94: 52505.32 | AQ94: 31873.5 | AR94: 0 | AS94: 24397 | AT94: 58765.26 | AU94: 78255.54 | AV94: 52505.32
A95: 187 | B95: =LOOKUP(A95,'DOE - FIPStoPayeeCodeConvTable'!$A$3:$A$213,'DOE - FIPStoPayeeCodeConvTable'!$B$3:$B$213) -> Warren Co | C95: 15492.72 | D95: 30718.82 | E95: 26245.84 | F95: 27939.12 | G95: 66413.28 | H95: 30479.04 | I95: 30902.36 | J95: 30186 | K95: 46070.28 | L95: 22758.99 | M95: 13824.72 | N95: 30615.97 | S95: 371647.14 | U95: 208865.69 | V95: 162781.45 | W95: =LOOKUP(A95,'DOE - FIPStoPayeeCodeConvTable'!$A$3:$A$213,'DOE - FIPStoPayeeCodeConvTable'!$E$3:$E$213) -> 0.3853 | X95: 0.481625 | Y95: 78399.62 | Z95: 84381.83 | AD95: 0 | AE95: 4793.5 | AF95: 21958 | AG95: 37790.5 | AH95: 1900.86 | AI95: 7335.6 | AQ95: 0 | AR95: 4793.5 | AS95: 21958 | AT95: 37790.5 | AU95: 1900.86 | AV95: 7335.6
A96: 191 | B96: =LOOKUP(A96,'DOE - FIPStoPayeeCodeConvTable'!$A$3:$A$213,'DOE - FIPStoPayeeCodeConvTable'!$B$3:$B$213) -> Washington Co | C96: 76875.31 | D96: 64006.17 | E96: 71231.08 | F96: 61548.92 | G96: 104082.64 | H96: 96614.92 | I96: 67218.7 | J96: 63202.52 | K96: 85087.32 | L96: 40303.02 | M96: 15943.56 | N96: 44132.66 | S96: 790246.82 | U96: 444118.71 | V96: 346128.11 | W96: =LOOKUP(A96,'DOE - FIPStoPayeeCodeConvTable'!$A$3:$A$213,'DOE - FIPStoPayeeCodeConvTable'!$E$3:$E$213) -> 0.276 | X96: 0.345 | Y96: 119414.2 | Z96: 226713.91 | AD96: 57397.67 | AE96: 33803.54 | AF96: 55348.85 | AG96: 52875.98 | AH96: 87837.58 | AI96: 80466.49 | AQ96: 57397.67 | AR96: 33803.54 | AS96: 55348.85 | AT96: 52875.98 | AU96: 87837.58 | AV96: 80466.49
A97: 193 | B97: =LOOKUP(A97,'DOE - FIPStoPayeeCodeConvTable'!$A$3:$A$213,'DOE - FIPStoPayeeCodeConvTable'!$B$3:$B$213) -> Westmoreland Co | C97: 3924.26 | D97: 52505.62 | E97: 16869.58 | F97: 20712 | G97: 21941.26 | H97: 37681 | I97: 35941.64 | J97: 33418.12 | K97: 18194.96 | L97: -9270.12 | M97: 18950.6 | N97: 41250.94 | S97: 292119.86 | U97: 164171.36 | V97: 127948.5 | W97: =LOOKUP(A97,'DOE - FIPStoPayeeCodeConvTable'!$A$3:$A$213,'DOE - FIPStoPayeeCodeConvTable'!$E$3:$E$213) -> 0.3025 | X97: 0.378125 | Y97: 48380.53 | Z97: 79567.97 | AD97: 33228.3 | AE97: 24872.28 | AF97: 20666.32 | AG97: 35021.5 | AH97: 55322.4 | AI97: 16021.7 | AQ97: 33228.3 | AR97: 24872.28 | AS97: 20666.32 | AT97: 35021.5 | AU97: 55322.4 | AV97: 16021.7
A98: 195 | B98: =LOOKUP(A98,'DOE - FIPStoPayeeCodeConvTable'!$A$3:$A$213,'DOE - FIPStoPayeeCodeConvTable'!$B$3:$B$213) -> Wise Co | C98: 9188.18 | D98: 29341.38 | E98: 13546.24 | F98: 10159.68 | G98: 10159.68 | H98: 5926.48 | I98: 4722 | J98: 530.12 | K98: 26245.84 | L98: 11852.96 | M98: 0 | N98: 12699.6 | S98: 134372.16 | U98: 75517.15 | V98: 58855.01 | W98: =LOOKUP(A98,'DOE - FIPStoPayeeCodeConvTable'!$A$3:$A$213,'DOE - FIPStoPayeeCodeConvTable'!$E$3:$E$213) -> 0.2755 | X98: 0.344375 | Y98: 20268.19 | Z98: 38586.82 | AD98: 5292.31 | AE98: 2624.13 | AF98: 3207.27 | AG98: 1263.47 | AH98: 10668.84 | AI98: 10966.5 | AQ98: 5292.31 | AR98: 2624.13 | AS98: 3207.27 | AT98: 1263.47 | AU98: 10668.84 | AV98: 10966.5
A99: 197 | B99: =LOOKUP(A99,'DOE - FIPStoPayeeCodeConvTable'!$A$3:$A$213,'DOE - FIPStoPayeeCodeConvTable'!$B$3:$B$213) -> Wythe Co | C99: 21261.94 | D99: 105074.46 | E99: 138160.84 | F99: 63160.52 | G99: 41969.16 | H99: 37338 | I99: 45347.92 | J99: 25533.1 | K99: 31198.88 | L99: 34349.4 | M99: 22012.64 | N99: 86019.8 | S99: 651426.66 | U99: 366101.78 | V99: 285324.88 | W99: =LOOKUP(A99,'DOE - FIPStoPayeeCodeConvTable'!$A$3:$A$213,'DOE - FIPStoPayeeCodeConvTable'!$E$3:$E$213) -> 0.2708 | X99: 0.3385 | Y99: 96582.47 | Z99: 188742.41 | AD99: 33051.97 | AE99: 11018 | AF99: 37987.73 | AG99: 73584.5 | AH99: 36202 | AI99: 48400.5 | AQ99: 33051.97 | AR99: 11018 | AS99: 37987.73 | AT99: 73584.5 | AU99: 36202 | AV99: 48400.5
A100: 199 | B100: =LOOKUP(A100,'DOE - FIPStoPayeeCodeConvTable'!$A$3:$A$213,'DOE - FIPStoPayeeCodeConvTable'!$B$3:$B$213) -> York Co | C100: 6689.5 | D100: 0 | E100: 0 | F100: 0 | G100: 5095.41 | H100: 4656.52 | I100: 13193.1 | J100: 5099.5 | K100: 16577.42 | L100: 38519.88 | M100: 0 | N100: 0 | S100: 89831.33 | U100: 50485.21 | V100: 39346.12 | W100: =LOOKUP(A100,'DOE - FIPStoPayeeCodeConvTable'!$A$3:$A$213,'DOE - FIPStoPayeeCodeConvTable'!$E$3:$E$213) -> 0.3888 | X100: 0.486 | Y100: 19122.21 | Z100: 20223.91 | AD100: 27938.5 | AE100: 10231 | AF100: 13806.92 | AG100: 0 | AH100: 12198.5 | AI100: 1755 | AQ100: 27938.5 | AR100: 10231 | AS100: 13806.92 | AT100: 0 | AU100: 12198.5 | AV100: 1755
A101: 510 | B101: =LOOKUP(A101,'DOE - FIPStoPayeeCodeConvTable'!$A$3:$A$213,'DOE - FIPStoPayeeCodeConvTable'!$B$3:$B$213) -> Alexandria City | C101: 49639.1 | D101: 42942.06 | E101: 30778.66 | F101: 30632.44 | G101: 29932.02 | H101: 37405.56 | I101: 25290.84 | J101: 22269.56 | K101: 36828.84 | L101: 33018.96 | M101: 25399.2 | N101: 62228.04 | S101: 426365.28 | U101: 239617.29 | V101: 186747.99 | W101: =LOOKUP(A101,'DOE - FIPStoPayeeCodeConvTable'!$A$3:$A$213,'DOE - FIPStoPayeeCodeConvTable'!$E$3:$E$213) -> 0.5309 | X101: 0.663625 | Y101: 123930.63 | Z101: 62817.36 | AD101: 2317.87 | AE101: 5619.24 | AF101: 40137 | AG101: 42498 | AH101: 25768.88 | AI101: 3148 | AQ101: 2317.87 | AR101: 5619.24 | AS101: 40137 | AT101: 42498 | AU101: 25768.88 | AV101: 3148
A102: 520 | B102: =LOOKUP(A102,'DOE - FIPStoPayeeCodeConvTable'!$A$3:$A$213,'DOE - FIPStoPayeeCodeConvTable'!$B$3:$B$213) -> Bristol City | C102: 14608.9 | D102: 38938 | E102: 27491.26 | F102: 5232.78 | G102: 8092.71 | H102: 1133.36 | I102: 50658.87 | J102: 35371.7 | K102: 22385.44 | L102: 26250.5 | M102: 21398.44 | N102: 33086.9 | S102: =SUM(C102:R102) -> 284648.86 | U102: 159972.66 | V102: 124676.2 | W102: =LOOKUP(A102,'DOE - FIPStoPayeeCodeConvTable'!$A$3:$A$213,'DOE - FIPStoPayeeCodeConvTable'!$E$3:$E$213) -> 0.2547 | X102: 0.318375 | Y102: 39693.79 | Z102: 84982.41 | AD102: 31796.49 | AE102: 21716.45 | AF102: 24504.09 | AG102: 39716.77 | AH102: 43299.86 | AI102: 14051.77 | AQ102: 31796.49 | AR102: 21716.45 | AS102: 24504.09 | AT102: 39716.77 | AU102: 43299.86 | AV102: 14051.77
A103: 530 | B103: =LOOKUP(A103,'DOE - FIPStoPayeeCodeConvTable'!$A$3:$A$213,'DOE - FIPStoPayeeCodeConvTable'!$B$3:$B$213) -> Buena Vista City | C103: 28605.16 | D103: 1967.5 | E103: 0 | F103: 0 | G103: 17684.07 | H103: 10343.76 | I103: 51742.45 | J103: 63707.37 | K103: 33431.16 | L103: 26499.67 | M103: 12699.6 | N103: 39969.83 | S103: 286650.57 | U103: 161097.62 | V103: 125552.95 | W103: =LOOKUP(A103,'DOE - FIPStoPayeeCodeConvTable'!$A$3:$A$213,'DOE - FIPStoPayeeCodeConvTable'!$E$3:$E$213) -> 0.2329 | X103: 0.291125 | Y103: 36551.6 | Z103: 89001.35 | AD103: 8657 | AE103: 18494.5 | AF103: 33821.72 | AG103: 24207.82 | AH103: 43185.3 | AI103: 33055.91 | AQ103: 8657 | AR103: 18494.5 | AS103: 33821.72 | AT103: 24207.82 | AU103: 43185.3 | AV103: 33055.91
A104: 540 | B104: =LOOKUP(A104,'DOE - FIPStoPayeeCodeConvTable'!$A$3:$A$213,'DOE - FIPStoPayeeCodeConvTable'!$B$3:$B$213) -> Charlottesville City | C104: 11615.82 | D104: 20749.88 | E104: 26106.8 | F104: 30485.24 | G104: -22459.3 | H104: 39160.92 | I104: 52783.14 | J104: 58163.26 | K104: 83358 | L104: -59484.38 | M104: 22642.56 | N104: 52062.06 | S104: 315184 | U104: 177133.41 | V104: 138050.59 | W104: =LOOKUP(A104,'DOE - FIPStoPayeeCodeConvTable'!$A$3:$A$213,'DOE - FIPStoPayeeCodeConvTable'!$E$3:$E$213) -> 0.3068 | X104: 0.3835 | Y104: 52942.4 | Z104: 85108.19 | AD104: 38265.14 | AE104: 78332.34 | AF104: -58429.98 | AG104: 26352.4 | AH104: 31820.64 | AI104: -6363.12 | AQ104: 38265.14 | AR104: 78332.34 | AS104: -58429.98 | AT104: 26352.4 | AU104: 31820.64 | AV104: -6363.12
A105: 550 | B105: =LOOKUP(A105,'DOE - FIPStoPayeeCodeConvTable'!$A$3:$A$213,'DOE - FIPStoPayeeCodeConvTable'!$B$3:$B$213) -> Chesapeake City | C105: 19062.3 | D105: 32592.1 | E105: 23485.02 | F105: 10527.84 | G105: 14914.44 | H105: 5172.64 | I105: 11131.1 | J105: 11442.66 | K105: 9212 | L105: 5099.5 | M105: 9175.38 | N105: 5099.5 | S105: 156914.48 | U105: 88185.94 | V105: 68728.54 | W105: =LOOKUP(A105,'DOE - FIPStoPayeeCodeConvTable'!$A$3:$A$213,'DOE - FIPStoPayeeCodeConvTable'!$E$3:$E$213) -> 0.3715 | X105: 0.464375 | Y105: 31915.82 | Z105: 36812.72 | AD105: 7311 | AE105: 17329.14 | AF105: 9065.64 | AG105: 0 | AH105: 3947.94 | AI105: 0 | AQ105: 7311 | AR105: 17329.14 | AS105: 9065.64 | AT105: 0 | AU105: 3947.94 | AV105: 0
A106: 570 | B106: =LOOKUP(A106,'DOE - FIPStoPayeeCodeConvTable'!$A$3:$A$213,'DOE - FIPStoPayeeCodeConvTable'!$B$3:$B$213) -> Colonial Heights City | C106: 0 | D106: 93776.68 | E106: 15610.68 | F106: 11938.8 | G106: 12336.76 | H106: 11938.8 | I106: 12336.76 | J106: 12336.76 | K106: 11142.88 | L106: 12336.76 | M106: 0 | N106: 0 | S106: 193754.88 | U106: 108890.24 | V106: 84864.64 | W106: =LOOKUP(A106,'DOE - FIPStoPayeeCodeConvTable'!$A$3:$A$213,'DOE - FIPStoPayeeCodeConvTable'!$E$3:$E$213) -> 0.4027 | X106: 0.503375 | Y106: 42718.74 | Z106: 42145.9 | AD106: 16090.37 | AE106: 5682.52 | AF106: 2317.87 | AG106: 5383.44 | AH106: 0 | AI106: 0 | AQ106: 16090.37 | AR106: 5682.52 | AS106: 2317.87 | AT106: 5383.44 | AU106: 0 | AV106: 0
A107: 580 | B107: =LOOKUP(A107,'DOE - FIPStoPayeeCodeConvTable'!$A$3:$A$213,'DOE - FIPStoPayeeCodeConvTable'!$B$3:$B$213) -> Covington City | C107: 0 | D107: 0 | E107: 14816.2 | F107: 8889.72 | G107: 11852.96 | H107: 1269.96 | I107: 2963.24 | J107: 14816.2 | K107: 5926.48 | L107: 2539.92 | M107: 0 | N107: 0 | S107: 63074.68 | U107: 35447.97 | V107: 27626.71 | W107: =LOOKUP(A107,'DOE - FIPStoPayeeCodeConvTable'!$A$3:$A$213,'DOE - FIPStoPayeeCodeConvTable'!$E$3:$E$213) -> 0.2496 | X107: 0.312 | Y107: 8619.53 | Z107: 19007.18 | AD107: 12198.5 | AE107: 0 | AF107: 12198.5 | AG107: 11411.5 | AH107: 11805 | AI107: 0 | AQ107: 12198.5 | AR107: 0 | AS107: 12198.5 | AT107: 11411.5 | AU107: 11805 | AV107: 0
A108: 590 | B108: =LOOKUP(A108,'DOE - FIPStoPayeeCodeConvTable'!$A$3:$A$213,'DOE - FIPStoPayeeCodeConvTable'!$B$3:$B$213) -> Danville City | C108: 33113.78 | D108: 66115.39 | E108: 31911.31 | F108: 58119.76 | G108: 51489.35 | H108: 51873.9 | I108: 48189.71 | J108: 34836.77 | K108: 28264.46 | L108: 35272.49 | M108: 4255.1 | N108: 12699.6 | S108: 456141.62 | U108: 256351.59 | V108: 199790.03 | W108: =LOOKUP(A108,'DOE - FIPStoPayeeCodeConvTable'!$A$3:$A$213,'DOE - FIPStoPayeeCodeConvTable'!$E$3:$E$213) -> 0.2223 | X108: 0.277875 | Y108: 55516.65 | Z108: 144273.38 | AD108: 45439.74 | AE108: 13686.58 | AF108: 45700.14 | AG108: 68164.68 | AH108: 72572.68 | AI108: 33558.6 | AQ108: 45439.74 | AR108: 13686.58 | AS108: 45700.14 | AT108: 68164.68 | AU108: 72572.68 | AV108: 33558.6
A109: 620 | B109: =LOOKUP(A109,'DOE - FIPStoPayeeCodeConvTable'!$A$3:$A$213,'DOE - FIPStoPayeeCodeConvTable'!$B$3:$B$213) -> Franklin City | C109: 4012.5 | D109: 3538.8 | E109: 0 | F109: 0 | G109: 0 | H109: 0 | I109: 0 | J109: 0 | K109: 11540.84 | L109: 13530.64 | M109: 0 | N109: 0 | S109: 32622.78 | U109: 18334 | V109: 14288.78 | W109: =LOOKUP(A109,'DOE - FIPStoPayeeCodeConvTable'!$A$3:$A$213,'DOE - FIPStoPayeeCodeConvTable'!$E$3:$E$213) -> 0.371 | X109: 0.46375 | Y109: 6626.42 | Z109: 7662.36 | AD109: 2188.29 | AE109: 1058.85 | AF109: 3176.55 | AG109: 2188.29 | AH109: 2117.7 | AI109: 33917.62 | AQ109: 2188.29 | AR109: 1058.85 | AS109: 3176.55 | AT109: 2188.29 | AU109: 2117.7 | AV109: 33917.62
A110: 630 | B110: =LOOKUP(A110,'DOE - FIPStoPayeeCodeConvTable'!$A$3:$A$213,'DOE - FIPStoPayeeCodeConvTable'!$B$3:$B$213) -> Fredericksburg City | C110: 24397 | D110: -20744.99 | E110: 12336.76 | F110: 29718.24 | G110: 32477.2 | H110: 50732.96 | I110: 50639.14 | J110: 25842.18 | K110: 59820.01 | L110: -18912.47 | M110: 14318.22 | N110: 41670.57 | S110: 302294.82 | U110: 169889.69 | V110: 132405.13 | W110: =LOOKUP(A110,'DOE - FIPStoPayeeCodeConvTable'!$A$3:$A$213,'DOE - FIPStoPayeeCodeConvTable'!$E$3:$E$213) -> 0.3441 | X110: 0.430125 | Y110: 56950.76 | Z110: 75454.37 | AD110: 28011.74 | AE110: 25796.96 | AF110: 13013.58 | AG110: 9065.64 | AH110: 6814.24 | AI110: 53909.5 | AQ110: 28011.74 | AR110: 25796.96 | AS110: 13013.58 | AT110: 9065.64 | AU110: 6814.24 | AV110: 53909.5
A111: 640 | B111: =LOOKUP(A111,'DOE - FIPStoPayeeCodeConvTable'!$A$3:$A$213,'DOE - FIPStoPayeeCodeConvTable'!$B$3:$B$213) -> Galax City | C111: 5902.5 | D111: -24408.62 | E111: 14157.45 | F111: 4809.92 | G111: 0 | H111: 15364.6 | I111: 14816.2 | J111: 15239.52 | K111: 11429.64 | L111: 4656.52 | M111: 12699.6 | N111: 17356.12 | S111: 92023.45 | U111: 51717.18 | V111: 40306.27 | W111: =LOOKUP(A111,'DOE - FIPStoPayeeCodeConvTable'!$A$3:$A$213,'DOE - FIPStoPayeeCodeConvTable'!$E$3:$E$213) -> 0.3146 | X111: 0.39325 | Y111: 15850.44 | Z111: 24455.83 | AD111: 6500.32 | AE111: 11617.5 | AF111: 6287.46 | AG111: 3428.56 | AH111: 3655.5 | AI111: 8042.1 | AQ111: 6500.32 | AR111: 11617.5 | AS111: 6287.46 | AT111: 3428.56 | AU111: 3655.5 | AV111: 8042.1
A112: 650 | B112: =LOOKUP(A112,'DOE - FIPStoPayeeCodeConvTable'!$A$3:$A$213,'DOE - FIPStoPayeeCodeConvTable'!$B$3:$B$213) -> Hampton City | C112: 0 | D112: 0 | E112: 0 | F112: 0 | G112: 0 | H112: 0 | I112: 0 | J112: 0 | K112: 0 | L112: 0 | M112: 0 | N112: 0 | S112: 0 | U112: 0 | V112: 0 | W112: =LOOKUP(A112,'DOE - FIPStoPayeeCodeConvTable'!$A$3:$A$213,'DOE - FIPStoPayeeCodeConvTable'!$E$3:$E$213) -> 0.3223 | X112: 0.402875 | Y112: 0 | Z112: 0 | AD112: 0 | AE112: 0 | AF112: 0 | AG112: 0 | AH112: 0 | AI112: 0 | AQ112: 0 | AR112: 0 | AS112: 0 | AT112: 0 | AU112: 0 | AV112: 0
A113: 660 | B113: =LOOKUP(A113,'DOE - FIPStoPayeeCodeConvTable'!$A$3:$A$213,'DOE - FIPStoPayeeCodeConvTable'!$B$3:$B$213) -> Harrisonburg City | C113: 47486.6 | D113: 73398.81 | E113: 92513.33 | F113: 77763.78 | G113: 111378.09 | H113: 131247.8 | I113: 248008.24 | J113: 172226.41 | K113: 131343.96 | L113: 96136.8 | M113: 136341.51 | N113: 140343.63 | S113: 1458188.96 | U113: 819502.2 | V113: 638686.76 | W113: =LOOKUP(A113,'DOE - FIPStoPayeeCodeConvTable'!$A$3:$A$213,'DOE - FIPStoPayeeCodeConvTable'!$E$3:$E$213) -> 0.3808 | X113: 0.476 | Y113: 304014.9 | Z113: 334671.86 | AD113: 180549.59 | AE113: 89767.02 | AF113: 232147.81 | AG113: 192926.44 | AH113: 355462.02 | AI113: 141115.94 | AQ113: 180549.59 | AR113: 89767.02 | AS113: 232147.81 | AT113: 192926.44 | AU113: 355462.02 | AV113: 141115.94
A114: 670 | B114: =LOOKUP(A114,'DOE - FIPStoPayeeCodeConvTable'!$A$3:$A$213,'DOE - FIPStoPayeeCodeConvTable'!$B$3:$B$213) -> Hopewell City | C114: 8919.42 | D114: 4532.82 | E114: 2631.96 | F114: 0 | G114: 0 | H114: 0 | I114: 0 | J114: 895.72 | K114: 8466.4 | L114: 4656.52 | M114: 15239.52 | N114: 16932.8 | S114: 62275.16 | U114: 34998.64 | V114: 27276.52 | W114: =LOOKUP(A114,'DOE - FIPStoPayeeCodeConvTable'!$A$3:$A$213,'DOE - FIPStoPayeeCodeConvTable'!$E$3:$E$213) -> 0.2667 | X114: 0.333375 | Y114: 9093.31 | Z114: 18183.21 | AD114: 0 | AE114: 0 | AF114: 0 | AG114: 0 | AH114: 0 | AI114: 0 | AQ114: 0 | AR114: 0 | AS114: 0 | AT114: 0 | AU114: 0 | AV114: 0
A115: 678 | B115: =LOOKUP(A115,'DOE - FIPStoPayeeCodeConvTable'!$A$3:$A$213,'DOE - FIPStoPayeeCodeConvTable'!$B$3:$B$213) -> Lexington City | C115: -10231 | D115: 0 | E115: 0 | F115: 0 | G115: 0 | H115: 0 | I115: 0 | J115: 0 | K115: 0 | L115: 0 | M115: 0 | N115: 0 | S115: -10231 | U115: -5749.82 | V115: -4481.18 | W115: =LOOKUP(A115,'DOE - FIPStoPayeeCodeConvTable'!$A$3:$A$213,'DOE - FIPStoPayeeCodeConvTable'!$E$3:$E$213) -> 0.3302 | X115: 0.41275 | Y115: -1849.61 | Z115: -2631.57 | AD115: 0 | AE115: 0 | AF115: 0 | AG115: 5902.5 | AH115: 0 | AI115: 0 | AQ115: 0 | AR115: 0 | AS115: 0 | AT115: 5902.5 | AU115: 0 | AV115: 0
A116: 680 | B116: =LOOKUP(A116,'DOE - FIPStoPayeeCodeConvTable'!$A$3:$A$213,'DOE - FIPStoPayeeCodeConvTable'!$B$3:$B$213) -> Lynchburg City | C116: 140715.08 | D116: 237442.83 | E116: 128346.54 | F116: 86608.1 | G116: 88311.36 | H116: 122863.83 | I116: 188043.34 | J116: 112408.04 | K116: 160826.16 | L116: 95652.64 | M116: 49067.54 | N116: 129252.78 | S116: 1539538.24 | U116: 865220.49 | V116: 674317.75 | W116: =LOOKUP(A116,'DOE - FIPStoPayeeCodeConvTable'!$A$3:$A$213,'DOE - FIPStoPayeeCodeConvTable'!$E$3:$E$213) -> 0.2736 | X116: 0.342 | Y116: 230616.67 | Z116: 443701.08 | AD116: 166782.2 | AE116: 56565.74 | AF116: 207624.59 | AG116: 180914.5 | AH116: 206041.16 | AI116: 119657.85 | AQ116: 166782.2 | AR116: 56565.74 | AS116: 207624.59 | AT116: 180914.5 | AU116: 206041.16 | AV116: 119657.85
A117: 683 | B117: =LOOKUP(A117,'DOE - FIPStoPayeeCodeConvTable'!$A$3:$A$213,'DOE - FIPStoPayeeCodeConvTable'!$B$3:$B$213) -> Manassas City | C117: 0 | D117: 0 | E117: 0 | F117: 0 | G117: 0 | H117: 11938.8 | I117: 58843.8 | J117: 18965.52 | K117: 11852.96 | L117: 121563.54 | M117: 11852.96 | N117: 17987.74 | S117: 253005.32 | U117: 142188.99 | V117: 110816.33 | W117: =LOOKUP(A117,'DOE - FIPStoPayeeCodeConvTable'!$A$3:$A$213,'DOE - FIPStoPayeeCodeConvTable'!$E$3:$E$213) -> 0.4168 | X117: 0.521 | Y117: 57735.31 | Z117: 53081.02 | AD117: 15022.02 | AE117: 13922.64 | AF117: 12501.02 | AG117: 35808.5 | AH117: 11805 | AI117: 7870 | AQ117: 15022.02 | AR117: 13922.64 | AS117: 12501.02 | AT117: 35808.5 | AU117: 11805 | AV117: 7870
A118: 685 | B118: =LOOKUP(A118,'DOE - FIPStoPayeeCodeConvTable'!$A$3:$A$213,'DOE - FIPStoPayeeCodeConvTable'!$B$3:$B$213) -> Manassas Park City | C118: 0 | D118: 0 | E118: 0 | F118: 0 | G118: 19472.72 | H118: 0 | I118: 13122.92 | J118: 0 | K118: 38945.44 | L118: -100820.86 | M118: 3809.88 | N118: 13122.92 | S118: -12346.98 | U118: -6939 | V118: -5407.98 | W118: =LOOKUP(A118,'DOE - FIPStoPayeeCodeConvTable'!$A$3:$A$213,'DOE - FIPStoPayeeCodeConvTable'!$E$3:$E$213) -> 0.4273 | X118: 0.534125 | Y118: -2888.54 | Z118: -2519.44 | AD118: 0 | AE118: 0 | AF118: 0 | AG118: 3541.5 | AH118: 22429.5 | AI118: 3655.5 | AQ118: 0 | AR118: 0 | AS118: 0 | AT118: 3541.5 | AU118: 22429.5 | AV118: 3655.5
A119: 690 | B119: =LOOKUP(A119,'DOE - FIPStoPayeeCodeConvTable'!$A$3:$A$213,'DOE - FIPStoPayeeCodeConvTable'!$B$3:$B$213) -> Martinsville City | C119: 5902.5 | D119: 14816.2 | E119: -9729.9 | F119: 14210.56 | G119: 10700.27 | H119: -23087.18 | I119: 10700.27 | J119: 10700.27 | K119: 18218.76 | L119: 7896 | M119: 9870 | N119: 9869.5 | S119: 80067.25 | U119: 44997.79 | V119: 35069.46 | W119: =LOOKUP(A119,'DOE - FIPStoPayeeCodeConvTable'!$A$3:$A$213,'DOE - FIPStoPayeeCodeConvTable'!$E$3:$E$213) -> 0.3321 | X119: 0.415125 | Y119: 14558.21 | Z119: 20511.25 | AD119: 47652.32 | AE119: 4532.82 | AF119: 21169.42 | AG119: 7416.2 | AH119: 18238.68 | AI119: 31473.66 | AQ119: 47652.32 | AR119: 4532.82 | AS119: 21169.42 | AT119: 7416.2 | AU119: 18238.68 | AV119: 31473.66
A120: 700 | B120: =LOOKUP(A120,'DOE - FIPStoPayeeCodeConvTable'!$A$3:$A$213,'DOE - FIPStoPayeeCodeConvTable'!$B$3:$B$213) -> Newport News City | C120: 47232.94 | D120: 28537.18 | E120: 63159.61 | F120: 57987.3 | G120: 56531.59 | H120: 57122.54 | I120: 72855.52 | J120: 38420.18 | K120: 42341.84 | L120: 30120.18 | M120: 17898.44 | N120: 37953.34 | S120: 550160.66 | U120: 309190.29 | V120: 240970.37 | W120: =LOOKUP(A120,'DOE - FIPStoPayeeCodeConvTable'!$A$3:$A$213,'DOE - FIPStoPayeeCodeConvTable'!$E$3:$E$213) -> 0.2773 | X120: 0.346625 | Y120: 83526.35 | Z120: 157444.02 | AD120: 31609.14 | AE120: 23376.78 | AF120: 46500.22 | AG120: 54891.96 | AH120: 31650.3 | AI120: 19273.86 | AQ120: 31609.14 | AR120: 23376.78 | AS120: 46500.22 | AT120: 54891.96 | AU120: 31650.3 | AV120: 19273.86
A121: 710 | B121: =LOOKUP(A121,'DOE - FIPStoPayeeCodeConvTable'!$A$3:$A$213,'DOE - FIPStoPayeeCodeConvTable'!$B$3:$B$213) -> Norfolk City | C121: 115424.66 | D121: 154039.17 | E121: 124751.22 | F121: 90632.8 | G121: 120056.94 | H121: 116891.82 | I121: 185383.42 | J121: 193321.69 | K121: 216203.42 | L121: 144550.45 | M121: 188553.7 | N121: 114128.14 | S121: 1763937.43 | U121: 991332.84 | V121: 772604.59 | W121: =LOOKUP(A121,'DOE - FIPStoPayeeCodeConvTable'!$A$3:$A$213,'DOE - FIPStoPayeeCodeConvTable'!$E$3:$E$213) -> 0.2455 | X121: 0.306875 | Y121: 237093.03 | Z121: 535511.56 | AD121: 132678.6 | AE121: 74885.3 | AF121: 178266.76 | AG121: 73434.14 | AH121: 137009.3 | AI121: 52026.24 | AQ121: 132678.6 | AR121: 74885.3 | AS121: 178266.76 | AT121: 73434.14 | AU121: 137009.3 | AV121: 52026.24
A122: 720 | B122: =LOOKUP(A122,'DOE - FIPStoPayeeCodeConvTable'!$A$3:$A$213,'DOE - FIPStoPayeeCodeConvTable'!$B$3:$B$213) -> Norton City | C122: 0 | D122: 0 | E122: 0 | F122: 0 | G122: 0 | H122: 0 | I122: 0 | J122: 0 | K122: 0 | L122: 0 | M122: 0 | N122: 0 | S122: 0 | U122: 0 | V122: 0 | W122: =LOOKUP(A122,'DOE - FIPStoPayeeCodeConvTable'!$A$3:$A$213,'DOE - FIPStoPayeeCodeConvTable'!$E$3:$E$213) -> 0.3254 | X122: 0.40675 | Y122: 0 | Z122: 0 | AD122: 0 | AE122: 0 | AF122: 0 | AG122: 0 | AH122: 0 | AI122: 0 | AQ122: 0 | AR122: 0 | AS122: 0 | AT122: 0 | AU122: 0 | AV122: 0
A123: 730 | B123: =LOOKUP(A123,'DOE - FIPStoPayeeCodeConvTable'!$A$3:$A$213,'DOE - FIPStoPayeeCodeConvTable'!$B$3:$B$213) -> Petersburg City | C123: 4474.72 | D123: 80385.1 | E123: 13761 | F123: 4094.16 | G123: 11211.84 | H123: 4733.9 | I123: 3271.68 | J123: 4478.6 | K123: 10161.92 | L123: 18626.08 | M123: 0 | N123: 12699.6 | S123: 167898.6 | U123: 94359.01 | V123: 73539.59 | W123: =LOOKUP(A123,'DOE - FIPStoPayeeCodeConvTable'!$A$3:$A$213,'DOE - FIPStoPayeeCodeConvTable'!$E$3:$E$213) -> 0.3535 | X123: 0.441875 | Y123: 32495.31 | Z123: 41044.28 | AD123: 3663.73 | AE123: 2611.83 | AF123: 5494.42 | AG123: 5179.09 | AH123: 19431.7 | AI123: 11805 | AQ123: 3663.73 | AR123: 2611.83 | AS123: 5494.42 | AT123: 5179.09 | AU123: 19431.7 | AV123: 11805
A124: 735 | B124: =LOOKUP(A124,'DOE - FIPStoPayeeCodeConvTable'!$A$3:$A$213,'DOE - FIPStoPayeeCodeConvTable'!$B$3:$B$213) -> Poquoson City | C124: 5902.5 | D124: 0 | E124: 0 | F124: 0 | G124: 0 | H124: 0 | I124: 0 | J124: 0 | K124: 0 | L124: 0 | M124: 0 | N124: 0 | S124: 5902.5 | U124: 3317.21 | V124: 2585.29 | W124: =LOOKUP(A124,'DOE - FIPStoPayeeCodeConvTable'!$A$3:$A$213,'DOE - FIPStoPayeeCodeConvTable'!$E$3:$E$213) -> 0.2787 | X124: 0.348375 | Y124: 900.65 | Z124: 1684.64 | AD124: 8263.5 | AE124: 5902.5 | AF124: 17707.5 | AG124: 12198.5 | AH124: 11805 | AI124: 0 | AQ124: 8263.5 | AR124: 5902.5 | AS124: 17707.5 | AT124: 12198.5 | AU124: 11805 | AV124: 0
A125: 740 | B125: =LOOKUP(A125,'DOE - FIPStoPayeeCodeConvTable'!$A$3:$A$213,'DOE - FIPStoPayeeCodeConvTable'!$B$3:$B$213) -> Portsmouth City | C125: 65170.88 | D125: 113669.9 | E125: 70419.82 | F125: 37515.82 | G125: 60132 | H125: 60470.15 | I125: 60385.43 | J125: 85574.67 | K125: 56409.64 | L125: 82894.57 | M125: 77896.82 | N125: 51220.53 | S125: 821760.23 | U125: 461829.25 | V125: 359930.98 | W125: =LOOKUP(A125,'DOE - FIPStoPayeeCodeConvTable'!$A$3:$A$213,'DOE - FIPStoPayeeCodeConvTable'!$E$3:$E$213) -> 0.2605 | X125: 0.325625 | Y125: 117202.53 | Z125: 242728.45 | AD125: 4371 | AE125: 4371 | AF125: 4089 | AG125: 4517.22 | AH125: 0 | AI125: 8601 | AQ125: 4371 | AR125: 4371 | AS125: 4089 | AT125: 4517.22 | AU125: 0 | AV125: 8601
A126: 750 | B126: =LOOKUP(A126,'DOE - FIPStoPayeeCodeConvTable'!$A$3:$A$213,'DOE - FIPStoPayeeCodeConvTable'!$B$3:$B$213) -> Radford City | C126: 2754.5 | D126: 25101 | E126: 14816.2 | F126: 8889.72 | G126: 10159.68 | H126: 15996.7 | I126: 14816.2 | J126: 15239.52 | K126: 11429.64 | L126: 0 | M126: 0 | N126: 3910.64 | S126: 123113.8 | U126: 69189.96 | V126: 53923.84 | W126: =LOOKUP(A126,'DOE - FIPStoPayeeCodeConvTable'!$A$3:$A$213,'DOE - FIPStoPayeeCodeConvTable'!$E$3:$E$213) -> 0.2035 | X126: 0.254375 | Y126: 13716.88 | Z126: 40206.96 | AD126: 27151.5 | AE126: 3541.5 | AF126: 22429.5 | AG126: 23216.5 | AH126: 14211.16 | AI126: 16933.44 | AQ126: 27151.5 | AR126: 3541.5 | AS126: 22429.5 | AT126: 23216.5 | AU126: 14211.16 | AV126: 16933.44
A127: 760 | B127: =LOOKUP(A127,'DOE - FIPStoPayeeCodeConvTable'!$A$3:$A$213,'DOE - FIPStoPayeeCodeConvTable'!$B$3:$B$213) -> Richmond City | C127: 160034.9 | D127: 178032.38 | E127: 135603.9 | F127: 133554.54 | G127: 131030.65 | H127: 144150.65 | I127: 226444.6 | J127: 182634.26 | K127: 104820.68 | L127: 82718.82 | M127: 111812.72 | N127: 278642.47 | S127: 1869480.57 | U127: 1050648.08 | V127: 818832.49 | W127: =LOOKUP(A127,'DOE - FIPStoPayeeCodeConvTable'!$A$3:$A$213,'DOE - FIPStoPayeeCodeConvTable'!$E$3:$E$213) -> 0.3691 | X127: 0.461375 | Y127: 377788.84 | Z127: 441043.65 | AD127: 276147.83 | AE127: 186579.76 | AF127: 323187.44 | AG127: 211745.22 | AH127: 327055.8 | AI127: 154939.03 | AQ127: 276147.83 | AR127: 186579.76 | AS127: 323187.44 | AT127: 211745.22 | AU127: 327055.8 | AV127: 154939.03
A128: 770 | B128: =LOOKUP(A128,'DOE - FIPStoPayeeCodeConvTable'!$A$3:$A$213,'DOE - FIPStoPayeeCodeConvTable'!$B$3:$B$213) -> Roanoke City | C128: 150167.01 | D128: 285005.56 | E128: 152816.92 | F128: 113740.62 | G128: 106666.74 | H128: 109903.78 | I128: 145600.32 | J128: 157114 | K128: 130082.82 | L128: 149838.56 | M128: 77248.6 | N128: 189498.56 | S128: 1767683.49 | U128: 993438.12 | V128: 774245.37 | W128: =LOOKUP(A128,'DOE - FIPStoPayeeCodeConvTable'!$A$3:$A$213,'DOE - FIPStoPayeeCodeConvTable'!$E$3:$E$213) -> 0.3072 | X128: 0.384 | Y128: 297310.22 | Z128: 476935.15 | AD128: 168775.29 | AE128: 86951.17 | AF128: 179400.08 | AG128: 143042.25 | AH128: 193486.13 | AI128: 124940.63 | AQ128: 168775.29 | AR128: 86951.17 | AS128: 179400.08 | AT128: 143042.25 | AU128: 193486.13 | AV128: 124940.63
A129: 775 | B129: =LOOKUP(A129,'DOE - FIPStoPayeeCodeConvTable'!$A$3:$A$213,'DOE - FIPStoPayeeCodeConvTable'!$B$3:$B$213) -> Salem City | C129: 19144.04 | D129: 21067.23 | E129: 35982.2 | F129: 6657.58 | G129: 1693.28 | H129: 0 | I129: 4898.38 | J129: 5190.9 | K129: 1935.5 | L129: 33959.92 | M129: 8889.72 | N129: -92853.7 | S129: 46565.05 | U129: 26169.56 | V129: 20395.49 | W129: =LOOKUP(A129,'DOE - FIPStoPayeeCodeConvTable'!$A$3:$A$213,'DOE - FIPStoPayeeCodeConvTable'!$E$3:$E$213) -> 0.3513 | X129: 0.439125 | Y129: 8956.17 | Z129: 11439.32 | AD129: 54623.52 | AE129: 18597.76 | AF129: 15673.36 | AG129: 15412.56 | AH129: 10466.7 | AI129: 10815.59 | AQ129: 54623.52 | AR129: 18597.76 | AS129: 15673.36 | AT129: 15412.56 | AU129: 10466.7 | AV129: 10815.59
A130: 790 | B130: =LOOKUP(A130,'DOE - FIPStoPayeeCodeConvTable'!$A$3:$A$213,'DOE - FIPStoPayeeCodeConvTable'!$B$3:$B$213) -> Staunton City | C130: 21413.5 | D130: 186381.49 | E130: 73894.92 | F130: 60262.84 | G130: 114848.99 | H130: 74766.92 | I130: 127928.92 | J130: 88049.6 | K130: 108530.2 | L130: 65846.48 | M130: 60390.04 | N130: 62922.52 | S130: 1045236.42 | U130: 587422.87 | V130: 457813.55 | W130: =LOOKUP(A130,'DOE - FIPStoPayeeCodeConvTable'!$A$3:$A$213,'DOE - FIPStoPayeeCodeConvTable'!$E$3:$E$213) -> 0.2699 | X130: 0.337375 | Y130: 154454.85 | Z130: 303358.7 | AD130: 2023.97 | AE130: 13295.2 | AF130: 9812.87 | AG130: 18875.89 | AH130: 37788.77 | AI130: 66319.75 | AQ130: 2023.97 | AR130: 13295.2 | AS130: 9812.87 | AT130: 18875.89 | AU130: 37788.77 | AV130: 66319.75
A131: 800 | B131: =LOOKUP(A131,'DOE - FIPStoPayeeCodeConvTable'!$A$3:$A$213,'DOE - FIPStoPayeeCodeConvTable'!$B$3:$B$213) -> Suffolk City | C131: 19384.76 | D131: 26017.91 | E131: 36650.2 | F131: 20156.82 | G131: 26830.72 | H131: 44945.04 | I131: 40638.72 | J131: 73662.14 | K131: 73194.48 | L131: 22033.86 | M131: 12564.84 | N131: 33709.18 | S131: 429788.67 | U131: 241541.23 | V131: 188247.44 | W131: =LOOKUP(A131,'DOE - FIPStoPayeeCodeConvTable'!$A$3:$A$213,'DOE - FIPStoPayeeCodeConvTable'!$E$3:$E$213) -> 0.2432 | X131: 0.304 | Y131: 57227.22 | Z131: 131020.22 | AD131: 15627.8 | AE131: 23471.26 | AF131: 53638.1 | AG131: 80971.52 | AH131: 41658.14 | AI131: 10903.7 | AQ131: 15627.8 | AR131: 23471.26 | AS131: 53638.1 | AT131: 80971.52 | AU131: 41658.14 | AV131: 10903.7
A132: 810 | B132: =LOOKUP(A132,'DOE - FIPStoPayeeCodeConvTable'!$A$3:$A$213,'DOE - FIPStoPayeeCodeConvTable'!$B$3:$B$213) -> Virginia Beach City | C132: 123215.12 | D132: 298782.22 | E132: 208315.48 | F132: 187565.54 | G132: 279555.45 | H132: 290474.44 | I132: 299573.21 | J132: 231026.17 | K132: 252175.01 | L132: 304231.38 | M132: 103017.1 | N132: 235145.22 | S132: 2813076.34 | U132: 1580948.9 | V132: 1232127.44 | W132: =LOOKUP(A132,'DOE - FIPStoPayeeCodeConvTable'!$A$3:$A$213,'DOE - FIPStoPayeeCodeConvTable'!$E$3:$E$213) -> 0.3569 | X132: 0.446125 | Y132: 549682.85 | Z132: 682444.59 | AD132: 192029.08 | AE132: 197326.26 | AF132: 316277.78 | AG132: 246410.2 | AH132: 239961.65 | AI132: 211918.95 | AQ132: 192029.08 | AR132: 197326.26 | AS132: 316277.78 | AT132: 246410.2 | AU132: 239961.65 | AV132: 211918.95
A133: 820 | B133: =LOOKUP(A133,'DOE - FIPStoPayeeCodeConvTable'!$A$3:$A$213,'DOE - FIPStoPayeeCodeConvTable'!$B$3:$B$213) -> Waynesboro City | C133: 10154.05 | D133: 160185.22 | E133: 54842.46 | F133: -5580.32 | G133: 42099.94 | H133: 25399.2 | I133: 26245.84 | J133: 44376.34 | K133: 21166 | L133: 13122.92 | M133: 1169.76 | N133: 19867.42 | S133: 413048.83 | U133: 232133.44 | V133: =SUM(S133)-SUM(U133) -> 180915.39 | W133: =LOOKUP(A133,'DOE - FIPStoPayeeCodeConvTable'!$A$3:$A$213,'DOE - FIPStoPayeeCodeConvTable'!$E$3:$E$213) -> 0.3843 | X133: 0.480375 | Y133: 86907.23 | Z133: 94008.16 | AD133: 27695.14 | AE133: 29230.98 | AF133: 42874.6 | AG133: 42567.02 | AH133: 26352.4 | AI133: -2210.86 | AQ133: 27695.14 | AR133: 29230.98 | AS133: 42874.6 | AT133: 42567.02 | AU133: 26352.4 | AV133: -2210.86
A134: 830 | B134: =LOOKUP(A134,'DOE - FIPStoPayeeCodeConvTable'!$A$3:$A$213,'DOE - FIPStoPayeeCodeConvTable'!$B$3:$B$213) -> Williamsburg City | C134: 1462.2 | D134: 29460.74 | E134: 17655.74 | F134: 17086.2 | G134: 16339.76 | H134: 17488.36 | I134: 16577.42 | J134: 15353.08 | K134: 11852.96 | L134: 13122.92 | M134: 0 | N134: 13122.92 | S134: =SUM(C134:R134) -> 169522.3 | U134: =ROUND($U$1*S134,2) -> 95271.53 | V134: 74250.77 | W134: =LOOKUP(A134,'DOE - FIPStoPayeeCodeConvTable'!$A$3:$A$213,'DOE - FIPStoPayeeCodeConvTable'!$E$3:$E$213) -> 0.4553 | X134: 0.569125 | Y134: 42257.97 | Z134: 31992.8 | AD134: 0 | AE134: 0 | AF134: 0 | AG134: 0 | AH134: 0 | AI134: 0 | AQ134: 0 | AR134: 0 | AS134: 0 | AT134: 0 | AU134: 0 | AV134: 0
A135: 840 | B135: =LOOKUP(A135,'DOE - FIPStoPayeeCodeConvTable'!$A$3:$A$213,'DOE - FIPStoPayeeCodeConvTable'!$B$3:$B$213) -> Winchester City | C135: 32045.6 | D135: 101352.98 | E135: 84936.4 | F135: 50164.25 | G135: 56851.51 | H135: 95587.46 | I135: 103541.63 | J135: 52959.2 | K135: 38092.76 | L135: 62775.3 | M135: 35804.26 | N135: 43730.38 | S135: 757841.73 | U135: 425907.05 | V135: 331934.68 | W135: =LOOKUP(A135,'DOE - FIPStoPayeeCodeConvTable'!$A$3:$A$213,'DOE - FIPStoPayeeCodeConvTable'!$E$3:$E$213) -> 0.4587 | X135: =$X$1*W135 -> 0.573375 | Y135: =ROUND(X135*V135,2) -> 190323.05 | Z135: =SUM(V135)-SUM(Y135) -> 141611.63 | AD135: 54440.68 | AE135: 31615.48 | AF135: 75713.36 | AG135: 98265.4 | AH135: 38913.54 | AI135: 33271.26 | AQ135: =+AD135+AJ135 -> 54440.68 | AR135: =+AE135+AK135 -> 31615.48 | AS135: =+AF135+AL135 -> 75713.36 | AT135: =+AG135+AM135 -> 98265.4 | AU135: =+AH135+AN135 -> 38913.54 | AV135: =+AI135+AO135 -> 33271.26

Sheet TFC (hidden)
A1: FY | B1: ='DOE - FIPStoPayeeCodeConvTable'!G1 -> 2022 | C1: MEDICAID ADJUSTMENTS--TFC PAYMENTS TO PROVIDERS | O1: ="Extended to be paided in this SFY = " & A1 -> Extended to be paided in this SFY = FY | T1: xx | U1: 0.5 | V1: 0.5 | W1: (POOL) | X1: 1
U2: FEDERAL | V2: STATE/ | W2: (RATE) | X2: Factor
A3: FIPS | S3: Grand | U3: MEDICAID | V3: LOCAL | W3: LOCAL | Y3: LOCAL | Z3: STATE
A4: CODE | B4: LOCALITY | C4: =TEXT("7/1/" & $B$1-1,"mmm-yyyy") -> Jul-2021 | D4: =TEXT("8/1/" & $B$1-1,"mmm-yyyy") -> Aug-2021 | E4: =TEXT("9/1/" & $B$1-1,"mmm-yyyy") -> Sep-2021 | F4: =TEXT("10/1/" & $B$1-1,"mmm-yyyy") -> Oct-2021 | G4: =TEXT("11/1/" & $B$1-1,"mmm-yyyy") -> Nov-2021 | H4: =TEXT("12/1/" & $B$1-1,"mmm-yyyy") -> Dec-2021 | I4: =TEXT("1/1/" & $B$1,"mmm-yyyy") -> Jan-2022 | J4: =TEXT("2/1/" & $B$1,"mmm-yyyy") -> Feb-2022 | K4: =TEXT("3/1/" & $B$1,"mmm-yyyy") -> Mar-2022 | L4: =TEXT("4/1/" & $B$1,"mmm-yyyy") -> Apr-2022 | M4: =TEXT("5/1/" & $B$1,"mmm-yyyy") -> May-2022 | N4: =TEXT("6/1/" & $B$1,"mmm-yyyy") -> Jun-2022 | O4: =TEXT("7/1/" & $B$1,"mmm-yyyy") -> Jul-2022 | P4: =TEXT("8/1/" & $B$1,"mmm-yyyy") -> Aug-2022 | Q4: =TEXT("9/1/" & $B$1,"mmm-yyyy") -> Sep-2022 | R4: =TEXT("10/1/" & $B$1,"mmm-yyyy") -> Oct-2022 | S4: Total | U4: RATE/Share | V4: SHARE | W4: MATCH Rate | Y4: MATCH | Z4: SHARE
A5: Totals | C5: =SUM(C6:C1201) -> 0 | D5: 0 | E5: =SUM(E6:E1201) -> 0 | F5: =SUM(F6:F1201) -> 0 | G5: =SUM(G6:G1201) -> 0 | H5: =SUM(H6:H1201) -> 0 | I5: 0 | J5: =SUM(J6:J1200) -> 0 | K5: =SUM(K6:K1200) -> 0 | L5: =SUM(L6:L1200) -> 0 | M5: =SUM(M6:M1200) -> 0 | N5: =SUM(N6:N1200) -> 0 | O5: =SUM(O6:O1200) -> 0 | P5: 0 | Q5: 0 | R5: 0 | S5: =SUM(C5:R5) -> 0 | T5: = | U5: =SUM(U6:U399) -> 0 | V5: =SUM(V6:V399) -> 0 | W5: = | Y5: =SUM(Y6:Y399) -> 0 | Z5: =SUM(Z6:Z399) -> 0
A6: 1 | B6: =LOOKUP(A6,'DOE - FIPStoPayeeCodeConvTable'!$A$3:$A$213,'DOE - FIPStoPayeeCodeConvTable'!$B$3:$B$213) -> Accomack Co | S6: 0 | U6: =ROUND($U$1*S6,2) -> 0 | V6: =SUM(S6)-SUM(U6) -> 0 | W6: =LOOKUP(A6,'DOE - FIPStoPayeeCodeConvTable'!$A$3:$A$213,'DOE - FIPStoPayeeCodeConvTable'!$E$3:$E$213) -> 0.2332 | X6: =$X$1*W6 -> 0.2332 | Y6: =ROUND(X6*V6,2) -> 0 | Z6: =SUM(V6)-SUM(Y6) -> 0
A7: 3 | B7: =LOOKUP(A7,'DOE - FIPStoPayeeCodeConvTable'!$A$3:$A$213,'DOE - FIPStoPayeeCodeConvTable'!$B$3:$B$213) -> Albemarle Co | S7: 0 | U7: 0 | V7: 0 | W7: =LOOKUP(A7,'DOE - FIPStoPayeeCodeConvTable'!$A$3:$A$213,'DOE - FIPStoPayeeCodeConvTable'!$E$3:$E$213) -> 0.4474 | X7: =$X$1*W7 -> 0.4474 | Y7: =ROUND(X7*V7,2) -> 0 | Z7: =SUM(V7)-SUM(Y7) -> 0
A8: 5 | B8: =LOOKUP(A8,'DOE - FIPStoPayeeCodeConvTable'!$A$3:$A$213,'DOE - FIPStoPayeeCodeConvTable'!$B$3:$B$213) -> Alleghany Co | S8: 0 | U8: 0 | V8: 0 | W8: =LOOKUP(A8,'DOE - FIPStoPayeeCodeConvTable'!$A$3:$A$213,'DOE - FIPStoPayeeCodeConvTable'!$E$3:$E$213) -> 0.1924 | X8: 0.1924 | Y8: 0 | Z8: 0
A9: 7 | B9: =LOOKUP(A9,'DOE - FIPStoPayeeCodeConvTable'!$A$3:$A$213,'DOE - FIPStoPayeeCodeConvTable'!$B$3:$B$213) -> Amelia Co | S9: 0 | U9: 0 | V9: 0 | W9: =LOOKUP(A9,'DOE - FIPStoPayeeCodeConvTable'!$A$3:$A$213,'DOE - FIPStoPayeeCodeConvTable'!$E$3:$E$213) -> 0.3268 | X9: 0.3268 | Y9: 0 | Z9: 0
A10: 9 | B10: =LOOKUP(A10,'DOE - FIPStoPayeeCodeConvTable'!$A$3:$A$213,'DOE - FIPStoPayeeCodeConvTable'!$B$3:$B$213) -> Amherst Co | S10: 0 | U10: 0 | V10: 0 | W10: =LOOKUP(A10,'DOE - FIPStoPayeeCodeConvTable'!$A$3:$A$213,'DOE - FIPStoPayeeCodeConvTable'!$E$3:$E$213) -> 0.2722 | X10: 0.2722 | Y10: 0 | Z10: 0
A11: 11 | B11: =LOOKUP(A11,'DOE - FIPStoPayeeCodeConvTable'!$A$3:$A$213,'DOE - FIPStoPayeeCodeConvTable'!$B$3:$B$213) -> Appomattox Co | S11: 0 | U11: 0 | V11: 0 | W11: =LOOKUP(A11,'DOE - FIPStoPayeeCodeConvTable'!$A$3:$A$213,'DOE - FIPStoPayeeCodeConvTable'!$E$3:$E$213) -> 0.2639 | X11: 0.2639 | Y11: 0 | Z11: 0
A12: 13 | B12: =LOOKUP(A12,'DOE - FIPStoPayeeCodeConvTable'!$A$3:$A$213,'DOE - FIPStoPayeeCodeConvTable'!$B$3:$B$213) -> Arlington Co | S12: 0 | U12: 0 | V12: 0 | W12: =LOOKUP(A12,'DOE - FIPStoPayeeCodeConvTable'!$A$3:$A$213,'DOE - FIPStoPayeeCodeConvTable'!$E$3:$E$213) -> 0.4602 | X12: 0.4602 | Y12: 0 | Z12: 0
A13: 15 | B13: =LOOKUP(A13,'DOE - FIPStoPayeeCodeConvTable'!$A$3:$A$213,'DOE - FIPStoPayeeCodeConvTable'!$B$3:$B$213) -> Augusta Co | S13: 0 | U13: 0 | V13: 0 | W13: =LOOKUP(A13,'DOE - FIPStoPayeeCodeConvTable'!$A$3:$A$213,'DOE - FIPStoPayeeCodeConvTable'!$E$3:$E$213) -> 0.3302 | X13: 0.3302 | Y13: 0 | Z13: 0
A14: 17 | B14: =LOOKUP(A14,'DOE - FIPStoPayeeCodeConvTable'!$A$3:$A$213,'DOE - FIPStoPayeeCodeConvTable'!$B$3:$B$213) -> Bath Co | S14: 0 | U14: 0 | V14: 0 | W14: =LOOKUP(A14,'DOE - FIPStoPayeeCodeConvTable'!$A$3:$A$213,'DOE - FIPStoPayeeCodeConvTable'!$E$3:$E$213) -> 0.4278 | X14: 0.4278 | Y14: 0 | Z14: 0
A15: 19 | B15: =LOOKUP(A15,'DOE - FIPStoPayeeCodeConvTable'!$A$3:$A$213,'DOE - FIPStoPayeeCodeConvTable'!$B$3:$B$213) -> Bedford Co | S15: 0 | U15: 0 | V15: 0 | W15: =LOOKUP(A15,'DOE - FIPStoPayeeCodeConvTable'!$A$3:$A$213,'DOE - FIPStoPayeeCodeConvTable'!$E$3:$E$213) -> 0.31112 | X15: 0.31112 | Y15: 0 | Z15: 0
A16: 21 | B16: =LOOKUP(A16,'DOE - FIPStoPayeeCodeConvTable'!$A$3:$A$213,'DOE - FIPStoPayeeCodeConvTable'!$B$3:$B$213) -> Bland Co | S16: 0 | U16: 0 | V16: 0 | W16: =LOOKUP(A16,'DOE - FIPStoPayeeCodeConvTable'!$A$3:$A$213,'DOE - FIPStoPayeeCodeConvTable'!$E$3:$E$213) -> 0.2109 | X16: 0.2109 | Y16: 0 | Z16: 0
A17: 23 | B17: =LOOKUP(A17,'DOE - FIPStoPayeeCodeConvTable'!$A$3:$A$213,'DOE - FIPStoPayeeCodeConvTable'!$B$3:$B$213) -> Botetourt Co | S17: 0 | U17: 0 | V17: 0 | W17: =LOOKUP(A17,'DOE - FIPStoPayeeCodeConvTable'!$A$3:$A$213,'DOE - FIPStoPayeeCodeConvTable'!$E$3:$E$213) -> 0.3602 | X17: 0.3602 | Y17: 0 | Z17: 0
A18: 25 | B18: =LOOKUP(A18,'DOE - FIPStoPayeeCodeConvTable'!$A$3:$A$213,'DOE - FIPStoPayeeCodeConvTable'!$B$3:$B$213) -> Brunswick Co | S18: 0 | U18: 0 | V18: 0 | W18: =LOOKUP(A18,'DOE - FIPStoPayeeCodeConvTable'!$A$3:$A$213,'DOE - FIPStoPayeeCodeConvTable'!$E$3:$E$213) -> 0.2439 | X18: 0.2439 | Y18: 0 | Z18: 0
A19: 27 | B19: =LOOKUP(A19,'DOE - FIPStoPayeeCodeConvTable'!$A$3:$A$213,'DOE - FIPStoPayeeCodeConvTable'!$B$3:$B$213) -> Buchanan Co | S19: 0 | U19: 0 | V19: 0 | W19: =LOOKUP(A19,'DOE - FIPStoPayeeCodeConvTable'!$A$3:$A$213,'DOE - FIPStoPayeeCodeConvTable'!$E$3:$E$213) -> 0.3156 | X19: 0.3156 | Y19: 0 | Z19: 0
A20: 29 | B20: =LOOKUP(A20,'DOE - FIPStoPayeeCodeConvTable'!$A$3:$A$213,'DOE - FIPStoPayeeCodeConvTable'!$B$3:$B$213) -> Buckingham Co | S20: 0 | U20: 0 | V20: 0 | W20: =LOOKUP(A20,'DOE - FIPStoPayeeCodeConvTable'!$A$3:$A$213,'DOE - FIPStoPayeeCodeConvTable'!$E$3:$E$213) -> 0.2023 | X20: 0.2023 | Y20: 0 | Z20: 0
A21: 31 | B21: =LOOKUP(A21,'DOE - FIPStoPayeeCodeConvTable'!$A$3:$A$213,'DOE - FIPStoPayeeCodeConvTable'!$B$3:$B$213) -> Campbell Co | S21: 0 | U21: 0 | V21: 0 | W21: =LOOKUP(A21,'DOE - FIPStoPayeeCodeConvTable'!$A$3:$A$213,'DOE - FIPStoPayeeCodeConvTable'!$E$3:$E$213) -> 0.3107 | X21: 0.3107 | Y21: 0 | Z21: 0
A22: 33 | B22: =LOOKUP(A22,'DOE - FIPStoPayeeCodeConvTable'!$A$3:$A$213,'DOE - FIPStoPayeeCodeConvTable'!$B$3:$B$213) -> Caroline Co | S22: 0 | U22: 0 | V22: 0 | W22: =LOOKUP(A22,'DOE - FIPStoPayeeCodeConvTable'!$A$3:$A$213,'DOE - FIPStoPayeeCodeConvTable'!$E$3:$E$213) -> 0.3308 | X22: 0.3308 | Y22: 0 | Z22: 0
A23: 35 | B23: =LOOKUP(A23,'DOE - FIPStoPayeeCodeConvTable'!$A$3:$A$213,'DOE - FIPStoPayeeCodeConvTable'!$B$3:$B$213) -> Carroll Co | S23: 0 | U23: 0 | V23: 0 | W23: =LOOKUP(A23,'DOE - FIPStoPayeeCodeConvTable'!$A$3:$A$213,'DOE - FIPStoPayeeCodeConvTable'!$E$3:$E$213) -> 0.291 | X23: 0.291 | Y23: 0 | Z23: 0
A24: 36 | B24: =LOOKUP(A24,'DOE - FIPStoPayeeCodeConvTable'!$A$3:$A$213,'DOE - FIPStoPayeeCodeConvTable'!$B$3:$B$213) -> Charles City Co | S24: 0 | U24: 0 | V24: 0 | W24: =LOOKUP(A24,'DOE - FIPStoPayeeCodeConvTable'!$A$3:$A$213,'DOE - FIPStoPayeeCodeConvTable'!$E$3:$E$213) -> 0.3131 | X24: 0.3131 | Y24: 0 | Z24: 0
A25: 37 | B25: =LOOKUP(A25,'DOE - FIPStoPayeeCodeConvTable'!$A$3:$A$213,'DOE - FIPStoPayeeCodeConvTable'!$B$3:$B$213) -> Charlotte Co | S25: 0 | U25: 0 | V25: 0 | W25: =LOOKUP(A25,'DOE - FIPStoPayeeCodeConvTable'!$A$3:$A$213,'DOE - FIPStoPayeeCodeConvTable'!$E$3:$E$213) -> 0.2204 | X25: 0.2204 | Y25: 0 | Z25: 0
A26: 41 | B26: =LOOKUP(A26,'DOE - FIPStoPayeeCodeConvTable'!$A$3:$A$213,'DOE - FIPStoPayeeCodeConvTable'!$B$3:$B$213) -> Chesterfield Co | S26: 0 | U26: 0 | V26: 0 | W26: =LOOKUP(A26,'DOE - FIPStoPayeeCodeConvTable'!$A$3:$A$213,'DOE - FIPStoPayeeCodeConvTable'!$E$3:$E$213) -> 0.3853 | X26: 0.3853 | Y26: 0 | Z26: 0
A27: 43 | B27: =LOOKUP(A27,'DOE - FIPStoPayeeCodeConvTable'!$A$3:$A$213,'DOE - FIPStoPayeeCodeConvTable'!$B$3:$B$213) -> Clarke Co | S27: 0 | U27: 0 | V27: 0 | W27: =LOOKUP(A27,'DOE - FIPStoPayeeCodeConvTable'!$A$3:$A$213,'DOE - FIPStoPayeeCodeConvTable'!$E$3:$E$213) -> 0.4797 | X27: 0.4797 | Y27: 0 | Z27: 0
A28: 45 | B28: =LOOKUP(A28,'DOE - FIPStoPayeeCodeConvTable'!$A$3:$A$213,'DOE - FIPStoPayeeCodeConvTable'!$B$3:$B$213) -> Craig Co | S28: 0 | U28: 0 | V28: 0 | W28: =LOOKUP(A28,'DOE - FIPStoPayeeCodeConvTable'!$A$3:$A$213,'DOE - FIPStoPayeeCodeConvTable'!$E$3:$E$213) -> 0.2901 | X28: 0.2901 | Y28: 0 | Z28: 0
A29: 47 | B29: =LOOKUP(A29,'DOE - FIPStoPayeeCodeConvTable'!$A$3:$A$213,'DOE - FIPStoPayeeCodeConvTable'!$B$3:$B$213) -> Culpeper Co | S29: 0 | U29: 0 | V29: 0 | W29: =LOOKUP(A29,'DOE - FIPStoPayeeCodeConvTable'!$A$3:$A$213,'DOE - FIPStoPayeeCodeConvTable'!$E$3:$E$213) -> 0.3767 | X29: 0.3767 | Y29: 0 | Z29: 0
A30: 49 | B30: =LOOKUP(A30,'DOE - FIPStoPayeeCodeConvTable'!$A$3:$A$213,'DOE - FIPStoPayeeCodeConvTable'!$B$3:$B$213) -> Cumberland Co | S30: 0 | U30: 0 | V30: 0 | W30: =LOOKUP(A30,'DOE - FIPStoPayeeCodeConvTable'!$A$3:$A$213,'DOE - FIPStoPayeeCodeConvTable'!$E$3:$E$213) -> 0.304 | X30: 0.304 | Y30: 0 | Z30: 0
A31: 51 | B31: =LOOKUP(A31,'DOE - FIPStoPayeeCodeConvTable'!$A$3:$A$213,'DOE - FIPStoPayeeCodeConvTable'!$B$3:$B$213) -> Dickenson Co | S31: 0 | U31: 0 | V31: 0 | W31: =LOOKUP(A31,'DOE - FIPStoPayeeCodeConvTable'!$A$3:$A$213,'DOE - FIPStoPayeeCodeConvTable'!$E$3:$E$213) -> 0.3042 | X31: 0.3042 | Y31: 0 | Z31: 0
A32: 53 | B32: =LOOKUP(A32,'DOE - FIPStoPayeeCodeConvTable'!$A$3:$A$213,'DOE - FIPStoPayeeCodeConvTable'!$B$3:$B$213) -> Dinwiddie Co | S32: 0 | U32: 0 | V32: 0 | W32: =LOOKUP(A32,'DOE - FIPStoPayeeCodeConvTable'!$A$3:$A$213,'DOE - FIPStoPayeeCodeConvTable'!$E$3:$E$213) -> 0.3358 | X32: 0.3358 | Y32: 0 | Z32: 0
A33: 57 | B33: =LOOKUP(A33,'DOE - FIPStoPayeeCodeConvTable'!$A$3:$A$213,'DOE - FIPStoPayeeCodeConvTable'!$B$3:$B$213) -> Essex Co | S33: 0 | U33: 0 | V33: 0 | W33: =LOOKUP(A33,'DOE - FIPStoPayeeCodeConvTable'!$A$3:$A$213,'DOE - FIPStoPayeeCodeConvTable'!$E$3:$E$213) -> 0.3853 | X33: 0.3853 | Y33: 0 | Z33: 0
A34: 59 | B34: =LOOKUP(A34,'DOE - FIPStoPayeeCodeConvTable'!$A$3:$A$213,'DOE - FIPStoPayeeCodeConvTable'!$B$3:$B$213) -> Fairfax Co | S34: 0 | U34: 0 | V34: 0 | W34: =LOOKUP(A34,'DOE - FIPStoPayeeCodeConvTable'!$A$3:$A$213,'DOE - FIPStoPayeeCodeConvTable'!$E$3:$E$213) -> 0.4611 | X34: 0.4611 | Y34: 0 | Z34: 0
A35: 61 | B35: =LOOKUP(A35,'DOE - FIPStoPayeeCodeConvTable'!$A$3:$A$213,'DOE - FIPStoPayeeCodeConvTable'!$B$3:$B$213) -> Fauquier Co | S35: 0 | U35: 0 | V35: 0 | W35: =LOOKUP(A35,'DOE - FIPStoPayeeCodeConvTable'!$A$3:$A$213,'DOE - FIPStoPayeeCodeConvTable'!$E$3:$E$213) -> 0.4584 | X35: 0.4584 | Y35: 0 | Z35: 0
A36: 63 | B36: =LOOKUP(A36,'DOE - FIPStoPayeeCodeConvTable'!$A$3:$A$213,'DOE - FIPStoPayeeCodeConvTable'!$B$3:$B$213) -> Floyd Co | S36: 0 | U36: 0 | V36: 0 | W36: =LOOKUP(A36,'DOE - FIPStoPayeeCodeConvTable'!$A$3:$A$213,'DOE - FIPStoPayeeCodeConvTable'!$E$3:$E$213) -> 0.2324 | X36: 0.2324 | Y36: 0 | Z36: 0
A37: 65 | B37: =LOOKUP(A37,'DOE - FIPStoPayeeCodeConvTable'!$A$3:$A$213,'DOE - FIPStoPayeeCodeConvTable'!$B$3:$B$213) -> Fluvanna Co | S37: =SUM(C37:R37) -> 0 | U37: 0 | V37: 0 | W37: =LOOKUP(A37,'DOE - FIPStoPayeeCodeConvTable'!$A$3:$A$213,'DOE - FIPStoPayeeCodeConvTable'!$E$3:$E$213) -> 0.3811 | X37: 0.3811 | Y37: 0 | Z37: 0
A38: 67 | B38: =LOOKUP(A38,'DOE - FIPStoPayeeCodeConvTable'!$A$3:$A$213,'DOE - FIPStoPayeeCodeConvTable'!$B$3:$B$213) -> Franklin Co | S38: 0 | U38: =ROUND($U$1*S38,2) -> 0 | V38: =SUM(S38)-SUM(U38) -> 0 | W38: =LOOKUP(A38,'DOE - FIPStoPayeeCodeConvTable'!$A$3:$A$213,'DOE - FIPStoPayeeCodeConvTable'!$E$3:$E$213) -> 0.283 | X38: 0.283 | Y38: 0 | Z38: 0
A39: 69 | B39: =LOOKUP(A39,'DOE - FIPStoPayeeCodeConvTable'!$A$3:$A$213,'DOE - FIPStoPayeeCodeConvTable'!$B$3:$B$213) -> Frederick Co | S39: 0 | U39: 0 | V39: 0 | W39: =LOOKUP(A39,'DOE - FIPStoPayeeCodeConvTable'!$A$3:$A$213,'DOE - FIPStoPayeeCodeConvTable'!$E$3:$E$213) -> 0.4348 | X39: 0.4348 | Y39: 0 | Z39: 0
A40: 71 | B40: =LOOKUP(A40,'DOE - FIPStoPayeeCodeConvTable'!$A$3:$A$213,'DOE - FIPStoPayeeCodeConvTable'!$B$3:$B$213) -> Giles Co | S40: 0 | U40: 0 | V40: 0 | W40: =LOOKUP(A40,'DOE - FIPStoPayeeCodeConvTable'!$A$3:$A$213,'DOE - FIPStoPayeeCodeConvTable'!$E$3:$E$213) -> 0.2898 | X40: 0.2898 | Y40: 0 | Z40: 0
A41: 73 | B41: =LOOKUP(A41,'DOE - FIPStoPayeeCodeConvTable'!$A$3:$A$213,'DOE - FIPStoPayeeCodeConvTable'!$B$3:$B$213) -> Gloucester Co | S41: 0 | U41: 0 | V41: 0 | W41: =LOOKUP(A41,'DOE - FIPStoPayeeCodeConvTable'!$A$3:$A$213,'DOE - FIPStoPayeeCodeConvTable'!$E$3:$E$213) -> 0.3687 | X41: 0.3687 | Y41: 0 | Z41: 0
A42: 75 | B42: =LOOKUP(A42,'DOE - FIPStoPayeeCodeConvTable'!$A$3:$A$213,'DOE - FIPStoPayeeCodeConvTable'!$B$3:$B$213) -> Goochland Co | S42: 0 | U42: 0 | V42: 0 | W42: =LOOKUP(A42,'DOE - FIPStoPayeeCodeConvTable'!$A$3:$A$213,'DOE - FIPStoPayeeCodeConvTable'!$E$3:$E$213) -> 0.4871 | X42: 0.4871 | Y42: 0 | Z42: 0
A43: 77 | B43: =LOOKUP(A43,'DOE - FIPStoPayeeCodeConvTable'!$A$3:$A$213,'DOE - FIPStoPayeeCodeConvTable'!$B$3:$B$213) -> Grayson Co | S43: 0 | U43: 0 | V43: 0 | W43: =LOOKUP(A43,'DOE - FIPStoPayeeCodeConvTable'!$A$3:$A$213,'DOE - FIPStoPayeeCodeConvTable'!$E$3:$E$213) -> 0.2109 | X43: 0.2109 | Y43: 0 | Z43: 0
A44: 79 | B44: =LOOKUP(A44,'DOE - FIPStoPayeeCodeConvTable'!$A$3:$A$213,'DOE - FIPStoPayeeCodeConvTable'!$B$3:$B$213) -> Greene Co | S44: 0 | U44: 0 | V44: 0 | W44: =LOOKUP(A44,'DOE - FIPStoPayeeCodeConvTable'!$A$3:$A$213,'DOE - FIPStoPayeeCodeConvTable'!$E$3:$E$213) -> 0.3471 | X44: 0.3471 | Y44: 0 | Z44: 0
A45: 81 | B45: =LOOKUP(A45,'DOE - FIPStoPayeeCodeConvTable'!$A$3:$A$213,'DOE - FIPStoPayeeCodeConvTable'!$B$3:$B$213) -> Greensville Co | S45: 0 | U45: 0 | V45: 0 | W45: =LOOKUP(A45,'DOE - FIPStoPayeeCodeConvTable'!$A$3:$A$213,'DOE - FIPStoPayeeCodeConvTable'!$E$3:$E$213) -> 0.2266 | X45: 0.2266 | Y45: 0 | Z45: 0
A46: 83 | B46: =LOOKUP(A46,'DOE - FIPStoPayeeCodeConvTable'!$A$3:$A$213,'DOE - FIPStoPayeeCodeConvTable'!$B$3:$B$213) -> Halifax Co | S46: 0 | U46: 0 | V46: 0 | W46: =LOOKUP(A46,'DOE - FIPStoPayeeCodeConvTable'!$A$3:$A$213,'DOE - FIPStoPayeeCodeConvTable'!$E$3:$E$213) -> 0.2335 | X46: 0.2335 | Y46: 0 | Z46: 0
A47: 85 | B47: =LOOKUP(A47,'DOE - FIPStoPayeeCodeConvTable'!$A$3:$A$213,'DOE - FIPStoPayeeCodeConvTable'!$B$3:$B$213) -> Hanover Co | S47: 0 | U47: 0 | V47: 0 | W47: =LOOKUP(A47,'DOE - FIPStoPayeeCodeConvTable'!$A$3:$A$213,'DOE - FIPStoPayeeCodeConvTable'!$E$3:$E$213) -> 0.4444 | X47: 0.4444 | Y47: 0 | Z47: 0
A48: 87 | B48: =LOOKUP(A48,'DOE - FIPStoPayeeCodeConvTable'!$A$3:$A$213,'DOE - FIPStoPayeeCodeConvTable'!$B$3:$B$213) -> Henrico Co | S48: 0 | U48: 0 | V48: 0 | W48: =LOOKUP(A48,'DOE - FIPStoPayeeCodeConvTable'!$A$3:$A$213,'DOE - FIPStoPayeeCodeConvTable'!$E$3:$E$213) -> 0.3755 | X48: 0.3755 | Y48: 0 | Z48: 0
A49: 89 | B49: =LOOKUP(A49,'DOE - FIPStoPayeeCodeConvTable'!$A$3:$A$213,'DOE - FIPStoPayeeCodeConvTable'!$B$3:$B$213) -> Henry Co | S49: 0 | U49: 0 | V49: 0 | W49: =LOOKUP(A49,'DOE - FIPStoPayeeCodeConvTable'!$A$3:$A$213,'DOE - FIPStoPayeeCodeConvTable'!$E$3:$E$213) -> 0.2786 | X49: 0.2786 | Y49: 0 | Z49: 0
A50: 91 | B50: =LOOKUP(A50,'DOE - FIPStoPayeeCodeConvTable'!$A$3:$A$213,'DOE - FIPStoPayeeCodeConvTable'!$B$3:$B$213) -> Highland Co | S50: 0 | U50: 0 | V50: 0 | W50: =LOOKUP(A50,'DOE - FIPStoPayeeCodeConvTable'!$A$3:$A$213,'DOE - FIPStoPayeeCodeConvTable'!$E$3:$E$213) -> 0.3822 | X50: 0.3822 | Y50: 0 | Z50: 0
A51: 93 | B51: =LOOKUP(A51,'DOE - FIPStoPayeeCodeConvTable'!$A$3:$A$213,'DOE - FIPStoPayeeCodeConvTable'!$B$3:$B$213) -> Isle Of Wight Co | S51: 0 | U51: 0 | V51: 0 | W51: =LOOKUP(A51,'DOE - FIPStoPayeeCodeConvTable'!$A$3:$A$213,'DOE - FIPStoPayeeCodeConvTable'!$E$3:$E$213) -> 0.3613 | X51: 0.3613 | Y51: 0 | Z51: 0
A52: 95 | B52: =LOOKUP(A52,'DOE - FIPStoPayeeCodeConvTable'!$A$3:$A$213,'DOE - FIPStoPayeeCodeConvTable'!$B$3:$B$213) -> James City Co | S52: 0 | U52: 0 | V52: 0 | W52: =LOOKUP(A52,'DOE - FIPStoPayeeCodeConvTable'!$A$3:$A$213,'DOE - FIPStoPayeeCodeConvTable'!$E$3:$E$213) -> 0.4483 | X52: 0.4483 | Y52: 0 | Z52: 0
A53: 97 | B53: =LOOKUP(A53,'DOE - FIPStoPayeeCodeConvTable'!$A$3:$A$213,'DOE - FIPStoPayeeCodeConvTable'!$B$3:$B$213) -> King And Queen Co | S53: 0 | U53: 0 | V53: 0 | W53: =LOOKUP(A53,'DOE - FIPStoPayeeCodeConvTable'!$A$3:$A$213,'DOE - FIPStoPayeeCodeConvTable'!$E$3:$E$213) -> 0.3144 | X53: 0.3144 | Y53: 0 | Z53: 0
A54: 99 | B54: =LOOKUP(A54,'DOE - FIPStoPayeeCodeConvTable'!$A$3:$A$213,'DOE - FIPStoPayeeCodeConvTable'!$B$3:$B$213) -> King George Co | S54: 0 | U54: 0 | V54: 0 | W54: =LOOKUP(A54,'DOE - FIPStoPayeeCodeConvTable'!$A$3:$A$213,'DOE - FIPStoPayeeCodeConvTable'!$E$3:$E$213) -> 0.3627 | X54: 0.3627 | Y54: 0 | Z54: 0
A55: 101 | B55: =LOOKUP(A55,'DOE - FIPStoPayeeCodeConvTable'!$A$3:$A$213,'DOE - FIPStoPayeeCodeConvTable'!$B$3:$B$213) -> King William Co | S55: 0 | U55: 0 | V55: 0 | W55: =LOOKUP(A55,'DOE - FIPStoPayeeCodeConvTable'!$A$3:$A$213,'DOE - FIPStoPayeeCodeConvTable'!$E$3:$E$213) -> 0.3853 | X55: 0.3853 | Y55: 0 | Z55: 0
A56: 103 | B56: =LOOKUP(A56,'DOE - FIPStoPayeeCodeConvTable'!$A$3:$A$213,'DOE - FIPStoPayeeCodeConvTable'!$B$3:$B$213) -> Lancaster Co | S56: 0 | U56: 0 | V56: 0 | W56: =LOOKUP(A56,'DOE - FIPStoPayeeCodeConvTable'!$A$3:$A$213,'DOE - FIPStoPayeeCodeConvTable'!$E$3:$E$213) -> 0.4391 | X56: 0.4391 | Y56: 0 | Z56: 0
A57: 105 | B57: =LOOKUP(A57,'DOE - FIPStoPayeeCodeConvTable'!$A$3:$A$213,'DOE - FIPStoPayeeCodeConvTable'!$B$3:$B$213) -> Lee Co | S57: 0 | U57: 0 | V57: 0 | W57: =LOOKUP(A57,'DOE - FIPStoPayeeCodeConvTable'!$A$3:$A$213,'DOE - FIPStoPayeeCodeConvTable'!$E$3:$E$213) -> 0.2245 | X57: 0.2245 | Y57: 0 | Z57: 0
A58: 107 | B58: =LOOKUP(A58,'DOE - FIPStoPayeeCodeConvTable'!$A$3:$A$213,'DOE - FIPStoPayeeCodeConvTable'!$B$3:$B$213) -> Loudoun Co | S58: 0 | U58: 0 | V58: 0 | W58: =LOOKUP(A58,'DOE - FIPStoPayeeCodeConvTable'!$A$3:$A$213,'DOE - FIPStoPayeeCodeConvTable'!$E$3:$E$213) -> 0.4764 | X58: 0.4764 | Y58: 0 | Z58: 0
A59: 109 | B59: =LOOKUP(A59,'DOE - FIPStoPayeeCodeConvTable'!$A$3:$A$213,'DOE - FIPStoPayeeCodeConvTable'!$B$3:$B$213) -> Louisa Co | S59: 0 | U59: 0 | V59: 0 | W59: =LOOKUP(A59,'DOE - FIPStoPayeeCodeConvTable'!$A$3:$A$213,'DOE - FIPStoPayeeCodeConvTable'!$E$3:$E$213) -> 0.4401 | X59: 0.4401 | Y59: 0 | Z59: 0
A60: 111 | B60: =LOOKUP(A60,'DOE - FIPStoPayeeCodeConvTable'!$A$3:$A$213,'DOE - FIPStoPayeeCodeConvTable'!$B$3:$B$213) -> Lunenburg Co | S60: 0 | U60: 0 | V60: 0 | W60: =LOOKUP(A60,'DOE - FIPStoPayeeCodeConvTable'!$A$3:$A$213,'DOE - FIPStoPayeeCodeConvTable'!$E$3:$E$213) -> 0.1698 | X60: 0.1698 | Y60: 0 | Z60: 0
A61: 113 | B61: =LOOKUP(A61,'DOE - FIPStoPayeeCodeConvTable'!$A$3:$A$213,'DOE - FIPStoPayeeCodeConvTable'!$B$3:$B$213) -> Madison Co | S61: 0 | U61: 0 | V61: 0 | W61: =LOOKUP(A61,'DOE - FIPStoPayeeCodeConvTable'!$A$3:$A$213,'DOE - FIPStoPayeeCodeConvTable'!$E$3:$E$213) -> 0.3355 | X61: 0.3355 | Y61: 0 | Z61: 0
A62: 115 | B62: =LOOKUP(A62,'DOE - FIPStoPayeeCodeConvTable'!$A$3:$A$213,'DOE - FIPStoPayeeCodeConvTable'!$B$3:$B$213) -> Mathews Co | S62: 0 | U62: 0 | V62: 0 | W62: =LOOKUP(A62,'DOE - FIPStoPayeeCodeConvTable'!$A$3:$A$213,'DOE - FIPStoPayeeCodeConvTable'!$E$3:$E$213) -> 0.4271 | X62: 0.4271 | Y62: 0 | Z62: 0
A63: 117 | B63: =LOOKUP(A63,'DOE - FIPStoPayeeCodeConvTable'!$A$3:$A$213,'DOE - FIPStoPayeeCodeConvTable'!$B$3:$B$213) -> Mecklenburg Co | S63: 0 | U63: 0 | V63: 0 | W63: =LOOKUP(A63,'DOE - FIPStoPayeeCodeConvTable'!$A$3:$A$213,'DOE - FIPStoPayeeCodeConvTable'!$E$3:$E$213) -> 0.2286 | X63: 0.2286 | Y63: 0 | Z63: 0
A64: 119 | B64: =LOOKUP(A64,'DOE - FIPStoPayeeCodeConvTable'!$A$3:$A$213,'DOE - FIPStoPayeeCodeConvTable'!$B$3:$B$213) -> Middlesex Co | S64: 0 | U64: 0 | V64: 0 | W64: =LOOKUP(A64,'DOE - FIPStoPayeeCodeConvTable'!$A$3:$A$213,'DOE - FIPStoPayeeCodeConvTable'!$E$3:$E$213) -> 0.4333 | X64: 0.4333 | Y64: 0 | Z64: 0
A65: 121 | B65: =LOOKUP(A65,'DOE - FIPStoPayeeCodeConvTable'!$A$3:$A$213,'DOE - FIPStoPayeeCodeConvTable'!$B$3:$B$213) -> Montgomery Co | S65: 0 | U65: 0 | V65: 0 | W65: =LOOKUP(A65,'DOE - FIPStoPayeeCodeConvTable'!$A$3:$A$213,'DOE - FIPStoPayeeCodeConvTable'!$E$3:$E$213) -> 0.2834 | X65: 0.2834 | Y65: 0 | Z65: 0
A66: 125 | B66: =LOOKUP(A66,'DOE - FIPStoPayeeCodeConvTable'!$A$3:$A$213,'DOE - FIPStoPayeeCodeConvTable'!$B$3:$B$213) -> Nelson Co | S66: 0 | U66: 0 | V66: 0 | W66: =LOOKUP(A66,'DOE - FIPStoPayeeCodeConvTable'!$A$3:$A$213,'DOE - FIPStoPayeeCodeConvTable'!$E$3:$E$213) -> 0.3132 | X66: 0.3132 | Y66: 0 | Z66: 0
A67: 127 | B67: =LOOKUP(A67,'DOE - FIPStoPayeeCodeConvTable'!$A$3:$A$213,'DOE - FIPStoPayeeCodeConvTable'!$B$3:$B$213) -> New Kent Co | S67: 0 | U67: 0 | V67: 0 | W67: =LOOKUP(A67,'DOE - FIPStoPayeeCodeConvTable'!$A$3:$A$213,'DOE - FIPStoPayeeCodeConvTable'!$E$3:$E$213) -> 0.4329 | X67: 0.4329 | Y67: 0 | Z67: 0
A68: 131 | B68: =LOOKUP(A68,'DOE - FIPStoPayeeCodeConvTable'!$A$3:$A$213,'DOE - FIPStoPayeeCodeConvTable'!$B$3:$B$213) -> Northampton Co | S68: 0 | U68: 0 | V68: 0 | W68: =LOOKUP(A68,'DOE - FIPStoPayeeCodeConvTable'!$A$3:$A$213,'DOE - FIPStoPayeeCodeConvTable'!$E$3:$E$213) -> 0.1971 | X68: 0.1971 | Y68: 0 | Z68: 0
A69: 133 | B69: =LOOKUP(A69,'DOE - FIPStoPayeeCodeConvTable'!$A$3:$A$213,'DOE - FIPStoPayeeCodeConvTable'!$B$3:$B$213) -> Northumberland Co | S69: =SUM(C69:R69) -> 0 | U69: 0 | V69: 0 | W69: =LOOKUP(A69,'DOE - FIPStoPayeeCodeConvTable'!$A$3:$A$213,'DOE - FIPStoPayeeCodeConvTable'!$E$3:$E$213) -> 0.3304 | X69: 0.3304 | Y69: 0 | Z69: 0
A70: 135 | B70: =LOOKUP(A70,'DOE - FIPStoPayeeCodeConvTable'!$A$3:$A$213,'DOE - FIPStoPayeeCodeConvTable'!$B$3:$B$213) -> Nottoway Co | S70: 0 | U70: =ROUND($U$1*S70,2) -> 0 | V70: =SUM(S70)-SUM(U70) -> 0 | W70: =LOOKUP(A70,'DOE - FIPStoPayeeCodeConvTable'!$A$3:$A$213,'DOE - FIPStoPayeeCodeConvTable'!$E$3:$E$213) -> 0.2686 | X70: 0.2686 | Y70: 0 | Z70: 0
A71: 137 | B71: =LOOKUP(A71,'DOE - FIPStoPayeeCodeConvTable'!$A$3:$A$213,'DOE - FIPStoPayeeCodeConvTable'!$B$3:$B$213) -> Orange Co | S71: 0 | U71: 0 | V71: 0 | W71: =LOOKUP(A71,'DOE - FIPStoPayeeCodeConvTable'!$A$3:$A$213,'DOE - FIPStoPayeeCodeConvTable'!$E$3:$E$213) -> 0.4083 | X71: =$X$1*W71 -> 0.4083 | Y71: =ROUND(X71*V71,2) -> 0 | Z71: =SUM(V71)-SUM(Y71) -> 0
A72: 139 | B72: =LOOKUP(A72,'DOE - FIPStoPayeeCodeConvTable'!$A$3:$A$213,'DOE - FIPStoPayeeCodeConvTable'!$B$3:$B$213) -> Page Co | S72: 0 | U72: 0 | V72: 0 | W72: =LOOKUP(A72,'DOE - FIPStoPayeeCodeConvTable'!$A$3:$A$213,'DOE - FIPStoPayeeCodeConvTable'!$E$3:$E$213) -> 0.2865 | X72: 0.2865 | Y72: 0 | Z72: 0
A73: 141 | B73: =LOOKUP(A73,'DOE - FIPStoPayeeCodeConvTable'!$A$3:$A$213,'DOE - FIPStoPayeeCodeConvTable'!$B$3:$B$213) -> Patrick Co | S73: 0 | U73: 0 | V73: 0 | W73: =LOOKUP(A73,'DOE - FIPStoPayeeCodeConvTable'!$A$3:$A$213,'DOE - FIPStoPayeeCodeConvTable'!$E$3:$E$213) -> 0.2539 | X73: 0.2539 | Y73: 0 | Z73: 0
A74: 143 | B74: =LOOKUP(A74,'DOE - FIPStoPayeeCodeConvTable'!$A$3:$A$213,'DOE - FIPStoPayeeCodeConvTable'!$B$3:$B$213) -> Pittsylvania Co | S74: 0 | U74: 0 | V74: 0 | W74: =LOOKUP(A74,'DOE - FIPStoPayeeCodeConvTable'!$A$3:$A$213,'DOE - FIPStoPayeeCodeConvTable'!$E$3:$E$213) -> 0.2355 | X74: 0.2355 | Y74: 0 | Z74: 0
A75: 145 | B75: =LOOKUP(A75,'DOE - FIPStoPayeeCodeConvTable'!$A$3:$A$213,'DOE - FIPStoPayeeCodeConvTable'!$B$3:$B$213) -> Powhatan Co | S75: 0 | U75: 0 | V75: 0 | W75: =LOOKUP(A75,'DOE - FIPStoPayeeCodeConvTable'!$A$3:$A$213,'DOE - FIPStoPayeeCodeConvTable'!$E$3:$E$213) -> 0.4342 | X75: 0.4342 | Y75: 0 | Z75: 0
A76: 147 | B76: =LOOKUP(A76,'DOE - FIPStoPayeeCodeConvTable'!$A$3:$A$213,'DOE - FIPStoPayeeCodeConvTable'!$B$3:$B$213) -> Prince Edward Co | S76: 0 | U76: 0 | V76: 0 | W76: =LOOKUP(A76,'DOE - FIPStoPayeeCodeConvTable'!$A$3:$A$213,'DOE - FIPStoPayeeCodeConvTable'!$E$3:$E$213) -> 0.2232 | X76: 0.2232 | Y76: 0 | Z76: 0
A77: 149 | B77: =LOOKUP(A77,'DOE - FIPStoPayeeCodeConvTable'!$A$3:$A$213,'DOE - FIPStoPayeeCodeConvTable'!$B$3:$B$213) -> Prince George Co | S77: 0 | U77: 0 | V77: 0 | W77: =LOOKUP(A77,'DOE - FIPStoPayeeCodeConvTable'!$A$3:$A$213,'DOE - FIPStoPayeeCodeConvTable'!$E$3:$E$213) -> 0.3716 | X77: 0.3716 | Y77: 0 | Z77: 0
A78: 153 | B78: =LOOKUP(A78,'DOE - FIPStoPayeeCodeConvTable'!$A$3:$A$213,'DOE - FIPStoPayeeCodeConvTable'!$B$3:$B$213) -> Prince William Co | S78: 0 | U78: 0 | V78: 0 | W78: =LOOKUP(A78,'DOE - FIPStoPayeeCodeConvTable'!$A$3:$A$213,'DOE - FIPStoPayeeCodeConvTable'!$E$3:$E$213) -> 0.3414 | X78: 0.3414 | Y78: 0 | Z78: 0
A79: 155 | B79: =LOOKUP(A79,'DOE - FIPStoPayeeCodeConvTable'!$A$3:$A$213,'DOE - FIPStoPayeeCodeConvTable'!$B$3:$B$213) -> Pulaski Co | S79: 0 | U79: 0 | V79: 0 | W79: =LOOKUP(A79,'DOE - FIPStoPayeeCodeConvTable'!$A$3:$A$213,'DOE - FIPStoPayeeCodeConvTable'!$E$3:$E$213) -> 0.2923 | X79: 0.2923 | Y79: 0 | Z79: 0
A80: 157 | B80: =LOOKUP(A80,'DOE - FIPStoPayeeCodeConvTable'!$A$3:$A$213,'DOE - FIPStoPayeeCodeConvTable'!$B$3:$B$213) -> Rappahannock Co | S80: 0 | U80: 0 | V80: 0 | W80: =LOOKUP(A80,'DOE - FIPStoPayeeCodeConvTable'!$A$3:$A$213,'DOE - FIPStoPayeeCodeConvTable'!$E$3:$E$213) -> 0.4199 | X80: 0.4199 | Y80: 0 | Z80: 0
A81: 159 | B81: =LOOKUP(A81,'DOE - FIPStoPayeeCodeConvTable'!$A$3:$A$213,'DOE - FIPStoPayeeCodeConvTable'!$B$3:$B$213) -> Richmond Co | S81: 0 | U81: 0 | V81: 0 | W81: =LOOKUP(A81,'DOE - FIPStoPayeeCodeConvTable'!$A$3:$A$213,'DOE - FIPStoPayeeCodeConvTable'!$E$3:$E$213) -> 0.3227 | X81: 0.3227 | Y81: 0 | Z81: 0
A82: 161 | B82: =LOOKUP(A82,'DOE - FIPStoPayeeCodeConvTable'!$A$3:$A$213,'DOE - FIPStoPayeeCodeConvTable'!$B$3:$B$213) -> Roanoke Co | S82: 0 | U82: 0 | V82: 0 | W82: =LOOKUP(A82,'DOE - FIPStoPayeeCodeConvTable'!$A$3:$A$213,'DOE - FIPStoPayeeCodeConvTable'!$E$3:$E$213) -> 0.4397 | X82: 0.4397 | Y82: 0 | Z82: 0
A83: 163 | B83: =LOOKUP(A83,'DOE - FIPStoPayeeCodeConvTable'!$A$3:$A$213,'DOE - FIPStoPayeeCodeConvTable'!$B$3:$B$213) -> Rockbridge Co | S83: 0 | U83: 0 | V83: 0 | W83: =LOOKUP(A83,'DOE - FIPStoPayeeCodeConvTable'!$A$3:$A$213,'DOE - FIPStoPayeeCodeConvTable'!$E$3:$E$213) -> 0.2336 | X83: 0.2336 | Y83: 0 | Z83: 0
A84: 165 | B84: =LOOKUP(A84,'DOE - FIPStoPayeeCodeConvTable'!$A$3:$A$213,'DOE - FIPStoPayeeCodeConvTable'!$B$3:$B$213) -> Rockingham Co | S84: 0 | U84: 0 | V84: 0 | W84: =LOOKUP(A84,'DOE - FIPStoPayeeCodeConvTable'!$A$3:$A$213,'DOE - FIPStoPayeeCodeConvTable'!$E$3:$E$213) -> 0.3445 | X84: 0.3445 | Y84: 0 | Z84: 0
A85: 167 | B85: =LOOKUP(A85,'DOE - FIPStoPayeeCodeConvTable'!$A$3:$A$213,'DOE - FIPStoPayeeCodeConvTable'!$B$3:$B$213) -> Russell Co | S85: 0 | U85: 0 | V85: 0 | W85: =LOOKUP(A85,'DOE - FIPStoPayeeCodeConvTable'!$A$3:$A$213,'DOE - FIPStoPayeeCodeConvTable'!$E$3:$E$213) -> 0.1894 | X85: 0.1894 | Y85: 0 | Z85: 0
A86: 169 | B86: =LOOKUP(A86,'DOE - FIPStoPayeeCodeConvTable'!$A$3:$A$213,'DOE - FIPStoPayeeCodeConvTable'!$B$3:$B$213) -> Scott Co | S86: 0 | U86: 0 | V86: 0 | W86: =LOOKUP(A86,'DOE - FIPStoPayeeCodeConvTable'!$A$3:$A$213,'DOE - FIPStoPayeeCodeConvTable'!$E$3:$E$213) -> 0.3154 | X86: 0.3154 | Y86: 0 | Z86: 0
A87: 171 | B87: =LOOKUP(A87,'DOE - FIPStoPayeeCodeConvTable'!$A$3:$A$213,'DOE - FIPStoPayeeCodeConvTable'!$B$3:$B$213) -> Shenandoah Co | S87: 0 | U87: 0 | V87: 0 | W87: =LOOKUP(A87,'DOE - FIPStoPayeeCodeConvTable'!$A$3:$A$213,'DOE - FIPStoPayeeCodeConvTable'!$E$3:$E$213) -> 0.3517 | X87: 0.3517 | Y87: 0 | Z87: 0
A88: 173 | B88: =LOOKUP(A88,'DOE - FIPStoPayeeCodeConvTable'!$A$3:$A$213,'DOE - FIPStoPayeeCodeConvTable'!$B$3:$B$213) -> Smyth Co | S88: 0 | U88: 0 | V88: 0 | W88: =LOOKUP(A88,'DOE - FIPStoPayeeCodeConvTable'!$A$3:$A$213,'DOE - FIPStoPayeeCodeConvTable'!$E$3:$E$213) -> 0.2337 | X88: 0.2337 | Y88: 0 | Z88: 0
A89: 175 | B89: =LOOKUP(A89,'DOE - FIPStoPayeeCodeConvTable'!$A$3:$A$213,'DOE - FIPStoPayeeCodeConvTable'!$B$3:$B$213) -> Southampton Co | S89: 0 | U89: 0 | V89: 0 | W89: =LOOKUP(A89,'DOE - FIPStoPayeeCodeConvTable'!$A$3:$A$213,'DOE - FIPStoPayeeCodeConvTable'!$E$3:$E$213) -> 0.323 | X89: 0.323 | Y89: 0 | Z89: 0
A90: 177 | B90: =LOOKUP(A90,'DOE - FIPStoPayeeCodeConvTable'!$A$3:$A$213,'DOE - FIPStoPayeeCodeConvTable'!$B$3:$B$213) -> Spotsylvania Co | S90: 0 | U90: 0 | V90: 0 | W90: =LOOKUP(A90,'DOE - FIPStoPayeeCodeConvTable'!$A$3:$A$213,'DOE - FIPStoPayeeCodeConvTable'!$E$3:$E$213) -> 0.4588 | X90: 0.4588 | Y90: 0 | Z90: 0
A91: 179 | B91: =LOOKUP(A91,'DOE - FIPStoPayeeCodeConvTable'!$A$3:$A$213,'DOE - FIPStoPayeeCodeConvTable'!$B$3:$B$213) -> Stafford Co | S91: 0 | U91: 0 | V91: 0 | W91: =LOOKUP(A91,'DOE - FIPStoPayeeCodeConvTable'!$A$3:$A$213,'DOE - FIPStoPayeeCodeConvTable'!$E$3:$E$213) -> 0.4439 | X91: 0.4439 | Y91: 0 | Z91: 0
A92: 181 | B92: =LOOKUP(A92,'DOE - FIPStoPayeeCodeConvTable'!$A$3:$A$213,'DOE - FIPStoPayeeCodeConvTable'!$B$3:$B$213) -> Surry Co | S92: 0 | U92: 0 | V92: 0 | W92: =LOOKUP(A92,'DOE - FIPStoPayeeCodeConvTable'!$A$3:$A$213,'DOE - FIPStoPayeeCodeConvTable'!$E$3:$E$213) -> 0.3979 | X92: 0.3979 | Y92: 0 | Z92: 0
A93: 183 | B93: =LOOKUP(A93,'DOE - FIPStoPayeeCodeConvTable'!$A$3:$A$213,'DOE - FIPStoPayeeCodeConvTable'!$B$3:$B$213) -> Sussex Co | S93: 0 | U93: 0 | V93: 0 | W93: =LOOKUP(A93,'DOE - FIPStoPayeeCodeConvTable'!$A$3:$A$213,'DOE - FIPStoPayeeCodeConvTable'!$E$3:$E$213) -> 0.2387 | X93: 0.2387 | Y93: 0 | Z93: 0
A94: 185 | B94: =LOOKUP(A94,'DOE - FIPStoPayeeCodeConvTable'!$A$3:$A$213,'DOE - FIPStoPayeeCodeConvTable'!$B$3:$B$213) -> Tazewell Co | S94: 0 | U94: 0 | V94: 0 | W94: =LOOKUP(A94,'DOE - FIPStoPayeeCodeConvTable'!$A$3:$A$213,'DOE - FIPStoPayeeCodeConvTable'!$E$3:$E$213) -> 0.2455 | X94: 0.2455 | Y94: 0 | Z94: 0
A95: 187 | B95: =LOOKUP(A95,'DOE - FIPStoPayeeCodeConvTable'!$A$3:$A$213,'DOE - FIPStoPayeeCodeConvTable'!$B$3:$B$213) -> Warren Co | S95: 0 | U95: 0 | V95: 0 | W95: =LOOKUP(A95,'DOE - FIPStoPayeeCodeConvTable'!$A$3:$A$213,'DOE - FIPStoPayeeCodeConvTable'!$E$3:$E$213) -> 0.3853 | X95: 0.3853 | Y95: 0 | Z95: 0
A96: 191 | B96: =LOOKUP(A96,'DOE - FIPStoPayeeCodeConvTable'!$A$3:$A$213,'DOE - FIPStoPayeeCodeConvTable'!$B$3:$B$213) -> Washington Co | S96: 0 | U96: 0 | V96: 0 | W96: =LOOKUP(A96,'DOE - FIPStoPayeeCodeConvTable'!$A$3:$A$213,'DOE - FIPStoPayeeCodeConvTable'!$E$3:$E$213) -> 0.276 | X96: 0.276 | Y96: 0 | Z96: 0
A97: 193 | B97: =LOOKUP(A97,'DOE - FIPStoPayeeCodeConvTable'!$A$3:$A$213,'DOE - FIPStoPayeeCodeConvTable'!$B$3:$B$213) -> Westmoreland Co | S97: 0 | U97: 0 | V97: 0 | W97: =LOOKUP(A97,'DOE - FIPStoPayeeCodeConvTable'!$A$3:$A$213,'DOE - FIPStoPayeeCodeConvTable'!$E$3:$E$213) -> 0.3025 | X97: 0.3025 | Y97: 0 | Z97: 0
A98: 195 | B98: =LOOKUP(A98,'DOE - FIPStoPayeeCodeConvTable'!$A$3:$A$213,'DOE - FIPStoPayeeCodeConvTable'!$B$3:$B$213) -> Wise Co | S98: 0 | U98: 0 | V98: 0 | W98: =LOOKUP(A98,'DOE - FIPStoPayeeCodeConvTable'!$A$3:$A$213,'DOE - FIPStoPayeeCodeConvTable'!$E$3:$E$213) -> 0.2755 | X98: 0.2755 | Y98: 0 | Z98: 0
A99: 197 | B99: =LOOKUP(A99,'DOE - FIPStoPayeeCodeConvTable'!$A$3:$A$213,'DOE - FIPStoPayeeCodeConvTable'!$B$3:$B$213) -> Wythe Co | S99: 0 | U99: 0 | V99: 0 | W99: =LOOKUP(A99,'DOE - FIPStoPayeeCodeConvTable'!$A$3:$A$213,'DOE - FIPStoPayeeCodeConvTable'!$E$3:$E$213) -> 0.2708 | X99: 0.2708 | Y99: 0 | Z99: 0
A100: 199 | B100: =LOOKUP(A100,'DOE - FIPStoPayeeCodeConvTable'!$A$3:$A$213,'DOE - FIPStoPayeeCodeConvTable'!$B$3:$B$213) -> York Co | S100: 0 | U100: 0 | V100: 0 | W100: =LOOKUP(A100,'DOE - FIPStoPayeeCodeConvTable'!$A$3:$A$213,'DOE - FIPStoPayeeCodeConvTable'!$E$3:$E$213) -> 0.3888 | X100: 0.3888 | Y100: 0 | Z100: 0
A101: 510 | B101: =LOOKUP(A101,'DOE - FIPStoPayeeCodeConvTable'!$A$3:$A$213,'DOE - FIPStoPayeeCodeConvTable'!$B$3:$B$213) -> Alexandria City | S101: =SUM(C101:R101) -> 0 | U101: 0 | V101: 0 | W101: =LOOKUP(A101,'DOE - FIPStoPayeeCodeConvTable'!$A$3:$A$213,'DOE - FIPStoPayeeCodeConvTable'!$E$3:$E$213) -> 0.5309 | X101: 0.5309 | Y101: 0 | Z101: 0
A102: 520 | B102: =LOOKUP(A102,'DOE - FIPStoPayeeCodeConvTable'!$A$3:$A$213,'DOE - FIPStoPayeeCodeConvTable'!$B$3:$B$213) -> Bristol City | S102: 0 | U102: =ROUND($U$1*S102,2) -> 0 | V102: =SUM(S102)-SUM(U102) -> 0 | W102: =LOOKUP(A102,'DOE - FIPStoPayeeCodeConvTable'!$A$3:$A$213,'DOE - FIPStoPayeeCodeConvTable'!$E$3:$E$213) -> 0.2547 | X102: 0.2547 | Y102: 0 | Z102: 0
A103: 530 | B103: =LOOKUP(A103,'DOE - FIPStoPayeeCodeConvTable'!$A$3:$A$213,'DOE - FIPStoPayeeCodeConvTable'!$B$3:$B$213) -> Buena Vista City | S103: 0 | U103: 0 | V103: 0 | W103: =LOOKUP(A103,'DOE - FIPStoPayeeCodeConvTable'!$A$3:$A$213,'DOE - FIPStoPayeeCodeConvTable'!$E$3:$E$213) -> 0.2329 | X103: 0.2329 | Y103: 0 | Z103: 0
A104: 540 | B104: =LOOKUP(A104,'DOE - FIPStoPayeeCodeConvTable'!$A$3:$A$213,'DOE - FIPStoPayeeCodeConvTable'!$B$3:$B$213) -> Charlottesville City | S104: 0 | U104: 0 | V104: 0 | W104: =LOOKUP(A104,'DOE - FIPStoPayeeCodeConvTable'!$A$3:$A$213,'DOE - FIPStoPayeeCodeConvTable'!$E$3:$E$213) -> 0.3068 | X104: 0.3068 | Y104: 0 | Z104: 0
A105: 550 | B105: =LOOKUP(A105,'DOE - FIPStoPayeeCodeConvTable'!$A$3:$A$213,'DOE - FIPStoPayeeCodeConvTable'!$B$3:$B$213) -> Chesapeake City | S105: 0 | U105: 0 | V105: 0 | W105: =LOOKUP(A105,'DOE - FIPStoPayeeCodeConvTable'!$A$3:$A$213,'DOE - FIPStoPayeeCodeConvTable'!$E$3:$E$213) -> 0.3715 | X105: 0.3715 | Y105: 0 | Z105: 0
A106: 570 | B106: =LOOKUP(A106,'DOE - FIPStoPayeeCodeConvTable'!$A$3:$A$213,'DOE - FIPStoPayeeCodeConvTable'!$B$3:$B$213) -> Colonial Heights City | S106: 0 | U106: 0 | V106: 0 | W106: =LOOKUP(A106,'DOE - FIPStoPayeeCodeConvTable'!$A$3:$A$213,'DOE - FIPStoPayeeCodeConvTable'!$E$3:$E$213) -> 0.4027 | X106: 0.4027 | Y106: 0 | Z106: 0
A107: 580 | B107: =LOOKUP(A107,'DOE - FIPStoPayeeCodeConvTable'!$A$3:$A$213,'DOE - FIPStoPayeeCodeConvTable'!$B$3:$B$213) -> Covington City | S107: 0 | U107: 0 | V107: 0 | W107: =LOOKUP(A107,'DOE - FIPStoPayeeCodeConvTable'!$A$3:$A$213,'DOE - FIPStoPayeeCodeConvTable'!$E$3:$E$213) -> 0.2496 | X107: 0.2496 | Y107: 0 | Z107: 0
A108: 590 | B108: =LOOKUP(A108,'DOE - FIPStoPayeeCodeConvTable'!$A$3:$A$213,'DOE - FIPStoPayeeCodeConvTable'!$B$3:$B$213) -> Danville City | S108: 0 | U108: 0 | V108: 0 | W108: =LOOKUP(A108,'DOE - FIPStoPayeeCodeConvTable'!$A$3:$A$213,'DOE - FIPStoPayeeCodeConvTable'!$E$3:$E$213) -> 0.2223 | X108: 0.2223 | Y108: 0 | Z108: 0
A109: 620 | B109: =LOOKUP(A109,'DOE - FIPStoPayeeCodeConvTable'!$A$3:$A$213,'DOE - FIPStoPayeeCodeConvTable'!$B$3:$B$213) -> Franklin City | S109: 0 | U109: 0 | V109: 0 | W109: =LOOKUP(A109,'DOE - FIPStoPayeeCodeConvTable'!$A$3:$A$213,'DOE - FIPStoPayeeCodeConvTable'!$E$3:$E$213) -> 0.371 | X109: 0.371 | Y109: 0 | Z109: 0
A110: 630 | B110: =LOOKUP(A110,'DOE - FIPStoPayeeCodeConvTable'!$A$3:$A$213,'DOE - FIPStoPayeeCodeConvTable'!$B$3:$B$213) -> Fredericksburg City | S110: 0 | U110: 0 | V110: 0 | W110: =LOOKUP(A110,'DOE - FIPStoPayeeCodeConvTable'!$A$3:$A$213,'DOE - FIPStoPayeeCodeConvTable'!$E$3:$E$213) -> 0.3441 | X110: 0.3441 | Y110: 0 | Z110: 0
A111: 640 | B111: =LOOKUP(A111,'DOE - FIPStoPayeeCodeConvTable'!$A$3:$A$213,'DOE - FIPStoPayeeCodeConvTable'!$B$3:$B$213) -> Galax City | S111: 0 | U111: 0 | V111: 0 | W111: =LOOKUP(A111,'DOE - FIPStoPayeeCodeConvTable'!$A$3:$A$213,'DOE - FIPStoPayeeCodeConvTable'!$E$3:$E$213) -> 0.3146 | X111: 0.3146 | Y111: 0 | Z111: 0
A112: 650 | B112: =LOOKUP(A112,'DOE - FIPStoPayeeCodeConvTable'!$A$3:$A$213,'DOE - FIPStoPayeeCodeConvTable'!$B$3:$B$213) -> Hampton City | S112: 0 | U112: 0 | V112: 0 | W112: =LOOKUP(A112,'DOE - FIPStoPayeeCodeConvTable'!$A$3:$A$213,'DOE - FIPStoPayeeCodeConvTable'!$E$3:$E$213) -> 0.3223 | X112: 0.3223 | Y112: 0 | Z112: 0
A113: 660 | B113: =LOOKUP(A113,'DOE - FIPStoPayeeCodeConvTable'!$A$3:$A$213,'DOE - FIPStoPayeeCodeConvTable'!$B$3:$B$213) -> Harrisonburg City | S113: 0 | U113: 0 | V113: 0 | W113: =LOOKUP(A113,'DOE - FIPStoPayeeCodeConvTable'!$A$3:$A$213,'DOE - FIPStoPayeeCodeConvTable'!$E$3:$E$213) -> 0.3808 | X113: 0.3808 | Y113: 0 | Z113: 0
A114: 670 | B114: =LOOKUP(A114,'DOE - FIPStoPayeeCodeConvTable'!$A$3:$A$213,'DOE - FIPStoPayeeCodeConvTable'!$B$3:$B$213) -> Hopewell City | S114: 0 | U114: 0 | V114: 0 | W114: =LOOKUP(A114,'DOE - FIPStoPayeeCodeConvTable'!$A$3:$A$213,'DOE - FIPStoPayeeCodeConvTable'!$E$3:$E$213) -> 0.2667 | X114: 0.2667 | Y114: 0 | Z114: 0
A115: 678 | B115: =LOOKUP(A115,'DOE - FIPStoPayeeCodeConvTable'!$A$3:$A$213,'DOE - FIPStoPayeeCodeConvTable'!$B$3:$B$213) -> Lexington City | S115: 0 | U115: 0 | V115: 0 | W115: =LOOKUP(A115,'DOE - FIPStoPayeeCodeConvTable'!$A$3:$A$213,'DOE - FIPStoPayeeCodeConvTable'!$E$3:$E$213) -> 0.3302 | X115: 0.3302 | Y115: 0 | Z115: 0
A116: 680 | B116: =LOOKUP(A116,'DOE - FIPStoPayeeCodeConvTable'!$A$3:$A$213,'DOE - FIPStoPayeeCodeConvTable'!$B$3:$B$213) -> Lynchburg City | S116: 0 | U116: 0 | V116: 0 | W116: =LOOKUP(A116,'DOE - FIPStoPayeeCodeConvTable'!$A$3:$A$213,'DOE - FIPStoPayeeCodeConvTable'!$E$3:$E$213) -> 0.2736 | X116: 0.2736 | Y116: 0 | Z116: 0
A117: 683 | B117: =LOOKUP(A117,'DOE - FIPStoPayeeCodeConvTable'!$A$3:$A$213,'DOE - FIPStoPayeeCodeConvTable'!$B$3:$B$213) -> Manassas City | S117: 0 | U117: 0 | V117: 0 | W117: =LOOKUP(A117,'DOE - FIPStoPayeeCodeConvTable'!$A$3:$A$213,'DOE - FIPStoPayeeCodeConvTable'!$E$3:$E$213) -> 0.4168 | X117: 0.4168 | Y117: 0 | Z117: 0
A118: 685 | B118: =LOOKUP(A118,'DOE - FIPStoPayeeCodeConvTable'!$A$3:$A$213,'DOE - FIPStoPayeeCodeConvTable'!$B$3:$B$213) -> Manassas Park City | S118: 0 | U118: 0 | V118: 0 | W118: =LOOKUP(A118,'DOE - FIPStoPayeeCodeConvTable'!$A$3:$A$213,'DOE - FIPStoPayeeCodeConvTable'!$E$3:$E$213) -> 0.4273 | X118: 0.4273 | Y118: 0 | Z118: 0
A119: 690 | B119: =LOOKUP(A119,'DOE - FIPStoPayeeCodeConvTable'!$A$3:$A$213,'DOE - FIPStoPayeeCodeConvTable'!$B$3:$B$213) -> Martinsville City | S119: 0 | U119: 0 | V119: 0 | W119: =LOOKUP(A119,'DOE - FIPStoPayeeCodeConvTable'!$A$3:$A$213,'DOE - FIPStoPayeeCodeConvTable'!$E$3:$E$213) -> 0.3321 | X119: 0.3321 | Y119: 0 | Z119: 0
A120: 700 | B120: =LOOKUP(A120,'DOE - FIPStoPayeeCodeConvTable'!$A$3:$A$213,'DOE - FIPStoPayeeCodeConvTable'!$B$3:$B$213) -> Newport News City | S120: 0 | U120: 0 | V120: 0 | W120: =LOOKUP(A120,'DOE - FIPStoPayeeCodeConvTable'!$A$3:$A$213,'DOE - FIPStoPayeeCodeConvTable'!$E$3:$E$213) -> 0.2773 | X120: 0.2773 | Y120: 0 | Z120: 0
A121: 710 | B121: =LOOKUP(A121,'DOE - FIPStoPayeeCodeConvTable'!$A$3:$A$213,'DOE - FIPStoPayeeCodeConvTable'!$B$3:$B$213) -> Norfolk City | S121: 0 | U121: 0 | V121: 0 | W121: =LOOKUP(A121,'DOE - FIPStoPayeeCodeConvTable'!$A$3:$A$213,'DOE - FIPStoPayeeCodeConvTable'!$E$3:$E$213) -> 0.2455 | X121: 0.2455 | Y121: 0 | Z121: 0
A122: 720 | B122: =LOOKUP(A122,'DOE - FIPStoPayeeCodeConvTable'!$A$3:$A$213,'DOE - FIPStoPayeeCodeConvTable'!$B$3:$B$213) -> Norton City | S122: 0 | U122: 0 | V122: 0 | W122: =LOOKUP(A122,'DOE - FIPStoPayeeCodeConvTable'!$A$3:$A$213,'DOE - FIPStoPayeeCodeConvTable'!$E$3:$E$213) -> 0.3254 | X122: 0.3254 | Y122: 0 | Z122: 0
A123: 730 | B123: =LOOKUP(A123,'DOE - FIPStoPayeeCodeConvTable'!$A$3:$A$213,'DOE - FIPStoPayeeCodeConvTable'!$B$3:$B$213) -> Petersburg City | S123: 0 | U123: 0 | V123: 0 | W123: =LOOKUP(A123,'DOE - FIPStoPayeeCodeConvTable'!$A$3:$A$213,'DOE - FIPStoPayeeCodeConvTable'!$E$3:$E$213) -> 0.3535 | X123: 0.3535 | Y123: 0 | Z123: 0
A124: 735 | B124: =LOOKUP(A124,'DOE - FIPStoPayeeCodeConvTable'!$A$3:$A$213,'DOE - FIPStoPayeeCodeConvTable'!$B$3:$B$213) -> Poquoson City | S124: 0 | U124: 0 | V124: 0 | W124: =LOOKUP(A124,'DOE - FIPStoPayeeCodeConvTable'!$A$3:$A$213,'DOE - FIPStoPayeeCodeConvTable'!$E$3:$E$213) -> 0.2787 | X124: 0.2787 | Y124: 0 | Z124: 0
A125: 740 | B125: =LOOKUP(A125,'DOE - FIPStoPayeeCodeConvTable'!$A$3:$A$213,'DOE - FIPStoPayeeCodeConvTable'!$B$3:$B$213) -> Portsmouth City | S125: 0 | U125: 0 | V125: 0 | W125: =LOOKUP(A125,'DOE - FIPStoPayeeCodeConvTable'!$A$3:$A$213,'DOE - FIPStoPayeeCodeConvTable'!$E$3:$E$213) -> 0.2605 | X125: 0.2605 | Y125: 0 | Z125: 0
A126: 750 | B126: =LOOKUP(A126,'DOE - FIPStoPayeeCodeConvTable'!$A$3:$A$213,'DOE - FIPStoPayeeCodeConvTable'!$B$3:$B$213) -> Radford City | S126: 0 | U126: 0 | V126: 0 | W126: =LOOKUP(A126,'DOE - FIPStoPayeeCodeConvTable'!$A$3:$A$213,'DOE - FIPStoPayeeCodeConvTable'!$E$3:$E$213) -> 0.2035 | X126: 0.2035 | Y126: 0 | Z126: 0
A127: 760 | B127: =LOOKUP(A127,'DOE - FIPStoPayeeCodeConvTable'!$A$3:$A$213,'DOE - FIPStoPayeeCodeConvTable'!$B$3:$B$213) -> Richmond City | S127: 0 | U127: 0 | V127: 0 | W127: =LOOKUP(A127,'DOE - FIPStoPayeeCodeConvTable'!$A$3:$A$213,'DOE - FIPStoPayeeCodeConvTable'!$E$3:$E$213) -> 0.3691 | X127: 0.3691 | Y127: 0 | Z127: 0
A128: 770 | B128: =LOOKUP(A128,'DOE - FIPStoPayeeCodeConvTable'!$A$3:$A$213,'DOE - FIPStoPayeeCodeConvTable'!$B$3:$B$213) -> Roanoke City | S128: 0 | U128: 0 | V128: 0 | W128: =LOOKUP(A128,'DOE - FIPStoPayeeCodeConvTable'!$A$3:$A$213,'DOE - FIPStoPayeeCodeConvTable'!$E$3:$E$213) -> 0.3072 | X128: 0.3072 | Y128: 0 | Z128: 0
A129: 775 | B129: =LOOKUP(A129,'DOE - FIPStoPayeeCodeConvTable'!$A$3:$A$213,'DOE - FIPStoPayeeCodeConvTable'!$B$3:$B$213) -> Salem City | S129: 0 | U129: 0 | V129: 0 | W129: =LOOKUP(A129,'DOE - FIPStoPayeeCodeConvTable'!$A$3:$A$213,'DOE - FIPStoPayeeCodeConvTable'!$E$3:$E$213) -> 0.3513 | X129: 0.3513 | Y129: 0 | Z129: 0
A130: 790 | B130: =LOOKUP(A130,'DOE - FIPStoPayeeCodeConvTable'!$A$3:$A$213,'DOE - FIPStoPayeeCodeConvTable'!$B$3:$B$213) -> Staunton City | S130: 0 | U130: 0 | V130: 0 | W130: =LOOKUP(A130,'DOE - FIPStoPayeeCodeConvTable'!$A$3:$A$213,'DOE - FIPStoPayeeCodeConvTable'!$E$3:$E$213) -> 0.2699 | X130: 0.2699 | Y130: 0 | Z130: 0
A131: 800 | B131: =LOOKUP(A131,'DOE - FIPStoPayeeCodeConvTable'!$A$3:$A$213,'DOE - FIPStoPayeeCodeConvTable'!$B$3:$B$213) -> Suffolk City | S131: 0 | U131: 0 | V131: 0 | W131: =LOOKUP(A131,'DOE - FIPStoPayeeCodeConvTable'!$A$3:$A$213,'DOE - FIPStoPayeeCodeConvTable'!$E$3:$E$213) -> 0.2432 | X131: 0.2432 | Y131: 0 | Z131: 0
A132: 810 | B132: =LOOKUP(A132,'DOE - FIPStoPayeeCodeConvTable'!$A$3:$A$213,'DOE - FIPStoPayeeCodeConvTable'!$B$3:$B$213) -> Virginia Beach City | S132: 0 | U132: 0 | V132: 0 | W132: =LOOKUP(A132,'DOE - FIPStoPayeeCodeConvTable'!$A$3:$A$213,'DOE - FIPStoPayeeCodeConvTable'!$E$3:$E$213) -> 0.3569 | X132: 0.3569 | Y132: 0 | Z132: 0
A133: 820 | B133: =LOOKUP(A133,'DOE - FIPStoPayeeCodeConvTable'!$A$3:$A$213,'DOE - FIPStoPayeeCodeConvTable'!$B$3:$B$213) -> Waynesboro City | S133: =SUM(C133:R133) -> 0 | U133: 0 | V133: =SUM(S133)-SUM(U133) -> 0 | W133: =LOOKUP(A133,'DOE - FIPStoPayeeCodeConvTable'!$A$3:$A$213,'DOE - FIPStoPayeeCodeConvTable'!$E$3:$E$213) -> 0.3843 | X133: 0.3843 | Y133: 0 | Z133: 0
A134: 830 | B134: =LOOKUP(A134,'DOE - FIPStoPayeeCodeConvTable'!$A$3:$A$213,'DOE - FIPStoPayeeCodeConvTable'!$B$3:$B$213) -> Williamsburg City | S134: 0 | U134: 0 | V134: 0 | W134: =LOOKUP(A134,'DOE - FIPStoPayeeCodeConvTable'!$A$3:$A$213,'DOE - FIPStoPayeeCodeConvTable'!$E$3:$E$213) -> 0.4553 | X134: =$X$1*W134 -> 0.4553 | Y134: =ROUND(X134*V134,2) -> 0 | Z134: =SUM(V134)-SUM(Y134) -> 0
A135: 840 | B135: =LOOKUP(A135,'DOE - FIPStoPayeeCodeConvTable'!$A$3:$A$213,'DOE - FIPStoPayeeCodeConvTable'!$B$3:$B$213) -> Winchester City | S135: 0 | U135: 0 | V135: 0 | W135: =LOOKUP(A135,'DOE - FIPStoPayeeCodeConvTable'!$A$3:$A$213,'DOE - FIPStoPayeeCodeConvTable'!$E$3:$E$213) -> 0.4587 | X135: 0.4587 | Y135: 0 | Z135: 0

Sheet TFC Covid 19 Rate Adj (hidden)
A1: FY | B1: ='DOE - FIPStoPayeeCodeConvTable'!G1 -> 2022 | C1: MEDICAID ADJUSTMENTS--TFC PAYMENTS TO PROVIDERS COVID 19 | O1: ="Extended to be paided in this SFY = " & A1 -> Extended to be paided in this SFY = FY | T1: xx | U1: 0.562 | V1: 0.438 | W1: (POOL) | X1: 1
U2: FEDERAL | V2: STATE/ | W2: (RATE) | X2: Factor
A3: FIPS | S3: Grand | U3: MEDICAID | V3: LOCAL | W3: LOCAL | Y3: LOCAL | Z3: STATE
